Workbook

Sheet Introduction
C4: Joint Monitoring Programme for Water Supply, Sanitation and Hygiene
C6: Estimates on household water, sanitation and hygiene by wealth quintile and sub-national region in
C7: =+Water!B5 -> Tajikistan
C9: Updated May 2021
C11: Follow the links below to find the following information:
C13: JMP Estimates
C14: WASH status and trends by wealth quintile (customized quintiles made without water and sanitation assets)
C15: Water
C16: Sanitation
C17: Hygiene
C19: Data inputs
C20: customized wealth quintiles and subnational data:
C21: =IF(INDIRECT(CONCATENATE("Water","!B105"))=0,"",INDIRECT(CONCATENATE("Water","!B105"))) -> MICS00
C22: =IF(INDIRECT(CONCATENATE("Water","!B106"))=0,"",INDIRECT(CONCATENATE("Water","!B106"))) -> PMS02
C23: =IF(INDIRECT(CONCATENATE("Water","!B107"))=0,"",INDIRECT(CONCATENATE("Water","!B107"))) -> MICS05
C24: =IF(INDIRECT(CONCATENATE("Water","!B108"))=0,"",INDIRECT(CONCATENATE("Water","!B108"))) -> DHS12
C25: =IF(INDIRECT(CONCATENATE("Water","!B109"))=0,"",INDIRECT(CONCATENATE("Water","!B109"))) -> DHS17
C26: =IF(INDIRECT(CONCATENATE("Water","!B110"))=0,"",INDIRECT(CONCATENATE("Water","!B110"))) -> 
C27: =IF(INDIRECT(CONCATENATE("Water","!B111"))=0,"",INDIRECT(CONCATENATE("Water","!B111"))) -> 
C28: =IF(INDIRECT(CONCATENATE("Water","!B112"))=0,"",INDIRECT(CONCATENATE("Water","!B112"))) -> 
C29: =IF(INDIRECT(CONCATENATE("Water","!B113"))=0,"",INDIRECT(CONCATENATE("Water","!B113"))) -> 
C30: =IF(INDIRECT(CONCATENATE("Water","!B114"))=0,"",INDIRECT(CONCATENATE("Water","!B114"))) -> 
C31: =IF(INDIRECT(CONCATENATE("Water","!B115"))=0,"",INDIRECT(CONCATENATE("Water","!B115"))) -> 
C32: =IF(INDIRECT(CONCATENATE("Water","!B116"))=0,"",INDIRECT(CONCATENATE("Water","!B116"))) -> 
L55: =+IF(ISNUMBER(M48), "", "Insufficient data to estimate safely managed sanitation services at national level") -> Insufficient data to estimate safely managed sanitation services at national level

Sheet Water
A1: BGD
B4: Summary of trends in use of drinking water by wealth quintile (%)
B5: =IF(ISERROR(INDIRECT(CONCATENATE($B105,"!A2"))),"",INDIRECT(CONCATENATE($B105,"!A2"))) -> Tajikistan
B7: =B118 -> National use of drinking water sources, 2000–2020 | J7: =B218 -> Urban use of drinking water sources, 2000–2020 | R7: =B318 -> Rural use of drinking water sources, 2000–2020
B31: =IF(ISERROR(INDIRECT(CONCATENATE($B105,"!A2"))),"",INDIRECT(CONCATENATE($B105,"!A2"))) -> Tajikistan | F31: Poorest | J31: Poor | N31: Middle | R31: Rich | V31: Richest
F32: Basic | G32: Limited | H32: Unimproved | I32: Surface water | J32: Basic | K32: Limited | L32: Unimproved | M32: Surface water | N32: Basic | O32: Limited | P32: Unimproved | Q32: Surface water | R32: Basic | S32: Limited | T32: Unimproved | U32: Surface water | V32: Basic | W32: Limited | X32: Unimproved | Y32: Surface water
B33: NATIONAL | D33: Estimate | E33: =C99 -> 2000 | F33: =E99 -> 39.56429573 | G33: =F99 -> 4.101588543 | H33: 12.18680073 | I33: 44.147315 | J33: =J99 -> 45.26146644 | K33: =K99 -> 3.837538416 | L33: 8.348160885 | M33: 42.55283426 | N33: =O99 -> 54.85615025 | O33: =P99 -> 4.072443142 | P33: 6.023281453 | Q33: 35.04812515 | R33: =T99 -> 66.52339525 | S33: =U99 -> 2.370924482 | T33: 4.080937879 | U33: 27.02474239 | V33: =Y99 -> 87.73079215 | W33: =Z99 -> 1.60724201 | X33: 1.27740803 | Y33: 9.384557809
E34: =C100 -> 2020 | F34: =E100 -> 75.38127166 | G34: 7.814696421 | H34: 1.811800403 | I34: 14.99223151 | J34: =J100 -> 76.71637619 | K34: 6.504474201 | L34: 0.7625299064 | M34: 16.01661971 | N34: =O100 -> 78.54458318 | O34: 5.831038957 | P34: 2.48429883 | Q34: 13.14007903 | R34: =T100 -> 91.32296581 | S34: 3.254792612 | T34: 1.323052673 | U34: 4.099188901 | V34: =Y100 -> 96.47416416 | W34: 1.76742197 | X34: 1.153706031 | Y34: 0.6047078383
B36: URBAN | D36: Estimate | E36: =C199 -> 2000 | F36: =E199 -> 83.59273487 | G36: =F199 -> 2.427230876 | H36: 3.825604655 | I36: 10.1544296 | J36: =J199 -> 88.14942605 | K36: =K199 -> 2.057893142 | L36: 1.915069453 | M36: 7.877611356 | N36: =O199 -> 92.41371772 | O36: =P199 -> 2.482371065 | P36: 1.79897447 | Q36: 3.304936743 | R36: =T199 -> 94.41278834 | S36: =U199 -> 1.310320828 | T36: 0.9290572874 | U36: 3.347833547 | V36: =Y199 -> 97.4577053 | W36: =Z199 -> 0.962630626 | X36: 0.701868777 | Y36: 0.8777952979
E37: =C200 -> 2020 | F37: =E200 -> 93.14875803 | G37: 2.704703249 | H37: 1.824821685 | I37: 2.321717031 | J37: =J200 -> 96.16601419 | K37: 2.245044465 | L37: 1.327509233 | M37: 0.2614321129 | N37: =O200 -> 96.49559277 | O37: 2.592016351 | P37: 0.06973797088 | Q37: 0.8426529098 | R37: =T200 -> 98.63113428 | S37: 1.36886572 | T37: 0 | U37: 0 | V37: =Y200 -> 97.20787975 | W37: 0.9601629943 | X37: 1.831957251 | Y37: 0
B39: RURAL | D39: Estimate | E39: =C299 -> 2000 | F39: =E299 -> 36.35592299 | G39: =F299 -> 4.263604768 | H39: 13.12501123 | I39: 46.25546101 | J39: =J299 -> 43.57436255 | K39: =K299 -> 4.421208671 | L39: 9.05395885 | M39: 42.95046993 | N39: =O299 -> 46.48695641 | O39: =P299 -> 3.450560704 | P39: 7.838113785 | Q39: 42.2243691 | R39: =T299 -> 53.91293503 | S39: =U299 -> 3.688851994 | T39: 4.742498385 | U39: 37.65571459 | V39: =Y299 -> 60.95195196 | W39: =Z299 -> 2.193592181 | X39: 4.545232541 | Y39: 32.30922331
E40: =C300 -> 2020 | F40: =E300 -> 73.71475513 | G40: 8.64482471 | H40: 1.699174623 | I40: 15.94124554 | J40: =J300 -> 76.09182055 | K40: 7.720544767 | L40: 1.20180861 | M40: 14.98582607 | N40: =O300 -> 76.84228324 | O40: 5.703728172 | P40: 1.390165896 | Q40: 16.06382269 | R40: =T300 -> 79.94828199 | S40: 5.470252718 | T40: 2.438838128 | U40: 12.14262716 | V40: =Y300 -> 89.26993008 | W40: 3.212724357 | X40: 1.511848605 | Y40: 6.00549696
A97: NATIONAL | D97: Poorest | I97: Poor | N97: Middle | S97: Rich | X97: Richest
D98: Improved | E98: Basic | F98: Limited | G98: Unimproved | H98: Surface water | I98: Improved | J98: Basic | K98: Limited | L98: Unimproved | M98: Surface water | N98: Improved | O98: Basic | P98: Limited | Q98: Unimproved | R98: Surface water | S98: Improved | T98: Basic | U98: Limited | V98: Unimproved | W98: Surface water | X98: Improved | Y98: Basic | Z98: Limited | AA98: Unimproved | AB98: Surface water
A99: Forecast period: | C99: 2000 | D99: =IF((D101+H101)>100,D101*100/(D101+H101),D101) -> 43.66588427 | E99: =D99*AVERAGEIF(E105:E116,">0")/100 -> 39.56429573 | F99: =D99*(100-AVERAGEIF(E105:E116,">0"))/100 -> 4.101588543 | G99: =100-(E99+F99+H99) -> 12.18680073 | H99: =IF((D101+H101)>100,H101*100/(D101+H101),H101) -> 44.147315 | I99: =IF((I101+M101)>100,I101*100/(I101+M101),I101) -> 49.09900486 | J99: =I99*AVERAGEIF(J105:J116,">0")/100 -> 45.26146644 | K99: =I99*(100-AVERAGEIF(J105:J116,">0"))/100 -> 3.837538416 | L99: =100-(J99+K99+M99) -> 8.348160885 | M99: =IF((I101+M101)>100,M101*100/(I101+M101),M101) -> 42.55283426 | N99: =IF((N101+R101)>100,N101*100/(N101+R101),N101) -> 58.92859339 | O99: =N99*AVERAGEIF(O105:O116,">0")/100 -> 54.85615025 | P99: =N99*(100-AVERAGEIF(O105:O116,">0"))/100 -> 4.072443142 | Q99: =100-(O99+P99+R99) -> 6.023281453 | R99: =IF((N101+R101)>100,R101*100/(N101+R101),R101) -> 35.04812515 | S99: =IF((S101+W101)>100,S101*100/(S101+W101),S101) -> 68.89431973 | T99: =S99*AVERAGEIF(T105:T116,">0")/100 -> 66.52339525 | U99: =S99*(100-AVERAGEIF(T105:T116,">0"))/100 -> 2.370924482 | V99: =100-(T99+U99+W99) -> 4.080937879 | W99: =IF((S101+W101)>100,W101*100/(S101+W101),W101) -> 27.02474239 | X99: =IF((X101+AB101)>100,X101*100/(X101+AB101),X101) -> 89.33803416 | Y99: =X99*AVERAGEIF(Y105:Y116,">0")/100 -> 87.73079215 | Z99: =X99*(100-AVERAGEIF(Y105:Y116,">0"))/100 -> 1.60724201 | AA99: =100-(Y99+Z99+AB99) -> 1.27740803 | AB99: =IF((X101+AB101)>100,AB101*100/(X101+AB101),AB101) -> 9.384557809
C100: 2020 | D100: =IF((D102+H102)>100,D102*100/(D102+H102),D102) -> 83.19596808 | E100: =D100*AVERAGEIF(E105:E116,">0")/100 -> 75.38127166 | F100: =D100*(100-AVERAGEIF(E105:E116,">0"))/100 -> 7.814696421 | G100: =100-(E100+F100+H100) -> 1.811800403 | H100: =IF((D102+H102)>100,H102*100/(D102+H102),H102) -> 14.99223151 | I100: =IF((I102+M102)>100,I102*100/(I102+M102),I102) -> 83.22085039 | J100: =I100*AVERAGEIF(J105:J116,">0")/100 -> 76.71637619 | K100: =I100*(100-AVERAGEIF(J105:J116,">0"))/100 -> 6.504474201 | L100: =100-(J100+K100+M100) -> 0.7625299064 | M100: =IF((I102+M102)>100,M102*100/(I102+M102),M102) -> 16.01661971 | N100: =IF((N102+R102)>100,N102*100/(N102+R102),N102) -> 84.37562214 | O100: =N100*AVERAGEIF(O105:O116,">0")/100 -> 78.54458318 | P100: =N100*(100-AVERAGEIF(O105:O116,">0"))/100 -> 5.831038957 | Q100: =100-(O100+P100+R100) -> 2.48429883 | R100: =IF((N102+R102)>100,R102*100/(N102+R102),R102) -> 13.14007903 | S100: =IF((S102+W102)>100,S102*100/(S102+W102),S102) -> 94.57775843 | T100: =S100*AVERAGEIF(T105:T116,">0")/100 -> 91.32296581 | U100: =S100*(100-AVERAGEIF(T105:T116,">0"))/100 -> 3.254792612 | V100: =100-(T100+U100+W100) -> 1.323052673 | W100: =IF((S102+W102)>100,W102*100/(S102+W102),W102) -> 4.099188901 | X100: =IF((X102+AB102)>100,X102*100/(X102+AB102),X102) -> 98.24158613 | Y100: =X100*AVERAGEIF(Y105:Y116,">0")/100 -> 96.47416416 | Z100: =X100*(100-AVERAGEIF(Y105:Y116,">0"))/100 -> 1.76742197 | AA100: =100-(Y100+Z100+AB100) -> 1.153706031 | AB100: =IF((X102+AB102)>100,AB102*100/(X102+AB102),AB102) -> 0.6047078383
A101: Regression period: | C101: =MinRegYear(C99,C105:C116) -> 2000 | D101: =IF(MAX(C105:C116)-MIN(C105:C116)<5,AVERAGEIF(C105:C116,">0",D105:D116), IF(FORECAST($C101,D$105:D$116,$C$105:$C$116)<0,0, IF(FORECAST($C101,D$105:D$116,$C$105:$C$116)>100,100, FORECAST($C101,D$105:D$116,$C$105:$C$116)))) -> 43.66588427 | H101: =IF(MAX(C105:C116)-MIN(C105:C116)<5,AVERAGEIF(C105:C116,">0",H105:H116), IF(FORECAST($C101,H$105:H$116,$C$105:$C$116)<0,0, IF(FORECAST($C101,H$105:H$116,$C$105:$C$116)>100,100, FORECAST($C101,H$105:H$116,$C$105:$C$116)))) -> 44.147315 | I101: =IF(MAX(C105:C116)-MIN(C105:C116)<5,AVERAGEIF(C105:C116,">0",I105:I116), IF(FORECAST($C101,I$105:I$116,$C$105:$C$116)<0,0, IF(FORECAST($C101,I$105:I$116,$C$105:$C$116)>100,100, FORECAST($C101,I$105:I$116,$C$105:$C$116)))) -> 49.09900486 | M101: =IF(MAX(C105:C116)-MIN(C105:C116)<5,AVERAGEIF(C105:C116,">0",M105:M116), IF(FORECAST($C101,M$105:M$116,$C$105:$C$116)<0,0, IF(FORECAST($C101,M$105:M$116,$C$105:$C$116)>100,100, FORECAST($C101,M$105:M$116,$C$105:$C$116)))) -> 42.55283426 | N101: =IF(MAX(C105:C116)-MIN(C105:C116)<5,AVERAGEIF(C105:C116,">0",N105:N116), IF(FORECAST($C101,N$105:N$116,$C$105:$C$116)<0,0, IF(FORECAST($C101,N$105:N$116,$C$105:$C$116)>100,100, FORECAST($C101,N$105:N$116,$C$105:$C$116)))) -> 58.92859339 | R101: =IF(MAX(C105:C116)-MIN(C105:C116)<5,AVERAGEIF(C105:C116,">0",R105:R116), IF(FORECAST($C101,R$105:R$116,$C$105:$C$116)<0,0, IF(FORECAST($C101,R$105:R$116,$C$105:$C$116)>100,100, FORECAST($C101,R$105:R$116,$C$105:$C$116)))) -> 35.04812515 | S101: =IF(MAX(C105:C116)-MIN(C105:C116)<5,AVERAGEIF(C105:C116,">0",S105:S116), IF(FORECAST($C101,S$105:S$116,$C$105:$C$116)<0,0, IF(FORECAST($C101,S$105:S$116,$C$105:$C$116)>100,100, FORECAST($C101,S$105:S$116,$C$105:$C$116)))) -> 68.89431973 | W101: =IF(MAX(C105:C116)-MIN(C105:C116)<5,AVERAGEIF(C105:C116,">0",W105:W116), IF(FORECAST($C101,W$105:W$116,$C$105:$C$116)<0,0, IF(FORECAST($C101,W$105:W$116,$C$105:$C$116)>100,100, FORECAST($C101,W$105:W$116,$C$105:$C$116)))) -> 27.02474239 | X101: =IF(MAX(C105:C116)-MIN(C105:C116)<5,AVERAGEIF(C105:C116,">0",X105:X116), IF(FORECAST($C101,X$105:X$116,$C$105:$C$116)<0,0, IF(FORECAST($C101,X$105:X$116,$C$105:$C$116)>100,100, FORECAST($C101,X$105:X$116,$C$105:$C$116)))) -> 89.33803416 | AB101: =IF(MAX(C105:C116)-MIN(C105:C116)<5,AVERAGEIF(C105:C116,">0",AB105:AB116), IF(FORECAST($C101,AB$105:AB$116,$C$105:$C$116)<0,0, IF(FORECAST($C101,AB$105:AB$116,$C$105:$C$116)>100,100, FORECAST($C101,AB$105:AB$116,$C$105:$C$116)))) -> 9.384557809
C102: =MaxRegYear(C100,C105:C116) -> 2019 | D102: =IF(MAX(C105:C116)-MIN(C105:C116)<5,AVERAGEIF(C105:C116,">0",D105:D116), IF(FORECAST($C102,D$105:D$116,$C$105:$C$116)<0,0, IF(FORECAST($C102,D$105:D$116,$C$105:$C$116)>100,100, FORECAST($C102,D$105:D$116,$C$105:$C$116)))) -> 83.19596808 | H102: =IF(MAX(C105:C116)-MIN(C105:C116)<5,AVERAGEIF(C105:C116,">0",H105:H116), IF(FORECAST($C102,H$105:H$116,$C$105:$C$116)<0,0, IF(FORECAST($C102,H$105:H$116,$C$105:$C$116)>100,100, FORECAST($C102,H$105:H$116,$C$105:$C$116)))) -> 14.99223151 | I102: =IF(MAX(C105:C116)-MIN(C105:C116)<5,AVERAGEIF(C105:C116,">0",I105:I116), IF(FORECAST($C102,I$105:I$116,$C$105:$C$116)<0,0, IF(FORECAST($C102,I$105:I$116,$C$105:$C$116)>100,100, FORECAST($C102,I$105:I$116,$C$105:$C$116)))) -> 83.22085039 | M102: =IF(MAX(C105:C116)-MIN(C105:C116)<5,AVERAGEIF(C105:C116,">0",M105:M116), IF(FORECAST($C102,M$105:M$116,$C$105:$C$116)<0,0, IF(FORECAST($C102,M$105:M$116,$C$105:$C$116)>100,100, FORECAST($C102,M$105:M$116,$C$105:$C$116)))) -> 16.01661971 | N102: =IF(MAX(C105:C116)-MIN(C105:C116)<5,AVERAGEIF(C105:C116,">0",N105:N116), IF(FORECAST($C102,N$105:N$116,$C$105:$C$116)<0,0, IF(FORECAST($C102,N$105:N$116,$C$105:$C$116)>100,100, FORECAST($C102,N$105:N$116,$C$105:$C$116)))) -> 84.37562214 | R102: =IF(MAX(C105:C116)-MIN(C105:C116)<5,AVERAGEIF(C105:C116,">0",R105:R116), IF(FORECAST($C102,R$105:R$116,$C$105:$C$116)<0,0, IF(FORECAST($C102,R$105:R$116,$C$105:$C$116)>100,100, FORECAST($C102,R$105:R$116,$C$105:$C$116)))) -> 13.14007903 | S102: =IF(MAX(C105:C116)-MIN(C105:C116)<5,AVERAGEIF(C105:C116,">0",S105:S116), IF(FORECAST($C102,S$105:S$116,$C$105:$C$116)<0,0, IF(FORECAST($C102,S$105:S$116,$C$105:$C$116)>100,100, FORECAST($C102,S$105:S$116,$C$105:$C$116)))) -> 94.57775843 | W102: =IF(MAX(C105:C116)-MIN(C105:C116)<5,AVERAGEIF(C105:C116,">0",W105:W116), IF(FORECAST($C102,W$105:W$116,$C$105:$C$116)<0,0, IF(FORECAST($C102,W$105:W$116,$C$105:$C$116)>100,100, FORECAST($C102,W$105:W$116,$C$105:$C$116)))) -> 4.099188901 | X102: =IF(MAX(C105:C116)-MIN(C105:C116)<5,AVERAGEIF(C105:C116,">0",X105:X116), IF(FORECAST($C102,X$105:X$116,$C$105:$C$116)<0,0, IF(FORECAST($C102,X$105:X$116,$C$105:$C$116)>100,100, FORECAST($C102,X$105:X$116,$C$105:$C$116)))) -> 98.24158613 | AB102: =IF(MAX(C105:C116)-MIN(C105:C116)<5,AVERAGEIF(C105:C116,">0",AB105:AB116), IF(FORECAST($C102,AB$105:AB$116,$C$105:$C$116)<0,0, IF(FORECAST($C102,AB$105:AB$116,$C$105:$C$116)>100,100, FORECAST($C102,AB$105:AB$116,$C$105:$C$116)))) -> 0.6047078383
B104: Survey | C104: Year | D104: Improved | E104: % Improved < = 30min | H104: Surface water | I104: Improved | J104: % Improved < = 30min | M104: Surface water | N104: Improved | O104: % Improved < = 30min | R104: Surface water | S104: Improved | T104: % Improved < = 30min | W104: Surface water | X104: Improved | Y104: % Improved < = 30min | AB104: Surface water
B105: MICS00 | C105: 2000 | D105: =IF(ISERROR(INDIRECT(CONCATENATE($B105,"!C16"))),"",INDIRECT(CONCATENATE($B105,"!C16"))) -> 39.86877653 | E105: =IF(ISERROR(INDIRECT(CONCATENATE($B105,"!C23"))),"",INDIRECT(CONCATENATE($B105,"!C23"))) -> 86.39883833 | H105: =IF(ISERROR(INDIRECT(CONCATENATE($B105,"!C21"))),"",INDIRECT(CONCATENATE($B105,"!C21"))) -> 49.11231185 | I105: =IF(ISERROR(INDIRECT(CONCATENATE($B105,"!D16"))),"",INDIRECT(CONCATENATE($B105,"!D16"))) -> 50.54902716 | J105: =IF(ISERROR(INDIRECT(CONCATENATE($B105,"!D23"))),"",INDIRECT(CONCATENATE($B105,"!D23"))) -> 89.86280488 | M105: =IF(ISERROR(INDIRECT(CONCATENATE($B105,"!D21"))),"",INDIRECT(CONCATENATE($B105,"!D21"))) -> 39.02908881 | N105: =IF(ISERROR(INDIRECT(CONCATENATE($B105,"!E16"))),"",INDIRECT(CONCATENATE($B105,"!E16"))) -> 58.76685934 | O105: =IF(ISERROR(INDIRECT(CONCATENATE($B105,"!E23"))),"",INDIRECT(CONCATENATE($B105,"!E23"))) -> 91.46701674 | R105: =IF(ISERROR(INDIRECT(CONCATENATE($B105,"!E21"))),"",INDIRECT(CONCATENATE($B105,"!E21"))) -> 35.18411413 | S105: =IF(ISERROR(INDIRECT(CONCATENATE($B105,"!F16"))),"",INDIRECT(CONCATENATE($B105,"!F16"))) -> 66.84047895 | T105: =IF(ISERROR(INDIRECT(CONCATENATE($B105,"!F23"))),"",INDIRECT(CONCATENATE($B105,"!F23"))) -> 96.51567944 | W105: =IF(ISERROR(INDIRECT(CONCATENATE($B105,"!F21"))),"",INDIRECT(CONCATENATE($B105,"!F21"))) -> 29.68416973 | X105: =IF(ISERROR(INDIRECT(CONCATENATE($B105,"!G16"))),"",INDIRECT(CONCATENATE($B105,"!G16"))) -> 84.25212028 | Y105: =IF(ISERROR(INDIRECT(CONCATENATE($B105,"!G23"))),"",INDIRECT(CONCATENATE($B105,"!G23"))) -> 96.99472356 | AB105: =IF(ISERROR(INDIRECT(CONCATENATE($B105,"!G221"))),"",INDIRECT(CONCATENATE($B105,"!G21"))) -> 13.98763524
B106: PMS02 | C106: 2002 | D106: 45.99825974 | E106: N/A | H106: 38.40480111 | I106: 51.77132329 | J106: N/A | M106: 42.28074939 | N106: 58.48872499 | O106: N/A | R106: 36.47062424 | S106: 73.28242382 | T106: N/A | W106: 23.15218182 | X106: 94.94113409 | Y106: N/A | AB106: 4.530376813
B107: MICS05 | C107: 2005 | D107: 59.90392357 | E107: 91.7863872 | H107: 34.77734085 | I107: 55.36705974 | J107: 88.08593134 | M107: 39.142563 | N107: 68.60315467 | O107: 88.87812259 | R107: 25.41011406 | S107: 75.91524455 | T107: 92.88126851 | W107: 19.48316766 | X107: 94.2067631 | Y107: 97.08635354 | AB107: 4.971595862
B108: DHS12 | C108: 2012 | D108: 73.02355165 | E108: 88.16450034 | H108: 20.94746301 | I108: 74.98524022 | J108: 93.71525619 | M108: 21.63518827 | N108: 77.75866638 | O108: 95.07562947 | R108: 18.85784021 | S108: 86.41564448 | T108: 97.83354118 | W108: 11.50190812 | X108: 92.19413207 | Y108: 98.87891659 | AB108: 5.024825204
B109: DHS17 | C109: 2017 | D109: 74.43401603 | E109: 96.07779747 | H109: 22.25344737 | I109: 77.47429172 | J109: 97.07233187 | M109: 20.39743846 | N109: 79.24098447 | O109: 96.93599108 | R109: 17.807951 | S109: 90.68116438 | T109: 99.0039378 | W109: 7.86439379 | X109: 97.96590921 | Y109: 99.84377896 | AB109: 1.772850721
D111: =IF(ISERROR(INDIRECT(CONCATENATE($B111,"!C16"))),"",INDIRECT(CONCATENATE($B111,"!C16"))) ->  | E111: =IF(ISERROR(INDIRECT(CONCATENATE($B111,"!C23"))),"",INDIRECT(CONCATENATE($B111,"!C23"))) ->  | H111: =IF(ISERROR(INDIRECT(CONCATENATE($B111,"!C21"))),"",INDIRECT(CONCATENATE($B111,"!C21"))) ->  | I111: =IF(ISERROR(INDIRECT(CONCATENATE($B111,"!D16"))),"",INDIRECT(CONCATENATE($B111,"!D16"))) ->  | J111: =IF(ISERROR(INDIRECT(CONCATENATE($B111,"!D23"))),"",INDIRECT(CONCATENATE($B111,"!D23"))) ->  | M111: =IF(ISERROR(INDIRECT(CONCATENATE($B111,"!D21"))),"",INDIRECT(CONCATENATE($B111,"!D21"))) ->  | N111: =IF(ISERROR(INDIRECT(CONCATENATE($B111,"!E16"))),"",INDIRECT(CONCATENATE($B111,"!E16"))) ->  | O111: =IF(ISERROR(INDIRECT(CONCATENATE($B111,"!E23"))),"",INDIRECT(CONCATENATE($B111,"!E23"))) ->  | R111: =IF(ISERROR(INDIRECT(CONCATENATE($B111,"!E21"))),"",INDIRECT(CONCATENATE($B111,"!E21"))) ->  | S111: =IF(ISERROR(INDIRECT(CONCATENATE($B111,"!F16"))),"",INDIRECT(CONCATENATE($B111,"!F16"))) ->  | T111: =IF(ISERROR(INDIRECT(CONCATENATE($B111,"!F23"))),"",INDIRECT(CONCATENATE($B111,"!F23"))) ->  | W111: =IF(ISERROR(INDIRECT(CONCATENATE($B111,"!F21"))),"",INDIRECT(CONCATENATE($B111,"!F21"))) ->  | X111: =IF(ISERROR(INDIRECT(CONCATENATE($B111,"!G16"))),"",INDIRECT(CONCATENATE($B111,"!G16"))) ->  | Y111: =IF(ISERROR(INDIRECT(CONCATENATE($B111,"!G23"))),"",INDIRECT(CONCATENATE($B111,"!G23"))) ->  | AB111: =IF(ISERROR(INDIRECT(CONCATENATE($B111,"!G221"))),"",INDIRECT(CONCATENATE($B111,"!G21"))) -> 
D112: =IF(ISERROR(INDIRECT(CONCATENATE($B112,"!C16"))),"",INDIRECT(CONCATENATE($B112,"!C16"))) ->  | E112: =IF(ISERROR(INDIRECT(CONCATENATE($B112,"!C23"))),"",INDIRECT(CONCATENATE($B112,"!C23"))) ->  | H112: =IF(ISERROR(INDIRECT(CONCATENATE($B112,"!C21"))),"",INDIRECT(CONCATENATE($B112,"!C21"))) ->  | I112: =IF(ISERROR(INDIRECT(CONCATENATE($B112,"!D16"))),"",INDIRECT(CONCATENATE($B112,"!D16"))) ->  | J112: =IF(ISERROR(INDIRECT(CONCATENATE($B112,"!D23"))),"",INDIRECT(CONCATENATE($B112,"!D23"))) ->  | M112: =IF(ISERROR(INDIRECT(CONCATENATE($B112,"!D21"))),"",INDIRECT(CONCATENATE($B112,"!D21"))) ->  | N112: =IF(ISERROR(INDIRECT(CONCATENATE($B112,"!E16"))),"",INDIRECT(CONCATENATE($B112,"!E16"))) ->  | O112: =IF(ISERROR(INDIRECT(CONCATENATE($B112,"!E23"))),"",INDIRECT(CONCATENATE($B112,"!E23"))) ->  | R112: =IF(ISERROR(INDIRECT(CONCATENATE($B112,"!E21"))),"",INDIRECT(CONCATENATE($B112,"!E21"))) ->  | S112: =IF(ISERROR(INDIRECT(CONCATENATE($B112,"!F16"))),"",INDIRECT(CONCATENATE($B112,"!F16"))) ->  | T112: =IF(ISERROR(INDIRECT(CONCATENATE($B112,"!F23"))),"",INDIRECT(CONCATENATE($B112,"!F23"))) ->  | W112: =IF(ISERROR(INDIRECT(CONCATENATE($B112,"!F21"))),"",INDIRECT(CONCATENATE($B112,"!F21"))) ->  | X112: =IF(ISERROR(INDIRECT(CONCATENATE($B112,"!G16"))),"",INDIRECT(CONCATENATE($B112,"!G16"))) ->  | Y112: =IF(ISERROR(INDIRECT(CONCATENATE($B112,"!G23"))),"",INDIRECT(CONCATENATE($B112,"!G23"))) ->  | AB112: =IF(ISERROR(INDIRECT(CONCATENATE($B112,"!G221"))),"",INDIRECT(CONCATENATE($B112,"!G21"))) -> 
B118: =CONCATENATE("National use of drinking water sources, ",C99,"–",C100) -> National use of drinking water sources, 2000–2020 | S118: Data points used for regression
E153: =IF(ISERROR(INDIRECT(CONCATENATE($B153,"!M18"))),"",INDIRECT(CONCATENATE($B153,"!M18"))) ->  | F153: =IF(ISERROR(INDIRECT(CONCATENATE($B153,"!M19"))),"",INDIRECT(CONCATENATE($B153,"!M19"))) ->  | G153: =IF(ISERROR(INDIRECT(CONCATENATE($B153,"!M20"))),"",INDIRECT(CONCATENATE($B153,"!M20"))) ->  | H153: =IF(ISERROR(INDIRECT(CONCATENATE($B153,"!M21"))),"",INDIRECT(CONCATENATE($B153,"!M21"))) ->  | J153: =IF(ISERROR(INDIRECT(CONCATENATE($B153,"!N18"))),"",INDIRECT(CONCATENATE($B153,"!N18"))) ->  | K153: =IF(ISERROR(INDIRECT(CONCATENATE($B153,"!N19"))),"",INDIRECT(CONCATENATE($B153,"!N19"))) ->  | L153: =IF(ISERROR(INDIRECT(CONCATENATE($B153,"!N20"))),"",INDIRECT(CONCATENATE($B153,"!N20"))) ->  | M153: =IF(ISERROR(INDIRECT(CONCATENATE($B153,"!N21"))),"",INDIRECT(CONCATENATE($B153,"!N21"))) ->  | O153: =IF(ISERROR(INDIRECT(CONCATENATE($B153,"!O18"))),"",INDIRECT(CONCATENATE($B153,"!O18"))) ->  | P153: =IF(ISERROR(INDIRECT(CONCATENATE($B153,"!O19"))),"",INDIRECT(CONCATENATE($B153,"!O19"))) ->  | Q153: =IF(ISERROR(INDIRECT(CONCATENATE($B153,"!O20"))),"",INDIRECT(CONCATENATE($B153,"!O20"))) ->  | R153: =IF(ISERROR(INDIRECT(CONCATENATE($B153,"!O21"))),"",INDIRECT(CONCATENATE($B153,"!O21"))) ->  | T153: =IF(ISERROR(INDIRECT(CONCATENATE($B153,"!P18"))),"",INDIRECT(CONCATENATE($B153,"!P18"))) ->  | U153: =IF(ISERROR(INDIRECT(CONCATENATE($B153,"!P19"))),"",INDIRECT(CONCATENATE($B153,"!P19"))) ->  | V153: =IF(ISERROR(INDIRECT(CONCATENATE($B153,"!P20"))),"",INDIRECT(CONCATENATE($B153,"!P20"))) ->  | W153: =IF(ISERROR(INDIRECT(CONCATENATE($B153,"!P21"))),"",INDIRECT(CONCATENATE($B153,"!P21"))) ->  | Y153: =IF(ISERROR(INDIRECT(CONCATENATE($B153,"!Q18"))),"",INDIRECT(CONCATENATE($B153,"!Q18"))) ->  | Z153: =IF(ISERROR(INDIRECT(CONCATENATE($B153,"!Q19"))),"",INDIRECT(CONCATENATE($B153,"!Q19"))) ->  | AA153: =IF(ISERROR(INDIRECT(CONCATENATE($B153,"!Q20"))),"",INDIRECT(CONCATENATE($B153,"!Q20"))) ->  | AB153: =IF(ISERROR(INDIRECT(CONCATENATE($B153,"!Q21"))),"",INDIRECT(CONCATENATE($B153,"!Q1"))) -> 
A197: URBAN | D197: Poorest | I197: Poor | N197: Middle | S197: Rich | X197: Richest
D198: Improved | E198: Basic | F198: Limited | G198: Unimproved | H198: Surface water | I198: Improved | J198: Basic | K198: Limited | L198: Unimproved | M198: Surface water | N198: Improved | O198: Basic | P198: Limited | Q198: Unimproved | R198: Surface water | S198: Improved | T198: Basic | U198: Limited | V198: Unimproved | W198: Surface water | X198: Improved | Y198: Basic | Z198: Limited | AA198: Unimproved | AB198: Surface water
A199: Forecast period: | C199: 2000 | D199: =IF((D201+H201)>100,D201*100/(D201+H201),D201) -> 86.01996575 | E199: =D199*AVERAGEIF(E205:E216,">0")/100 -> 83.59273487 | F199: =D199*(100-AVERAGEIF(E205:E216,">0"))/100 -> 2.427230876 | G199: =100-(E199+F199+H199) -> 3.825604655 | H199: =IF((D201+H201)>100,H201*100/(D201+H201),H201) -> 10.1544296 | I199: =IF((I201+M201)>100,I201*100/(I201+M201),I201) -> 90.20731919 | J199: =I199*AVERAGEIF(J205:J216,">0")/100 -> 88.14942605 | K199: =I199*(100-AVERAGEIF(J205:J216,">0"))/100 -> 2.057893142 | L199: =100-(J199+K199+M199) -> 1.915069453 | M199: =IF((I201+M201)>100,M201*100/(I201+M201),M201) -> 7.877611356 | N199: =IF((N201+R201)>100,N201*100/(N201+R201),N201) -> 94.89608879 | O199: =N199*AVERAGEIF(O205:O216,">0")/100 -> 92.41371772 | P199: =N199*(100-AVERAGEIF(O205:O216,">0"))/100 -> 2.482371065 | Q199: =100-(O199+P199+R199) -> 1.79897447 | R199: =IF((N201+R201)>100,R201*100/(N201+R201),R201) -> 3.304936743 | S199: =IF((S201+W201)>100,S201*100/(S201+W201),S201) -> 95.72310917 | T199: =S199*AVERAGEIF(T205:T216,">0")/100 -> 94.41278834 | U199: =S199*(100-AVERAGEIF(T205:T216,">0"))/100 -> 1.310320828 | V199: =100-(T199+U199+W199) -> 0.9290572874 | W199: =IF((S201+W201)>100,W201*100/(S201+W201),W201) -> 3.347833547 | X199: =IF((X201+AB201)>100,X201*100/(X201+AB201),X201) -> 98.42033593 | Y199: =X199*AVERAGEIF(Y205:Y216,">0")/100 -> 97.4577053 | Z199: =X199*(100-AVERAGEIF(Y205:Y216,">0"))/100 -> 0.962630626 | AA199: =100-(Y199+Z199+AB199) -> 0.701868777 | AB199: =IF((X201+AB201)>100,AB201*100/(X201+AB201),AB201) -> 0.8777952979
C200: 2020 | D200: =IF((D202+H202)>100,D202*100/(D202+H202),D202) -> 95.85346128 | E200: =D200*AVERAGEIF(E205:E216,">0")/100 -> 93.14875803 | F200: =D200*(100-AVERAGEIF(E205:E216,">0"))/100 -> 2.704703249 | G200: =100-(E200+F200+H200) -> 1.824821685 | H200: =IF((D202+H202)>100,H202*100/(D202+H202),H202) -> 2.321717031 | I200: =IF((I202+M202)>100,I202*100/(I202+M202),I202) -> 98.41105865 | J200: =I200*AVERAGEIF(J205:J216,">0")/100 -> 96.16601419 | K200: =I200*(100-AVERAGEIF(J205:J216,">0"))/100 -> 2.245044465 | L200: =100-(J200+K200+M200) -> 1.327509233 | M200: =IF((I202+M202)>100,M202*100/(I202+M202),M202) -> 0.2614321129 | N200: =IF((N202+R202)>100,N202*100/(N202+R202),N202) -> 99.08760912 | O200: =N200*AVERAGEIF(O205:O216,">0")/100 -> 96.49559277 | P200: =N200*(100-AVERAGEIF(O205:O216,">0"))/100 -> 2.592016351 | Q200: =100-(O200+P200+R200) -> 0.06973797088 | R200: =IF((N202+R202)>100,R202*100/(N202+R202),R202) -> 0.8426529098 | S200: =IF((S202+W202)>100,S202*100/(S202+W202),S202) -> 100 | T200: =S200*AVERAGEIF(T205:T216,">0")/100 -> 98.63113428 | U200: =S200*(100-AVERAGEIF(T205:T216,">0"))/100 -> 1.36886572 | V200: =100-(T200+U200+W200) -> 0 | W200: =IF((S202+W202)>100,W202*100/(S202+W202),W202) -> 0 | X200: =IF((X202+AB202)>100,X202*100/(X202+AB202),X202) -> 98.16804275 | Y200: =X200*AVERAGEIF(Y205:Y216,">0")/100 -> 97.20787975 | Z200: =X200*(100-AVERAGEIF(Y205:Y216,">0"))/100 -> 0.9601629943 | AA200: =100-(Y200+Z200+AB200) -> 1.831957251 | AB200: =IF((X202+AB202)>100,AB202*100/(X202+AB202),AB202) -> 0
A201: Regression period: | C201: =MinRegYear(C199,C205:C216) -> 2000 | D201: =IF(MAX(C205:C216)-MIN(C205:C216)<5,AVERAGEIF(C205:C216,">0",D205:D216), IF(FORECAST($C201,D$205:D$216,$C$205:$C$216)<0,0, IF(FORECAST($C201,D$205:D$216,$C$205:$C$216)>100,100, FORECAST($C201,D$205:D$216,$C$205:$C$216)))) -> 86.01996575 | H201: =IF(MAX(C205:C216)-MIN(C205:C216)<5,AVERAGEIF(C205:C216,">0",H205:H216), IF(FORECAST($C201,H$205:H$216,$C$205:$C$216)<0,0, IF(FORECAST($C201,H$205:H$216,$C$205:$C$216)>100,100, FORECAST($C201,H$205:H$216,$C$205:$C$216)))) -> 10.1544296 | I201: =IF(MAX(C205:C216)-MIN(C205:C216)<5,AVERAGEIF(C205:C216,">0",I205:I216), IF(FORECAST($C201,I$205:I$216,$C$205:$C$216)<0,0, IF(FORECAST($C201,I$205:I$216,$C$205:$C$216)>100,100, FORECAST($C201,I$205:I$216,$C$205:$C$216)))) -> 90.20731919 | M201: =IF(MAX(C205:C216)-MIN(C205:C216)<5,AVERAGEIF(C205:C216,">0",M205:M216), IF(FORECAST($C201,M$205:M$216,$C$205:$C$216)<0,0, IF(FORECAST($C201,M$205:M$216,$C$205:$C$216)>100,100, FORECAST($C201,M$205:M$216,$C$205:$C$216)))) -> 7.877611356 | N201: =IF(MAX(C205:C216)-MIN(C205:C216)<5,AVERAGEIF(C205:C216,">0",N205:N216), IF(FORECAST($C201,N$205:N$216,$C$205:$C$216)<0,0, IF(FORECAST($C201,N$205:N$216,$C$205:$C$216)>100,100, FORECAST($C201,N$205:N$216,$C$205:$C$216)))) -> 94.89608879 | R201: =IF(MAX(C205:C216)-MIN(C205:C216)<5,AVERAGEIF(C205:C216,">0",R205:R216), IF(FORECAST($C201,R$205:R$216,$C$205:$C$216)<0,0, IF(FORECAST($C201,R$205:R$216,$C$205:$C$216)>100,100, FORECAST($C201,R$205:R$216,$C$205:$C$216)))) -> 3.304936743 | S201: =IF(MAX(C205:C216)-MIN(C205:C216)<5,AVERAGEIF(C205:C216,">0",S205:S216), IF(FORECAST($C201,S$205:S$216,$C$205:$C$216)<0,0, IF(FORECAST($C201,S$205:S$216,$C$205:$C$216)>100,100, FORECAST($C201,S$205:S$216,$C$205:$C$216)))) -> 95.72310917 | W201: =IF(MAX(C205:C216)-MIN(C205:C216)<5,AVERAGEIF(C205:C216,">0",W205:W216), IF(FORECAST($C201,W$205:W$216,$C$205:$C$216)<0,0, IF(FORECAST($C201,W$205:W$216,$C$205:$C$216)>100,100, FORECAST($C201,W$205:W$216,$C$205:$C$216)))) -> 3.347833547 | X201: =IF(MAX(C205:C216)-MIN(C205:C216)<5,AVERAGEIF(C205:C216,">0",X205:X216), IF(FORECAST($C201,X$205:X$216,$C$205:$C$216)<0,0, IF(FORECAST($C201,X$205:X$216,$C$205:$C$216)>100,100, FORECAST($C201,X$205:X$216,$C$205:$C$216)))) -> 98.42033593 | AB201: =IF(MAX(C205:C216)-MIN(C205:C216)<5,AVERAGEIF(C205:C216,">0",AB205:AB216), IF(FORECAST($C201,AB$205:AB$216,$C$205:$C$216)<0,0, IF(FORECAST($C201,AB$205:AB$216,$C$205:$C$216)>100,100, FORECAST($C201,AB$205:AB$216,$C$205:$C$216)))) -> 0.8777952979
C202: =MaxRegYear(C200,C205:C216) -> 2019 | D202: =IF(MAX(C205:C216)-MIN(C205:C216)<5,AVERAGEIF(C205:C216,">0",D205:D216), IF(FORECAST($C202,D$205:D$216,$C$205:$C$216)<0,0, IF(FORECAST($C202,D$205:D$216,$C$205:$C$216)>100,100, FORECAST($C202,D$205:D$216,$C$205:$C$216)))) -> 95.85346128 | H202: =IF(MAX(C205:C216)-MIN(C205:C216)<5,AVERAGEIF(C205:C216,">0",H205:H216), IF(FORECAST($C202,H$205:H$216,$C$205:$C$216)<0,0, IF(FORECAST($C202,H$205:H$216,$C$205:$C$216)>100,100, FORECAST($C202,H$205:H$216,$C$205:$C$216)))) -> 2.321717031 | I202: =IF(MAX(C205:C216)-MIN(C205:C216)<5,AVERAGEIF(C205:C216,">0",I205:I216), IF(FORECAST($C202,I$205:I$216,$C$205:$C$216)<0,0, IF(FORECAST($C202,I$205:I$216,$C$205:$C$216)>100,100, FORECAST($C202,I$205:I$216,$C$205:$C$216)))) -> 98.41105865 | M202: =IF(MAX(C205:C216)-MIN(C205:C216)<5,AVERAGEIF(C205:C216,">0",M205:M216), IF(FORECAST($C202,M$205:M$216,$C$205:$C$216)<0,0, IF(FORECAST($C202,M$205:M$216,$C$205:$C$216)>100,100, FORECAST($C202,M$205:M$216,$C$205:$C$216)))) -> 0.2614321129 | N202: =IF(MAX(C205:C216)-MIN(C205:C216)<5,AVERAGEIF(C205:C216,">0",N205:N216), IF(FORECAST($C202,N$205:N$216,$C$205:$C$216)<0,0, IF(FORECAST($C202,N$205:N$216,$C$205:$C$216)>100,100, FORECAST($C202,N$205:N$216,$C$205:$C$216)))) -> 99.08760912 | R202: =IF(MAX(C205:C216)-MIN(C205:C216)<5,AVERAGEIF(C205:C216,">0",R205:R216), IF(FORECAST($C202,R$205:R$216,$C$205:$C$216)<0,0, IF(FORECAST($C202,R$205:R$216,$C$205:$C$216)>100,100, FORECAST($C202,R$205:R$216,$C$205:$C$216)))) -> 0.8426529098 | S202: =IF(MAX(C205:C216)-MIN(C205:C216)<5,AVERAGEIF(C205:C216,">0",S205:S216), IF(FORECAST($C202,S$205:S$216,$C$205:$C$216)<0,0, IF(FORECAST($C202,S$205:S$216,$C$205:$C$216)>100,100, FORECAST($C202,S$205:S$216,$C$205:$C$216)))) -> 100 | W202: =IF(MAX(C205:C216)-MIN(C205:C216)<5,AVERAGEIF(C205:C216,">0",W205:W216), IF(FORECAST($C202,W$205:W$216,$C$205:$C$216)<0,0, IF(FORECAST($C202,W$205:W$216,$C$205:$C$216)>100,100, FORECAST($C202,W$205:W$216,$C$205:$C$216)))) -> 0 | X202: =IF(MAX(C205:C216)-MIN(C205:C216)<5,AVERAGEIF(C205:C216,">0",X205:X216), IF(FORECAST($C202,X$205:X$216,$C$205:$C$216)<0,0, IF(FORECAST($C202,X$205:X$216,$C$205:$C$216)>100,100, FORECAST($C202,X$205:X$216,$C$205:$C$216)))) -> 98.16804275 | AB202: =IF(MAX(C205:C216)-MIN(C205:C216)<5,AVERAGEIF(C205:C216,">0",AB205:AB216), IF(FORECAST($C202,AB$205:AB$216,$C$205:$C$216)<0,0, IF(FORECAST($C202,AB$205:AB$216,$C$205:$C$216)>100,100, FORECAST($C202,AB$205:AB$216,$C$205:$C$216)))) -> 0
B204: Survey | C204: Year | D204: Improved | E204: % Improved < = 30min | H204: Surface water | I204: Improved | J204: % Improved < = 30min | M204: Surface water | N204: Improved | O204: % Improved < = 30min | R204: Surface water | S204: Improved | T204: % Improved < = 30min | W204: Surface water | X204: Improved | Y204: % Improved < = 30min | AB204: Surface water
B205: MICS00 | C205: 2000 | D205: =IF(ISERROR(INDIRECT(CONCATENATE($B205,"!H16"))),"",INDIRECT(CONCATENATE($B205,"!H16"))) -> 91.54185022 | E205: =IF(ISERROR(INDIRECT(CONCATENATE($B205,"!H23"))),"",INDIRECT(CONCATENATE($B205,"!H23"))) -> 96.53512993 | H205: =IF(ISERROR(INDIRECT(CONCATENATE($B205,"!H21"))),"",INDIRECT(CONCATENATE($B205,"!H21"))) -> 4.669603524 | I205: =IF(ISERROR(INDIRECT(CONCATENATE($B205,"!I16"))),"",INDIRECT(CONCATENATE($B205,"!I16"))) -> 91.0971223 | J205: =IF(ISERROR(INDIRECT(CONCATENATE($B205,"!I23"))),"",INDIRECT(CONCATENATE($B205,"!I23"))) -> 96.84106614 | M205: =IF(ISERROR(INDIRECT(CONCATENATE($B205,"!I21"))),"",INDIRECT(CONCATENATE($B205,"!I21"))) -> 5.395683453 | N205: =IF(ISERROR(INDIRECT(CONCATENATE($B205,"!J16"))),"",INDIRECT(CONCATENATE($B205,"!J16"))) -> 94.16445623 | O205: =IF(ISERROR(INDIRECT(CONCATENATE($B205,"!J23"))),"",INDIRECT(CONCATENATE($B205,"!J23"))) -> 96.22997172 | R205: =IF(ISERROR(INDIRECT(CONCATENATE($B205,"!J21"))),"",INDIRECT(CONCATENATE($B205,"!J21"))) -> 2.48447205 | S205: =IF(ISERROR(INDIRECT(CONCATENATE($B205,"!K16"))),"",INDIRECT(CONCATENATE($B205,"!K16"))) -> 92.30088496 | T205: =IF(ISERROR(INDIRECT(CONCATENATE($B205,"!K23"))),"",INDIRECT(CONCATENATE($B205,"!K23"))) -> 97.69894535 | W205: =IF(ISERROR(INDIRECT(CONCATENATE($B205,"!K21"))),"",INDIRECT(CONCATENATE($B205,"!K21"))) -> 6.017699115 | X205: =IF(ISERROR(INDIRECT(CONCATENATE($B205,"!L16"))),"",INDIRECT(CONCATENATE($B205,"!L16"))) -> 96.99381079 | Y205: =IF(ISERROR(INDIRECT(CONCATENATE($B205,"!L23"))),"",INDIRECT(CONCATENATE($B205,"!L23"))) -> 96.99179581 | AB205: =IF(ISERROR(INDIRECT(CONCATENATE($B205,"!L221"))),"",INDIRECT(CONCATENATE($B205,"!L21"))) -> 1.768346596
B206: PMS02 | C206: 2002 | D206: 79.90842987 | E206: N/A | H206: 15.29483692 | I206: 92.32845355 | J206: N/A | M206: 7.408814205 | N206: 96.58530013 | O206: N/A | R206: 3.307537013 | S206: 99.47426644 | T206: N/A | W206: 0.5257335574 | X206: 100 | Y206: N/A | AB206: 0
B207: MICS05 | C207: 2005 | D207: 90.15666524 | E207: 95.12757309 | H207: 8.322120223 | I207: 89.37585144 | J207: 96.93786883 | M207: 9.120157386 | N207: 95.96190423 | O207: 95.39400802 | R207: 3.251070663 | S207: 98.19085624 | T207: 97.24979143 | W207: 1.39203433 | X207: 99.79438434 | Y207: 99.53324026 | AB207: 0.2065049785
B208: DHS12 | C208: 2012 | D208: 91.17865928 | E208: 97.05047139 | H208: 5.41171789 | I208: 95.76738096 | J208: 97.64450401 | M208: 2.714901035 | N208: 96.37623836 | O208: 98.31903514 | R208: 2.328177905 | S208: 96.99216684 | T208: 99.57580033 | W208: 0.9111667694 | X208: 94.83545532 | Y208: 99.56263985 | AB208: 0.4957966936
B209: DHS17 | C209: 2017 | D209: 95.94611041 | E209: 100 | H209: 2.232940359 | I209: 98.0117151 | J209: 99.45138954 | M209: 0.3178452939 | N209: 99.33437297 | O209: 99.59345139 | R209: 0.4880461902 | S209: 99.82884356 | T209: 100 | W209: 0.06932363908 | X209: 100 | Y209: 100 | AB209: 0
B218: =CONCATENATE("Urban use of drinking water sources, ",C199,"–",C200) -> Urban use of drinking water sources, 2000–2020 | S218: Data points used for regression
E253: =IF(ISERROR(INDIRECT(CONCATENATE($B253,"!M18"))),"",INDIRECT(CONCATENATE($B253,"!M18"))) ->  | F253: =IF(ISERROR(INDIRECT(CONCATENATE($B253,"!M19"))),"",INDIRECT(CONCATENATE($B253,"!M19"))) ->  | G253: =IF(ISERROR(INDIRECT(CONCATENATE($B253,"!M20"))),"",INDIRECT(CONCATENATE($B253,"!M20"))) ->  | H253: =IF(ISERROR(INDIRECT(CONCATENATE($B253,"!M21"))),"",INDIRECT(CONCATENATE($B253,"!M21"))) ->  | J253: =IF(ISERROR(INDIRECT(CONCATENATE($B253,"!N18"))),"",INDIRECT(CONCATENATE($B253,"!N18"))) ->  | K253: =IF(ISERROR(INDIRECT(CONCATENATE($B253,"!N19"))),"",INDIRECT(CONCATENATE($B253,"!N19"))) ->  | L253: =IF(ISERROR(INDIRECT(CONCATENATE($B253,"!N20"))),"",INDIRECT(CONCATENATE($B253,"!N20"))) ->  | M253: =IF(ISERROR(INDIRECT(CONCATENATE($B253,"!N21"))),"",INDIRECT(CONCATENATE($B253,"!N21"))) ->  | O253: =IF(ISERROR(INDIRECT(CONCATENATE($B253,"!O18"))),"",INDIRECT(CONCATENATE($B253,"!O18"))) ->  | P253: =IF(ISERROR(INDIRECT(CONCATENATE($B253,"!O19"))),"",INDIRECT(CONCATENATE($B253,"!O19"))) ->  | Q253: =IF(ISERROR(INDIRECT(CONCATENATE($B253,"!O20"))),"",INDIRECT(CONCATENATE($B253,"!O20"))) ->  | R253: =IF(ISERROR(INDIRECT(CONCATENATE($B253,"!O21"))),"",INDIRECT(CONCATENATE($B253,"!O21"))) ->  | T253: =IF(ISERROR(INDIRECT(CONCATENATE($B253,"!P18"))),"",INDIRECT(CONCATENATE($B253,"!P18"))) ->  | U253: =IF(ISERROR(INDIRECT(CONCATENATE($B253,"!P19"))),"",INDIRECT(CONCATENATE($B253,"!P19"))) ->  | V253: =IF(ISERROR(INDIRECT(CONCATENATE($B253,"!P20"))),"",INDIRECT(CONCATENATE($B253,"!P20"))) ->  | W253: =IF(ISERROR(INDIRECT(CONCATENATE($B253,"!P21"))),"",INDIRECT(CONCATENATE($B253,"!P21"))) ->  | Y253: =IF(ISERROR(INDIRECT(CONCATENATE($B253,"!Q18"))),"",INDIRECT(CONCATENATE($B253,"!Q18"))) ->  | Z253: =IF(ISERROR(INDIRECT(CONCATENATE($B253,"!Q19"))),"",INDIRECT(CONCATENATE($B253,"!Q19"))) ->  | AA253: =IF(ISERROR(INDIRECT(CONCATENATE($B253,"!Q20"))),"",INDIRECT(CONCATENATE($B253,"!Q20"))) ->  | AB253: =IF(ISERROR(INDIRECT(CONCATENATE($B253,"!Q21"))),"",INDIRECT(CONCATENATE($B253,"!Q1"))) -> 
E254: =IF(ISERROR(INDIRECT(CONCATENATE($B254,"!M18"))),"",INDIRECT(CONCATENATE($B254,"!M18"))) ->  | F254: =IF(ISERROR(INDIRECT(CONCATENATE($B254,"!M19"))),"",INDIRECT(CONCATENATE($B254,"!M19"))) ->  | G254: =IF(ISERROR(INDIRECT(CONCATENATE($B254,"!M20"))),"",INDIRECT(CONCATENATE($B254,"!M20"))) ->  | H254: =IF(ISERROR(INDIRECT(CONCATENATE($B254,"!M21"))),"",INDIRECT(CONCATENATE($B254,"!M21"))) ->  | J254: =IF(ISERROR(INDIRECT(CONCATENATE($B254,"!N18"))),"",INDIRECT(CONCATENATE($B254,"!N18"))) ->  | K254: =IF(ISERROR(INDIRECT(CONCATENATE($B254,"!N19"))),"",INDIRECT(CONCATENATE($B254,"!N19"))) ->  | L254: =IF(ISERROR(INDIRECT(CONCATENATE($B254,"!N20"))),"",INDIRECT(CONCATENATE($B254,"!N20"))) ->  | M254: =IF(ISERROR(INDIRECT(CONCATENATE($B254,"!N21"))),"",INDIRECT(CONCATENATE($B254,"!N21"))) ->  | O254: =IF(ISERROR(INDIRECT(CONCATENATE($B254,"!O18"))),"",INDIRECT(CONCATENATE($B254,"!O18"))) ->  | P254: =IF(ISERROR(INDIRECT(CONCATENATE($B254,"!O19"))),"",INDIRECT(CONCATENATE($B254,"!O19"))) ->  | Q254: =IF(ISERROR(INDIRECT(CONCATENATE($B254,"!O20"))),"",INDIRECT(CONCATENATE($B254,"!O20"))) ->  | R254: =IF(ISERROR(INDIRECT(CONCATENATE($B254,"!O21"))),"",INDIRECT(CONCATENATE($B254,"!O21"))) ->  | T254: =IF(ISERROR(INDIRECT(CONCATENATE($B254,"!P18"))),"",INDIRECT(CONCATENATE($B254,"!P18"))) ->  | U254: =IF(ISERROR(INDIRECT(CONCATENATE($B254,"!P19"))),"",INDIRECT(CONCATENATE($B254,"!P19"))) ->  | V254: =IF(ISERROR(INDIRECT(CONCATENATE($B254,"!P20"))),"",INDIRECT(CONCATENATE($B254,"!P20"))) ->  | W254: =IF(ISERROR(INDIRECT(CONCATENATE($B254,"!P21"))),"",INDIRECT(CONCATENATE($B254,"!P21"))) ->  | Y254: =IF(ISERROR(INDIRECT(CONCATENATE($B254,"!Q18"))),"",INDIRECT(CONCATENATE($B254,"!Q18"))) ->  | Z254: =IF(ISERROR(INDIRECT(CONCATENATE($B254,"!Q19"))),"",INDIRECT(CONCATENATE($B254,"!Q19"))) ->  | AA254: =IF(ISERROR(INDIRECT(CONCATENATE($B254,"!Q20"))),"",INDIRECT(CONCATENATE($B254,"!Q20"))) ->  | AB254: =IF(ISERROR(INDIRECT(CONCATENATE($B254,"!Q21"))),"",INDIRECT(CONCATENATE($B254,"!Q1"))) -> 
E255: =IF(ISERROR(INDIRECT(CONCATENATE($B255,"!M18"))),"",INDIRECT(CONCATENATE($B255,"!M18"))) ->  | F255: =IF(ISERROR(INDIRECT(CONCATENATE($B255,"!M19"))),"",INDIRECT(CONCATENATE($B255,"!M19"))) ->  | G255: =IF(ISERROR(INDIRECT(CONCATENATE($B255,"!M20"))),"",INDIRECT(CONCATENATE($B255,"!M20"))) ->  | H255: =IF(ISERROR(INDIRECT(CONCATENATE($B255,"!M21"))),"",INDIRECT(CONCATENATE($B255,"!M21"))) ->  | J255: =IF(ISERROR(INDIRECT(CONCATENATE($B255,"!N18"))),"",INDIRECT(CONCATENATE($B255,"!N18"))) ->  | K255: =IF(ISERROR(INDIRECT(CONCATENATE($B255,"!N19"))),"",INDIRECT(CONCATENATE($B255,"!N19"))) ->  | L255: =IF(ISERROR(INDIRECT(CONCATENATE($B255,"!N20"))),"",INDIRECT(CONCATENATE($B255,"!N20"))) ->  | M255: =IF(ISERROR(INDIRECT(CONCATENATE($B255,"!N21"))),"",INDIRECT(CONCATENATE($B255,"!N21"))) ->  | O255: =IF(ISERROR(INDIRECT(CONCATENATE($B255,"!O18"))),"",INDIRECT(CONCATENATE($B255,"!O18"))) ->  | P255: =IF(ISERROR(INDIRECT(CONCATENATE($B255,"!O19"))),"",INDIRECT(CONCATENATE($B255,"!O19"))) ->  | Q255: =IF(ISERROR(INDIRECT(CONCATENATE($B255,"!O20"))),"",INDIRECT(CONCATENATE($B255,"!O20"))) ->  | R255: =IF(ISERROR(INDIRECT(CONCATENATE($B255,"!O21"))),"",INDIRECT(CONCATENATE($B255,"!O21"))) ->  | T255: =IF(ISERROR(INDIRECT(CONCATENATE($B255,"!P18"))),"",INDIRECT(CONCATENATE($B255,"!P18"))) ->  | U255: =IF(ISERROR(INDIRECT(CONCATENATE($B255,"!P19"))),"",INDIRECT(CONCATENATE($B255,"!P19"))) ->  | V255: =IF(ISERROR(INDIRECT(CONCATENATE($B255,"!P20"))),"",INDIRECT(CONCATENATE($B255,"!P20"))) ->  | W255: =IF(ISERROR(INDIRECT(CONCATENATE($B255,"!P21"))),"",INDIRECT(CONCATENATE($B255,"!P21"))) ->  | Y255: =IF(ISERROR(INDIRECT(CONCATENATE($B255,"!Q18"))),"",INDIRECT(CONCATENATE($B255,"!Q18"))) ->  | Z255: =IF(ISERROR(INDIRECT(CONCATENATE($B255,"!Q19"))),"",INDIRECT(CONCATENATE($B255,"!Q19"))) ->  | AA255: =IF(ISERROR(INDIRECT(CONCATENATE($B255,"!Q20"))),"",INDIRECT(CONCATENATE($B255,"!Q20"))) ->  | AB255: =IF(ISERROR(INDIRECT(CONCATENATE($B255,"!Q21"))),"",INDIRECT(CONCATENATE($B255,"!Q1"))) -> 
E256: =IF(ISERROR(INDIRECT(CONCATENATE($B256,"!M18"))),"",INDIRECT(CONCATENATE($B256,"!M18"))) ->  | F256: =IF(ISERROR(INDIRECT(CONCATENATE($B256,"!M19"))),"",INDIRECT(CONCATENATE($B256,"!M19"))) ->  | G256: =IF(ISERROR(INDIRECT(CONCATENATE($B256,"!M20"))),"",INDIRECT(CONCATENATE($B256,"!M20"))) ->  | H256: =IF(ISERROR(INDIRECT(CONCATENATE($B256,"!M21"))),"",INDIRECT(CONCATENATE($B256,"!M21"))) ->  | J256: =IF(ISERROR(INDIRECT(CONCATENATE($B256,"!N18"))),"",INDIRECT(CONCATENATE($B256,"!N18"))) ->  | K256: =IF(ISERROR(INDIRECT(CONCATENATE($B256,"!N19"))),"",INDIRECT(CONCATENATE($B256,"!N19"))) ->  | L256: =IF(ISERROR(INDIRECT(CONCATENATE($B256,"!N20"))),"",INDIRECT(CONCATENATE($B256,"!N20"))) ->  | M256: =IF(ISERROR(INDIRECT(CONCATENATE($B256,"!N21"))),"",INDIRECT(CONCATENATE($B256,"!N21"))) ->  | O256: =IF(ISERROR(INDIRECT(CONCATENATE($B256,"!O18"))),"",INDIRECT(CONCATENATE($B256,"!O18"))) ->  | P256: =IF(ISERROR(INDIRECT(CONCATENATE($B256,"!O19"))),"",INDIRECT(CONCATENATE($B256,"!O19"))) ->  | Q256: =IF(ISERROR(INDIRECT(CONCATENATE($B256,"!O20"))),"",INDIRECT(CONCATENATE($B256,"!O20"))) ->  | R256: =IF(ISERROR(INDIRECT(CONCATENATE($B256,"!O21"))),"",INDIRECT(CONCATENATE($B256,"!O21"))) ->  | T256: =IF(ISERROR(INDIRECT(CONCATENATE($B256,"!P18"))),"",INDIRECT(CONCATENATE($B256,"!P18"))) ->  | U256: =IF(ISERROR(INDIRECT(CONCATENATE($B256,"!P19"))),"",INDIRECT(CONCATENATE($B256,"!P19"))) ->  | V256: =IF(ISERROR(INDIRECT(CONCATENATE($B256,"!P20"))),"",INDIRECT(CONCATENATE($B256,"!P20"))) ->  | W256: =IF(ISERROR(INDIRECT(CONCATENATE($B256,"!P21"))),"",INDIRECT(CONCATENATE($B256,"!P21"))) ->  | Y256: =IF(ISERROR(INDIRECT(CONCATENATE($B256,"!Q18"))),"",INDIRECT(CONCATENATE($B256,"!Q18"))) ->  | Z256: =IF(ISERROR(INDIRECT(CONCATENATE($B256,"!Q19"))),"",INDIRECT(CONCATENATE($B256,"!Q19"))) ->  | AA256: =IF(ISERROR(INDIRECT(CONCATENATE($B256,"!Q20"))),"",INDIRECT(CONCATENATE($B256,"!Q20"))) ->  | AB256: =IF(ISERROR(INDIRECT(CONCATENATE($B256,"!Q21"))),"",INDIRECT(CONCATENATE($B256,"!Q1"))) -> 
E257: =IF(ISERROR(INDIRECT(CONCATENATE($B257,"!M18"))),"",INDIRECT(CONCATENATE($B257,"!M18"))) ->  | F257: =IF(ISERROR(INDIRECT(CONCATENATE($B257,"!M19"))),"",INDIRECT(CONCATENATE($B257,"!M19"))) ->  | G257: =IF(ISERROR(INDIRECT(CONCATENATE($B257,"!M20"))),"",INDIRECT(CONCATENATE($B257,"!M20"))) ->  | H257: =IF(ISERROR(INDIRECT(CONCATENATE($B257,"!M21"))),"",INDIRECT(CONCATENATE($B257,"!M21"))) ->  | J257: =IF(ISERROR(INDIRECT(CONCATENATE($B257,"!N18"))),"",INDIRECT(CONCATENATE($B257,"!N18"))) ->  | K257: =IF(ISERROR(INDIRECT(CONCATENATE($B257,"!N19"))),"",INDIRECT(CONCATENATE($B257,"!N19"))) ->  | L257: =IF(ISERROR(INDIRECT(CONCATENATE($B257,"!N20"))),"",INDIRECT(CONCATENATE($B257,"!N20"))) ->  | M257: =IF(ISERROR(INDIRECT(CONCATENATE($B257,"!N21"))),"",INDIRECT(CONCATENATE($B257,"!N21"))) ->  | O257: =IF(ISERROR(INDIRECT(CONCATENATE($B257,"!O18"))),"",INDIRECT(CONCATENATE($B257,"!O18"))) ->  | P257: =IF(ISERROR(INDIRECT(CONCATENATE($B257,"!O19"))),"",INDIRECT(CONCATENATE($B257,"!O19"))) ->  | Q257: =IF(ISERROR(INDIRECT(CONCATENATE($B257,"!O20"))),"",INDIRECT(CONCATENATE($B257,"!O20"))) ->  | R257: =IF(ISERROR(INDIRECT(CONCATENATE($B257,"!O21"))),"",INDIRECT(CONCATENATE($B257,"!O21"))) ->  | T257: =IF(ISERROR(INDIRECT(CONCATENATE($B257,"!P18"))),"",INDIRECT(CONCATENATE($B257,"!P18"))) ->  | U257: =IF(ISERROR(INDIRECT(CONCATENATE($B257,"!P19"))),"",INDIRECT(CONCATENATE($B257,"!P19"))) ->  | V257: =IF(ISERROR(INDIRECT(CONCATENATE($B257,"!P20"))),"",INDIRECT(CONCATENATE($B257,"!P20"))) ->  | W257: =IF(ISERROR(INDIRECT(CONCATENATE($B257,"!P21"))),"",INDIRECT(CONCATENATE($B257,"!P21"))) ->  | Y257: =IF(ISERROR(INDIRECT(CONCATENATE($B257,"!Q18"))),"",INDIRECT(CONCATENATE($B257,"!Q18"))) ->  | Z257: =IF(ISERROR(INDIRECT(CONCATENATE($B257,"!Q19"))),"",INDIRECT(CONCATENATE($B257,"!Q19"))) ->  | AA257: =IF(ISERROR(INDIRECT(CONCATENATE($B257,"!Q20"))),"",INDIRECT(CONCATENATE($B257,"!Q20"))) ->  | AB257: =IF(ISERROR(INDIRECT(CONCATENATE($B257,"!Q21"))),"",INDIRECT(CONCATENATE($B257,"!Q1"))) -> 
A297: RURAL | D297: Poorest | I297: Poor | N297: Middle | S297: Rich | X297: Richest
D298: Improved | E298: Basic | F298: Limited | G298: Unimproved | H298: Surface water | I298: Improved | J298: Basic | K298: Limited | L298: Unimproved | M298: Surface water | N298: Improved | O298: Basic | P298: Limited | Q298: Unimproved | R298: Surface water | S298: Improved | T298: Basic | U298: Limited | V298: Unimproved | W298: Surface water | X298: Improved | Y298: Basic | Z298: Limited | AA298: Unimproved | AB298: Surface water
A299: Forecast period: | C299: 2000 | D299: =IF((D301+H301)>100,D301*100/(D301+H301),D301) -> 40.61952776 | E299: =D299*AVERAGEIF(E305:E316,">0")/100 -> 36.35592299 | F299: =D299*(100-AVERAGEIF(E305:E316,">0"))/100 -> 4.263604768 | G299: =100-(E299+F299+H299) -> 13.12501123 | H299: =IF((D301+H301)>100,H301*100/(D301+H301),H301) -> 46.25546101 | I299: =IF((I301+M301)>100,I301*100/(I301+M301),I301) -> 47.99557122 | J299: =I299*AVERAGEIF(J305:J316,">0")/100 -> 43.57436255 | K299: =I299*(100-AVERAGEIF(J305:J316,">0"))/100 -> 4.421208671 | L299: =100-(J299+K299+M299) -> 9.05395885 | M299: =IF((I301+M301)>100,M301*100/(I301+M301),M301) -> 42.95046993 | N299: =IF((N301+R301)>100,N301*100/(N301+R301),N301) -> 49.93751712 | O299: =N299*AVERAGEIF(O305:O316,">0")/100 -> 46.48695641 | P299: =N299*(100-AVERAGEIF(O305:O316,">0"))/100 -> 3.450560704 | Q299: =100-(O299+P299+R299) -> 7.838113785 | R299: =IF((N301+R301)>100,R301*100/(N301+R301),R301) -> 42.2243691 | S299: =IF((S301+W301)>100,S301*100/(S301+W301),S301) -> 57.60178703 | T299: =S299*AVERAGEIF(T305:T316,">0")/100 -> 53.91293503 | U299: =S299*(100-AVERAGEIF(T305:T316,">0"))/100 -> 3.688851994 | V299: =100-(T299+U299+W299) -> 4.742498385 | W299: =IF((S301+W301)>100,W301*100/(S301+W301),W301) -> 37.65571459 | X299: =IF((X301+AB301)>100,X301*100/(X301+AB301),X301) -> 63.14554415 | Y299: =X299*AVERAGEIF(Y305:Y316,">0")/100 -> 60.95195196 | Z299: =X299*(100-AVERAGEIF(Y305:Y316,">0"))/100 -> 2.193592181 | AA299: =100-(Y299+Z299+AB299) -> 4.545232541 | AB299: =IF((X301+AB301)>100,AB301*100/(X301+AB301),AB301) -> 32.30922331
C300: 2020 | D300: =IF((D302+H302)>100,D302*100/(D302+H302),D302) -> 82.35957984 | E300: =D300*AVERAGEIF(E305:E316,">0")/100 -> 73.71475513 | F300: =D300*(100-AVERAGEIF(E305:E316,">0"))/100 -> 8.64482471 | G300: =100-(E300+F300+H300) -> 1.699174623 | H300: =IF((D302+H302)>100,H302*100/(D302+H302),H302) -> 15.94124554 | I300: =IF((I302+M302)>100,I302*100/(I302+M302),I302) -> 83.81236532 | J300: =I300*AVERAGEIF(J305:J316,">0")/100 -> 76.09182055 | K300: =I300*(100-AVERAGEIF(J305:J316,">0"))/100 -> 7.720544767 | L300: =100-(J300+K300+M300) -> 1.20180861 | M300: =IF((I302+M302)>100,M302*100/(I302+M302),M302) -> 14.98582607 | N300: =IF((N302+R302)>100,N302*100/(N302+R302),N302) -> 82.54601142 | O300: =N300*AVERAGEIF(O305:O316,">0")/100 -> 76.84228324 | P300: =N300*(100-AVERAGEIF(O305:O316,">0"))/100 -> 5.703728172 | Q300: =100-(O300+P300+R300) -> 1.390165896 | R300: =IF((N302+R302)>100,R302*100/(N302+R302),R302) -> 16.06382269 | S300: =IF((S302+W302)>100,S302*100/(S302+W302),S302) -> 85.41853471 | T300: =S300*AVERAGEIF(T305:T316,">0")/100 -> 79.94828199 | U300: =S300*(100-AVERAGEIF(T305:T316,">0"))/100 -> 5.470252718 | V300: =100-(T300+U300+W300) -> 2.438838128 | W300: =IF((S302+W302)>100,W302*100/(S302+W302),W302) -> 12.14262716 | X300: =IF((X302+AB302)>100,X302*100/(X302+AB302),X302) -> 92.48265444 | Y300: =X300*AVERAGEIF(Y305:Y316,">0")/100 -> 89.26993008 | Z300: =X300*(100-AVERAGEIF(Y305:Y316,">0"))/100 -> 3.212724357 | AA300: =100-(Y300+Z300+AB300) -> 1.511848605 | AB300: =IF((X302+AB302)>100,AB302*100/(X302+AB302),AB302) -> 6.00549696
A301: Regression period: | C301: =MinRegYear(C299,C305:C316) -> 2000 | D301: =IF(MAX(C305:C316)-MIN(C305:C316)<5,AVERAGEIF(C305:C316,">0",D305:D316), IF(FORECAST($C301,D$305:D$316,$C$305:$C$316)<0,0, IF(FORECAST($C301,D$305:D$316,$C$305:$C$316)>100,100, FORECAST($C301,D$305:D$316,$C$305:$C$316)))) -> 40.61952776 | H301: =IF(MAX(C305:C316)-MIN(C305:C316)<5,AVERAGEIF(C305:C316,">0",H305:H316), IF(FORECAST($C301,H$305:H$316,$C$305:$C$316)<0,0, IF(FORECAST($C301,H$305:H$316,$C$305:$C$316)>100,100, FORECAST($C301,H$305:H$316,$C$305:$C$316)))) -> 46.25546101 | I301: =IF(MAX(C305:C316)-MIN(C305:C316)<5,AVERAGEIF(C305:C316,">0",I305:I316), IF(FORECAST($C301,I$305:I$316,$C$305:$C$316)<0,0, IF(FORECAST($C301,I$305:I$316,$C$305:$C$316)>100,100, FORECAST($C301,I$305:I$316,$C$305:$C$316)))) -> 47.99557122 | M301: =IF(MAX(C305:C316)-MIN(C305:C316)<5,AVERAGEIF(C305:C316,">0",M305:M316), IF(FORECAST($C301,M$305:M$316,$C$305:$C$316)<0,0, IF(FORECAST($C301,M$305:M$316,$C$305:$C$316)>100,100, FORECAST($C301,M$305:M$316,$C$305:$C$316)))) -> 42.95046993 | N301: =IF(MAX(C305:C316)-MIN(C305:C316)<5,AVERAGEIF(C305:C316,">0",N305:N316), IF(FORECAST($C301,N$305:N$316,$C$305:$C$316)<0,0, IF(FORECAST($C301,N$305:N$316,$C$305:$C$316)>100,100, FORECAST($C301,N$305:N$316,$C$305:$C$316)))) -> 49.93751712 | R301: =IF(MAX(C305:C316)-MIN(C305:C316)<5,AVERAGEIF(C305:C316,">0",R305:R316), IF(FORECAST($C301,R$305:R$316,$C$305:$C$316)<0,0, IF(FORECAST($C301,R$305:R$316,$C$305:$C$316)>100,100, FORECAST($C301,R$305:R$316,$C$305:$C$316)))) -> 42.2243691 | S301: =IF(MAX(C305:C316)-MIN(C305:C316)<5,AVERAGEIF(C305:C316,">0",S305:S316), IF(FORECAST($C301,S$305:S$316,$C$305:$C$316)<0,0, IF(FORECAST($C301,S$305:S$316,$C$305:$C$316)>100,100, FORECAST($C301,S$305:S$316,$C$305:$C$316)))) -> 57.60178703 | W301: =IF(MAX(C305:C316)-MIN(C305:C316)<5,AVERAGEIF(C305:C316,">0",W305:W316), IF(FORECAST($C301,W$305:W$316,$C$305:$C$316)<0,0, IF(FORECAST($C301,W$305:W$316,$C$305:$C$316)>100,100, FORECAST($C301,W$305:W$316,$C$305:$C$316)))) -> 37.65571459 | X301: =IF(MAX(C305:C316)-MIN(C305:C316)<5,AVERAGEIF(C305:C316,">0",X305:X316), IF(FORECAST($C301,X$305:X$316,$C$305:$C$316)<0,0, IF(FORECAST($C301,X$305:X$316,$C$305:$C$316)>100,100, FORECAST($C301,X$305:X$316,$C$305:$C$316)))) -> 63.14554415 | AB301: =IF(MAX(C305:C316)-MIN(C305:C316)<5,AVERAGEIF(C305:C316,">0",AB305:AB316), IF(FORECAST($C301,AB$305:AB$316,$C$305:$C$316)<0,0, IF(FORECAST($C301,AB$305:AB$316,$C$305:$C$316)>100,100, FORECAST($C301,AB$305:AB$316,$C$305:$C$316)))) -> 32.30922331
C302: =MaxRegYear(C300,C305:C316) -> 2019 | D302: =IF(MAX(C305:C316)-MIN(C305:C316)<5,AVERAGEIF(C305:C316,">0",D305:D316), IF(FORECAST($C302,D$305:D$316,$C$305:$C$316)<0,0, IF(FORECAST($C302,D$305:D$316,$C$305:$C$316)>100,100, FORECAST($C302,D$305:D$316,$C$305:$C$316)))) -> 82.35957984 | H302: =IF(MAX(C305:C316)-MIN(C305:C316)<5,AVERAGEIF(C305:C316,">0",H305:H316), IF(FORECAST($C302,H$305:H$316,$C$305:$C$316)<0,0, IF(FORECAST($C302,H$305:H$316,$C$305:$C$316)>100,100, FORECAST($C302,H$305:H$316,$C$305:$C$316)))) -> 15.94124554 | I302: =IF(MAX(C305:C316)-MIN(C305:C316)<5,AVERAGEIF(C305:C316,">0",I305:I316), IF(FORECAST($C302,I$305:I$316,$C$305:$C$316)<0,0, IF(FORECAST($C302,I$305:I$316,$C$305:$C$316)>100,100, FORECAST($C302,I$305:I$316,$C$305:$C$316)))) -> 83.81236532 | M302: =IF(MAX(C305:C316)-MIN(C305:C316)<5,AVERAGEIF(C305:C316,">0",M305:M316), IF(FORECAST($C302,M$305:M$316,$C$305:$C$316)<0,0, IF(FORECAST($C302,M$305:M$316,$C$305:$C$316)>100,100, FORECAST($C302,M$305:M$316,$C$305:$C$316)))) -> 14.98582607 | N302: =IF(MAX(C305:C316)-MIN(C305:C316)<5,AVERAGEIF(C305:C316,">0",N305:N316), IF(FORECAST($C302,N$305:N$316,$C$305:$C$316)<0,0, IF(FORECAST($C302,N$305:N$316,$C$305:$C$316)>100,100, FORECAST($C302,N$305:N$316,$C$305:$C$316)))) -> 82.54601142 | R302: =IF(MAX(C305:C316)-MIN(C305:C316)<5,AVERAGEIF(C305:C316,">0",R305:R316), IF(FORECAST($C302,R$305:R$316,$C$305:$C$316)<0,0, IF(FORECAST($C302,R$305:R$316,$C$305:$C$316)>100,100, FORECAST($C302,R$305:R$316,$C$305:$C$316)))) -> 16.06382269 | S302: =IF(MAX(C305:C316)-MIN(C305:C316)<5,AVERAGEIF(C305:C316,">0",S305:S316), IF(FORECAST($C302,S$305:S$316,$C$305:$C$316)<0,0, IF(FORECAST($C302,S$305:S$316,$C$305:$C$316)>100,100, FORECAST($C302,S$305:S$316,$C$305:$C$316)))) -> 85.41853471 | W302: =IF(MAX(C305:C316)-MIN(C305:C316)<5,AVERAGEIF(C305:C316,">0",W305:W316), IF(FORECAST($C302,W$305:W$316,$C$305:$C$316)<0,0, IF(FORECAST($C302,W$305:W$316,$C$305:$C$316)>100,100, FORECAST($C302,W$305:W$316,$C$305:$C$316)))) -> 12.14262716 | X302: =IF(MAX(C305:C316)-MIN(C305:C316)<5,AVERAGEIF(C305:C316,">0",X305:X316), IF(FORECAST($C302,X$305:X$316,$C$305:$C$316)<0,0, IF(FORECAST($C302,X$305:X$316,$C$305:$C$316)>100,100, FORECAST($C302,X$305:X$316,$C$305:$C$316)))) -> 92.48265444 | AB302: =IF(MAX(C305:C316)-MIN(C305:C316)<5,AVERAGEIF(C305:C316,">0",AB305:AB316), IF(FORECAST($C302,AB$305:AB$316,$C$305:$C$316)<0,0, IF(FORECAST($C302,AB$305:AB$316,$C$305:$C$316)>100,100, FORECAST($C302,AB$305:AB$316,$C$305:$C$316)))) -> 6.00549696
B304: Survey | C304: Year | D304: Improved | E304: % Improved < = 30min | H304: Surface water | I304: Improved | J304: % Improved < = 30min | M304: Surface water | N304: Improved | O304: % Improved < = 30min | R304: Surface water | S304: Improved | T304: % Improved < = 30min | W304: Surface water | X304: Improved | Y304: % Improved < = 30min | AB304: Surface water
B305: MICS00 | C305: 2000 | D305: =IF(ISERROR(INDIRECT(CONCATENATE($B305,"!M16"))),"",INDIRECT(CONCATENATE($B305,"!M16"))) -> 38.14102564 | E305: =IF(ISERROR(INDIRECT(CONCATENATE($B305,"!M23"))),"",INDIRECT(CONCATENATE($B305,"!M23"))) -> 83.71040724 | H305: =IF(ISERROR(INDIRECT(CONCATENATE($B305,"!M21"))),"",INDIRECT(CONCATENATE($B305,"!M21"))) -> 50 | I305: =IF(ISERROR(INDIRECT(CONCATENATE($B305,"!N16"))),"",INDIRECT(CONCATENATE($B305,"!N16"))) -> 49.30129934 | J305: =IF(ISERROR(INDIRECT(CONCATENATE($B305,"!N23"))),"",INDIRECT(CONCATENATE($B305,"!N23"))) -> 89.50770761 | M305: =IF(ISERROR(INDIRECT(CONCATENATE($B305,"!N21"))),"",INDIRECT(CONCATENATE($B305,"!N21"))) -> 40.52463839 | N305: =IF(ISERROR(INDIRECT(CONCATENATE($B305,"!O16"))),"",INDIRECT(CONCATENATE($B305,"!O16"))) -> 47.80886358 | O305: =IF(ISERROR(INDIRECT(CONCATENATE($B305,"!O23"))),"",INDIRECT(CONCATENATE($B305,"!O23"))) -> 88.96944588 | R305: =IF(ISERROR(INDIRECT(CONCATENATE($B305,"!O21"))),"",INDIRECT(CONCATENATE($B305,"!O21"))) -> 42.60955682 | S305: =IF(ISERROR(INDIRECT(CONCATENATE($B305,"!P16"))),"",INDIRECT(CONCATENATE($B305,"!P16"))) -> 56.92726373 | T305: =IF(ISERROR(INDIRECT(CONCATENATE($B305,"!P23"))),"",INDIRECT(CONCATENATE($B305,"!P23"))) -> 95.01965924 | W305: =IF(ISERROR(INDIRECT(CONCATENATE($B305,"!P21"))),"",INDIRECT(CONCATENATE($B305,"!P21"))) -> 39.45409429 | X305: =IF(ISERROR(INDIRECT(CONCATENATE($B305,"!Q16"))),"",INDIRECT(CONCATENATE($B305,"!Q16"))) -> 61.97839961 | Y305: =IF(ISERROR(INDIRECT(CONCATENATE($B305,"!Q23"))),"",INDIRECT(CONCATENATE($B305,"!Q23"))) -> 95.8947788 | AB305: =IF(ISERROR(INDIRECT(CONCATENATE($B305,"!Q221"))),"",INDIRECT(CONCATENATE($B305,"!Q21"))) -> 35.26367669
B306: PMS02 | C306: 2002 | D306: 44.44365676 | E306: N/A | H306: 38.82035918 | I306: 50.1505539 | J306: N/A | M306: 41.92211047 | N306: 54.42186267 | O306: N/A | R306: 40.59253962 | S306: 57.49932271 | T306: N/A | W306: 37.73528404 | X306: 65.64972597 | Y306: N/A | AB306: 29.30347726
B307: MICS05 | C307: 2005 | D307: 53.93016169 | E307: 90.21350547 | H307: 40.22083637 | I307: 55.83307927 | J307: 86.77596031 | M307: 38.35229831 | N307: 58.8446318 | O307: 89.79059771 | R307: 34.77832581 | S307: 69.09413548 | T307: 88.85657422 | W307: 25.22961179 | X307: 71.84433018 | Y307: 92.24307321 | AB307: 22.91090937
B308: DHS12 | C308: 2012 | D308: 71.53387194 | E308: 88.2372263 | H308: 22.44788233 | I308: 74.83396107 | J308: 91.25436836 | M308: 21.16428658 | N308: 73.8319235 | O308: 95.77657459 | R308: 22.37459727 | S308: 76.54210345 | T308: 93.23090993 | W308: 20.84133972 | X308: 85.04595671 | Y308: 98.94520507 | AB308: 12.30507397
B309: DHS17 | C309: 2017 | D309: 74.13533725 | E309: 95.85309697 | H309: 22.35076628 | I309: 77.72236187 | J309: 95.61515842 | M309: 19.8033749 | N309: 76.56481955 | O309: 97.82435687 | R309: 21.19947488 | S309: 80.65152642 | T309: 97.27662361 | W309: 16.67765641 | X309: 86.79541197 | Y309: 99.02147518 | AB309: 11.92433987
B318: =CONCATENATE("Rural use of drinking water sources, ",C299,"–",C300) -> Rural use of drinking water sources, 2000–2020 | S318: Data points used for regression

Sheet Sanitation
B4: Summary of trends in use of sanitation facilities by wealth quintile (%)
B5: =IF(ISERROR(INDIRECT(CONCATENATE($B105,"!A2"))),"",INDIRECT(CONCATENATE($B105,"!A2"))) -> Tajikistan
B7: =B118 -> National use of sanitation facilities, 2000–2020 | J7: =B218 -> Urban use of sanitation facilities, 2000–2020 | R7: =B318 -> Rural use of sanitation facilities, 2000–2020
B31: =IF(ISERROR(INDIRECT(CONCATENATE($B105,"!A2"))),"",INDIRECT(CONCATENATE($B105,"!A2"))) -> Tajikistan | F31: Poorest | J31: Poor | N31: Middle | R31: Rich | V31: Richest
F32: Basic | G32: Limited | H32: Unimproved | I32: Open defecation | J32: Basic | K32: Limited | L32: Unimproved | M32: Open defecation | N32: Basic | O32: Limited | P32: Unimproved | Q32: Open defecation | R32: Basic | S32: Limited | T32: Unimproved | U32: Open defecation | V32: Basic | W32: Limited | X32: Unimproved | Y32: Open defecation
B33: NATIONAL | D33: Estimate | E33: =C99 -> 2000 | F33: =E99 -> 84.4794452 | G33: =F99 -> 1.213922246 | H33: 11.93066847 | I33: 2.375964084 | J33: =J99 -> 88.5642652 | K33: =K99 -> 1.387452343 | L33: 9.758509295 | M33: 0.2897731593 | N33: =O99 -> 90.2263002 | O33: =P99 -> 2.026192079 | P33: 6.902489372 | Q33: 0.8450183534 | R33: =T99 -> 92.7749148 | S33: =U99 -> 2.827947334 | T33: 3.864183833 | U33: 0.5329540339 | V33: =Y99 -> 93.9153173 | W33: =Z99 -> 2.566967045 | X33: 1.777706073 | Y33: 1.740009583
E34: =C100 -> 2020 | F34: =E100 -> 98.58341167 | G34: 1.416588334 | H34: 0 | I34: 0 | J34: =J100 -> 98.41679155 | K34: 1.541802528 | L34: 0 | M34: 0.04140592554 | N34: =O100 -> 97.80364516 | O34: 2.19635484 | P34: 0 | Q34: 0 | R34: =T100 -> 95.89075653 | S34: 2.92292383 | T34: 1.186319641 | U34: 0 | V34: =Y100 -> 96.63620646 | W34: 2.641336519 | X34: 0.7224570165 | Y34: 0
B36: URBAN | D36: Estimate | E36: =C199 -> 2000 | F36: =E199 -> 83.16827588 | G36: =F199 -> 4.120092313 | H36: 12.34202642 | I36: 0.3696053775 | J36: =J199 -> 92.90304149 | K36: =K199 -> 4.832918117 | L36: 2.12009553 | M36: 0.14394486 | N36: =O199 -> 90.91150365 | O36: =P199 -> 5.27845278 | P36: 2.841807451 | Q36: 0.9682361153 | R36: =T199 -> 92.79605646 | S36: =U199 -> 2.856023102 | T36: 1.013701592 | U36: 3.334218845 | V36: =Y199 -> 97.44120227 | W36: =Z199 -> 1.154351397 | X36: 1.404446335 | Y36: 0
E37: =C200 -> 2020 | F37: =E200 -> 95.27990682 | G37: 4.720093179 | H37: 0 | I37: 0 | J37: =J200 -> 94.95066604 | K37: 4.939437791 | L37: 0 | M37: 0.1098961666 | N37: =O200 -> 94.51246993 | O37: 5.487530067 | P37: 0 | Q37: 0 | R37: =T200 -> 96.82356731 | S37: 2.97997949 | T37: 0.1964532012 | U37: 0 | V37: =Y200 -> 98.82920542 | W37: 1.170794578 | X37: 0 | Y37: 0
B39: RURAL | D39: Estimate | E39: =C299 -> 2000 | F39: =E299 -> 84.53362763 | G39: =F299 -> 1.073176994 | H39: 11.64539578 | I39: 2.747799596 | J39: =J299 -> 86.49056151 | K39: =K299 -> 1.079502127 | L39: 11.83448896 | M39: 0.5954473968 | N39: =O299 -> 90.14473024 | O39: =P299 -> 1.706319023 | P39: 7.626709817 | Q39: 0.522240924 | R39: =T299 -> 91.33592588 | S39: =U299 -> 1.528466456 | T39: 6.430403484 | U39: 0.7052041822 | V39: =Y299 -> 94.31680672 | W39: =Z299 -> 1.513611115 | X39: 2.775159359 | Y39: 1.394422805
E40: =C300 -> 2020 | F40: =E300 -> 98.64893666 | G40: 1.252374614 | H40: 0.09868872265 | I40: 0 | J40: =J300 -> 98.76727036 | K40: 1.232729637 | L40: 0 | M40: 0 | N40: =O300 -> 98.14229773 | O40: 1.857702265 | P40: 0 | Q40: 0 | R40: =T300 -> 98.3540877 | S40: 1.645912301 | T40: 0 | U40: 0 | V40: =Y300 -> 95.71688102 | W40: 1.53607973 | X40: 2.747039245 | Y40: 0
A97: NATIONAL | D97: Poorest | I97: Poor | N97: Middle | S97: Rich | X97: Richest
D98: Improved | E98: Basic | F98: Limited | G98: Unimproved | H98: Open defecation | I98: Improved | J98: Basic | K98: Limited | L98: Unimproved | M98: Open defecation | N98: Improved | O98: Basic | P98: Limited | Q98: Unimproved | R98: Open defecation | S98: Improved | T98: Basic | U98: Limited | V98: Unimproved | W98: Open defecation | X98: Improved | Y98: Basic | Z98: Limited | AA98: Unimproved | AB98: Open defecation
A99: Forecast period: | C99: 2000 | D99: =IF((D101+H101)>100,D101*100/(D101+H101),D101) -> 85.69336745 | E99: =D99*AVERAGEIF(E105:E116,">0")/100 -> 84.4794452 | F99: =D99*(100-AVERAGEIF(E105:E116,">0"))/100 -> 1.213922246 | G99: =100-(E99+F99+H99) -> 11.93066847 | H99: =IF((D101+H101)>100,H101*100/(D101+H101),H101) -> 2.375964084 | I99: =IF((I101+M101)>100,I101*100/(I101+M101),I101) -> 89.95171755 | J99: =I99*AVERAGEIF(J105:J116,">0")/100 -> 88.5642652 | K99: =I99*(100-AVERAGEIF(J105:J116,">0"))/100 -> 1.387452343 | L99: =100-(J99+K99+M99) -> 9.758509295 | M99: =IF((I101+M101)>100,M101*100/(I101+M101),M101) -> 0.2897731593 | N99: =IF((N101+R101)>100,N101*100/(N101+R101),N101) -> 92.25249227 | O99: =N99*AVERAGEIF(O105:O116,">0")/100 -> 90.2263002 | P99: =N99*(100-AVERAGEIF(O105:O116,">0"))/100 -> 2.026192079 | Q99: =100-(O99+P99+R99) -> 6.902489372 | R99: =IF((N101+R101)>100,R101*100/(N101+R101),R101) -> 0.8450183534 | S99: =IF((S101+W101)>100,S101*100/(S101+W101),S101) -> 95.60286213 | T99: =S99*AVERAGEIF(T105:T116,">0")/100 -> 92.7749148 | U99: =S99*(100-AVERAGEIF(T105:T116,">0"))/100 -> 2.827947334 | V99: =100-(T99+U99+W99) -> 3.864183833 | W99: =IF((S101+W101)>100,W101*100/(S101+W101),W101) -> 0.5329540339 | X99: =IF((X101+AB101)>100,X101*100/(X101+AB101),X101) -> 96.48228434 | Y99: =X99*AVERAGEIF(Y105:Y116,">0")/100 -> 93.9153173 | Z99: =X99*(100-AVERAGEIF(Y105:Y116,">0"))/100 -> 2.566967045 | AA99: =100-(Y99+Z99+AB99) -> 1.777706073 | AB99: =IF((X101+AB101)>100,AB101*100/(X101+AB101),AB101) -> 1.740009583
C100: 2020 | D100: =IF((D102+H102)>100,D102*100/(D102+H102),D102) -> 100 | E100: =D100*AVERAGEIF(E105:E116,">0")/100 -> 98.58341167 | F100: =D100*(100-AVERAGEIF(E105:E116,">0"))/100 -> 1.416588334 | G100: =100-(E100+F100+H100) -> 0 | H100: =IF((D102+H102)>100,H102*100/(D102+H102),H102) -> 0 | I100: =IF((I102+M102)>100,I102*100/(I102+M102),I102) -> 99.95859407 | J100: =I100*AVERAGEIF(J105:J116,">0")/100 -> 98.41679155 | K100: =I100*(100-AVERAGEIF(J105:J116,">0"))/100 -> 1.541802528 | L100: =100-(J100+K100+M100) -> 0 | M100: =IF((I102+M102)>100,M102*100/(I102+M102),M102) -> 0.04140592554 | N100: =IF((N102+R102)>100,N102*100/(N102+R102),N102) -> 100 | O100: =N100*AVERAGEIF(O105:O116,">0")/100 -> 97.80364516 | P100: =N100*(100-AVERAGEIF(O105:O116,">0"))/100 -> 2.19635484 | Q100: =100-(O100+P100+R100) -> 0 | R100: =IF((N102+R102)>100,R102*100/(N102+R102),R102) -> 0 | S100: =IF((S102+W102)>100,S102*100/(S102+W102),S102) -> 98.81368036 | T100: =S100*AVERAGEIF(T105:T116,">0")/100 -> 95.89075653 | U100: =S100*(100-AVERAGEIF(T105:T116,">0"))/100 -> 2.92292383 | V100: =100-(T100+U100+W100) -> 1.186319641 | W100: =IF((S102+W102)>100,W102*100/(S102+W102),W102) -> 0 | X100: =IF((X102+AB102)>100,X102*100/(X102+AB102),X102) -> 99.27754298 | Y100: =X100*AVERAGEIF(Y105:Y116,">0")/100 -> 96.63620646 | Z100: =X100*(100-AVERAGEIF(Y105:Y116,">0"))/100 -> 2.641336519 | AA100: =100-(Y100+Z100+AB100) -> 0.7224570165 | AB100: =IF((X102+AB102)>100,AB102*100/(X102+AB102),AB102) -> 0
A101: Regression period: | C101: =MinRegYear(C99,C105:C116) -> 2000 | D101: =IF(MAX(C105:C116)-MIN(C105:C116)<5,AVERAGEIF(C105:C116,">0",D105:D116), IF(FORECAST($C101,D$105:D$116,$C$105:$C$116)<0,0, IF(FORECAST($C101,D$105:D$116,$C$105:$C$116)>100,100, FORECAST($C101,D$105:D$116,$C$105:$C$116)))) -> 85.69336745 | H101: =IF(MAX(C105:C116)-MIN(C105:C116)<5,AVERAGEIF(C105:C116,">0",H105:H116), IF(FORECAST($C101,H$105:H$116,$C$105:$C$116)<0,0, IF(FORECAST($C101,H$105:H$116,$C$105:$C$116)>100,100, FORECAST($C101,H$105:H$116,$C$105:$C$116)))) -> 2.375964084 | I101: =IF(MAX(C105:C116)-MIN(C105:C116)<5,AVERAGEIF(C105:C116,">0",I105:I116), IF(FORECAST($C101,I$105:I$116,$C$105:$C$116)<0,0, IF(FORECAST($C101,I$105:I$116,$C$105:$C$116)>100,100, FORECAST($C101,I$105:I$116,$C$105:$C$116)))) -> 89.95171755 | M101: =IF(MAX(C105:C116)-MIN(C105:C116)<5,AVERAGEIF(C105:C116,">0",M105:M116), IF(FORECAST($C101,M$105:M$116,$C$105:$C$116)<0,0, IF(FORECAST($C101,M$105:M$116,$C$105:$C$116)>100,100, FORECAST($C101,M$105:M$116,$C$105:$C$116)))) -> 0.2897731593 | N101: =IF(MAX(C105:C116)-MIN(C105:C116)<5,AVERAGEIF(C105:C116,">0",N105:N116), IF(FORECAST($C101,N$105:N$116,$C$105:$C$116)<0,0, IF(FORECAST($C101,N$105:N$116,$C$105:$C$116)>100,100, FORECAST($C101,N$105:N$116,$C$105:$C$116)))) -> 92.25249227 | R101: =IF(MAX(C105:C116)-MIN(C105:C116)<5,AVERAGEIF(C105:C116,">0",R105:R116), IF(FORECAST($C101,R$105:R$116,$C$105:$C$116)<0,0, IF(FORECAST($C101,R$105:R$116,$C$105:$C$116)>100,100, FORECAST($C101,R$105:R$116,$C$105:$C$116)))) -> 0.8450183534 | S101: =IF(MAX(C105:C116)-MIN(C105:C116)<5,AVERAGEIF(C105:C116,">0",S105:S116), IF(FORECAST($C101,S$105:S$116,$C$105:$C$116)<0,0, IF(FORECAST($C101,S$105:S$116,$C$105:$C$116)>100,100, FORECAST($C101,S$105:S$116,$C$105:$C$116)))) -> 95.60286213 | W101: =IF(MAX(C105:C116)-MIN(C105:C116)<5,AVERAGEIF(C105:C116,">0",W105:W116), IF(FORECAST($C101,W$105:W$116,$C$105:$C$116)<0,0, IF(FORECAST($C101,W$105:W$116,$C$105:$C$116)>100,100, FORECAST($C101,W$105:W$116,$C$105:$C$116)))) -> 0.5329540339 | X101: =IF(MAX(C105:C116)-MIN(C105:C116)<5,AVERAGEIF(C105:C116,">0",X105:X116), IF(FORECAST($C101,X$105:X$116,$C$105:$C$116)<0,0, IF(FORECAST($C101,X$105:X$116,$C$105:$C$116)>100,100, FORECAST($C101,X$105:X$116,$C$105:$C$116)))) -> 96.48228434 | AB101: =IF(MAX(C105:C116)-MIN(C105:C116)<5,AVERAGEIF(C105:C116,">0",AB105:AB116), IF(FORECAST($C101,AB$105:AB$116,$C$105:$C$116)<0,0, IF(FORECAST($C101,AB$105:AB$116,$C$105:$C$116)>100,100, FORECAST($C101,AB$105:AB$116,$C$105:$C$116)))) -> 1.740009583
C102: =MaxRegYear(C100,C105:C116) -> 2019 | D102: =IF(MAX(C105:C116)-MIN(C105:C116)<5,AVERAGEIF(C105:C116,">0",D105:D116), IF(FORECAST($C102,D$105:D$116,$C$105:$C$116)<0,0, IF(FORECAST($C102,D$105:D$116,$C$105:$C$116)>100,100, FORECAST($C102,D$105:D$116,$C$105:$C$116)))) -> 100 | H102: =IF(MAX(C105:C116)-MIN(C105:C116)<5,AVERAGEIF(C105:C116,">0",H105:H116), IF(FORECAST($C102,H$105:H$116,$C$105:$C$116)<0,0, IF(FORECAST($C102,H$105:H$116,$C$105:$C$116)>100,100, FORECAST($C102,H$105:H$116,$C$105:$C$116)))) -> 0 | I102: =IF(MAX(C105:C116)-MIN(C105:C116)<5,AVERAGEIF(C105:C116,">0",I105:I116), IF(FORECAST($C102,I$105:I$116,$C$105:$C$116)<0,0, IF(FORECAST($C102,I$105:I$116,$C$105:$C$116)>100,100, FORECAST($C102,I$105:I$116,$C$105:$C$116)))) -> 100 | M102: =IF(MAX(C105:C116)-MIN(C105:C116)<5,AVERAGEIF(C105:C116,">0",M105:M116), IF(FORECAST($C102,M$105:M$116,$C$105:$C$116)<0,0, IF(FORECAST($C102,M$105:M$116,$C$105:$C$116)>100,100, FORECAST($C102,M$105:M$116,$C$105:$C$116)))) -> 0.04142307715 | N102: =IF(MAX(C105:C116)-MIN(C105:C116)<5,AVERAGEIF(C105:C116,">0",N105:N116), IF(FORECAST($C102,N$105:N$116,$C$105:$C$116)<0,0, IF(FORECAST($C102,N$105:N$116,$C$105:$C$116)>100,100, FORECAST($C102,N$105:N$116,$C$105:$C$116)))) -> 100 | R102: =IF(MAX(C105:C116)-MIN(C105:C116)<5,AVERAGEIF(C105:C116,">0",R105:R116), IF(FORECAST($C102,R$105:R$116,$C$105:$C$116)<0,0, IF(FORECAST($C102,R$105:R$116,$C$105:$C$116)>100,100, FORECAST($C102,R$105:R$116,$C$105:$C$116)))) -> 0 | S102: =IF(MAX(C105:C116)-MIN(C105:C116)<5,AVERAGEIF(C105:C116,">0",S105:S116), IF(FORECAST($C102,S$105:S$116,$C$105:$C$116)<0,0, IF(FORECAST($C102,S$105:S$116,$C$105:$C$116)>100,100, FORECAST($C102,S$105:S$116,$C$105:$C$116)))) -> 98.81368036 | W102: =IF(MAX(C105:C116)-MIN(C105:C116)<5,AVERAGEIF(C105:C116,">0",W105:W116), IF(FORECAST($C102,W$105:W$116,$C$105:$C$116)<0,0, IF(FORECAST($C102,W$105:W$116,$C$105:$C$116)>100,100, FORECAST($C102,W$105:W$116,$C$105:$C$116)))) -> 0 | X102: =IF(MAX(C105:C116)-MIN(C105:C116)<5,AVERAGEIF(C105:C116,">0",X105:X116), IF(FORECAST($C102,X$105:X$116,$C$105:$C$116)<0,0, IF(FORECAST($C102,X$105:X$116,$C$105:$C$116)>100,100, FORECAST($C102,X$105:X$116,$C$105:$C$116)))) -> 99.27754298 | AB102: =IF(MAX(C105:C116)-MIN(C105:C116)<5,AVERAGEIF(C105:C116,">0",AB105:AB116), IF(FORECAST($C102,AB$105:AB$116,$C$105:$C$116)<0,0, IF(FORECAST($C102,AB$105:AB$116,$C$105:$C$116)>100,100, FORECAST($C102,AB$105:AB$116,$C$105:$C$116)))) -> 0
B104: Survey | C104: Year | D104: Improved | E104: Not shared | H104: Open defecation | I104: Improved | J104: Not shared | M104: Open defecation | N104: Improved | O104: Not shared | R104: Open defecation | S104: Improved | T104: Not shared | W104: Open defecation | X104: Improved | Y104: Not shared | AB104: Open defecation
B105: MICS00 | C105: 2000 | D105: =IF(ISERROR(INDIRECT(CONCATENATE($B105,"!C122"))),"",INDIRECT(CONCATENATE($B105,"!C122"))) -> 85.7846469 | E105: =IF(ISERROR(INDIRECT(CONCATENATE($B105,"!C129"))),"",INDIRECT(CONCATENATE($B105,"!C129"))) -> N/A | H105: =IF(ISERROR(INDIRECT(CONCATENATE($B105,"!C127"))),"",INDIRECT(CONCATENATE($B105,"!C127"))) -> 3.666538016 | I105: =IF(ISERROR(INDIRECT(CONCATENATE($B105,"!D122"))),"",INDIRECT(CONCATENATE($B105,"!D122"))) -> 91.05141115 | J105: =IF(ISERROR(INDIRECT(CONCATENATE($B105,"!D129"))),"",INDIRECT(CONCATENATE($B105,"!D129"))) -> N/A | M105: =IF(ISERROR(INDIRECT(CONCATENATE($B105,"!D127"))),"",INDIRECT(CONCATENATE($B105,"!D127"))) -> 0.2311693315 | N105: =IF(ISERROR(INDIRECT(CONCATENATE($B105,"!E122"))),"",INDIRECT(CONCATENATE($B105,"!E122"))) -> 93.2155471 | O105: =IF(ISERROR(INDIRECT(CONCATENATE($B105,"!E129"))),"",INDIRECT(CONCATENATE($B105,"!E129"))) -> N/A | R105: =IF(ISERROR(INDIRECT(CONCATENATE($B105,"!E127"))),"",INDIRECT(CONCATENATE($B105,"!E127"))) -> 0.09633911368 | S105: =IF(ISERROR(INDIRECT(CONCATENATE($B105,"!F122"))),"",INDIRECT(CONCATENATE($B105,"!F122"))) -> 95.20193048 | T105: =IF(ISERROR(INDIRECT(CONCATENATE($B105,"!F129"))),"",INDIRECT(CONCATENATE($B105,"!F129"))) -> N/A | W105: =IF(ISERROR(INDIRECT(CONCATENATE($B105,"!F127"))),"",INDIRECT(CONCATENATE($B105,"!F127"))) -> 0.2510621862 | X105: =IF(ISERROR(INDIRECT(CONCATENATE($B105,"!G122"))),"",INDIRECT(CONCATENATE($B105,"!G122"))) -> 98.23567585 | Y105: =IF(ISERROR(INDIRECT(CONCATENATE($B105,"!G129"))),"",INDIRECT(CONCATENATE($B105,"!G129"))) -> N/A | AB105: =IF(ISERROR(INDIRECT(CONCATENATE($B105,"!G2127"))),"",INDIRECT(CONCATENATE($B105,"!G127"))) -> 0
B106: PMS02 | C106: 2002 | D106: 87.98863877 | E106: 99.64522917 | H106: 1.309969947 | I106: 90.827513 | J106: 99.23316729 | M106: 0.2510513225 | N106: 92.42735339 | O106: 100 | R106: 1.704238387 | S106: 96.18927739 | T106: 97.10879379 | W106: 0.8579948133 | X106: 93.77004432 | Y106: 99.01199824 | AB106: 4.354432404
B107: MICS05 | C107: 2005 | D107: 88.67420256 | E107: 97.76401687 | H107: 0.6484391599 | I107: 90.96903438 | J107: 98.57100906 | M107: 0.2945917614 | N107: 93.70407546 | O107: 96.15244776 | R107: 0.5176150401 | S107: 96.93695936 | T107: 96.35606901 | W107: 0.3108352275 | X107: 98.8136435 | Y107: 96.54996222 | AB107: 0.2345428364
B108: DHS12 | C108: 2012 | D108: 94.23143875 | E108: 98.16431421 | H108: 0.7179631593 | I108: 97.13199134 | J108: 98.16847073 | M108: 0.2014953308 | N108: 97.82514571 | O108: 96.67254237 | R108: 0.05731759226 | S108: 97.07466361 | T108: 96.30298741 | W108: 0.07170496771 | X108: 97.47577758 | Y108: 98.15135712 | AB108: 0
B109: DHS17 | C109: 2017 | D109: 99.25379787 | E109: 98.76008642 | H109: 0 | I109: 98.96445243 | J109: 97.85758816 | M109: 0 | N109: 99.5168471 | O109: 98.38959052 | R109: 0 | S109: 98.69513541 | T109: 98.40008841 | W109: 0 | X109: 99.41255999 | Y109: 95.64445079 | AB109: 0
B118: =CONCATENATE("National use of sanitation facilities, ",C99,"–",C100) -> National use of sanitation facilities, 2000–2020 | S118: Data points used for regression
A197: URBAN | D197: Poorest | I197: Poor | N197: Middle | S197: Rich | X197: Richest
D198: Improved | E198: Basic | F198: Limited | G198: Unimproved | H198: Open defecation | I198: Improved | J198: Basic | K198: Limited | L198: Unimproved | M198: Open defecation | N198: Improved | O198: Basic | P198: Limited | Q198: Unimproved | R198: Open defecation | S198: Improved | T198: Basic | U198: Limited | V198: Unimproved | W198: Open defecation | X198: Improved | Y198: Basic | Z198: Limited | AA198: Unimproved | AB198: Open defecation
A199: Forecast period: | C199: 2000 | D199: =IF((D201+H201)>100,D201*100/(D201+H201),D201) -> 87.2883682 | E199: =D199*AVERAGEIF(E205:E216,">0")/100 -> 83.16827588 | F199: =D199*(100-AVERAGEIF(E205:E216,">0"))/100 -> 4.120092313 | G199: =100-(E199+F199+H199) -> 12.34202642 | H199: =IF((D201+H201)>100,H201*100/(D201+H201),H201) -> 0.3696053775 | I199: =IF((I201+M201)>100,I201*100/(I201+M201),I201) -> 97.73595961 | J199: =I199*AVERAGEIF(J205:J216,">0")/100 -> 92.90304149 | K199: =I199*(100-AVERAGEIF(J205:J216,">0"))/100 -> 4.832918117 | L199: =100-(J199+K199+M199) -> 2.12009553 | M199: =IF((I201+M201)>100,M201*100/(I201+M201),M201) -> 0.14394486 | N199: =IF((N201+R201)>100,N201*100/(N201+R201),N201) -> 96.18995643 | O199: =N199*AVERAGEIF(O205:O216,">0")/100 -> 90.91150365 | P199: =N199*(100-AVERAGEIF(O205:O216,">0"))/100 -> 5.27845278 | Q199: =100-(O199+P199+R199) -> 2.841807451 | R199: =IF((N201+R201)>100,R201*100/(N201+R201),R201) -> 0.9682361153 | S199: =IF((S201+W201)>100,S201*100/(S201+W201),S201) -> 95.65207956 | T199: =S199*AVERAGEIF(T205:T216,">0")/100 -> 92.79605646 | U199: =S199*(100-AVERAGEIF(T205:T216,">0"))/100 -> 2.856023102 | V199: =100-(T199+U199+W199) -> 1.013701592 | W199: =IF((S201+W201)>100,W201*100/(S201+W201),W201) -> 3.334218845 | X199: =IF((X201+AB201)>100,X201*100/(X201+AB201),X201) -> 98.59555366 | Y199: =X199*AVERAGEIF(Y205:Y216,">0")/100 -> 97.44120227 | Z199: =X199*(100-AVERAGEIF(Y205:Y216,">0"))/100 -> 1.154351397 | AA199: =100-(Y199+Z199+AB199) -> 1.404446335 | AB199: =IF((X201+AB201)>100,AB201*100/(X201+AB201),AB201) -> 0
C200: 2020 | D200: =IF((D202+H202)>100,D202*100/(D202+H202),D202) -> 100 | E200: =D200*AVERAGEIF(E205:E216,">0")/100 -> 95.27990682 | F200: =D200*(100-AVERAGEIF(E205:E216,">0"))/100 -> 4.720093179 | G200: =100-(E200+F200+H200) -> 0 | H200: =IF((D202+H202)>100,H202*100/(D202+H202),H202) -> 0 | I200: =IF((I202+M202)>100,I202*100/(I202+M202),I202) -> 99.89010383 | J200: =I200*AVERAGEIF(J205:J216,">0")/100 -> 94.95066604 | K200: =I200*(100-AVERAGEIF(J205:J216,">0"))/100 -> 4.939437791 | L200: =100-(J200+K200+M200) -> 0 | M200: =IF((I202+M202)>100,M202*100/(I202+M202),M202) -> 0.1098961666 | N200: =IF((N202+R202)>100,N202*100/(N202+R202),N202) -> 100 | O200: =N200*AVERAGEIF(O205:O216,">0")/100 -> 94.51246993 | P200: =N200*(100-AVERAGEIF(O205:O216,">0"))/100 -> 5.487530067 | Q200: =100-(O200+P200+R200) -> 0 | R200: =IF((N202+R202)>100,R202*100/(N202+R202),R202) -> 0 | S200: =IF((S202+W202)>100,S202*100/(S202+W202),S202) -> 99.8035468 | T200: =S200*AVERAGEIF(T205:T216,">0")/100 -> 96.82356731 | U200: =S200*(100-AVERAGEIF(T205:T216,">0"))/100 -> 2.97997949 | V200: =100-(T200+U200+W200) -> 0.1964532012 | W200: =IF((S202+W202)>100,W202*100/(S202+W202),W202) -> 0 | X200: =IF((X202+AB202)>100,X202*100/(X202+AB202),X202) -> 100 | Y200: =X200*AVERAGEIF(Y205:Y216,">0")/100 -> 98.82920542 | Z200: =X200*(100-AVERAGEIF(Y205:Y216,">0"))/100 -> 1.170794578 | AA200: =100-(Y200+Z200+AB200) -> 0 | AB200: =IF((X202+AB202)>100,AB202*100/(X202+AB202),AB202) -> 0
A201: Regression period: | C201: =MinRegYear(C199,C205:C216) -> 2000 | D201: =IF(MAX(C205:C216)-MIN(C205:C216)<5,AVERAGEIF(C205:C216,">0",D205:D216), IF(FORECAST($C201,D$205:D$216,$C$205:$C$216)<0,0, IF(FORECAST($C201,D$205:D$216,$C$205:$C$216)>100,100, FORECAST($C201,D$205:D$216,$C$205:$C$216)))) -> 87.2883682 | H201: =IF(MAX(C205:C216)-MIN(C205:C216)<5,AVERAGEIF(C205:C216,">0",H205:H216), IF(FORECAST($C201,H$205:H$216,$C$205:$C$216)<0,0, IF(FORECAST($C201,H$205:H$216,$C$205:$C$216)>100,100, FORECAST($C201,H$205:H$216,$C$205:$C$216)))) -> 0.3696053775 | I201: =IF(MAX(C205:C216)-MIN(C205:C216)<5,AVERAGEIF(C205:C216,">0",I205:I216), IF(FORECAST($C201,I$205:I$216,$C$205:$C$216)<0,0, IF(FORECAST($C201,I$205:I$216,$C$205:$C$216)>100,100, FORECAST($C201,I$205:I$216,$C$205:$C$216)))) -> 97.73595961 | M201: =IF(MAX(C205:C216)-MIN(C205:C216)<5,AVERAGEIF(C205:C216,">0",M205:M216), IF(FORECAST($C201,M$205:M$216,$C$205:$C$216)<0,0, IF(FORECAST($C201,M$205:M$216,$C$205:$C$216)>100,100, FORECAST($C201,M$205:M$216,$C$205:$C$216)))) -> 0.14394486 | N201: =IF(MAX(C205:C216)-MIN(C205:C216)<5,AVERAGEIF(C205:C216,">0",N205:N216), IF(FORECAST($C201,N$205:N$216,$C$205:$C$216)<0,0, IF(FORECAST($C201,N$205:N$216,$C$205:$C$216)>100,100, FORECAST($C201,N$205:N$216,$C$205:$C$216)))) -> 96.18995643 | R201: =IF(MAX(C205:C216)-MIN(C205:C216)<5,AVERAGEIF(C205:C216,">0",R205:R216), IF(FORECAST($C201,R$205:R$216,$C$205:$C$216)<0,0, IF(FORECAST($C201,R$205:R$216,$C$205:$C$216)>100,100, FORECAST($C201,R$205:R$216,$C$205:$C$216)))) -> 0.9682361153 | S201: =IF(MAX(C205:C216)-MIN(C205:C216)<5,AVERAGEIF(C205:C216,">0",S205:S216), IF(FORECAST($C201,S$205:S$216,$C$205:$C$216)<0,0, IF(FORECAST($C201,S$205:S$216,$C$205:$C$216)>100,100, FORECAST($C201,S$205:S$216,$C$205:$C$216)))) -> 95.65207956 | W201: =IF(MAX(C205:C216)-MIN(C205:C216)<5,AVERAGEIF(C205:C216,">0",W205:W216), IF(FORECAST($C201,W$205:W$216,$C$205:$C$216)<0,0, IF(FORECAST($C201,W$205:W$216,$C$205:$C$216)>100,100, FORECAST($C201,W$205:W$216,$C$205:$C$216)))) -> 3.334218845 | X201: =IF(MAX(C205:C216)-MIN(C205:C216)<5,AVERAGEIF(C205:C216,">0",X205:X216), IF(FORECAST($C201,X$205:X$216,$C$205:$C$216)<0,0, IF(FORECAST($C201,X$205:X$216,$C$205:$C$216)>100,100, FORECAST($C201,X$205:X$216,$C$205:$C$216)))) -> 98.59555366 | AB201: =IF(MAX(C205:C216)-MIN(C205:C216)<5,AVERAGEIF(C205:C216,">0",AB205:AB216), IF(FORECAST($C201,AB$205:AB$216,$C$205:$C$216)<0,0, IF(FORECAST($C201,AB$205:AB$216,$C$205:$C$216)>100,100, FORECAST($C201,AB$205:AB$216,$C$205:$C$216)))) -> 0
C202: =MaxRegYear(C200,C205:C216) -> 2019 | D202: =IF(MAX(C205:C216)-MIN(C205:C216)<5,AVERAGEIF(C205:C216,">0",D205:D216), IF(FORECAST($C202,D$205:D$216,$C$205:$C$216)<0,0, IF(FORECAST($C202,D$205:D$216,$C$205:$C$216)>100,100, FORECAST($C202,D$205:D$216,$C$205:$C$216)))) -> 100 | H202: =IF(MAX(C205:C216)-MIN(C205:C216)<5,AVERAGEIF(C205:C216,">0",H205:H216), IF(FORECAST($C202,H$205:H$216,$C$205:$C$216)<0,0, IF(FORECAST($C202,H$205:H$216,$C$205:$C$216)>100,100, FORECAST($C202,H$205:H$216,$C$205:$C$216)))) -> 0 | I202: =IF(MAX(C205:C216)-MIN(C205:C216)<5,AVERAGEIF(C205:C216,">0",I205:I216), IF(FORECAST($C202,I$205:I$216,$C$205:$C$216)<0,0, IF(FORECAST($C202,I$205:I$216,$C$205:$C$216)>100,100, FORECAST($C202,I$205:I$216,$C$205:$C$216)))) -> 99.98160012 | M202: =IF(MAX(C205:C216)-MIN(C205:C216)<5,AVERAGEIF(C205:C216,">0",M205:M216), IF(FORECAST($C202,M$205:M$216,$C$205:$C$216)<0,0, IF(FORECAST($C202,M$205:M$216,$C$205:$C$216)>100,100, FORECAST($C202,M$205:M$216,$C$205:$C$216)))) -> 0.1099968281 | N202: =IF(MAX(C205:C216)-MIN(C205:C216)<5,AVERAGEIF(C205:C216,">0",N205:N216), IF(FORECAST($C202,N$205:N$216,$C$205:$C$216)<0,0, IF(FORECAST($C202,N$205:N$216,$C$205:$C$216)>100,100, FORECAST($C202,N$205:N$216,$C$205:$C$216)))) -> 100 | R202: =IF(MAX(C205:C216)-MIN(C205:C216)<5,AVERAGEIF(C205:C216,">0",R205:R216), IF(FORECAST($C202,R$205:R$216,$C$205:$C$216)<0,0, IF(FORECAST($C202,R$205:R$216,$C$205:$C$216)>100,100, FORECAST($C202,R$205:R$216,$C$205:$C$216)))) -> 0 | S202: =IF(MAX(C205:C216)-MIN(C205:C216)<5,AVERAGEIF(C205:C216,">0",S205:S216), IF(FORECAST($C202,S$205:S$216,$C$205:$C$216)<0,0, IF(FORECAST($C202,S$205:S$216,$C$205:$C$216)>100,100, FORECAST($C202,S$205:S$216,$C$205:$C$216)))) -> 99.8035468 | W202: =IF(MAX(C205:C216)-MIN(C205:C216)<5,AVERAGEIF(C205:C216,">0",W205:W216), IF(FORECAST($C202,W$205:W$216,$C$205:$C$216)<0,0, IF(FORECAST($C202,W$205:W$216,$C$205:$C$216)>100,100, FORECAST($C202,W$205:W$216,$C$205:$C$216)))) -> 0 | X202: =IF(MAX(C205:C216)-MIN(C205:C216)<5,AVERAGEIF(C205:C216,">0",X205:X216), IF(FORECAST($C202,X$205:X$216,$C$205:$C$216)<0,0, IF(FORECAST($C202,X$205:X$216,$C$205:$C$216)>100,100, FORECAST($C202,X$205:X$216,$C$205:$C$216)))) -> 100 | AB202: =IF(MAX(C205:C216)-MIN(C205:C216)<5,AVERAGEIF(C205:C216,">0",AB205:AB216), IF(FORECAST($C202,AB$205:AB$216,$C$205:$C$216)<0,0, IF(FORECAST($C202,AB$205:AB$216,$C$205:$C$216)>100,100, FORECAST($C202,AB$205:AB$216,$C$205:$C$216)))) -> 0
B204: Survey | C204: Year | D204: Improved | E204: Not shared | H204: Open defecation | I204: Improved | J204: Not shared | M204: Open defecation | N204: Improved | O204: Not shared | R204: Open defecation | S204: Improved | T204: Not shared | W204: Open defecation | X204: Improved | Y204: Not shared | AB204: Open defecation
B205: MICS00 | C205: 2000 | D205: =IF(ISERROR(INDIRECT(CONCATENATE($B205,"!H122"))),"",INDIRECT(CONCATENATE($B205,"!H122"))) -> 83.01192349 | E205: =IF(ISERROR(INDIRECT(CONCATENATE($B205,"!H129"))),"",INDIRECT(CONCATENATE($B205,"!H129"))) -> N/A | H205: =IF(ISERROR(INDIRECT(CONCATENATE($B205,"!H127"))),"",INDIRECT(CONCATENATE($B205,"!H127"))) -> 0 | I205: =IF(ISERROR(INDIRECT(CONCATENATE($B205,"!I122"))),"",INDIRECT(CONCATENATE($B205,"!I122"))) -> 96.45082901 | J205: =IF(ISERROR(INDIRECT(CONCATENATE($B205,"!I129"))),"",INDIRECT(CONCATENATE($B205,"!I129"))) -> N/A | M205: =IF(ISERROR(INDIRECT(CONCATENATE($B205,"!I127"))),"",INDIRECT(CONCATENATE($B205,"!I127"))) -> 0 | N205: =IF(ISERROR(INDIRECT(CONCATENATE($B205,"!J122"))),"",INDIRECT(CONCATENATE($B205,"!J122"))) -> 97.42697332 | O205: =IF(ISERROR(INDIRECT(CONCATENATE($B205,"!J129"))),"",INDIRECT(CONCATENATE($B205,"!J129"))) -> N/A | R205: =IF(ISERROR(INDIRECT(CONCATENATE($B205,"!J127"))),"",INDIRECT(CONCATENATE($B205,"!J127"))) -> 0 | S205: =IF(ISERROR(INDIRECT(CONCATENATE($B205,"!K122"))),"",INDIRECT(CONCATENATE($B205,"!K122"))) -> 98.63534643 | T205: =IF(ISERROR(INDIRECT(CONCATENATE($B205,"!K129"))),"",INDIRECT(CONCATENATE($B205,"!K129"))) -> N/A | W205: =IF(ISERROR(INDIRECT(CONCATENATE($B205,"!K127"))),"",INDIRECT(CONCATENATE($B205,"!K127"))) -> 0 | X205: =IF(ISERROR(INDIRECT(CONCATENATE($B205,"!L122"))),"",INDIRECT(CONCATENATE($B205,"!L122"))) -> 98.94144588 | Y205: =IF(ISERROR(INDIRECT(CONCATENATE($B205,"!L129"))),"",INDIRECT(CONCATENATE($B205,"!L129"))) -> N/A | AB205: =IF(ISERROR(INDIRECT(CONCATENATE($B205,"!L2127"))),"",INDIRECT(CONCATENATE($B205,"!L127"))) -> 0
B206: PMS02 | C206: 2002 | D206: 91.93234318 | E206: 95.8591508 | H206: 0.9609739814 | I206: 98.84214204 | J206: 97.11086692 | M206: 0.3309439276 | N206: 94.95108346 | O206: 95.92053601 | R206: 2.177699338 | S206: 90.49436196 | T206: 99.54611715 | W206: 8.668968996 | X206: 97.81818688 | Y206: 99.38820377 | AB206: 0
B207: MICS05 | C207: 2005 | D207: 93.35112251 | E207: 95.72224552 | H207: 0 | I207: 99.30828862 | J207: 95.75008588 | M207: 0.02840564559 | N207: 97.52228981 | O207: 93.56658566 | R207: 0.4698180104 | S207: 99.54174954 | T207: 96.42957616 | W207: 0 | X207: 99.78046082 | Y207: 99.09459596 | AB207: 0
B208: DHS12 | C208: 2012 | D208: 97.60641486 | E208: 90.28073485 | H208: 0 | I208: 98.5590149 | J208: 90.6704136 | M208: 0.29605214 | N208: 99.09768817 | O208: 96.54160107 | R208: 0 | S208: 98.20186533 | T208: 97.82880644 | W208: 0 | X208: 99.25868611 | Y208: 97.6519564 | AB208: 0
B209: DHS17 | C209: 2017 | D209: 99.65284089 | E209: 99.25749612 | H209: 0 | I209: 99.77442128 | J209: 96.68914553 | M209: 0 | N209: 99.8652318 | O209: 92.02115699 | R209: 0 | S209: 99.25301247 | T209: 94.25211913 | W209: 0 | X209: 100 | Y209: 99.18206556 | AB209: 0
B218: =CONCATENATE("Urban use of sanitation facilities, ",C199,"–",C200) -> Urban use of sanitation facilities, 2000–2020 | S218: Data points used for regression
A297: RURAL | D297: Poorest | I297: Poor | N297: Middle | S297: Rich | X297: Richest
D298: Improved | E298: Basic | F298: Limited | G298: Unimproved | H298: Open defecation | I298: Improved | J298: Basic | K298: Limited | L298: Unimproved | M298: Open defecation | N298: Improved | O298: Basic | P298: Limited | Q298: Unimproved | R298: Open defecation | S298: Improved | T298: Basic | U298: Limited | V298: Unimproved | W298: Open defecation | X298: Improved | Y298: Basic | Z298: Limited | AA298: Unimproved | AB298: Open defecation
A299: Forecast period: | C299: 2000 | D299: =IF((D301+H301)>100,D301*100/(D301+H301),D301) -> 85.60680462 | E299: =D299*AVERAGEIF(E305:E316,">0")/100 -> 84.53362763 | F299: =D299*(100-AVERAGEIF(E305:E316,">0"))/100 -> 1.073176994 | G299: =100-(E299+F299+H299) -> 11.64539578 | H299: =IF((D301+H301)>100,H301*100/(D301+H301),H301) -> 2.747799596 | I299: =IF((I301+M301)>100,I301*100/(I301+M301),I301) -> 87.57006364 | J299: =I299*AVERAGEIF(J305:J316,">0")/100 -> 86.49056151 | K299: =I299*(100-AVERAGEIF(J305:J316,">0"))/100 -> 1.079502127 | L299: =100-(J299+K299+M299) -> 11.83448896 | M299: =IF((I301+M301)>100,M301*100/(I301+M301),M301) -> 0.5954473968 | N299: =IF((N301+R301)>100,N301*100/(N301+R301),N301) -> 91.85104926 | O299: =N299*AVERAGEIF(O305:O316,">0")/100 -> 90.14473024 | P299: =N299*(100-AVERAGEIF(O305:O316,">0"))/100 -> 1.706319023 | Q299: =100-(O299+P299+R299) -> 7.626709817 | R299: =IF((N301+R301)>100,R301*100/(N301+R301),R301) -> 0.522240924 | S299: =IF((S301+W301)>100,S301*100/(S301+W301),S301) -> 92.86439233 | T299: =S299*AVERAGEIF(T305:T316,">0")/100 -> 91.33592588 | U299: =S299*(100-AVERAGEIF(T305:T316,">0"))/100 -> 1.528466456 | V299: =100-(T299+U299+W299) -> 6.430403484 | W299: =IF((S301+W301)>100,W301*100/(S301+W301),W301) -> 0.7052041822 | X299: =IF((X301+AB301)>100,X301*100/(X301+AB301),X301) -> 95.83041784 | Y299: =X299*AVERAGEIF(Y305:Y316,">0")/100 -> 94.31680672 | Z299: =X299*(100-AVERAGEIF(Y305:Y316,">0"))/100 -> 1.513611115 | AA299: =100-(Y299+Z299+AB299) -> 2.775159359 | AB299: =IF((X301+AB301)>100,AB301*100/(X301+AB301),AB301) -> 1.394422805
C300: 2020 | D300: =IF((D302+H302)>100,D302*100/(D302+H302),D302) -> 99.90131128 | E300: =D300*AVERAGEIF(E305:E316,">0")/100 -> 98.64893666 | F300: =D300*(100-AVERAGEIF(E305:E316,">0"))/100 -> 1.252374614 | G300: =100-(E300+F300+H300) -> 0.09868872265 | H300: =IF((D302+H302)>100,H302*100/(D302+H302),H302) -> 0 | I300: =IF((I302+M302)>100,I302*100/(I302+M302),I302) -> 100 | J300: =I300*AVERAGEIF(J305:J316,">0")/100 -> 98.76727036 | K300: =I300*(100-AVERAGEIF(J305:J316,">0"))/100 -> 1.232729637 | L300: =100-(J300+K300+M300) -> 0 | M300: =IF((I302+M302)>100,M302*100/(I302+M302),M302) -> 0 | N300: =IF((N302+R302)>100,N302*100/(N302+R302),N302) -> 100 | O300: =N300*AVERAGEIF(O305:O316,">0")/100 -> 98.14229773 | P300: =N300*(100-AVERAGEIF(O305:O316,">0"))/100 -> 1.857702265 | Q300: =100-(O300+P300+R300) -> 0 | R300: =IF((N302+R302)>100,R302*100/(N302+R302),R302) -> 0 | S300: =IF((S302+W302)>100,S302*100/(S302+W302),S302) -> 100 | T300: =S300*AVERAGEIF(T305:T316,">0")/100 -> 98.3540877 | U300: =S300*(100-AVERAGEIF(T305:T316,">0"))/100 -> 1.645912301 | V300: =100-(T300+U300+W300) -> 0 | W300: =IF((S302+W302)>100,W302*100/(S302+W302),W302) -> 0 | X300: =IF((X302+AB302)>100,X302*100/(X302+AB302),X302) -> 97.25296075 | Y300: =X300*AVERAGEIF(Y305:Y316,">0")/100 -> 95.71688102 | Z300: =X300*(100-AVERAGEIF(Y305:Y316,">0"))/100 -> 1.53607973 | AA300: =100-(Y300+Z300+AB300) -> 2.747039245 | AB300: =IF((X302+AB302)>100,AB302*100/(X302+AB302),AB302) -> 0
A301: Regression period: | C301: =MinRegYear(C299,C305:C316) -> 2000 | D301: =IF(MAX(C305:C316)-MIN(C305:C316)<5,AVERAGEIF(C305:C316,">0",D305:D316), IF(FORECAST($C301,D$305:D$316,$C$305:$C$316)<0,0, IF(FORECAST($C301,D$305:D$316,$C$305:$C$316)>100,100, FORECAST($C301,D$305:D$316,$C$305:$C$316)))) -> 85.60680462 | H301: =IF(MAX(C305:C316)-MIN(C305:C316)<5,AVERAGEIF(C305:C316,">0",H305:H316), IF(FORECAST($C301,H$305:H$316,$C$305:$C$316)<0,0, IF(FORECAST($C301,H$305:H$316,$C$305:$C$316)>100,100, FORECAST($C301,H$305:H$316,$C$305:$C$316)))) -> 2.747799596 | I301: =IF(MAX(C305:C316)-MIN(C305:C316)<5,AVERAGEIF(C305:C316,">0",I305:I316), IF(FORECAST($C301,I$305:I$316,$C$305:$C$316)<0,0, IF(FORECAST($C301,I$305:I$316,$C$305:$C$316)>100,100, FORECAST($C301,I$305:I$316,$C$305:$C$316)))) -> 87.57006364 | M301: =IF(MAX(C305:C316)-MIN(C305:C316)<5,AVERAGEIF(C305:C316,">0",M305:M316), IF(FORECAST($C301,M$305:M$316,$C$305:$C$316)<0,0, IF(FORECAST($C301,M$305:M$316,$C$305:$C$316)>100,100, FORECAST($C301,M$305:M$316,$C$305:$C$316)))) -> 0.5954473968 | N301: =IF(MAX(C305:C316)-MIN(C305:C316)<5,AVERAGEIF(C305:C316,">0",N305:N316), IF(FORECAST($C301,N$305:N$316,$C$305:$C$316)<0,0, IF(FORECAST($C301,N$305:N$316,$C$305:$C$316)>100,100, FORECAST($C301,N$305:N$316,$C$305:$C$316)))) -> 91.85104926 | R301: =IF(MAX(C305:C316)-MIN(C305:C316)<5,AVERAGEIF(C305:C316,">0",R305:R316), IF(FORECAST($C301,R$305:R$316,$C$305:$C$316)<0,0, IF(FORECAST($C301,R$305:R$316,$C$305:$C$316)>100,100, FORECAST($C301,R$305:R$316,$C$305:$C$316)))) -> 0.522240924 | S301: =IF(MAX(C305:C316)-MIN(C305:C316)<5,AVERAGEIF(C305:C316,">0",S305:S316), IF(FORECAST($C301,S$305:S$316,$C$305:$C$316)<0,0, IF(FORECAST($C301,S$305:S$316,$C$305:$C$316)>100,100, FORECAST($C301,S$305:S$316,$C$305:$C$316)))) -> 92.86439233 | W301: =IF(MAX(C305:C316)-MIN(C305:C316)<5,AVERAGEIF(C305:C316,">0",W305:W316), IF(FORECAST($C301,W$305:W$316,$C$305:$C$316)<0,0, IF(FORECAST($C301,W$305:W$316,$C$305:$C$316)>100,100, FORECAST($C301,W$305:W$316,$C$305:$C$316)))) -> 0.7052041822 | X301: =IF(MAX(C305:C316)-MIN(C305:C316)<5,AVERAGEIF(C305:C316,">0",X305:X316), IF(FORECAST($C301,X$305:X$316,$C$305:$C$316)<0,0, IF(FORECAST($C301,X$305:X$316,$C$305:$C$316)>100,100, FORECAST($C301,X$305:X$316,$C$305:$C$316)))) -> 95.83041784 | AB301: =IF(MAX(C305:C316)-MIN(C305:C316)<5,AVERAGEIF(C305:C316,">0",AB305:AB316), IF(FORECAST($C301,AB$305:AB$316,$C$305:$C$316)<0,0, IF(FORECAST($C301,AB$305:AB$316,$C$305:$C$316)>100,100, FORECAST($C301,AB$305:AB$316,$C$305:$C$316)))) -> 1.394422805
C302: =MaxRegYear(C300,C305:C316) -> 2019 | D302: =IF(MAX(C305:C316)-MIN(C305:C316)<5,AVERAGEIF(C305:C316,">0",D305:D316), IF(FORECAST($C302,D$305:D$316,$C$305:$C$316)<0,0, IF(FORECAST($C302,D$305:D$316,$C$305:$C$316)>100,100, FORECAST($C302,D$305:D$316,$C$305:$C$316)))) -> 99.90131128 | H302: =IF(MAX(C305:C316)-MIN(C305:C316)<5,AVERAGEIF(C305:C316,">0",H305:H316), IF(FORECAST($C302,H$305:H$316,$C$305:$C$316)<0,0, IF(FORECAST($C302,H$305:H$316,$C$305:$C$316)>100,100, FORECAST($C302,H$305:H$316,$C$305:$C$316)))) -> 0 | I302: =IF(MAX(C305:C316)-MIN(C305:C316)<5,AVERAGEIF(C305:C316,">0",I305:I316), IF(FORECAST($C302,I$305:I$316,$C$305:$C$316)<0,0, IF(FORECAST($C302,I$305:I$316,$C$305:$C$316)>100,100, FORECAST($C302,I$305:I$316,$C$305:$C$316)))) -> 100 | M302: =IF(MAX(C305:C316)-MIN(C305:C316)<5,AVERAGEIF(C305:C316,">0",M305:M316), IF(FORECAST($C302,M$305:M$316,$C$305:$C$316)<0,0, IF(FORECAST($C302,M$305:M$316,$C$305:$C$316)>100,100, FORECAST($C302,M$305:M$316,$C$305:$C$316)))) -> 0 | N302: =IF(MAX(C305:C316)-MIN(C305:C316)<5,AVERAGEIF(C305:C316,">0",N305:N316), IF(FORECAST($C302,N$305:N$316,$C$305:$C$316)<0,0, IF(FORECAST($C302,N$305:N$316,$C$305:$C$316)>100,100, FORECAST($C302,N$305:N$316,$C$305:$C$316)))) -> 100 | R302: =IF(MAX(C305:C316)-MIN(C305:C316)<5,AVERAGEIF(C305:C316,">0",R305:R316), IF(FORECAST($C302,R$305:R$316,$C$305:$C$316)<0,0, IF(FORECAST($C302,R$305:R$316,$C$305:$C$316)>100,100, FORECAST($C302,R$305:R$316,$C$305:$C$316)))) -> 0 | S302: =IF(MAX(C305:C316)-MIN(C305:C316)<5,AVERAGEIF(C305:C316,">0",S305:S316), IF(FORECAST($C302,S$305:S$316,$C$305:$C$316)<0,0, IF(FORECAST($C302,S$305:S$316,$C$305:$C$316)>100,100, FORECAST($C302,S$305:S$316,$C$305:$C$316)))) -> 100 | W302: =IF(MAX(C305:C316)-MIN(C305:C316)<5,AVERAGEIF(C305:C316,">0",W305:W316), IF(FORECAST($C302,W$305:W$316,$C$305:$C$316)<0,0, IF(FORECAST($C302,W$305:W$316,$C$305:$C$316)>100,100, FORECAST($C302,W$305:W$316,$C$305:$C$316)))) -> 0 | X302: =IF(MAX(C305:C316)-MIN(C305:C316)<5,AVERAGEIF(C305:C316,">0",X305:X316), IF(FORECAST($C302,X$305:X$316,$C$305:$C$316)<0,0, IF(FORECAST($C302,X$305:X$316,$C$305:$C$316)>100,100, FORECAST($C302,X$305:X$316,$C$305:$C$316)))) -> 97.25296075 | AB302: =IF(MAX(C305:C316)-MIN(C305:C316)<5,AVERAGEIF(C305:C316,">0",AB305:AB316), IF(FORECAST($C302,AB$305:AB$316,$C$305:$C$316)<0,0, IF(FORECAST($C302,AB$305:AB$316,$C$305:$C$316)>100,100, FORECAST($C302,AB$305:AB$316,$C$305:$C$316)))) -> 0
B304: Survey | C304: Year | D304: Improved | E304: Not shared | H304: Open defecation | I304: Improved | J304: Not shared | M304: Open defecation | N304: Improved | O304: Not shared | R304: Open defecation | S304: Improved | T304: Not shared | W304: Open defecation | X304: Improved | Y304: Not shared | AB304: Open defecation
B305: MICS00 | C305: 2000 | D305: =IF(ISERROR(INDIRECT(CONCATENATE($B305,"!M122"))),"",INDIRECT(CONCATENATE($B305,"!M122"))) -> 85.40946878 | E305: =IF(ISERROR(INDIRECT(CONCATENATE($B305,"!M129"))),"",INDIRECT(CONCATENATE($B305,"!M129"))) -> N/A | H305: =IF(ISERROR(INDIRECT(CONCATENATE($B305,"!M127"))),"",INDIRECT(CONCATENATE($B305,"!M127"))) -> 4.314595661 | I305: =IF(ISERROR(INDIRECT(CONCATENATE($B305,"!N122"))),"",INDIRECT(CONCATENATE($B305,"!N122"))) -> 89.01277043 | J305: =IF(ISERROR(INDIRECT(CONCATENATE($B305,"!N129"))),"",INDIRECT(CONCATENATE($B305,"!N129"))) -> N/A | M305: =IF(ISERROR(INDIRECT(CONCATENATE($B305,"!N127"))),"",INDIRECT(CONCATENATE($B305,"!N127"))) -> 0.5148320667 | N305: =IF(ISERROR(INDIRECT(CONCATENATE($B305,"!O122"))),"",INDIRECT(CONCATENATE($B305,"!O122"))) -> 92.75780072 | O305: =IF(ISERROR(INDIRECT(CONCATENATE($B305,"!O129"))),"",INDIRECT(CONCATENATE($B305,"!O129"))) -> N/A | R305: =IF(ISERROR(INDIRECT(CONCATENATE($B305,"!O127"))),"",INDIRECT(CONCATENATE($B305,"!O127"))) -> 0.2723446398 | S305: =IF(ISERROR(INDIRECT(CONCATENATE($B305,"!P122"))),"",INDIRECT(CONCATENATE($B305,"!P122"))) -> 94.19216139 | T305: =IF(ISERROR(INDIRECT(CONCATENATE($B305,"!P129"))),"",INDIRECT(CONCATENATE($B305,"!P129"))) -> N/A | W305: =IF(ISERROR(INDIRECT(CONCATENATE($B305,"!P127"))),"",INDIRECT(CONCATENATE($B305,"!P127"))) -> 0 | X305: =IF(ISERROR(INDIRECT(CONCATENATE($B305,"!Q122"))),"",INDIRECT(CONCATENATE($B305,"!Q122"))) -> 97.00115591 | Y305: =IF(ISERROR(INDIRECT(CONCATENATE($B305,"!Q129"))),"",INDIRECT(CONCATENATE($B305,"!Q129"))) -> N/A | AB305: =IF(ISERROR(INDIRECT(CONCATENATE($B305,"!Q2127"))),"",INDIRECT(CONCATENATE($B305,"!Q127"))) -> 0.3190967108
B306: PMS02 | C306: 2002 | D306: 88.14376161 | E306: 100 | H306: 1.355005885 | I306: 88.65272431 | J306: 100 | M306: 0.6617445278 | N306: 92.18094848 | O306: 98.81923138 | R306: 0.8756147637 | S306: 92.91738825 | T306: 100 | W306: 1.343230829 | X306: 94.46431946 | Y306: 100 | AB306: 2.896819142
B307: MICS05 | C307: 2005 | D307: 88.82475855 | E307: 98.21415265 | H307: 0.8371545114 | I307: 88.9656032 | J307: 98.11701901 | M307: 0.3580862126 | N307: 92.95417654 | O307: 97.72137122 | R307: 0.21675281 | S307: 93.72755838 | T307: 96.64002252 | W307: 0.670050355 | X307: 97.03180936 | Y307: 96.49892236 | AB307: 0.4849736818
B308: DHS12 | C308: 2012 | D308: 93.51405973 | E308: 98.15784133 | H308: 0.9465242597 | I308: 96.54933869 | J308: 98.57170953 | M308: 0.2290189234 | N308: 98.02274671 | O308: 98.19299206 | R308: 0.03716743667 | S308: 97.47278466 | T308: 98.1738401 | W308: 0.07542724978 | X308: 95.31098423 | Y308: 99.06225261 | AB308: 0
B309: DHS17 | C309: 2017 | D309: 99.22630283 | E309: 98.61355886 | H309: 0 | I309: 99.24798768 | J309: 98.38035292 | M309: 0 | N309: 98.80980051 | O309: 97.83559629 | R309: 0 | S309: 99.63614106 | T309: 98.60248818 | W309: 0 | X309: 98.03916469 | Y309: 98.12095165 | AB309: 0
B318: =CONCATENATE("Rural use of sanitation facilities, ",C299,"–",C300) -> Rural use of sanitation facilities, 2000–2020 | S318: Data points used for regression

Sheet Hygiene
B4: Access to hygiene facilities by wealth quintile (%)
B5: =IF(ISERROR(INDIRECT(CONCATENATE($E$32,"!A2"))),"",INDIRECT(CONCATENATE($E$32,"!A2"))) -> Tajikistan
B7: =CONCATENATE("National ",IF(ISERROR(INDIRECT(CONCATENATE($E$32,"!A2"))),"",INDIRECT(CONCATENATE($E$32,"!A210")))) -> National Access to hygiene facilities | K7: =CONCATENATE("Urban ",IF(ISERROR(INDIRECT(CONCATENATE($E$32,"!A2"))),"",INDIRECT(CONCATENATE($E$32,"!A210")))) -> Urban Access to hygiene facilities | S7: =CONCATENATE("Rural ",IF(ISERROR(INDIRECT(CONCATENATE($E$32,"!A2"))),"",INDIRECT(CONCATENATE($E$32,"!A210")))) -> Rural Access to hygiene facilities
E32: =INDEX(B88:B100,A88) -> DHS17 | G32: =IF(ISERROR(INDIRECT(CONCATENATE($E$32,"!A2"))),"",INDIRECT(CONCATENATE($E$32,"!A2"))) -> Tajikistan | K32: Poorest | N32: Poor | Q32: Middle | T32: Rich | W32: Richest
K33: Basic | L33: Limited | M33: No facility | N33: Basic | O33: Limited | P33: No facility | Q33: Basic | R33: Limited | S33: No facility | T33: Basic | U33: Limited | V33: No facility | W33: Basic | X33: Limited | Y33: No facility
B34: >>> Select Survey : | G34: NATIONAL | J34: =IF(ISERROR(INDIRECT(CONCATENATE(#REF!,"!A2"))),"",INDIRECT(CONCATENATE(#REF!,"!A210"))) ->  | K34: =IF(ISERROR(INDIRECT(CONCATENATE($E$32,"!C222"))),"",INDIRECT(CONCATENATE($E$32,"!C222"))) -> 53.49185334 | L34: =IF(ISERROR(INDIRECT(CONCATENATE($E$32,"!C223"))),"",INDIRECT(CONCATENATE($E$32,"!C223"))) -> 35.77263456 | M34: =IF(ISERROR(INDIRECT(CONCATENATE($E$32,"!C224"))),"",INDIRECT(CONCATENATE($E$32,"!C224"))) -> 10.73551209 | N34: =IF(ISERROR(INDIRECT(CONCATENATE($E$32,"!D222"))),"",INDIRECT(CONCATENATE($E$32,"!D222"))) -> 68.07262561 | O34: =IF(ISERROR(INDIRECT(CONCATENATE($E$32,"!D223"))),"",INDIRECT(CONCATENATE($E$32,"!D223"))) -> 26.42664649 | P34: =IF(ISERROR(INDIRECT(CONCATENATE($E$32,"!D224"))),"",INDIRECT(CONCATENATE($E$32,"!D224"))) -> 5.500727895 | Q34: =IF(ISERROR(INDIRECT(CONCATENATE($E$32,"!E222"))),"",INDIRECT(CONCATENATE($E$32,"!E222"))) -> 74.64258045 | R34: =IF(ISERROR(INDIRECT(CONCATENATE($E$32,"!E223"))),"",INDIRECT(CONCATENATE($E$32,"!E223"))) -> 21.52188871 | S34: =IF(ISERROR(INDIRECT(CONCATENATE($E$32,"!E224"))),"",INDIRECT(CONCATENATE($E$32,"!E224"))) -> 3.83553084 | T34: =IF(ISERROR(INDIRECT(CONCATENATE($E$32,"!F222"))),"",INDIRECT(CONCATENATE($E$32,"!F222"))) -> 84.41435408 | U34: =IF(ISERROR(INDIRECT(CONCATENATE($E$32,"!F223"))),"",INDIRECT(CONCATENATE($E$32,"!F223"))) -> 13.49841519 | V34: =IF(ISERROR(INDIRECT(CONCATENATE($E$32,"!F224"))),"",INDIRECT(CONCATENATE($E$32,"!F224"))) -> 2.087230732 | W34: =IF(ISERROR(INDIRECT(CONCATENATE($E$32,"!G222"))),"",INDIRECT(CONCATENATE($E$32,"!G222"))) -> 90.80628205 | X34: =IF(ISERROR(INDIRECT(CONCATENATE($E$32,"!G223"))),"",INDIRECT(CONCATENATE($E$32,"!G223"))) -> 7.562069706 | Y34: =IF(ISERROR(INDIRECT(CONCATENATE($E$32,"!G224"))),"",INDIRECT(CONCATENATE($E$32,"!G224"))) -> 1.631648243
G37: URBAN | J37: =IF(ISERROR(INDIRECT(CONCATENATE(#REF!,"!A2"))),"",INDIRECT(CONCATENATE(#REF!,"!A210"))) ->  | K37: =IF(ISERROR(INDIRECT(CONCATENATE($E$32,"!H222"))),"",INDIRECT(CONCATENATE($E$32,"!H222"))) -> 84.61295488 | L37: =IF(ISERROR(INDIRECT(CONCATENATE($E$32,"!H223"))),"",INDIRECT(CONCATENATE($E$32,"!H223"))) -> 13.61004944 | M37: =IF(ISERROR(INDIRECT(CONCATENATE($E$32,"!H224"))),"",INDIRECT(CONCATENATE($E$32,"!H224"))) -> 1.776995684 | N37: =IF(ISERROR(INDIRECT(CONCATENATE($E$32,"!I222"))),"",INDIRECT(CONCATENATE($E$32,"!I222"))) -> 85.75471606 | O37: =IF(ISERROR(INDIRECT(CONCATENATE($E$32,"!I223"))),"",INDIRECT(CONCATENATE($E$32,"!I223"))) -> 11.77746894 | P37: =IF(ISERROR(INDIRECT(CONCATENATE($E$32,"!I224"))),"",INDIRECT(CONCATENATE($E$32,"!I224"))) -> 2.467814996 | Q37: =IF(ISERROR(INDIRECT(CONCATENATE($E$32,"!J222"))),"",INDIRECT(CONCATENATE($E$32,"!J222"))) -> 85.54016902 | R37: =IF(ISERROR(INDIRECT(CONCATENATE($E$32,"!J223"))),"",INDIRECT(CONCATENATE($E$32,"!J223"))) -> 11.92161334 | S37: =IF(ISERROR(INDIRECT(CONCATENATE($E$32,"!J224"))),"",INDIRECT(CONCATENATE($E$32,"!J224"))) -> 2.538217637 | T37: =IF(ISERROR(INDIRECT(CONCATENATE($E$32,"!K222"))),"",INDIRECT(CONCATENATE($E$32,"!K222"))) -> 91.86299309 | U37: =IF(ISERROR(INDIRECT(CONCATENATE($E$32,"!K223"))),"",INDIRECT(CONCATENATE($E$32,"!K223"))) -> 6.238106832 | V37: =IF(ISERROR(INDIRECT(CONCATENATE($E$32,"!K224"))),"",INDIRECT(CONCATENATE($E$32,"!K224"))) -> 1.898900074 | W37: =IF(ISERROR(INDIRECT(CONCATENATE($E$32,"!L222"))),"",INDIRECT(CONCATENATE($E$32,"!L222"))) -> 95.13930177 | X37: =IF(ISERROR(INDIRECT(CONCATENATE($E$32,"!L223"))),"",INDIRECT(CONCATENATE($E$32,"!L223"))) -> 4.719951517 | Y37: =IF(ISERROR(INDIRECT(CONCATENATE($E$32,"!L224"))),"",INDIRECT(CONCATENATE($E$32,"!L224"))) -> 0.140746716
G40: RURAL | J40: =IF(ISERROR(INDIRECT(CONCATENATE(#REF!,"!A2"))),"",INDIRECT(CONCATENATE(#REF!,"!A210"))) ->  | K40: =IF(ISERROR(INDIRECT(CONCATENATE($E$32,"!M222"))),"",INDIRECT(CONCATENATE($E$32,"!M222"))) -> 51.64890705 | L40: =IF(ISERROR(INDIRECT(CONCATENATE($E$32,"!M223"))),"",INDIRECT(CONCATENATE($E$32,"!M223"))) -> 36.75711484 | M40: =IF(ISERROR(INDIRECT(CONCATENATE($E$32,"!M224"))),"",INDIRECT(CONCATENATE($E$32,"!M224"))) -> 11.5939781 | N40: =IF(ISERROR(INDIRECT(CONCATENATE($E$32,"!N222"))),"",INDIRECT(CONCATENATE($E$32,"!N222"))) -> 62.30410508 | O40: =IF(ISERROR(INDIRECT(CONCATENATE($E$32,"!N223"))),"",INDIRECT(CONCATENATE($E$32,"!N223"))) -> 31.56061975 | P40: =IF(ISERROR(INDIRECT(CONCATENATE($E$32,"!N224"))),"",INDIRECT(CONCATENATE($E$32,"!N224"))) -> 6.135275167 | Q40: =IF(ISERROR(INDIRECT(CONCATENATE($E$32,"!O222"))),"",INDIRECT(CONCATENATE($E$32,"!O222"))) -> 70.42601182 | R40: =IF(ISERROR(INDIRECT(CONCATENATE($E$32,"!O223"))),"",INDIRECT(CONCATENATE($E$32,"!O223"))) -> 23.64809011 | S40: =IF(ISERROR(INDIRECT(CONCATENATE($E$32,"!O224"))),"",INDIRECT(CONCATENATE($E$32,"!O224"))) -> 5.925898069 | T40: =IF(ISERROR(INDIRECT(CONCATENATE($E$32,"!P222"))),"",INDIRECT(CONCATENATE($E$32,"!P222"))) -> 76.93715976 | U40: =IF(ISERROR(INDIRECT(CONCATENATE($E$32,"!P223"))),"",INDIRECT(CONCATENATE($E$32,"!P223"))) -> 20.3050683 | V40: =IF(ISERROR(INDIRECT(CONCATENATE($E$32,"!P224"))),"",INDIRECT(CONCATENATE($E$32,"!P224"))) -> 2.757771939 | W40: =IF(ISERROR(INDIRECT(CONCATENATE($E$32,"!Q222"))),"",INDIRECT(CONCATENATE($E$32,"!Q222"))) -> 86.65605988 | X40: =IF(ISERROR(INDIRECT(CONCATENATE($E$32,"!Q223"))),"",INDIRECT(CONCATENATE($E$32,"!Q223"))) -> 11.08852157 | Y40: =IF(ISERROR(INDIRECT(CONCATENATE($E$32,"!Q224"))),"",INDIRECT(CONCATENATE($E$32,"!Q224"))) -> 2.255418549
A88: 5 | B88: MICS00
B89: PMS02
B90: MICS05
B91: DHS12
B92: DHS17
B93: Template

Sheet MICS00
A2: =A1026 -> Tajikistan
A3: =A1034 -> 2000
A4: Use of drinking water sources
A5: by wealth quintile and sub-national region
A6: Notes:
A7: WHO/UNICEF JMP customised wealth index excludes water,
A8: sanitation and hygiene assets.
A9: Survey used for analysis: | B9: =A1025 -> MICS00
A10: =B1028 -> 
A11: =B1027 -> 
A14: Use of drinking water sources | C14: NATIONAL wealth index quintile | H14: URBAN wealth index quintile | M14: RURAL wealth index quintile | R14: SUB-REGIONS: | BA14: Raw numbers of respondents: | BB14: Use of drinking water sources | BC14: NATIONAL wealth index quintile | BH14: URBAN wealth index quintile | BM14: RURAL wealth index quintile | BR14: SUB-REGIONS:
A15: Weighted percentage (used in graphs) | C15: Poorest | D15: Poor | E15: Middle | F15: Rich | G15: Richest | H15: Poorest | I15: Poor | J15: Middle | K15: Rich | L15: Richest | M15: Poorest | N15: Poor | O15: Middle | P15: Rich | Q15: Richest | R15: duchanbe | S15: gbao | T15: khatlon | U15: leninabad | V15: rrp | BA15: Water data, raw numbers (weighted) | BC15: Poorest | BD15: Poor | BE15: Middle | BF15: Rich | BG15: Richest | BH15: Poorest | BI15: Poor | BJ15: Middle | BK15: Rich | BL15: Richest | BM15: Poorest | BN15: Poor | BO15: Middle | BP15: Rich | BQ15: Richest | BR15: duchanbe | BS15: gbao | BT15: khatlon | BU15: leninabad | BV15: rrp
A16: Water | B16: Improved | C16: 39.86877653 | D16: 50.54902716 | E16: 58.76685934 | F16: 66.84047895 | G16: 84.25212028 | H16: 91.54185022 | I16: 91.0971223 | J16: 94.16445623 | K16: 92.30088496 | L16: 96.99381079 | M16: 38.14102564 | N16: 49.30129934 | O16: 47.80886358 | P16: 56.92726373 | Q16: 61.97839961 | R16: 100 | S16: 28.26704545 | T16: 58.40336134 | U16: 55.91014929 | V16: 61.06903583 | BA16: Water | BB16: Improved | BC16: N/A | BD16: N/A | BE16: N/A | BF16: N/A | BG16: N/A | BH16: N/A | BI16: N/A | BJ16: N/A | BK16: N/A | BL16: N/A | BM16: N/A | BN16: N/A | BO16: N/A | BP16: N/A | BQ16: N/A | BR16: N/A | BS16: N/A | BT16: N/A | BU16: N/A | BV16: N/A
B17: Not Improved | C17: 60.13122347 | D17: 49.45097284 | E17: 41.23314066 | F17: 33.15952105 | G17: 15.74787972 | H17: 8.45814978 | I17: 8.902877698 | J17: 5.835543767 | K17: 7.699115044 | L17: 3.006189213 | M17: 61.85897436 | N17: 50.69870066 | O17: 52.19113642 | P17: 43.07273627 | Q17: 38.02160039 | R17: 0 | S17: 71.73295455 | T17: 41.59663866 | U17: 44.08985071 | V17: 38.93096417 | BB17: Not Improved | BC17: N/A | BD17: N/A | BE17: N/A | BF17: N/A | BG17: N/A | BH17: N/A | BI17: N/A | BJ17: N/A | BK17: N/A | BL17: N/A | BM17: N/A | BN17: N/A | BO17: N/A | BP17: N/A | BQ17: N/A | BR17: N/A | BS17: N/A | BT17: N/A | BU17: N/A | BV17: N/A
A18: Water ladder | B18: Basic | C18: 34.44615978 | D18: 45.42477365 | E18: 53.73048005 | F18: 64.40612284 | G18: 81.68469861 | H18: 88.37004405 | I18: 88.21942446 | J18: 90.59449867 | K18: 90.17699115 | L18: 94.0760389 | M18: 31.92800789 | N18: 44.12846286 | O18: 42.53528101 | P18: 53.97022333 | Q18: 59.29029078 | R18: 94.71968709 | S18: 28.26704545 | T18: 54.25207611 | U18: 52.97586396 | V18: 55.52961774 | BA18: Water ladder | BB18: Basic | BC18: N/A | BD18: N/A | BE18: N/A | BF18: N/A | BG18: N/A | BH18: N/A | BI18: N/A | BJ18: N/A | BK18: N/A | BL18: N/A | BM18: N/A | BN18: N/A | BO18: N/A | BP18: N/A | BQ18: N/A | BR18: N/A | BS18: N/A | BT18: N/A | BU18: N/A | BV18: N/A
B19: Limited | C19: 5.42261675 | D19: 5.124253516 | E19: 5.012531328 | F19: 2.325130789 | G19: 2.530911901 | H19: 3.171806167 | I19: 2.877697842 | J19: 3.549245785 | K19: 2.123893805 | L19: 2.917771883 | M19: 6.213017751 | N19: 5.17283648 | O19: 5.27358257 | P19: 2.828784119 | Q19: 2.538196156 | R19: 5.280312907 | S19: 0 | T19: 4.120676968 | U19: 2.879868349 | V19: 5.47125766 | BB19: Limited | BC19: N/A | BD19: N/A | BE19: N/A | BF19: N/A | BG19: N/A | BH19: N/A | BI19: N/A | BJ19: N/A | BK19: N/A | BL19: N/A | BM19: N/A | BN19: N/A | BO19: N/A | BP19: N/A | BQ19: N/A | BR19: N/A | BS19: N/A | BT19: N/A | BU19: N/A | BV19: N/A
B20: Unimproved | C20: 11.01891162 | D20: 10.42188403 | E20: 6.072874494 | F20: 3.584576632 | G20: 1.79675425 | H20: 3.788546256 | I20: 3.507194245 | J20: 3.371783496 | K20: 1.681415929 | L20: 1.237842617 | M20: 11.85897436 | N20: 10.17406227 | O20: 9.581579599 | P20: 3.746898263 | Q20: 2.907836373 | R20: 0 | S20: 0 | T20: 6.643540418 | U20: 7.926494789 | V20: 7.222060111 | BB20: Unimproved | BC20: N/A | BD20: N/A | BE20: N/A | BF20: N/A | BG20: N/A | BH20: N/A | BI20: N/A | BJ20: N/A | BK20: N/A | BL20: N/A | BM20: N/A | BN20: N/A | BO20: N/A | BP20: N/A | BQ20: N/A | BR20: N/A | BS20: N/A | BT20: N/A | BU20: N/A | BV20: N/A
B21: Surface water | C21: 49.11231185 | D21: 39.02908881 | E21: 35.18411413 | F21: 29.68416973 | G21: 13.98763524 | H21: 4.669603524 | I21: 5.395683453 | J21: 2.48447205 | K21: 6.017699115 | L21: 1.768346596 | M21: 50 | N21: 40.52463839 | O21: 42.60955682 | P21: 39.45409429 | Q21: 35.26367669 | R21: 0 | S21: 71.73295455 | T21: 34.98370651 | U21: 36.2177729 | V21: 31.77706449 | BB21: Surface water | BC21: N/A | BD21: N/A | BE21: N/A | BF21: N/A | BG21: N/A | BH21: N/A | BI21: N/A | BJ21: N/A | BK21: N/A | BL21: N/A | BM21: N/A | BN21: N/A | BO21: N/A | BP21: N/A | BQ21: N/A | BR21: N/A | BS21: N/A | BT21: N/A | BU21: N/A | BV21: N/A
A22: Improved water point at more than 30 minutes | B22: Yes | C22: 13.60116167 | D22: 10.13719512 | E22: 8.532983262 | F22: 3.484320557 | G22: 3.00527644 | H22: 3.464870067 | I22: 3.15893386 | J22: 3.770028275 | K22: 2.30105465 | L22: 3.008204193 | M22: 16.28959276 | N22: 10.49229239 | O22: 11.03055412 | P22: 4.98034076 | Q22: 4.105221204 | R22: 5.280312907 | S22: 0 | T22: 7.059247254 | U22: 5.155904739 | V22: 8.969146137 | BA22: Improved water point at more than 30 minutes | BB22: Yes | BC22: N/A | BD22: N/A | BE22: N/A | BF22: N/A | BG22: N/A | BH22: N/A | BI22: N/A | BJ22: N/A | BK22: N/A | BL22: N/A | BM22: N/A | BN22: N/A | BO22: N/A | BP22: N/A | BQ22: N/A | BR22: N/A | BS22: N/A | BT22: N/A | BU22: N/A | BV22: N/A
B23: No | C23: 86.39883833 | D23: 89.86280488 | E23: 91.46701674 | F23: 96.51567944 | G23: 96.99472356 | H23: 96.53512993 | I23: 96.84106614 | J23: 96.22997172 | K23: 97.69894535 | L23: 96.99179581 | M23: 83.71040724 | N23: 89.50770761 | O23: 88.96944588 | P23: 95.01965924 | Q23: 95.8947788 | R23: 94.71968709 | S23: 100 | T23: 92.94075275 | U23: 94.84409526 | V23: 91.03085386 | BB23: No | BC23: N/A | BD23: N/A | BE23: N/A | BF23: N/A | BG23: N/A | BH23: N/A | BI23: N/A | BJ23: N/A | BK23: N/A | BL23: N/A | BM23: N/A | BN23: N/A | BO23: N/A | BP23: N/A | BQ23: N/A | BR23: N/A | BS23: N/A | BT23: N/A | BU23: N/A | BV23: N/A
A24: Manually calculated ratios | B24: Improved wells
B25: Improved springs
B26: Other
C27: NATIONAL wealth index quintile | H27: URBAN wealth index quintile | M27: RURAL wealth index quintile | R27: SUB-REGIONS: | BA27: Raw numbers of respondents: | BB27: Use of drinking water sources | BC27: NATIONAL wealth index quintile | BH27: URBAN wealth index quintile | BM27: RURAL wealth index quintile | BR27: SUB-REGIONS:
A28: Percentage based on weighted population | C28: Poorest | D28: Poor | E28: Middle | F28: Rich | G28: Richest | H28: Poorest | I28: Poor | J28: Middle | K28: Rich | L28: Richest | M28: Poorest | N28: Poor | O28: Middle | P28: Rich | Q28: Richest | R28: duchanbe | S28: gbao | T28: khatlon | U28: leninabad | V28: rrp | BA28: Water data, raw numbers (weighted) | BC28: Poorest | BD28: Poor | BE28: Middle | BF28: Rich | BG28: Richest | BH28: Poorest | BI28: Poor | BJ28: Middle | BK28: Rich | BL28: Richest | BM28: Poorest | BN28: Poor | BO28: Middle | BP28: Rich | BQ28: Richest | BR28: duchanbe | BS28: gbao | BT28: khatlon | BU28: leninabad | BV28: rrp
A29: Piped water | B29: Yes | C29: 24.41142416 | D29: 31.65093431 | E29: 41.75337187 | F29: 57.37736578 | G29: 74.59521974 | H29: 81.05726872 | I29: 85.25179856 | J29: 86.47214854 | K29: 88.9380531 | L29: 93.19186561 | M29: 22.14003945 | N29: 31.03701888 | O29: 29.61128992 | P29: 41.34092034 | Q29: 48.60088365 | R29: 97.85435631 | S29: 28.26704545 | T29: 41.75420168 | U29: 46.69223394 | V29: 41.1884649 | BA29: Piped water | BB29: Yes | BC29: N/A | BD29: N/A | BE29: N/A | BF29: N/A | BG29: N/A | BH29: N/A | BI29: N/A | BJ29: N/A | BK29: N/A | BL29: N/A | BM29: N/A | BN29: N/A | BO29: N/A | BP29: N/A | BQ29: N/A | BR29: N/A | BS29: N/A | BT29: N/A | BU29: N/A | BV29: N/A
B30: No | C30: 75.58857584 | D30: 68.34906569 | E30: 58.24662813 | F30: 42.62263422 | G30: 25.40478026 | H30: 18.94273128 | I30: 14.74820144 | J30: 13.52785146 | K30: 11.0619469 | L30: 6.808134394 | M30: 77.85996055 | N30: 68.96298112 | O30: 70.38871008 | P30: 58.65907966 | Q30: 51.39911635 | R30: 2.145643693 | S30: 71.73295455 | T30: 58.24579832 | U30: 53.30776606 | V30: 58.8115351 | BB30: No | BC30: N/A | BD30: N/A | BE30: N/A | BF30: N/A | BG30: N/A | BH30: N/A | BI30: N/A | BJ30: N/A | BK30: N/A | BL30: N/A | BM30: N/A | BN30: N/A | BO30: N/A | BP30: N/A | BQ30: N/A | BR30: N/A | BS30: N/A | BT30: N/A | BU30: N/A | BV30: N/A
A31: Piped water on premises | B31: Yes | C31: 19.72211501 | D31: 24.21498748 | E31: 32.60115607 | F31: 48.76400154 | G31: 65.49730146 | H31: 74.0969163 | I31: 80.9352518 | J31: 81.25552608 | K31: 84.15929204 | L31: 89.65517241 | M31: 17.5295858 | N31: 24.49129689 | O31: 21.46570933 | P31: 31.76645225 | Q31: 34.56062838 | R31: 90.57217165 | S31: 22.15909091 | T31: 40.40966387 | U31: 28.33858376 | V31: 35.37722109 | BA31: Piped water on premises | BB31: Yes | BC31: N/A | BD31: N/A | BE31: N/A | BF31: N/A | BG31: N/A | BH31: N/A | BI31: N/A | BJ31: N/A | BK31: N/A | BL31: N/A | BM31: N/A | BN31: N/A | BO31: N/A | BP31: N/A | BQ31: N/A | BR31: N/A | BS31: N/A | BT31: N/A | BU31: N/A | BV31: N/A
B32: No | C32: 80.27788499 | D32: 75.78501252 | E32: 67.39884393 | F32: 51.23599846 | G32: 34.50269854 | H32: 25.9030837 | I32: 19.0647482 | J32: 18.74447392 | K32: 15.84070796 | L32: 10.34482759 | M32: 82.4704142 | N32: 75.50870311 | O32: 78.53429067 | P32: 68.23354775 | Q32: 65.43937162 | R32: 9.427828349 | S32: 77.84090909 | T32: 59.59033613 | U32: 71.66141624 | V32: 64.62277891 | BB32: No | BC32: N/A | BD32: N/A | BE32: N/A | BF32: N/A | BG32: N/A | BH32: N/A | BI32: N/A | BJ32: N/A | BK32: N/A | BL32: N/A | BM32: N/A | BN32: N/A | BO32: N/A | BP32: N/A | BQ32: N/A | BR32: N/A | BS32: N/A | BT32: N/A | BU32: N/A | BV32: N/A
A33: Piped water into dwelling | B33: Yes | C33: N/A | D33: N/A | E33: N/A | F33: N/A | G33: N/A | H33: N/A | I33: N/A | J33: N/A | K33: N/A | L33: N/A | M33: N/A | N33: N/A | O33: N/A | P33: N/A | Q33: N/A | R33: N/A | S33: N/A | T33: N/A | U33: N/A | V33: N/A | BA33: Piped water into dwelling | BB33: Yes | BC33: N/A | BD33: N/A | BE33: N/A | BF33: N/A | BG33: N/A | BH33: N/A | BI33: N/A | BJ33: N/A | BK33: N/A | BL33: N/A | BM33: N/A | BN33: N/A | BO33: N/A | BP33: N/A | BQ33: N/A | BR33: N/A | BS33: N/A | BT33: N/A | BU33: N/A | BV33: N/A
B34: No | C34: N/A | D34: N/A | E34: N/A | F34: N/A | G34: N/A | H34: N/A | I34: N/A | J34: N/A | K34: N/A | L34: N/A | M34: N/A | N34: N/A | O34: N/A | P34: N/A | Q34: N/A | R34: N/A | S34: N/A | T34: N/A | U34: N/A | V34: N/A | BB34: No | BC34: N/A | BD34: N/A | BE34: N/A | BF34: N/A | BG34: N/A | BH34: N/A | BI34: N/A | BJ34: N/A | BK34: N/A | BL34: N/A | BM34: N/A | BN34: N/A | BO34: N/A | BP34: N/A | BQ34: N/A | BR34: N/A | BS34: N/A | BT34: N/A | BU34: N/A | BV34: N/A
A35: Water source on premises | B35: Yes | C35: 7.093355075 | D35: 11.34586943 | E35: 15.73244426 | F35: 32.07973695 | G35: 54.83539095 | H35: 33.66880146 | I35: 57.32718894 | J35: 62.63736264 | K35: 76.02179837 | L35: 80.2513465 | M35: 5.167488964 | N35: 10.08854306 | O35: 12.81982942 | P35: 15.90413943 | Q35: 22.32798477 | R35: 86.11473272 | S35: 6.970128023 | T35: 8.136511376 | U35: 26.73820373 | V35: 32.67729895 | BA35: Water source on premises | BB35: Yes | BC35: N/A | BD35: N/A | BE35: N/A | BF35: N/A | BG35: N/A | BH35: N/A | BI35: N/A | BJ35: N/A | BK35: N/A | BL35: N/A | BM35: N/A | BN35: N/A | BO35: N/A | BP35: N/A | BQ35: N/A | BR35: N/A | BS35: N/A | BT35: N/A | BU35: N/A | BV35: N/A
B36: No | C36: 92.90664492 | D36: 88.65413057 | E36: 84.26755574 | F36: 67.92026305 | G36: 45.16460905 | H36: 66.33119854 | I36: 42.67281106 | J36: 37.36263736 | K36: 23.97820163 | L36: 19.7486535 | M36: 94.83251104 | N36: 89.91145694 | O36: 87.18017058 | P36: 84.09586057 | Q36: 77.67201523 | R36: 13.88526728 | S36: 93.02987198 | T36: 91.86348862 | U36: 73.26179627 | V36: 67.32270105 | BB36: No | BC36: N/A | BD36: N/A | BE36: N/A | BF36: N/A | BG36: N/A | BH36: N/A | BI36: N/A | BJ36: N/A | BK36: N/A | BL36: N/A | BM36: N/A | BN36: N/A | BO36: N/A | BP36: N/A | BQ36: N/A | BR36: N/A | BS36: N/A | BT36: N/A | BU36: N/A | BV36: N/A
A37: Improved Water source on premises | B37: Yes | C37: 18.13444502 | D37: 22.96834902 | E37: 27.090061 | F37: 47.3030303 | G37: 64.44981862 | H37: 36.5805169 | I37: 62.76488396 | J37: 66.08695652 | K37: 81.02613746 | L37: 82.16911765 | M37: 13.64883402 | N37: 21.02908277 | O37: 27.90023202 | P37: 28.26718296 | Q37: 35.85152838 | R37: 86.11473272 | S37: 24.62311558 | T37: 14.08213013 | U37: 47.24675325 | V37: 54.05557115 | BA37: Improved water source on premises | BB37: Yes | BC37: N/A | BD37: N/A | BE37: N/A | BF37: N/A | BG37: N/A | BH37: N/A | BI37: N/A | BJ37: N/A | BK37: N/A | BL37: N/A | BM37: N/A | BN37: N/A | BO37: N/A | BP37: N/A | BQ37: N/A | BR37: N/A | BS37: N/A | BT37: N/A | BU37: N/A | BV37: N/A
B38: No | C38: 81.86555498 | D38: 77.03165098 | E38: 72.909939 | F38: 52.6969697 | G38: 35.55018138 | H38: 63.4194831 | I38: 37.23511604 | J38: 33.91304348 | K38: 18.97386254 | L38: 17.83088235 | M38: 86.35116598 | N38: 78.97091723 | O38: 72.09976798 | P38: 71.73281704 | Q38: 64.14847162 | R38: 13.88526728 | S38: 75.37688442 | T38: 85.91786987 | U38: 52.75324675 | V38: 45.94442885 | BB38: No | BC38: N/A | BD38: N/A | BE38: N/A | BF38: N/A | BG38: N/A | BH38: N/A | BI38: N/A | BJ38: N/A | BK38: N/A | BL38: N/A | BM38: N/A | BN38: N/A | BO38: N/A | BP38: N/A | BQ38: N/A | BR38: N/A | BS38: N/A | BT38: N/A | BU38: N/A | BV38: N/A
A39: Piped water on premises available when needed | B39: Yes | C39: N/A | D39: N/A | E39: N/A | F39: N/A | G39: N/A | H39: N/A | I39: N/A | J39: N/A | K39: N/A | L39: N/A | M39: N/A | N39: N/A | O39: N/A | P39: N/A | Q39: N/A | R39: N/A | S39: N/A | T39: N/A | U39: N/A | V39: N/A | BA39: Piped water on premises available when needed | BB39: Yes | BC39: N/A | BD39: N/A | BE39: N/A | BF39: N/A | BG39: N/A | BH39: N/A | BI39: N/A | BJ39: N/A | BK39: N/A | BL39: N/A | BM39: N/A | BN39: N/A | BO39: N/A | BP39: N/A | BQ39: N/A | BR39: N/A | BS39: N/A | BT39: N/A | BU39: N/A | BV39: N/A
B40: No | C40: N/A | D40: N/A | E40: N/A | F40: N/A | G40: N/A | H40: N/A | I40: N/A | J40: N/A | K40: N/A | L40: N/A | M40: N/A | N40: N/A | O40: N/A | P40: N/A | Q40: N/A | R40: N/A | S40: N/A | T40: N/A | U40: N/A | V40: N/A | BB40: No | BC40: N/A | BD40: N/A | BE40: N/A | BF40: N/A | BG40: N/A | BH40: N/A | BI40: N/A | BJ40: N/A | BK40: N/A | BL40: N/A | BM40: N/A | BN40: N/A | BO40: N/A | BP40: N/A | BQ40: N/A | BR40: N/A | BS40: N/A | BT40: N/A | BU40: N/A | BV40: N/A
A41: Water point at more than 30 minutes | B41: Yes | C41: 14.53454616 | D41: 14.46734733 | E41: 10.44603205 | F41: 5.464057353 | G41: 3.70942813 | H41: 6.607929515 | I41: 4.76618705 | J41: 3.549245785 | K41: 2.831858407 | L41: 2.917771883 | M41: 16.01088839 | N41: 13.36111792 | O41: 14.53733565 | P41: 6.129032258 | Q41: 6.382454411 | R41: 5.280312907 | S41: 3.271692745 | T41: 11.01043093 | U41: 7.419089413 | V41: 12.06594689 | BA41: Water point at more than 30 minutes | BB41: Yes | BC41: N/A | BD41: N/A | BE41: N/A | BF41: N/A | BG41: N/A | BH41: N/A | BI41: N/A | BJ41: N/A | BK41: N/A | BL41: N/A | BM41: N/A | BN41: N/A | BO41: N/A | BP41: N/A | BQ41: N/A | BR41: N/A | BS41: N/A | BT41: N/A | BU41: N/A | BV41: N/A
B42: No | C42: 85.46545384 | D42: 85.53265267 | E42: 89.55396795 | F42: 94.53594265 | G42: 96.29057187 | H42: 93.39207048 | I42: 95.23381295 | J42: 96.45075421 | K42: 97.16814159 | L42: 97.08222812 | M42: 83.98911161 | N42: 86.63888208 | O42: 85.46266435 | P42: 93.87096774 | Q42: 93.61754559 | R42: 94.71968709 | S42: 96.72830725 | T42: 88.98956907 | U42: 92.58091059 | V42: 87.93405311 | BB42: No | BC42: N/A | BD42: N/A | BE42: N/A | BF42: N/A | BG42: N/A | BH42: N/A | BI42: N/A | BJ42: N/A | BK42: N/A | BL42: N/A | BM42: N/A | BN42: N/A | BO42: N/A | BP42: N/A | BQ42: N/A | BR42: N/A | BS42: N/A | BT42: N/A | BU42: N/A | BV42: N/A
A43: Water source available when needed | B43: Yes | C43: N/A | D43: N/A | E43: N/A | F43: N/A | G43: N/A | H43: N/A | I43: N/A | J43: N/A | K43: N/A | L43: N/A | M43: N/A | N43: N/A | O43: N/A | P43: N/A | Q43: N/A | R43: N/A | S43: N/A | T43: N/A | U43: N/A | V43: N/A | BA43: Water source available when needed | BB43: Yes | BC43: N/A | BD43: N/A | BE43: N/A | BF43: N/A | BG43: N/A | BH43: N/A | BI43: N/A | BJ43: N/A | BK43: N/A | BL43: N/A | BM43: N/A | BN43: N/A | BO43: N/A | BP43: N/A | BQ43: N/A | BR43: N/A | BS43: N/A | BT43: N/A | BU43: N/A | BV43: N/A
B44: No | C44: N/A | D44: N/A | E44: N/A | F44: N/A | G44: N/A | H44: N/A | I44: N/A | J44: N/A | K44: N/A | L44: N/A | M44: N/A | N44: N/A | O44: N/A | P44: N/A | Q44: N/A | R44: N/A | S44: N/A | T44: N/A | U44: N/A | V44: N/A | BB44: No | BC44: N/A | BD44: N/A | BE44: N/A | BF44: N/A | BG44: N/A | BH44: N/A | BI44: N/A | BJ44: N/A | BK44: N/A | BL44: N/A | BM44: N/A | BN44: N/A | BO44: N/A | BP44: N/A | BQ44: N/A | BR44: N/A | BS44: N/A | BT44: N/A | BU44: N/A | BV44: N/A
A45: Improved water source available when needed | B45: Yes | C45: N/A | D45: N/A | E45: N/A | F45: N/A | G45: N/A | H45: N/A | I45: N/A | J45: N/A | K45: N/A | L45: N/A | M45: N/A | N45: N/A | O45: N/A | P45: N/A | Q45: N/A | R45: N/A | S45: N/A | T45: N/A | U45: N/A | V45: N/A | BA45: Improved water source available when needed | BB45: Yes | BC45: N/A | BD45: N/A | BE45: N/A | BF45: N/A | BG45: N/A | BH45: N/A | BI45: N/A | BJ45: N/A | BK45: N/A | BL45: N/A | BM45: N/A | BN45: N/A | BO45: N/A | BP45: N/A | BQ45: N/A | BR45: N/A | BS45: N/A | BT45: N/A | BU45: N/A | BV45: N/A
B46: No | C46: N/A | D46: N/A | E46: N/A | F46: N/A | G46: N/A | H46: N/A | I46: N/A | J46: N/A | K46: N/A | L46: N/A | M46: N/A | N46: N/A | O46: N/A | P46: N/A | Q46: N/A | R46: N/A | S46: N/A | T46: N/A | U46: N/A | V46: N/A | BB46: No | BC46: N/A | BD46: N/A | BE46: N/A | BF46: N/A | BG46: N/A | BH46: N/A | BI46: N/A | BJ46: N/A | BK46: N/A | BL46: N/A | BM46: N/A | BN46: N/A | BO46: N/A | BP46: N/A | BQ46: N/A | BR46: N/A | BS46: N/A | BT46: N/A | BU46: N/A | BV46: N/A
A47: Microbiological quality at point of collection | B47: Not contaminated (No E. coli in 100 mL) | C47: N/A | D47: N/A | E47: N/A | F47: N/A | G47: N/A | H47: N/A | I47: N/A | J47: N/A | K47: N/A | L47: N/A | M47: N/A | N47: N/A | O47: N/A | P47: N/A | Q47: N/A | R47: N/A | S47: N/A | T47: N/A | U47: N/A | V47: N/A | BA47: Microbiological quality at point of collection | BB47: Not contaminated (No E. coli in 100 mL) | BC47: N/A | BD47: N/A | BE47: N/A | BF47: N/A | BG47: N/A | BH47: N/A | BI47: N/A | BJ47: N/A | BK47: N/A | BL47: N/A | BM47: N/A | BN47: N/A | BO47: N/A | BP47: N/A | BQ47: N/A | BR47: N/A | BS47: N/A | BT47: N/A | BU47: N/A | BV47: N/A
B48: Contaminated (E. coli detected in 100 mL) | C48: N/A | D48: N/A | E48: N/A | F48: N/A | G48: N/A | H48: N/A | I48: N/A | J48: N/A | K48: N/A | L48: N/A | M48: N/A | N48: N/A | O48: N/A | P48: N/A | Q48: N/A | R48: N/A | S48: N/A | T48: N/A | U48: N/A | V48: N/A | BB48: Contaminated (E. coli detected in 100 mL) | BC48: N/A | BD48: N/A | BE48: N/A | BF48: N/A | BG48: N/A | BH48: N/A | BI48: N/A | BJ48: N/A | BK48: N/A | BL48: N/A | BM48: N/A | BN48: N/A | BO48: N/A | BP48: N/A | BQ48: N/A | BR48: N/A | BS48: N/A | BT48: N/A | BU48: N/A | BV48: N/A
B49: Highly contaminated (>100 CFU/100 mL) | C49: N/A | D49: N/A | E49: N/A | F49: N/A | G49: N/A | H49: N/A | I49: N/A | J49: N/A | K49: N/A | L49: N/A | M49: N/A | N49: N/A | O49: N/A | P49: N/A | Q49: N/A | R49: N/A | S49: N/A | T49: N/A | U49: N/A | V49: N/A | BB49: Highly contaminated (>100 CFU/100 mL) | BC49: N/A | BD49: N/A | BE49: N/A | BF49: N/A | BG49: N/A | BH49: N/A | BI49: N/A | BJ49: N/A | BK49: N/A | BL49: N/A | BM49: N/A | BN49: N/A | BO49: N/A | BP49: N/A | BQ49: N/A | BR49: N/A | BS49: N/A | BT49: N/A | BU49: N/A | BV49: N/A
A50: Microbiological quality of improved water sources at point of collection | B50: Not contaminated (No E. coli in 100 mL) | C50: N/A | D50: N/A | E50: N/A | F50: N/A | G50: N/A | H50: N/A | I50: N/A | J50: N/A | K50: N/A | L50: N/A | M50: N/A | N50: N/A | O50: N/A | P50: N/A | Q50: N/A | R50: N/A | S50: N/A | T50: N/A | U50: N/A | V50: N/A | BA50: Microbiological quality of improved water sources at point of collection | BB50: Not contaminated (No E. coli in 100 mL) | BC50: N/A | BD50: N/A | BE50: N/A | BF50: N/A | BG50: N/A | BH50: N/A | BI50: N/A | BJ50: N/A | BK50: N/A | BL50: N/A | BM50: N/A | BN50: N/A | BO50: N/A | BP50: N/A | BQ50: N/A | BR50: N/A | BS50: N/A | BT50: N/A | BU50: N/A | BV50: N/A
B51: Contaminated (E. coli detected in 100 mL) | C51: N/A | D51: N/A | E51: N/A | F51: N/A | G51: N/A | H51: N/A | I51: N/A | J51: N/A | K51: N/A | L51: N/A | M51: N/A | N51: N/A | O51: N/A | P51: N/A | Q51: N/A | R51: N/A | S51: N/A | T51: N/A | U51: N/A | V51: N/A | BB51: Contaminated (E. coli detected in 100 mL) | BC51: N/A | BD51: N/A | BE51: N/A | BF51: N/A | BG51: N/A | BH51: N/A | BI51: N/A | BJ51: N/A | BK51: N/A | BL51: N/A | BM51: N/A | BN51: N/A | BO51: N/A | BP51: N/A | BQ51: N/A | BR51: N/A | BS51: N/A | BT51: N/A | BU51: N/A | BV51: N/A
B52: Highly contaminated (>100 CFU/100 mL) | C52: N/A | D52: N/A | E52: N/A | F52: N/A | G52: N/A | H52: N/A | I52: N/A | J52: N/A | K52: N/A | L52: N/A | M52: N/A | N52: N/A | O52: N/A | P52: N/A | Q52: N/A | R52: N/A | S52: N/A | T52: N/A | U52: N/A | V52: N/A | BB52: Highly contaminated (>100 CFU/100 mL) | BC52: N/A | BD52: N/A | BE52: N/A | BF52: N/A | BG52: N/A | BH52: N/A | BI52: N/A | BJ52: N/A | BK52: N/A | BL52: N/A | BM52: N/A | BN52: N/A | BO52: N/A | BP52: N/A | BQ52: N/A | BR52: N/A | BS52: N/A | BT52: N/A | BU52: N/A | BV52: N/A
A53: Microbiological quality of piped on premises at point of collection | B53: Not contaminated (No E. coli in 100 mL) | C53: N/A | D53: N/A | E53: N/A | F53: N/A | G53: N/A | H53: N/A | I53: N/A | J53: N/A | K53: N/A | L53: N/A | M53: N/A | N53: N/A | O53: N/A | P53: N/A | Q53: N/A | R53: N/A | S53: N/A | T53: N/A | U53: N/A | V53: N/A | BA53: Microbiological quality of piped on premises at point of collection | BB53: Not contaminated (No E. coli in 100 mL) | BC53: N/A | BD53: N/A | BE53: N/A | BF53: N/A | BG53: N/A | BH53: N/A | BI53: N/A | BJ53: N/A | BK53: N/A | BL53: N/A | BM53: N/A | BN53: N/A | BO53: N/A | BP53: N/A | BQ53: N/A | BR53: N/A | BS53: N/A | BT53: N/A | BU53: N/A | BV53: N/A
B54: Contaminated (E. coli detected in 100 mL) | C54: N/A | D54: N/A | E54: N/A | F54: N/A | G54: N/A | H54: N/A | I54: N/A | J54: N/A | K54: N/A | L54: N/A | M54: N/A | N54: N/A | O54: N/A | P54: N/A | Q54: N/A | R54: N/A | S54: N/A | T54: N/A | U54: N/A | V54: N/A | BB54: Contaminated (E. coli detected in 100 mL) | BC54: N/A | BD54: N/A | BE54: N/A | BF54: N/A | BG54: N/A | BH54: N/A | BI54: N/A | BJ54: N/A | BK54: N/A | BL54: N/A | BM54: N/A | BN54: N/A | BO54: N/A | BP54: N/A | BQ54: N/A | BR54: N/A | BS54: N/A | BT54: N/A | BU54: N/A | BV54: N/A
B55: Highly contaminated (>100 CFU/100 mL) | C55: N/A | D55: N/A | E55: N/A | F55: N/A | G55: N/A | H55: N/A | I55: N/A | J55: N/A | K55: N/A | L55: N/A | M55: N/A | N55: N/A | O55: N/A | P55: N/A | Q55: N/A | R55: N/A | S55: N/A | T55: N/A | U55: N/A | V55: N/A | BB55: Highly contaminated (>100 CFU/100 mL) | BC55: N/A | BD55: N/A | BE55: N/A | BF55: N/A | BG55: N/A | BH55: N/A | BI55: N/A | BJ55: N/A | BK55: N/A | BL55: N/A | BM55: N/A | BN55: N/A | BO55: N/A | BP55: N/A | BQ55: N/A | BR55: N/A | BS55: N/A | BT55: N/A | BU55: N/A | BV55: N/A
C56: NATIONAL wealth index quintile | H56: URBAN wealth index quintile | M56: RURAL wealth index quintile | R56: SUB-REGIONS: | BA56: Raw numbers of respondents: | BB56: Use of drinking water sources | BC56: NATIONAL wealth index quintile | BH56: URBAN wealth index quintile | BM56: RURAL wealth index quintile | BR56: SUB-REGIONS:
A57: Percentage based on weighted population | C57: Poorest | D57: Poor | E57: Middle | F57: Rich | G57: Richest | H57: Poorest | I57: Poor | J57: Middle | K57: Rich | L57: Richest | M57: Poorest | N57: Poor | O57: Middle | P57: Rich | Q57: Richest | R57: duchanbe | S57: gbao | T57: khatlon | U57: leninabad | V57: rrp | BA57: Water data, raw numbers (weighted) | BC57: Poorest | BD57: Poor | BE57: Middle | BF57: Rich | BG57: Richest | BH57: Poorest | BI57: Poor | BJ57: Middle | BK57: Rich | BL57: Richest | BM57: Poorest | BN57: Poor | BO57: Middle | BP57: Rich | BQ57: Richest | BR57: duchanbe | BS57: gbao | BT57: khatlon | BU57: leninabad | BV57: rrp
A58: main sours of drinking water for member of your household | B58: piped into dwelling | C58: 5.326128908 | D58: 8.148718937 | E58: 10.05780347 | F58: 25.60834299 | G58: 37.35543562 | H58: 27.31277533 | I58: 51.07913669 | J58: 56.6755084 | K58: 53.09734513 | L58: 60.38903625 | M58: 3.870808679 | N58: 6.987006619 | O58: 8.49220104 | P58: 10.04453241 | Q58: 12.07658321 | R58: 72.49674902 | S58: 6.960227273 | T58: 8.697478992 | U58: 11.73811807 | V58: 23.82755607
B59: piped into yard or plot | C59: 14.39598611 | D59: 16.06626854 | E59: 22.5433526 | F59: 23.15565856 | G59: 28.14186584 | H59: 46.78414097 | I59: 29.85611511 | J59: 24.58001768 | K59: 31.0619469 | L59: 29.26613616 | M59: 13.65877712 | N59: 17.50429027 | O59: 12.97350829 | P59: 21.72191984 | Q59: 22.48404516 | R59: 18.07542263 | S59: 15.19886364 | T59: 31.71218487 | U59: 16.60046569 | V59: 11.54966502
B60: public tap | C60: 4.689309147 | D60: 7.435946831 | E60: 9.1522158 | F60: 8.613364233 | G60: 9.097918273 | H60: 6.960352423 | I60: 4.316546763 | J60: 5.216622458 | K60: 4.778761062 | L60: 3.536693192 | M60: 4.610453649 | N60: 6.545721991 | O60: 8.145580589 | P60: 9.574468085 | Q60: 14.04025528 | R60: 7.282184655 | S60: 6.107954545 | T60: 1.344537815 | U60: 18.35365018 | V60: 5.81124381
B61: tubewell/borehole with pump | C61: 3.570050174 | D61: 7.744172606 | E61: 9.826589595 | F61: 5.581305523 | G61: 3.951426369 | H61: 7.665198238 | I61: 3.237410072 | J61: 4.33244916 | K61: 2.212389381 | L61: 0.7073386384 | M61: 3.180473373 | N61: 6.71733268 | O61: 9.532062392 | P61: 8.980702622 | Q61: 5.768286696 | R61: 1.235370611 | S61: 0 | T61: 9.68487395 | U61: 1.150527325 | V61: 8.243518788
B62: protected dug well | C62: 0.3087610961 | D62: 1.753034097 | E62: 2.67822736 | F62: 1.487060641 | G62: 2.390131072 | H62: 0.8810572687 | I62: 1.258992806 | J62: 2.652519894 | K62: 0.796460177 | L62: 1.237842617 | M62: 0.2712031558 | N62: 1.397401324 | O62: 2.649170587 | P62: 1.509153884 | Q62: 3.289150712 | R62: 0 | S62: 0 | T62: 0.3571428571 | U62: 3.39679496 | V62: 2.403145936
B63: protected spring | C63: 7.603241992 | D63: 4.026199191 | E63: 2.023121387 | F63: 0.6759366551 | G63: 0.9444872783 | H63: 1.938325991 | I63: 0.4496402878 | J63: 0.3536693192 | K63: 0.3539823009 | L63: 1.414677277 | M63: 8.974358974 | N63: 4.241235597 | O63: 2.401584551 | P63: 2.028698664 | Q63: 0.6136475209 | R63: 0 | S63: 0 | T63: 1.281512605 | U63: 2.602383235 | V63: 6.990969997
B64: bottled water | C64: 0 | D64: 0 | E64: 0 | F64: 0.1544998069 | G64: 0 | H64: 0 | I64: 0.3597122302 | J64: 0.3536693192 | K64: 0 | L64: 0 | M64: 0 | N64: 0 | O64: 0 | P64: 0 | Q64: 0 | R64: 0.5201560468 | S64: 0 | T64: 0 | U64: 0 | V64: 0
B65: unprotected dug well | C65: 0.4438440756 | D65: 1.232903102 | E65: 1.040462428 | F65: 0.5986867516 | G65: 0.5397070162 | H65: 0 | I65: 1.258992806 | J65: 1.061007958 | K65: 0.3539823009 | L65: 0.3536693192 | M65: 0.2958579882 | N65: 1.078695759 | O65: 1.510274821 | P65: 1.014349332 | Q65: 0.1963672067 | R65: 0 | S65: 0 | T65: 0.3991596639 | U65: 1.561429941 | V65: 0.6990969997
B66: unprotected spring | C66: 6.966422231 | D66: 5.798497399 | E66: 3.410404624 | F66: 1.429123214 | G66: 0.3469545104 | H66: 2.114537445 | I66: 0.6294964029 | J66: 1.149425287 | K66: 0.7079646018 | L66: 0 | M66: 8.08678501 | N66: 4.731551851 | O66: 5.793513246 | P66: 2.053438892 | Q66: 1.006381934 | R66: 0 | S66: 0 | T66: 6.239495798 | U66: 3.300917683 | V66: 1.398193999
B67: pond, rever, or stream | C67: 49.11231185 | D67: 39.02908881 | E67: 35.16377649 | F67: 29.58671302 | G67: 13.95528142 | H67: 4.669603524 | I67: 5.395683453 | J67: 2.475685234 | K67: 6.017699115 | L67: 1.768346596 | M67: 50 | N67: 40.52463839 | O67: 42.60955682 | P67: 39.3369619 | Q67: 35.12518409 | R67: 0 | S67: 71.73295455 | T67: 34.95798319 | U67: 36.17312697 | V67: 31.72152636
B68: tanker-truck, vendor | C68: 3.975299112 | D68: 5.374686958 | E68: 2.485549133 | F68: 1.564310545 | G68: 2.370855821 | H68: 0 | I68: 0.5395683453 | J68: 0 | K68: 0 | L68: 0.442086649 | M68: 3.57495069 | N68: 5.908310861 | O68: 3.614756128 | P68: 3.067788224 | Q68: 3.706431026 | R68: 0.3901170351 | S68: 0 | T68: 5.325630252 | U68: 2.068209834 | V68: 2.242936207
B69: other | C69: 3.608645311 | D69: 3.390483529 | E69: 1.61849711 | F69: 1.544998069 | G69: 0.9059367772 | H69: 1.674008811 | I69: 1.618705036 | J69: 1.149425287 | K69: 0.6194690265 | L69: 0.884173298 | M69: 3.476331361 | N69: 4.36381466 | O69: 2.277791533 | P69: 0.6679861455 | Q69: 1.693667158 | R69: 0 | S69: 0 | T69: 0 | U69: 3.054376113 | V69: 5.11214681
A108: =A1026 -> Tajikistan
A109: =A1034 -> 2000
A110: Use of sanitation facilities
A111: by wealth quintile and sub-national region
A112: Notes:
A113: WHO/UNICEF JMP customised wealth index excludes water,
A114: sanitation and hygiene assets.
A115: Survey used for analysis: | B115: =A1025 -> MICS00
A116: =B1030 -> Ratio of Improved latrines based on: | B116: MICS05
A117: =B1029 -> Ratio of Shared improved based on: | B117: MICS05
A118: Flush to sewer / Septic based on: | B118: MICS05
A120: Use of sanitation facilities | C120: NATIONAL wealth index quintile | H120: URBAN wealth index quintile | M120: RURAL wealth index quintile | R120: SUB-REGIONS: | BA120: Raw numbers of respondents: | BB120: Use of sanitation facilities | BC120: NATIONAL wealth index quintile | BH120: URBAN wealth index quintile | BM120: RURAL wealth index quintile | BR120: SUB-REGIONS:
A121: Weighted percentage (used in graphs) | C121: Poorest | D121: Poor | E121: Middle | F121: Rich | G121: Richest | H121: Poorest | I121: Poor | J121: Middle | K121: Rich | L121: Richest | M121: Poorest | N121: Poor | O121: Middle | P121: Rich | Q121: Richest | R121: duchanbe | S121: gbao | T121: khatlon | U121: leninabad | V121: rrp | BA121: Sanitation data, raw numbers (weighted) | BC121: Poorest | BD121: Poor | BE121: Middle | BF121: Rich | BG121: Richest | BH121: Poorest | BI121: Poor | BJ121: Middle | BK121: Rich | BL121: Richest | BM121: Poorest | BN121: Poor | BO121: Middle | BP121: Rich | BQ121: Richest | BR121: duchanbe | BS121: gbao | BT121: khatlon | BU121: leninabad | BV121: rrp
A122: Sanitation | B122: Improved | C122: =C135+C136+C137 -> 85.7846469 | D122: =D135+D136+D137 -> 91.05141115 | E122: 93.2155471 | F122: 95.20193048 | G122: 98.23567585 | H122: 83.01192349 | I122: 96.45082901 | J122: 97.42697332 | K122: 98.63534643 | L122: 98.94144588 | M122: 85.40946878 | N122: 89.01277043 | O122: 92.75780072 | P122: 94.19216139 | Q122: 97.00115591 | R122: 74.54148132 | S122: =S135+S136+S137 -> 68.6871823 | T122: =T135+T136+T137 -> 97.92587738 | U122: =U135+U136+U137 -> 93.52193296 | V122: =V135+V136+V137 -> 91.11650441 | BA122: Sanitation | BB122: Improved | BC122: N/A | BD122: N/A | BE122: N/A | BF122: N/A | BG122: N/A | BH122: N/A | BI122: N/A | BJ122: N/A | BK122: N/A | BL122: N/A | BM122: N/A | BN122: N/A | BO122: N/A | BP122: N/A | BQ122: N/A | BR122: N/A | BS122: N/A | BT122: N/A | BU122: N/A | BV122: N/A
B123: Not Improved | C123: =100-C122 -> 14.2153531 | D123: =100-D122 -> 8.948588853 | E123: 6.784452904 | F123: 4.798069516 | G123: 1.764324152 | H123: 16.98807651 | I123: 3.549170995 | J123: 2.573026683 | K123: 1.364653566 | L123: 1.058554123 | M123: 14.59053122 | N123: 10.98722957 | O123: 7.242199285 | P123: 5.807838606 | Q123: 2.998844086 | R123: 25.45851868 | S123: =100-S122 -> 31.3128177 | T123: 2.07412262 | U123: 6.478067042 | V123: 8.883495587 | BB123: Not Improved | BC123: N/A | BD123: N/A | BE123: N/A | BF123: N/A | BG123: N/A | BH123: N/A | BI123: N/A | BJ123: N/A | BK123: N/A | BL123: N/A | BM123: N/A | BN123: N/A | BO123: N/A | BP123: N/A | BQ123: N/A | BR123: N/A | BS123: N/A | BT123: N/A | BU123: N/A | BV123: N/A
A124: Sanitation ladder | B124: Basic | C124: =C122*MICS05!C129/100 -> 83.86651666 | D124: =D122*MICS05!D129/100 -> 89.75029473 | E124: =E122*MICS05!E129/100 -> 89.62903022 | F124: =F122*MICS05!F129/100 -> 91.73283784 | G124: =G122*MICS05!G129/100 -> 94.84650792 | H124: =H122*MICS05!H129/100 -> 79.46087721 | I124: =I122*MICS05!I129/100 -> 92.3517516 | J124: =J122*MICS05!J129/100 -> 91.15909245 | K124: =K122*MICS05!K129/100 -> 95.11364651 | L124: =L122*MICS05!L129/100 -> 98.04562603 | M124: =M122*MICS05!M129/100 -> 83.88418605 | N124: =N122*MICS05!N129/100 -> 87.33667688 | O124: =O122*MICS05!O129/100 -> 90.64419477 | P124: =P122*MICS05!P129/100 -> 91.02732598 | Q124: =Q122*MICS05!Q129/100 -> 93.60507013 | R124: =R122*MICS05!R129/100 -> 72.90582833 | S124: =S122*MICS05!V129/100 -> 66.69900094 | T124: =T122*MICS05!S129/100 -> 96.13274115 | U124: =U122*MICS05!T129/100 -> 81.46248296 | V124: =V122*MICS05!U129/100 -> 88.32459859 | BA124: Sanitation ladder | BB124: Basic | BC124: N/A | BD124: N/A | BE124: N/A | BF124: N/A | BG124: N/A | BH124: N/A | BI124: N/A | BJ124: N/A | BK124: N/A | BL124: N/A | BM124: N/A | BN124: N/A | BO124: N/A | BP124: N/A | BQ124: N/A | BR124: N/A | BS124: N/A | BT124: N/A | BU124: N/A | BV124: N/A
B125: Limited | C125: =C122*MICS05!C128/100 -> 1.918130235 | D125: =D122*MICS05!D128/100 -> 1.301116412 | E125: =E122*MICS05!E128/100 -> 3.586516873 | F125: =F122*MICS05!F128/100 -> 3.469092647 | G125: =G122*MICS05!G128/100 -> 3.389167933 | H125: =H122*MICS05!H128/100 -> 3.551046279 | I125: =I122*MICS05!I128/100 -> 4.099077402 | J125: =J122*MICS05!J128/100 -> 6.267880871 | K125: =K122*MICS05!K128/100 -> 3.521699922 | L125: =L122*MICS05!L128/100 -> 0.8958198499 | M125: =M122*MICS05!M128/100 -> 1.525282731 | N125: =N122*MICS05!N128/100 -> 1.676093549 | O125: =O122*MICS05!O128/100 -> 2.113605945 | P125: =P122*MICS05!P128/100 -> 3.164835413 | Q125: =Q122*MICS05!Q128/100 -> 3.396085783 | R125: =R122*MICS05!R128/100 -> 1.635652992 | S125: =S122*MICS05!V128/100 -> 1.988181359 | T125: =T122*MICS05!S128/100 -> 1.793136231 | U125: =U122*MICS05!T128/100 -> 12.05945 | V125: =V122*MICS05!U128/100 -> 2.791905825 | BB125: Limited | BC125: N/A | BD125: N/A | BE125: N/A | BF125: N/A | BG125: N/A | BH125: N/A | BI125: N/A | BJ125: N/A | BK125: N/A | BL125: N/A | BM125: N/A | BN125: N/A | BO125: N/A | BP125: N/A | BQ125: N/A | BR125: N/A | BS125: N/A | BT125: N/A | BU125: N/A | BV125: N/A
B126: Unimproved | C126: =100-(C124+C125+C127) -> 10.54881509 | D126: =100-(D124+D125+D127) -> 8.717419522 | E126: 6.68811379 | F126: 4.547007329 | G126: 1.764324152 | H126: 16.98807651 | I126: 3.549170995 | J126: 2.573026683 | K126: 1.364653566 | L126: 1.058554123 | M126: 10.27593555 | N126: 10.4723975 | O126: 6.969854645 | P126: 5.807838606 | Q126: 2.679747375 | R126: 25.45851868 | S126: =100-(S124+S125+S127) -> 2.90372679 | T126: 1.958576401 | U126: 6.409583272 | V126: 8.825237503 | BB126: Unimproved | BC126: N/A | BD126: N/A | BE126: N/A | BF126: N/A | BG126: N/A | BH126: N/A | BI126: N/A | BJ126: N/A | BK126: N/A | BL126: N/A | BM126: N/A | BN126: N/A | BO126: N/A | BP126: N/A | BQ126: N/A | BR126: N/A | BS126: N/A | BT126: N/A | BU126: N/A | BV126: N/A
B127: Open defecation | C127: =C159 -> 3.666538016 | D127: =D159 -> 0.2311693315 | E127: 0.09633911368 | F127: 0.2510621862 | G127: 0 | H127: 0 | I127: 0 | J127: 0 | K127: 0 | L127: 0 | M127: 4.314595661 | N127: 0.5148320667 | O127: 0.2723446398 | P127: 0 | Q127: 0.3190967108 | R127: 0 | S127: =S159 -> 28.40909091 | T127: =T159 -> 0.1155462185 | U127: =U159 -> 0.06848376935 | V127: =V159 -> 0.05825808331 | BB127: Open defecation | BC127: N/A | BD127: N/A | BE127: N/A | BF127: N/A | BG127: N/A | BH127: N/A | BI127: N/A | BJ127: N/A | BK127: N/A | BL127: N/A | BM127: N/A | BN127: N/A | BO127: N/A | BP127: N/A | BQ127: N/A | BR127: N/A | BS127: N/A | BT127: N/A | BU127: N/A | BV127: N/A
A128: Shared among Improved Sanitation | B128: Yes | C128: N/A | D128: N/A | E128: N/A | F128: N/A | G128: N/A | H128: N/A | I128: N/A | J128: N/A | K128: N/A | L128: N/A | M128: N/A | N128: N/A | O128: N/A | P128: N/A | Q128: N/A | R128: N/A | S128: N/A | T128: N/A | U128: N/A | V128: N/A | BA128: Shared among improved sanitation facilities | BB128: Yes | BC128: N/A | BD128: N/A | BE128: N/A | BF128: N/A | BG128: N/A | BH128: N/A | BI128: N/A | BJ128: N/A | BK128: N/A | BL128: N/A | BM128: N/A | BN128: N/A | BO128: N/A | BP128: N/A | BQ128: N/A | BR128: N/A | BS128: N/A | BT128: N/A | BU128: N/A | BV128: N/A
B129: No | C129: N/A | D129: N/A | E129: N/A | F129: N/A | G129: N/A | H129: N/A | I129: N/A | J129: N/A | K129: N/A | L129: N/A | M129: N/A | N129: N/A | O129: N/A | P129: N/A | Q129: N/A | R129: N/A | S129: N/A | T129: N/A | U129: N/A | V129: N/A | BB129: No | BC129: N/A | BD129: N/A | BE129: N/A | BF129: N/A | BG129: N/A | BH129: N/A | BI129: N/A | BJ129: N/A | BK129: N/A | BL129: N/A | BM129: N/A | BN129: N/A | BO129: N/A | BP129: N/A | BQ129: N/A | BR129: N/A | BS129: N/A | BT129: N/A | BU129: N/A | BV129: N/A
A130: Manually calculated ratios | B130: Improved latrines
B131: Other
B132: Other
C133: NATIONAL wealth index quintile | H133: URBAN wealth index quintile | M133: RURAL wealth index quintile | R133: SUB-REGIONS: | BA133: Raw numbers of respondents: | BB133: Use of sanitation facilities | BC133: NATIONAL wealth index quintile | BH133: URBAN wealth index quintile | BM133: RURAL wealth index quintile | BR133: SUB-REGIONS:
A134: Percentage based on weighted population | C134: Poorest | D134: Poor | E134: Middle | F134: Rich | G134: Richest | H134: Poorest | I134: Poor | J134: Middle | K134: Rich | L134: Richest | M134: Poorest | N134: Poor | O134: Middle | P134: Rich | Q134: Richest | R134: duchanbe | S134: gbao | T134: khatlon | U134: leninabad | V134: rrp | BA134: Sanitation data, raw numbers (weighted) | BC134: Poorest | BD134: Poor | BE134: Middle | BF134: Rich | BG134: Richest | BH134: Poorest | BI134: Poor | BJ134: Middle | BK134: Rich | BL134: Richest | BM134: Poorest | BN134: Poor | BO134: Middle | BP134: Rich | BQ134: Richest | BR134: duchanbe | BS134: gbao | BT134: khatlon | BU134: leninabad | BV134: rrp
A135: Sanitation type | B135: Sewer connection | C135: =C153*MICS05!C130/100 -> 0 | D135: =D153*MICS05!D130/100 -> 0.04291174065 | E135: =E153*MICS05!E130/100 -> 1.753314149 | F135: =F153*MICS05!F130/100 -> 9.903790995 | G135: =G153*MICS05!G130/100 -> 20.41355697 | H135: =H153*MICS05!H130/100 -> 8.019060005 | I135: =I153*MICS05!I130/100 -> 31.98280469 | J135: =J153*MICS05!J130/100 -> 36.56433074 | K135: =K153*MICS05!K130/100 -> 32.64580497 | L135: =L153*MICS05!L130/100 -> 37.88307935 | M135: =M153*MICS05!M130/100 -> 0 | N135: =N153*MICS05!N130/100 -> 0 | O135: =O153*MICS05!O130/100 -> 0.06025183185 | P135: =P153*MICS05!P130/100 -> 0.6505622848 | Q135: =Q153*MICS05!Q130/100 -> 0.9709772698 | R135: =R153*MICS05!R130/100 -> 36.18689126 | S135: =S153*MICS05!V130/100 -> 4.615757055 | T135: =T153*MICS05!S130/100 -> 1.178362241 | U135: =U153*MICS05!T130/100 -> 1.967409606 | V135: =V153*MICS05!U130/100 -> 4.403815473 | BA135: Sanitation type | BB135: Sewer connection | BC135: N/A | BD135: N/A | BE135: N/A | BF135: N/A | BG135: N/A | BH135: N/A | BI135: N/A | BJ135: N/A | BK135: N/A | BL135: N/A | BM135: N/A | BN135: N/A | BO135: N/A | BP135: N/A | BQ135: N/A | BR135: N/A | BS135: N/A | BT135: N/A | BU135: N/A | BV135: N/A
B136: Septic tank connection | C136: =C153*MICS05!C131/100 -> 0 | D136: =D153*MICS05!D131/100 -> 0.009685419063 | E136: =E153*MICS05!E131/100 -> 0.4732865403 | F136: =F153*MICS05!F131/100 -> 2.173082733 | G136: =G153*MICS05!G131/100 -> 0.3527656278 | H136: =H153*MICS05!H131/100 -> 0 | I136: =I153*MICS05!I131/100 -> 1.087497406 | J136: =J153*MICS05!J131/100 -> 0.8817978943 | K136: =K153*MICS05!K131/100 -> 0.5238288669 | L136: =L153*MICS05!L131/100 -> 0.164374259 | M136: =M153*MICS05!M131/100 -> 0 | N136: =N153*MICS05!N131/100 -> 0 | O136: =O153*MICS05!O131/100 -> 0.01336007399 | P136: =P153*MICS05!P131/100 -> 0.189152206 | Q136: =Q153*MICS05!Q131/100 -> 0.7064435611 | R136: =R153*MICS05!R131/100 -> 0 | S136: =S153*MICS05!V131/100 -> 0.1611285734 | T136: =T153*MICS05!S131/100 -> 0.003047126284 | U136: =U153*MICS05!T131/100 -> 5.502871353 | V136: =V153*MICS05!U131/100 -> 0.05649776171 | BB136: Septic tank connection | BC136: N/A | BD136: N/A | BE136: N/A | BF136: N/A | BG136: N/A | BH136: N/A | BI136: N/A | BJ136: N/A | BK136: N/A | BL136: N/A | BM136: N/A | BN136: N/A | BO136: N/A | BP136: N/A | BQ136: N/A | BR136: N/A | BS136: N/A | BT136: N/A | BU136: N/A | BV136: N/A
B137: Improved latrines | C137: =C154+C155+(C156+C157)*(MICS05!C159/(MICS05!C159+MICS05!C160)) -> 85.7846469 | D137: =D154+D155+(D156+D157)*(MICS05!D159/(MICS05!D159+MICS05!D160)) -> 90.99881399 | E137: =E154+E155+(E156+E157)*(MICS05!E159/(MICS05!E159+MICS05!E160)) -> 90.98894641 | F137: =F154+F155+(F156+F157)*(MICS05!F159/(MICS05!F159+MICS05!F160)) -> 83.12505676 | G137: =G154+G155+(G156+G157)*(MICS05!G159/(MICS05!G159+MICS05!G160)) -> 77.46935325 | H137: =H154+H155+(H156+H157)*(MICS05!H159/(MICS05!H159+MICS05!H160)) -> 74.99286348 | I137: =I154+I155+(I156+I157)*(MICS05!I159/(MICS05!I159+MICS05!I160)) -> 63.38052691 | J137: =J154+J155+(J156+J157)*(MICS05!J159/(MICS05!J159+MICS05!J160)) -> 59.98084468 | K137: =K154+K155+(K156+K157)*(MICS05!K159/(MICS05!K159+MICS05!K160)) -> 65.4657126 | L137: =L154+L155+(L156+L157)*(MICS05!L159/(MICS05!L159+MICS05!L160)) -> 60.89399227 | M137: =M154+M155+(M156+M157)*(MICS05!M159/(MICS05!M159+MICS05!M160)) -> 85.40946878 | N137: =N154+N155+(N156+N157)*(MICS05!N159/(MICS05!N159+MICS05!N160)) -> 89.01277043 | O137: =O154+O155+(O156+O157)*(MICS05!O159/(MICS05!O159+MICS05!O160)) -> 92.68418881 | P137: =P154+P155+(P156+P157)*(MICS05!P159/(MICS05!P159+MICS05!P160)) -> 93.3524469 | Q137: =Q154+Q155+(Q156+Q157)*(MICS05!Q159/(MICS05!Q159+MICS05!Q160)) -> 95.32373508 | R137: =R154+R155+(R156+R157)*(MICS05!R159/(MICS05!R159+MICS05!R160)) -> 38.35459006 | S137: =S154+S155+(S156+S157)*(MICS05!V159/(MICS05!V159+MICS05!V160)) -> 63.91029667 | T137: =T154+T155+(T156+T157)*(MICS05!S159/(MICS05!S159+MICS05!S160)) -> 96.74446801 | U137: =U154+U155+(U156+U157)*(MICS05!T159/(MICS05!T159+MICS05!T160)) -> 86.051652 | V137: =V154+V155+(V156+V157)*(MICS05!U159/(MICS05!U159+MICS05!U160)) -> 86.65619118 | BB137: Improved latrines | BC137: N/A | BD137: N/A | BE137: N/A | BF137: N/A | BG137: N/A | BH137: N/A | BI137: N/A | BJ137: N/A | BK137: N/A | BL137: N/A | BM137: N/A | BN137: N/A | BO137: N/A | BP137: N/A | BQ137: N/A | BR137: N/A | BS137: N/A | BT137: N/A | BU137: N/A | BV137: N/A
B138: Unimproved facilities | C138: =100-(C135+C136+C137+C139) -> 10.54881509 | D138: =100-(D135+D136+D137+D139) -> 8.717419522 | E138: 6.68811379 | F138: 4.547007329 | G138: 1.764324152 | H138: 16.98807651 | I138: 3.549170995 | J138: 2.573026683 | K138: 1.364653566 | L138: 1.058554123 | M138: 10.27593555 | N138: 10.4723975 | O138: 6.969854645 | P138: 5.807838606 | Q138: 2.679747375 | R138: 25.45851868 | S138: =100-(S135+S136+S137+S139) -> 2.90372679 | T138: 1.958576401 | U138: 6.409583272 | V138: 8.825237503 | BB138: Unimproved facilities | BC138: N/A | BD138: N/A | BE138: N/A | BF138: N/A | BG138: N/A | BH138: N/A | BI138: N/A | BJ138: N/A | BK138: N/A | BL138: N/A | BM138: N/A | BN138: N/A | BO138: N/A | BP138: N/A | BQ138: N/A | BR138: N/A | BS138: N/A | BT138: N/A | BU138: N/A | BV138: N/A
B139: Open defecation | C139: =C159 -> 3.666538016 | D139: =D159 -> 0.2311693315 | E139: 0.09633911368 | F139: 0.2510621862 | G139: 0 | H139: 0 | I139: 0 | J139: 0 | K139: 0 | L139: 0 | M139: 4.314595661 | N139: 0.5148320667 | O139: 0.2723446398 | P139: 0 | Q139: 0.3190967108 | R139: 0 | S139: =S159 -> 28.40909091 | T139: 0.1155462185 | U139: 0.06848376935 | V139: 0.05825808331 | BB139: Open defecation | BC139: N/A | BD139: N/A | BE139: N/A | BF139: N/A | BG139: N/A | BH139: N/A | BI139: N/A | BJ139: N/A | BK139: N/A | BL139: N/A | BM139: N/A | BN139: N/A | BO139: N/A | BP139: N/A | BQ139: N/A | BR139: N/A | BS139: N/A | BT139: N/A | BU139: N/A | BV139: N/A
A140: Septic tank emptying practices | B140: Not emptied/treated and disposed in situ | C140: N/A | D140: N/A | E140: N/A | F140: N/A | G140: N/A | H140: N/A | I140: N/A | J140: N/A | K140: N/A | L140: N/A | M140: N/A | N140: N/A | O140: N/A | P140: N/A | Q140: N/A | R140: N/A | S140: N/A | T140: N/A | U140: N/A | V140: N/A | BA140: Septic tank emptying practices | BB140: Not emptied/treated and disposed in situ | BC140: N/A | BD140: N/A | BE140: N/A | BF140: N/A | BG140: N/A | BH140: N/A | BI140: N/A | BJ140: N/A | BK140: N/A | BL140: N/A | BM140: N/A | BN140: N/A | BO140: N/A | BP140: N/A | BQ140: N/A | BR140: N/A | BS140: N/A | BT140: N/A | BU140: N/A | BV140: N/A
B141: Emptied and buried on site | C141: N/A | D141: N/A | E141: N/A | F141: N/A | G141: N/A | H141: N/A | I141: N/A | J141: N/A | K141: N/A | L141: N/A | M141: N/A | N141: N/A | O141: N/A | P141: N/A | Q141: N/A | R141: N/A | S141: N/A | T141: N/A | U141: N/A | V141: N/A | BB141: Emptied and buried on site | BC141: N/A | BD141: N/A | BE141: N/A | BF141: N/A | BG141: N/A | BH141: N/A | BI141: N/A | BJ141: N/A | BK141: N/A | BL141: N/A | BM141: N/A | BN141: N/A | BO141: N/A | BP141: N/A | BQ141: N/A | BR141: N/A | BS141: N/A | BT141: N/A | BU141: N/A | BV141: N/A
B142: Emptied and discharged locally | C142: N/A | D142: N/A | E142: N/A | F142: N/A | G142: N/A | H142: N/A | I142: N/A | J142: N/A | K142: N/A | L142: N/A | M142: N/A | N142: N/A | O142: N/A | P142: N/A | Q142: N/A | R142: N/A | S142: N/A | T142: N/A | U142: N/A | V142: N/A | BB142: Emptied and discharged locally | BC142: N/A | BD142: N/A | BE142: N/A | BF142: N/A | BG142: N/A | BH142: N/A | BI142: N/A | BJ142: N/A | BK142: N/A | BL142: N/A | BM142: N/A | BN142: N/A | BO142: N/A | BP142: N/A | BQ142: N/A | BR142: N/A | BS142: N/A | BT142: N/A | BU142: N/A | BV142: N/A
B143: Emptied and removed offsite | C143: N/A | D143: N/A | E143: N/A | F143: N/A | G143: N/A | H143: N/A | I143: N/A | J143: N/A | K143: N/A | L143: N/A | M143: N/A | N143: N/A | O143: N/A | P143: N/A | Q143: N/A | R143: N/A | S143: N/A | T143: N/A | U143: N/A | V143: N/A | BB143: Emptied and removed offsite | BC143: N/A | BD143: N/A | BE143: N/A | BF143: N/A | BG143: N/A | BH143: N/A | BI143: N/A | BJ143: N/A | BK143: N/A | BL143: N/A | BM143: N/A | BN143: N/A | BO143: N/A | BP143: N/A | BQ143: N/A | BR143: N/A | BS143: N/A | BT143: N/A | BU143: N/A | BV143: N/A
A144: Latrine emptying practices | B144: Not emptied/treated and disposed in situ | C144: N/A | D144: N/A | E144: N/A | F144: N/A | G144: N/A | H144: N/A | I144: N/A | J144: N/A | K144: N/A | L144: N/A | M144: N/A | N144: N/A | O144: N/A | P144: N/A | Q144: N/A | R144: N/A | S144: N/A | T144: N/A | U144: N/A | V144: N/A | BA144: Latrine emptying practices | BB144: Not emptied/treated and disposed in situ | BC144: N/A | BD144: N/A | BE144: N/A | BF144: N/A | BG144: N/A | BH144: N/A | BI144: N/A | BJ144: N/A | BK144: N/A | BL144: N/A | BM144: N/A | BN144: N/A | BO144: N/A | BP144: N/A | BQ144: N/A | BR144: N/A | BS144: N/A | BT144: N/A | BU144: N/A | BV144: N/A
B145: Emptied and buried on site | C145: N/A | D145: N/A | E145: N/A | F145: N/A | G145: N/A | H145: N/A | I145: N/A | J145: N/A | K145: N/A | L145: N/A | M145: N/A | N145: N/A | O145: N/A | P145: N/A | Q145: N/A | R145: N/A | S145: N/A | T145: N/A | U145: N/A | V145: N/A | BB145: Emptied and buried on site | BC145: N/A | BD145: N/A | BE145: N/A | BF145: N/A | BG145: N/A | BH145: N/A | BI145: N/A | BJ145: N/A | BK145: N/A | BL145: N/A | BM145: N/A | BN145: N/A | BO145: N/A | BP145: N/A | BQ145: N/A | BR145: N/A | BS145: N/A | BT145: N/A | BU145: N/A | BV145: N/A
B146: Emptied and discharged locally | C146: N/A | D146: N/A | E146: N/A | F146: N/A | G146: N/A | H146: N/A | I146: N/A | J146: N/A | K146: N/A | L146: N/A | M146: N/A | N146: N/A | O146: N/A | P146: N/A | Q146: N/A | R146: N/A | S146: N/A | T146: N/A | U146: N/A | V146: N/A | BB146: Emptied and discharged locally | BC146: N/A | BD146: N/A | BE146: N/A | BF146: N/A | BG146: N/A | BH146: N/A | BI146: N/A | BJ146: N/A | BK146: N/A | BL146: N/A | BM146: N/A | BN146: N/A | BO146: N/A | BP146: N/A | BQ146: N/A | BR146: N/A | BS146: N/A | BT146: N/A | BU146: N/A | BV146: N/A
B147: Emptied and removed offsite | C147: N/A | D147: N/A | E147: N/A | F147: N/A | G147: N/A | H147: N/A | I147: N/A | J147: N/A | K147: N/A | L147: N/A | M147: N/A | N147: N/A | O147: N/A | P147: N/A | Q147: N/A | R147: N/A | S147: N/A | T147: N/A | U147: N/A | V147: N/A | BB147: Emptied and removed offsite | BC147: N/A | BD147: N/A | BE147: N/A | BF147: N/A | BG147: N/A | BH147: N/A | BI147: N/A | BJ147: N/A | BK147: N/A | BL147: N/A | BM147: N/A | BN147: N/A | BO147: N/A | BP147: N/A | BQ147: N/A | BR147: N/A | BS147: N/A | BT147: N/A | BU147: N/A | BV147: N/A
A148: Shared among improved sanitation facilities | B148: Yes | C148: N/A | D148: N/A | E148: N/A | F148: N/A | G148: N/A | H148: N/A | I148: N/A | J148: N/A | K148: N/A | L148: N/A | M148: N/A | N148: N/A | O148: N/A | P148: N/A | Q148: N/A | R148: N/A | S148: N/A | T148: N/A | U148: N/A | V148: N/A | BA148: Shared among improved sanitation facilities | BB148: Yes | BC148: N/A | BD148: N/A | BE148: N/A | BF148: N/A | BG148: N/A | BH148: N/A | BI148: N/A | BJ148: N/A | BK148: N/A | BL148: N/A | BM148: N/A | BN148: N/A | BO148: N/A | BP148: N/A | BQ148: N/A | BR148: N/A | BS148: N/A | BT148: N/A | BU148: N/A | BV148: N/A
B149: No | C149: N/A | D149: N/A | E149: N/A | F149: N/A | G149: N/A | H149: N/A | I149: N/A | J149: N/A | K149: N/A | L149: N/A | M149: N/A | N149: N/A | O149: N/A | P149: N/A | Q149: N/A | R149: N/A | S149: N/A | T149: N/A | U149: N/A | V149: N/A | BB149: No | BC149: N/A | BD149: N/A | BE149: N/A | BF149: N/A | BG149: N/A | BH149: N/A | BI149: N/A | BJ149: N/A | BK149: N/A | BL149: N/A | BM149: N/A | BN149: N/A | BO149: N/A | BP149: N/A | BQ149: N/A | BR149: N/A | BS149: N/A | BT149: N/A | BU149: N/A | BV149: N/A
B150: DK/missing | C150: N/A | D150: N/A | E150: N/A | F150: N/A | G150: N/A | H150: N/A | I150: N/A | J150: N/A | K150: N/A | L150: N/A | M150: N/A | N150: N/A | O150: N/A | P150: N/A | Q150: N/A | R150: N/A | S150: N/A | T150: N/A | U150: N/A | V150: N/A | BB150: DK/missing | BC150: N/A | BD150: N/A | BE150: N/A | BF150: N/A | BG150: N/A | BH150: N/A | BI150: N/A | BJ150: N/A | BK150: N/A | BL150: N/A | BM150: N/A | BN150: N/A | BO150: N/A | BP150: N/A | BQ150: N/A | BR150: N/A | BS150: N/A | BT150: N/A | BU150: N/A | BV150: N/A
A151: Shared among all sanitation facilities | B151: Yes | C151: N/A | D151: N/A | E151: N/A | F151: N/A | G151: N/A | H151: N/A | I151: N/A | J151: N/A | K151: N/A | L151: N/A | M151: N/A | N151: N/A | O151: N/A | P151: N/A | Q151: N/A | R151: N/A | S151: N/A | T151: N/A | U151: N/A | V151: N/A | BA151: Shared among all sanitation facilities | BB151: Yes | BC151: N/A | BD151: N/A | BE151: N/A | BF151: N/A | BG151: N/A | BH151: N/A | BI151: N/A | BJ151: N/A | BK151: N/A | BL151: N/A | BM151: N/A | BN151: N/A | BO151: N/A | BP151: N/A | BQ151: N/A | BR151: N/A | BS151: N/A | BT151: N/A | BU151: N/A | BV151: N/A
B152: No | C152: N/A | D152: N/A | E152: N/A | F152: N/A | G152: N/A | H152: N/A | I152: N/A | J152: N/A | K152: N/A | L152: N/A | M152: N/A | N152: N/A | O152: N/A | P152: N/A | Q152: N/A | R152: N/A | S152: N/A | T152: N/A | U152: N/A | V152: N/A | BB152: No | BC152: N/A | BD152: N/A | BE152: N/A | BF152: N/A | BG152: N/A | BH152: N/A | BI152: N/A | BJ152: N/A | BK152: N/A | BL152: N/A | BM152: N/A | BN152: N/A | BO152: N/A | BP152: N/A | BQ152: N/A | BR152: N/A | BS152: N/A | BT152: N/A | BU152: N/A | BV152: N/A
A153: what kind of toilet facility does your household use? | B153: flush to sewage system or septic tank | C153: 0 | D153: 0.1155846658 | E153: 3.23699422 | F153: 14.11741985 | G153: 21.22205089 | H153: 19.38325991 | I153: 35.88129496 | J153: 38.63837312 | K153: 33.45132743 | L153: 38.90362511 | M153: 0 | N153: 0 | O153: 0.1237930181 | P153: 1.063829787 | Q153: 2.06185567 | R153: 59.88296489 | S153: 4.829545455 | T153: 1.207983193 | U153: 8.533077661 | V153: 4.558695019 | BA153: what kind of toilet facility does your household use? | BB153: flush to sewage system or septic tank | BC153: 0 | BD153: 6 | BE153: 168 | BF153: 731 | BG153: 1101 | BH153: 220 | BI153: 399 | BJ153: 437 | BK153: 378 | BL153: 440 | BM153: 0 | BN153: 0 | BO153: 5 | BP153: 43 | BQ153: 84 | BR153: 921 | BS153: 34 | BT153: 115 | BU153: 623 | BV153: 313
B154: pour flush latrine (water seal type) | C154: 0.1543805481 | D154: 0.07705644385 | E154: 0.5394990366 | F154: 2.529934338 | G154: 2.814186584 | H154: 2.378854626 | I154: 6.025179856 | J154: 5.835543767 | K154: 4.778761062 | L154: 2.033598585 | M154: 0.1972386588 | N154: 0 | O154: 0.4208962615 | P154: 0.1731815933 | Q154: 1.17820324 | R154: 1.690507152 | S154: 2.130681818 | T154: 1.869747899 | U154: 0.7670182167 | V154: 0.6117098747 | BB154: pour flush latrine (water seal type) | BC154: 8 | BD154: 4 | BE154: 28 | BF154: 131 | BG154: 146 | BH154: 27 | BI154: 67 | BJ154: 66 | BK154: 54 | BL154: 23 | BM154: 8 | BN154: 0 | BO154: 17 | BP154: 7 | BQ154: 48 | BR154: 26 | BS154: 15 | BT154: 178 | BU154: 56 | BV154: 42
B155: improved pit latrine (e.g.. vip) | C155: 1.312234658 | D155: 2.8125602 | E155: 4.816955684 | F155: 6.720741599 | G155: 8.076329992 | H155: 8.105726872 | I155: 6.834532374 | J155: 8.66489832 | K155: 8.230088496 | L155: 6.012378426 | M155: 1.232741617 | N155: 2.941897524 | O155: 2.698687794 | P155: 4.997525977 | Q155: 7.92832597 | R155: 9.232769831 | S155: 16.05113636 | T155: 7.069327731 | U155: 0.8902890015 | V155: 3.466355957 | BB155: improved pit latrine (e.g.. vip) | BC155: 68 | BD155: 146 | BE155: 250 | BF155: 348 | BG155: 419 | BH155: 92 | BI155: 76 | BJ155: 98 | BK155: 93 | BL155: 68 | BM155: 50 | BN155: 120 | BO155: 109 | BP155: 202 | BQ155: 323 | BR155: 142 | BS155: 113 | BT155: 673 | BU155: 65 | BV155: 238
B156: traditional pit latrine | C156: 81.14627557 | D156: 86.51512233 | E156: 80.98265896 | F156: 68.82966396 | G156: 63.3770239 | H156: 64.5814978 | I156: 48.92086331 | J156: 43.76657825 | K156: 51.94690265 | L156: 51.98938992 | M156: 80.7199211 | N156: 85.11890169 | O156: 85.56573409 | P156: 84.04255319 | Q156: 78.66961217 | R156: 26.13784135 | S156: 47.72727273 | T156: 83.30882353 | U156: 76.03068073 | V156: 80.5563647 | BB156: traditional pit latrine | BC156: 4205 | BD156: 4491 | BE156: 4203 | BF156: 3564 | BG156: 3288 | BH156: 733 | BI156: 544 | BJ156: 495 | BK156: 587 | BL156: 588 | BM156: 3274 | BN156: 3472 | BO156: 3456 | BP156: 3397 | BQ156: 3205 | BR156: 402 | BS156: 336 | BT156: 7931 | BU156: 5551 | BV156: 5531
B157: open pit | C157: 13.35391741 | D157: 10.24850703 | E157: 10.09633911 | F157: 7.280803399 | G157: 4.414032382 | H157: 4.669603524 | I157: 1.978417266 | J157: 3.094606543 | K157: 1.150442478 | L157: 1.061007958 | M157: 13.16568047 | N157: 11.32630547 | O157: 10.74523397 | P157: 9.599208313 | Q157: 9.842906235 | R157: 2.470741222 | S157: 0.8522727273 | T157: 6.050420168 | U157: 13.71045062 | V157: 10.67579377 | BB157: open pit | BC157: 692 | BD157: 532 | BE157: 524 | BF157: 377 | BG157: 229 | BH157: 53 | BI157: 22 | BJ157: 35 | BK157: 13 | BL157: 12 | BM157: 534 | BN157: 462 | BO157: 434 | BP157: 388 | BQ157: 401 | BR157: 38 | BS157: 6 | BT157: 576 | BU157: 1001 | BV157: 733
B158: missing | C158: 0.3666538016 | D158: 0 | E158: 0.2312138728 | F158: 0.270374662 | G158: 0.09637625289 | H158: 0.8810572687 | I158: 0.3597122302 | J158: 0 | K158: 0.4424778761 | L158: 0 | M158: 0.3698224852 | N158: 0.0980632508 | O158: 0.1733102253 | P158: 0.1237011381 | Q158: 0 | R158: 0.5851755527 | S158: 0 | T158: 0.3781512605 | U158: 0 | V158: 0.07282260414 | BB158: missing | BC158: 19 | BD158: 0 | BE158: 12 | BF158: 14 | BG158: 5 | BH158: 10 | BI158: 4 | BJ158: 0 | BK158: 5 | BL158: 0 | BM158: 15 | BN158: 4 | BO158: 7 | BP158: 5 | BQ158: 0 | BR158: 9 | BS158: 0 | BT158: 36 | BU158: 0 | BV158: 5
B159: no facilities or bush or field | C159: 3.666538016 | D159: 0.2311693315 | E159: 0.09633911368 | F159: 0.2510621862 | G159: 0 | H159: 0 | I159: 0 | J159: 0 | K159: 0 | L159: 0 | M159: 4.314595661 | N159: 0.5148320667 | O159: 0.2723446398 | P159: 0 | Q159: 0.3190967108 | R159: 0 | S159: 28.40909091 | T159: 0.1155462185 | U159: 0.06848376935 | V159: 0.05825808331 | BB159: no facilities or bush or field | BC159: 190 | BD159: 12 | BE159: 5 | BF159: 13 | BG159: 0 | BH159: 0 | BI159: 0 | BJ159: 0 | BK159: 0 | BL159: 0 | BM159: 175 | BN159: 21 | BO159: 11 | BP159: 0 | BQ159: 13 | BR159: 0 | BS159: 200 | BT159: 11 | BU159: 5 | BV159: 4
BB160: Total | BC160: 5182 | BD160: 5191 | BE160: 5190 | BF160: 5178 | BG160: 5188 | BH160: 1135 | BI160: 1112 | BJ160: 1131 | BK160: 1130 | BL160: 1131 | BM160: 4056 | BN160: 4079 | BO160: 4039 | BP160: 4042 | BQ160: 4074 | BR160: 1538 | BS160: 704 | BT160: 9520 | BU160: 7301 | BV160: 6866
A208: =A1026 -> Tajikistan
A209: =A1034 -> 2000
A210: Access to hygiene facilities
A211: by wealth quintile and sub-national region
A212: Notes:
A213: WHO/UNICEF JMP customised wealth index excludes water,
A214: sanitation and hygiene assets.
A215: Survey used for analysis: | B215: =A1025 -> MICS00
A220: Access to handwashing | C220: NATIONAL wealth index quintile | H220: URBAN wealth index quintile | M220: RURAL wealth index quintile | R220: SUB-REGIONS: | BA220: Raw numbers of respondents: | BB220: Access to handwashing | BC220: NATIONAL wealth index quintile | BH220: URBAN wealth index quintile | BM220: RURAL wealth index quintile | BR220: SUB-REGIONS:
A221: Weighted percentage (used in graphs) | C221: Poorest | D221: Poor | E221: Middle | F221: Rich | G221: Richest | H221: Poorest | I221: Poor | J221: Middle | K221: Rich | L221: Richest | M221: Poorest | N221: Poor | O221: Middle | P221: Rich | Q221: Richest | R221: duchanbe | S221: gbao | T221: khatlon | U221: leninabad | V221: rrp | BA221: Hygiene data, raw numbers (weighted) | BC221: Poorest | BD221: Poor | BE221: Middle | BF221: Rich | BG221: Richest | BH221: Poorest | BI221: Poor | BJ221: Middle | BK221: Rich | BL221: Richest | BM221: Poorest | BN221: Poor | BO221: Middle | BP221: Rich | BQ221: Richest | BR221: duchanbe | BS221: gbao | BT221: khatlon | BU221: leninabad | BV221: rrp
A222: Hygiene ladder | B222: Basic | C222: N/A | D222: N/A | E222: N/A | F222: N/A | G222: N/A | H222: N/A | I222: N/A | J222: N/A | K222: N/A | L222: N/A | M222: N/A | N222: N/A | O222: N/A | P222: N/A | Q222: N/A | R222: N/A | S222: N/A | T222: N/A | U222: N/A | V222: N/A | BA222: Hygiene ladder | BB222: Basic | BC222: N/A | BD222: N/A | BE222: N/A | BF222: N/A | BG222: N/A | BH222: N/A | BI222: N/A | BJ222: N/A | BK222: N/A | BL222: N/A | BM222: N/A | BN222: N/A | BO222: N/A | BP222: N/A | BQ222: N/A | BR222: N/A | BS222: N/A | BT222: N/A | BU222: N/A | BV222: N/A
B223: Limited | C223: N/A | D223: N/A | E223: N/A | F223: N/A | G223: N/A | H223: N/A | I223: N/A | J223: N/A | K223: N/A | L223: N/A | M223: N/A | N223: N/A | O223: N/A | P223: N/A | Q223: N/A | R223: N/A | S223: N/A | T223: N/A | U223: N/A | V223: N/A | BB223: Limited | BC223: N/A | BD223: N/A | BE223: N/A | BF223: N/A | BG223: N/A | BH223: N/A | BI223: N/A | BJ223: N/A | BK223: N/A | BL223: N/A | BM223: N/A | BN223: N/A | BO223: N/A | BP223: N/A | BQ223: N/A | BR223: N/A | BS223: N/A | BT223: N/A | BU223: N/A | BV223: N/A
B224: No facility | C224: N/A | D224: N/A | E224: N/A | F224: N/A | G224: N/A | H224: N/A | I224: N/A | J224: N/A | K224: N/A | L224: N/A | M224: N/A | N224: N/A | O224: N/A | P224: N/A | Q224: N/A | R224: N/A | S224: N/A | T224: N/A | U224: N/A | V224: N/A | BB224: No facility | BC224: N/A | BD224: N/A | BE224: N/A | BF224: N/A | BG224: N/A | BH224: N/A | BI224: N/A | BJ224: N/A | BK224: N/A | BL224: N/A | BM224: N/A | BN224: N/A | BO224: N/A | BP224: N/A | BQ224: N/A | BR224: N/A | BS224: N/A | BT224: N/A | BU224: N/A | BV224: N/A
BA225: Observed handwashing place | BB225: Fixed | BC225: N/A | BD225: N/A | BE225: N/A | BF225: N/A | BG225: N/A | BH225: N/A | BI225: N/A | BJ225: N/A | BK225: N/A | BL225: N/A | BM225: N/A | BN225: N/A | BO225: N/A | BP225: N/A | BQ225: N/A | BR225: N/A | BS225: N/A | BT225: N/A | BU225: N/A | BV225: N/A
BB226: Mobile | BC226: N/A | BD226: N/A | BE226: N/A | BF226: N/A | BG226: N/A | BH226: N/A | BI226: N/A | BJ226: N/A | BK226: N/A | BL226: N/A | BM226: N/A | BN226: N/A | BO226: N/A | BP226: N/A | BQ226: N/A | BR226: N/A | BS226: N/A | BT226: N/A | BU226: N/A | BV226: N/A
BA227: Water / Soap | BB227: Water and soap | BC227: N/A | BD227: N/A | BE227: N/A | BF227: N/A | BG227: N/A | BH227: N/A | BI227: N/A | BJ227: N/A | BK227: N/A | BL227: N/A | BM227: N/A | BN227: N/A | BO227: N/A | BP227: N/A | BQ227: N/A | BR227: N/A | BS227: N/A | BT227: N/A | BU227: N/A | BV227: N/A
BB228: Water only | BC228: N/A | BD228: N/A | BE228: N/A | BF228: N/A | BG228: N/A | BH228: N/A | BI228: N/A | BJ228: N/A | BK228: N/A | BL228: N/A | BM228: N/A | BN228: N/A | BO228: N/A | BP228: N/A | BQ228: N/A | BR228: N/A | BS228: N/A | BT228: N/A | BU228: N/A | BV228: N/A
BB229: Soap only | BC229: N/A | BD229: N/A | BE229: N/A | BF229: N/A | BG229: N/A | BH229: N/A | BI229: N/A | BJ229: N/A | BK229: N/A | BL229: N/A | BM229: N/A | BN229: N/A | BO229: N/A | BP229: N/A | BQ229: N/A | BR229: N/A | BS229: N/A | BT229: N/A | BU229: N/A | BV229: N/A
BB230: Neither | BC230: N/A | BD230: N/A | BE230: N/A | BF230: N/A | BG230: N/A | BH230: N/A | BI230: N/A | BJ230: N/A | BK230: N/A | BL230: N/A | BM230: N/A | BN230: N/A | BO230: N/A | BP230: N/A | BQ230: N/A | BR230: N/A | BS230: N/A | BT230: N/A | BU230: N/A | BV230: N/A
BA259: Raw numbers of respondents: | BB259: Menstrual health and hygiene | BC259: NATIONAL wealth index quintile | BH259: URBAN wealth index quintile | BM259: RURAL wealth index quintile | BR259: SUB-REGIONS:
BA260: MHH data, raw numbers (weighted) | BC260: Poorest | BD260: Poor | BE260: Middle | BF260: Rich | BG260: Richest | BH260: Poorest | BI260: Poor | BJ260: Middle | BK260: Rich | BL260: Richest | BM260: Poorest | BN260: Poor | BO260: Middle | BP260: Rich | BQ260: Richest | BR260: duchanbe | BS260: gbao | BT260: khatlon | BU260: leninabad | BV260: rrp
BA261: Private place to wash and change | BB261: Yes | BC261: N/A | BD261: N/A | BE261: N/A | BF261: N/A | BG261: N/A | BH261: N/A | BI261: N/A | BJ261: N/A | BK261: N/A | BL261: N/A | BM261: N/A | BN261: N/A | BO261: N/A | BP261: N/A | BQ261: N/A | BR261: N/A | BS261: N/A | BT261: N/A | BU261: N/A | BV261: N/A
BB262: No | BC262: N/A | BD262: N/A | BE262: N/A | BF262: N/A | BG262: N/A | BH262: N/A | BI262: N/A | BJ262: N/A | BK262: N/A | BL262: N/A | BM262: N/A | BN262: N/A | BO262: N/A | BP262: N/A | BQ262: N/A | BR262: N/A | BS262: N/A | BT262: N/A | BU262: N/A | BV262: N/A
BB263: DK/not sure/missing | BC263: N/A | BD263: N/A | BE263: N/A | BF263: N/A | BG263: N/A | BH263: N/A | BI263: N/A | BJ263: N/A | BK263: N/A | BL263: N/A | BM263: N/A | BN263: N/A | BO263: N/A | BP263: N/A | BQ263: N/A | BR263: N/A | BS263: N/A | BT263: N/A | BU263: N/A | BV263: N/A
BA264: Use of menstrual materials | BB264: Materials reusable | BC264: N/A | BD264: N/A | BE264: N/A | BF264: N/A | BG264: N/A | BH264: N/A | BI264: N/A | BJ264: N/A | BK264: N/A | BL264: N/A | BM264: N/A | BN264: N/A | BO264: N/A | BP264: N/A | BQ264: N/A | BR264: N/A | BS264: N/A | BT264: N/A | BU264: N/A | BV264: N/A
BB265: Materials not reusable | BC265: N/A | BD265: N/A | BE265: N/A | BF265: N/A | BG265: N/A | BH265: N/A | BI265: N/A | BJ265: N/A | BK265: N/A | BL265: N/A | BM265: N/A | BN265: N/A | BO265: N/A | BP265: N/A | BQ265: N/A | BR265: N/A | BS265: N/A | BT265: N/A | BU265: N/A | BV265: N/A
BB266: No materials used | BC266: N/A | BD266: N/A | BE266: N/A | BF266: N/A | BG266: N/A | BH266: N/A | BI266: N/A | BJ266: N/A | BK266: N/A | BL266: N/A | BM266: N/A | BN266: N/A | BO266: N/A | BP266: N/A | BQ266: N/A | BR266: N/A | BS266: N/A | BT266: N/A | BU266: N/A | BV266: N/A
BB267: DK/not sure/missing | BC267: N/A | BD267: N/A | BE267: N/A | BF267: N/A | BG267: N/A | BH267: N/A | BI267: N/A | BJ267: N/A | BK267: N/A | BL267: N/A | BM267: N/A | BN267: N/A | BO267: N/A | BP267: N/A | BQ267: N/A | BR267: N/A | BS267: N/A | BT267: N/A | BU267: N/A | BV267: N/A
BA268: Use of menstrual materials with private place to wash and change | BB268: Materials reusable | BC268: N/A | BD268: N/A | BE268: N/A | BF268: N/A | BG268: N/A | BH268: N/A | BI268: N/A | BJ268: N/A | BK268: N/A | BL268: N/A | BM268: N/A | BN268: N/A | BO268: N/A | BP268: N/A | BQ268: N/A | BR268: N/A | BS268: N/A | BT268: N/A | BU268: N/A | BV268: N/A
BB269: Materials not reusable | BC269: N/A | BD269: N/A | BE269: N/A | BF269: N/A | BG269: N/A | BH269: N/A | BI269: N/A | BJ269: N/A | BK269: N/A | BL269: N/A | BM269: N/A | BN269: N/A | BO269: N/A | BP269: N/A | BQ269: N/A | BR269: N/A | BS269: N/A | BT269: N/A | BU269: N/A | BV269: N/A
BB270: No materials used | BC270: N/A | BD270: N/A | BE270: N/A | BF270: N/A | BG270: N/A | BH270: N/A | BI270: N/A | BJ270: N/A | BK270: N/A | BL270: N/A | BM270: N/A | BN270: N/A | BO270: N/A | BP270: N/A | BQ270: N/A | BR270: N/A | BS270: N/A | BT270: N/A | BU270: N/A | BV270: N/A
BA271: Awareness of menstruation before menarche | BB271: Yes | BC271: N/A | BD271: N/A | BE271: N/A | BF271: N/A | BG271: N/A | BH271: N/A | BI271: N/A | BJ271: N/A | BK271: N/A | BL271: N/A | BM271: N/A | BN271: N/A | BO271: N/A | BP271: N/A | BQ271: N/A | BR271: N/A | BS271: N/A | BT271: N/A | BU271: N/A | BV271: N/A
BB272: No | BC272: N/A | BD272: N/A | BE272: N/A | BF272: N/A | BG272: N/A | BH272: N/A | BI272: N/A | BJ272: N/A | BK272: N/A | BL272: N/A | BM272: N/A | BN272: N/A | BO272: N/A | BP272: N/A | BQ272: N/A | BR272: N/A | BS272: N/A | BT272: N/A | BU272: N/A | BV272: N/A
BB273: DK/not sure/missing | BC273: N/A | BD273: N/A | BE273: N/A | BF273: N/A | BG273: N/A | BH273: N/A | BI273: N/A | BJ273: N/A | BK273: N/A | BL273: N/A | BM273: N/A | BN273: N/A | BO273: N/A | BP273: N/A | BQ273: N/A | BR273: N/A | BS273: N/A | BT273: N/A | BU273: N/A | BV273: N/A
BA274: Participation in (all) activities during menstruation | BB274: Yes | BC274: N/A | BD274: N/A | BE274: N/A | BF274: N/A | BG274: N/A | BH274: N/A | BI274: N/A | BJ274: N/A | BK274: N/A | BL274: N/A | BM274: N/A | BN274: N/A | BO274: N/A | BP274: N/A | BQ274: N/A | BR274: N/A | BS274: N/A | BT274: N/A | BU274: N/A | BV274: N/A
BB275: No | BC275: N/A | BD275: N/A | BE275: N/A | BF275: N/A | BG275: N/A | BH275: N/A | BI275: N/A | BJ275: N/A | BK275: N/A | BL275: N/A | BM275: N/A | BN275: N/A | BO275: N/A | BP275: N/A | BQ275: N/A | BR275: N/A | BS275: N/A | BT275: N/A | BU275: N/A | BV275: N/A
BB276: DK/not sure/missing/no such activity | BC276: N/A | BD276: N/A | BE276: N/A | BF276: N/A | BG276: N/A | BH276: N/A | BI276: N/A | BJ276: N/A | BK276: N/A | BL276: N/A | BM276: N/A | BN276: N/A | BO276: N/A | BP276: N/A | BQ276: N/A | BR276: N/A | BS276: N/A | BT276: N/A | BU276: N/A | BV276: N/A
BA277: Participation in specific activities during menstruation | BB277: Did not go to school (amongst those usually attending school) | BC277: N/A | BD277: N/A | BE277: N/A | BF277: N/A | BG277: N/A | BH277: N/A | BI277: N/A | BJ277: N/A | BK277: N/A | BL277: N/A | BM277: N/A | BN277: N/A | BO277: N/A | BP277: N/A | BQ277: N/A | BR277: N/A | BS277: N/A | BT277: N/A | BU277: N/A | BV277: N/A
BB278: Did not go to work (amongst those who usually work) | BC278: N/A | BD278: N/A | BE278: N/A | BF278: N/A | BG278: N/A | BH278: N/A | BI278: N/A | BJ278: N/A | BK278: N/A | BL278: N/A | BM278: N/A | BN278: N/A | BO278: N/A | BP278: N/A | BQ278: N/A | BR278: N/A | BS278: N/A | BT278: N/A | BU278: N/A | BV278: N/A
BB279: Did not participate in social activities | BC279: N/A | BD279: N/A | BE279: N/A | BF279: N/A | BG279: N/A | BH279: N/A | BI279: N/A | BJ279: N/A | BK279: N/A | BL279: N/A | BM279: N/A | BN279: N/A | BO279: N/A | BP279: N/A | BQ279: N/A | BR279: N/A | BS279: N/A | BT279: N/A | BU279: N/A | BV279: N/A
BB280: Did not cook food | BC280: N/A | BD280: N/A | BE280: N/A | BF280: N/A | BG280: N/A | BH280: N/A | BI280: N/A | BJ280: N/A | BK280: N/A | BL280: N/A | BM280: N/A | BN280: N/A | BO280: N/A | BP280: N/A | BQ280: N/A | BR280: N/A | BS280: N/A | BT280: N/A | BU280: N/A | BV280: N/A
BB281: Did not eat with others | BC281: N/A | BD281: N/A | BE281: N/A | BF281: N/A | BG281: N/A | BH281: N/A | BI281: N/A | BJ281: N/A | BK281: N/A | BL281: N/A | BM281: N/A | BN281: N/A | BO281: N/A | BP281: N/A | BQ281: N/A | BR281: N/A | BS281: N/A | BT281: N/A | BU281: N/A | BV281: N/A
BB282: Did not bathe in regular place | BC282: N/A | BD282: N/A | BE282: N/A | BF282: N/A | BG282: N/A | BH282: N/A | BI282: N/A | BJ282: N/A | BK282: N/A | BL282: N/A | BM282: N/A | BN282: N/A | BO282: N/A | BP282: N/A | BQ282: N/A | BR282: N/A | BS282: N/A | BT282: N/A | BU282: N/A | BV282: N/A
BB283: Did not participate in other activities | BC283: N/A | BD283: N/A | BE283: N/A | BF283: N/A | BG283: N/A | BH283: N/A | BI283: N/A | BJ283: N/A | BK283: N/A | BL283: N/A | BM283: N/A | BN283: N/A | BO283: N/A | BP283: N/A | BQ283: N/A | BR283: N/A | BS283: N/A | BT283: N/A | BU283: N/A | BV283: N/A
BB284: DK/not sure/missing/no such activity | BC284: N/A | BD284: N/A | BE284: N/A | BF284: N/A | BG284: N/A | BH284: N/A | BI284: N/A | BJ284: N/A | BK284: N/A | BL284: N/A | BM284: N/A | BN284: N/A | BO284: N/A | BP284: N/A | BQ284: N/A | BR284: N/A | BS284: N/A | BT284: N/A | BU284: N/A | BV284: N/A
BA339: Raw numbers of respondents: | BB339: Basic water, sanitation and hygiene | BC339: NATIONAL wealth index quintile | BH339: URBAN wealth index quintile | BM339: RURAL wealth index quintile | BR339: SUB-REGIONS:
BA340: WatSan data, raw numbers (weighted) | BC340: Poorest | BD340: Poor | BE340: Middle | BF340: Rich | BG340: Richest | BH340: Poorest | BI340: Poor | BJ340: Middle | BK340: Rich | BL340: Richest | BM340: Poorest | BN340: Poor | BO340: Middle | BP340: Rich | BQ340: Richest | BR340: duchanbe | BS340: gbao | BT340: khatlon | BU340: leninabad | BV340: rrp
BA341: Use of Basic Water Sanitation and Hygiene | BB341: Yes | BC341: N/A | BD341: N/A | BE341: N/A | BF341: N/A | BG341: N/A | BH341: N/A | BI341: N/A | BJ341: N/A | BK341: N/A | BL341: N/A | BM341: N/A | BN341: N/A | BO341: N/A | BP341: N/A | BQ341: N/A | BR341: N/A | BS341: N/A | BT341: N/A | BU341: N/A | BV341: N/A
BB342: No | BC342: N/A | BD342: N/A | BE342: N/A | BF342: N/A | BG342: N/A | BH342: N/A | BI342: N/A | BJ342: N/A | BK342: N/A | BL342: N/A | BM342: N/A | BN342: N/A | BO342: N/A | BP342: N/A | BQ342: N/A | BR342: N/A | BS342: N/A | BT342: N/A | BU342: N/A | BV342: N/A
BA343: Use of Basic Water and Sanitation | BB343: Yes | BC343: N/A | BD343: N/A | BE343: N/A | BF343: N/A | BG343: N/A | BH343: N/A | BI343: N/A | BJ343: N/A | BK343: N/A | BL343: N/A | BM343: N/A | BN343: N/A | BO343: N/A | BP343: N/A | BQ343: N/A | BR343: N/A | BS343: N/A | BT343: N/A | BU343: N/A | BV343: N/A
BB344: No | BC344: N/A | BD344: N/A | BE344: N/A | BF344: N/A | BG344: N/A | BH344: N/A | BI344: N/A | BJ344: N/A | BK344: N/A | BL344: N/A | BM344: N/A | BN344: N/A | BO344: N/A | BP344: N/A | BQ344: N/A | BR344: N/A | BS344: N/A | BT344: N/A | BU344: N/A | BV344: N/A
BA345: Use of Basic Water and Hygiene | BB345: Yes | BC345: N/A | BD345: N/A | BE345: N/A | BF345: N/A | BG345: N/A | BH345: N/A | BI345: N/A | BJ345: N/A | BK345: N/A | BL345: N/A | BM345: N/A | BN345: N/A | BO345: N/A | BP345: N/A | BQ345: N/A | BR345: N/A | BS345: N/A | BT345: N/A | BU345: N/A | BV345: N/A
BB346: No | BC346: N/A | BD346: N/A | BE346: N/A | BF346: N/A | BG346: N/A | BH346: N/A | BI346: N/A | BJ346: N/A | BK346: N/A | BL346: N/A | BM346: N/A | BN346: N/A | BO346: N/A | BP346: N/A | BQ346: N/A | BR346: N/A | BS346: N/A | BT346: N/A | BU346: N/A | BV346: N/A
BA347: Use of Basic Sanitation and Hygiene | BB347: Yes | BC347: N/A | BD347: N/A | BE347: N/A | BF347: N/A | BG347: N/A | BH347: N/A | BI347: N/A | BJ347: N/A | BK347: N/A | BL347: N/A | BM347: N/A | BN347: N/A | BO347: N/A | BP347: N/A | BQ347: N/A | BR347: N/A | BS347: N/A | BT347: N/A | BU347: N/A | BV347: N/A
BB348: No | BC348: N/A | BD348: N/A | BE348: N/A | BF348: N/A | BG348: N/A | BH348: N/A | BI348: N/A | BJ348: N/A | BK348: N/A | BL348: N/A | BM348: N/A | BN348: N/A | BO348: N/A | BP348: N/A | BQ348: N/A | BR348: N/A | BS348: N/A | BT348: N/A | BU348: N/A | BV348: N/A
BA349: Use of Basic Water | BB349: Yes | BC349: N/A | BD349: N/A | BE349: N/A | BF349: N/A | BG349: N/A | BH349: N/A | BI349: N/A | BJ349: N/A | BK349: N/A | BL349: N/A | BM349: N/A | BN349: N/A | BO349: N/A | BP349: N/A | BQ349: N/A | BR349: N/A | BS349: N/A | BT349: N/A | BU349: N/A | BV349: N/A
BB350: No | BC350: N/A | BD350: N/A | BE350: N/A | BF350: N/A | BG350: N/A | BH350: N/A | BI350: N/A | BJ350: N/A | BK350: N/A | BL350: N/A | BM350: N/A | BN350: N/A | BO350: N/A | BP350: N/A | BQ350: N/A | BR350: N/A | BS350: N/A | BT350: N/A | BU350: N/A | BV350: N/A
BA351: Use of Basic Sanitation | BB351: Yes | BC351: N/A | BD351: N/A | BE351: N/A | BF351: N/A | BG351: N/A | BH351: N/A | BI351: N/A | BJ351: N/A | BK351: N/A | BL351: N/A | BM351: N/A | BN351: N/A | BO351: N/A | BP351: N/A | BQ351: N/A | BR351: N/A | BS351: N/A | BT351: N/A | BU351: N/A | BV351: N/A
BB352: No | BC352: N/A | BD352: N/A | BE352: N/A | BF352: N/A | BG352: N/A | BH352: N/A | BI352: N/A | BJ352: N/A | BK352: N/A | BL352: N/A | BM352: N/A | BN352: N/A | BO352: N/A | BP352: N/A | BQ352: N/A | BR352: N/A | BS352: N/A | BT352: N/A | BU352: N/A | BV352: N/A
BA353: Access to Basic Hygiene | BB353: Yes | BC353: N/A | BD353: N/A | BE353: N/A | BF353: N/A | BG353: N/A | BH353: N/A | BI353: N/A | BJ353: N/A | BK353: N/A | BL353: N/A | BM353: N/A | BN353: N/A | BO353: N/A | BP353: N/A | BQ353: N/A | BR353: N/A | BS353: N/A | BT353: N/A | BU353: N/A | BV353: N/A
BB354: No | BC354: N/A | BD354: N/A | BE354: N/A | BF354: N/A | BG354: N/A | BH354: N/A | BI354: N/A | BJ354: N/A | BK354: N/A | BL354: N/A | BM354: N/A | BN354: N/A | BO354: N/A | BP354: N/A | BQ354: N/A | BR354: N/A | BS354: N/A | BT354: N/A | BU354: N/A | BV354: N/A
C399: INITIAL (national) Wealth Index | H399: URBAN Wealth Index | M399: RURAL Wealth Index
C400: Component Matrix | H400: Component Matrix | M400: Component Matrix
E401: Component | J401: Component | O401: Component
B402: Note: The INITIAL (national) Wealth Index is based on the first component of the Principal Component Analysis (PCA) which has been obtained at national level. The final national-level (NATIONAL) Wealth Index is based on the URBAN and RURAL specific wealth indexes. Regression procedures are used to establish the relationships between the two sets of scores (urban and rural) and the initial (national) wealth factors. This allows best use of the available information for each area and a better precision of the FINAL (NATIONAL) Wealth Index. For dependency reasons, all WASH variables (contained in the generic MICS and DHS scripts) have been excluded from the sets of asset variables used in the PCAs. The PCA can extracts as many components as there are asset variables in the input. Only the first of the components is used to represent the Wealth Index. The scores represent the weights of the asset variables on the Wealth Index (correlations between the variables and the component). The communalities are the proportion of each variable's variance that can be explained by the component. Proportion of explained variance is the part of the model's total variance that is explained by the component. For more information on the procedure used: The DHS Wealth Index, DHS Comparative Reports No. 6, Shea Oscar Rutstein, Kiersten Johnson, ORC Macro International Inc., 2004. The DHS Wealth Index: Approaches for Rural and Urban Areas, Shea O. Rutstein, ORC Macro International Inc., 2008. MICS Methodological Paper No. 4, Review of options for reporting water, sanitation and hygiene coverage by wealth quintile, UNICEF, 2016. | E402: 1 | J402: 1 | O402: 1
C403: Has earth/sand floor | E403: -0.8042789759 | H403: Household has: refrigerator | J403: 0.6003396679 | M403: Has earth/sand floor | O403: -0.778944154
C404: Has wood floor | E404: 0.7660450533 | H404: Household fuel type: electricity | J404: -0.5801067516 | M404: Has wood floor | O404: 0.7728458798
C405: Household has: refrigerator | E405: 0.6854605021 | H405: Household fuel type: LPG | J405: 0.5334660164 | M405: Household has: refrigerator | O405: 0.6402593392
C406: Household has: television | E406: 0.5572605846 | H406: Household has: television | J406: 0.5309630953 | M406: Household has: television | O406: 0.5300065203
C407: Household fuel type: LPG | E407: 0.3965343893 | H407: Has wood floor | J407: 0.4704080191 | M407: Household member owns: car/truck | O407: 0.425677818
C408: Household has: radio | E408: 0.3457788972 | H408: Has earth/sand floor | J408: -0.4535895468 | M408: Household member owns: bicycle | O408: 0.4107163993
C409: Persons per sleeping rooms | E409: -0.3319161371 | H409: Household has: radio | J409: 0.4434577075 | M409: Household has: radio | O409: 0.351852784
C410: Household member owns: car/truck | E410: 0.3284107225 | H410: Household member owns: car/truck | J410: 0.3534088492 | M410: Persons per sleeping rooms | O410: -0.2717466124
C411: Household fuel type: wood | E411: -0.2932560269 | H411: Persons per sleeping rooms | J411: -0.3359926939 | M411: Household has: electricity | O411: 0.2259121261
C412: Household fuel type: electricity | E412: 0.2909892678 | H412: Household member owns: bicycle | J412: 0.1952229748 | M412: Household fuel type: animal dung | O412: -0.2171088495
C413: Household fuel type: animal dung | E413: -0.2837448594 | H413: Has cement floor | J413: -0.176185202 | M413: Household fuel type: electricity | O413: 0.1917377174
C414: Household member owns: bicycle | E414: 0.2803353225 | H414: Household fuel type: charcoal | J414: 0.08250676094 | M414: Household member owns: motorcycle/scooter | O414: 0.1906798457
C415: Household has: electricity | E415: 0.2249179159 | H415: Household fuel type: wood | J415: 0.07274542288 | M415: Household fuel type: LPG | O415: 0.132200628
C416: Has cement floor | E416: 0.0824756581 | H416: Household fuel type: natural gas | J416: 0.04834664225 | M416: Household fuel type: coal/lignite | O416: -0.05580706663
C417: Household member owns: motorcycle/scooter | E417: 0.05747369809 | H417: Household has: electricity | J417: 0.01255382387 | M417: Has cement floor | O417: 0.03826678666
C418: Household fuel type: coal/lignite | E418: -0.04932604785 | H418: Household fuel type: animal dung | J418: 0.006697496549 | M418: Household fuel type: Other | O418: -0.03077212703
C419: Household fuel type: natural gas | E419: 0.02972578305 | H419: Household member owns: motorcycle/scooter | J419: -0.004448149901 | M419: Household fuel type: charcoal | O419: -0.01769420667
... 113 more rows

Sheet PMS02
A2: =A1026 -> Tajikistan
A3: =A1034 -> 2002
A4: Use of drinking water sources
A5: by wealth quintile and sub-national region
A6: Notes:
A7: WHO/UNICEF JMP customised wealth index excludes water,
A8: sanitation and hygiene assets.
A9: Survey used for analysis: | B9: =A1025 -> PMS02
A10: =B1028 -> 
A11: =B1027 -> Time to improved source based on: | B11: DHS12
A12: Ratio of improved springs based on: | B12: DHS12
A14: Use of drinking water sources | C14: NATIONAL wealth index quintile | H14: URBAN wealth index quintile | M14: RURAL wealth index quintile | R14: SUB-REGIONS: | BA14: Raw numbers of respondents: | BB14: Use of drinking water sources | BC14: NATIONAL wealth index quintile | BH14: URBAN wealth index quintile | BM14: RURAL wealth index quintile | BR14: SUB-REGIONS:
A15: Weighted percentage (used in graphs) | C15: Poorest | D15: Poor | E15: Middle | F15: Rich | G15: Richest | H15: Poorest | I15: Poor | J15: Middle | K15: Rich | L15: Richest | M15: Poorest | N15: Poor | O15: Middle | P15: Rich | Q15: Richest | R15: DUSHANBE | S15: GBAO | T15: KAHTLON | U15: RRS | V15: SOGDIAN | BA15: Water data, raw numbers (weighted) | BC15: Poorest | BD15: Poor | BE15: Middle | BF15: Rich | BG15: Richest | BH15: Poorest | BI15: Poor | BJ15: Middle | BK15: Rich | BL15: Richest | BM15: Poorest | BN15: Poor | BO15: Middle | BP15: Rich | BQ15: Richest | BR15: DUSHANBE | BS15: GBAO | BT15: KAHTLON | BU15: RRS | BV15: SOGDIAN
A16: Water | B16: Improved | C16: =C58+C59+C60+C61+C65+C63*'DHS12'!C25/100 -> 45.99825974 | D16: =D58+D59+D60+D61+D65+D63*'DHS12'!D25/100 -> 51.77132329 | E16: =E58+E59+E60+E61+E65+E63*'DHS12'!E25/100 -> 58.48872499 | F16: =F58+F59+F60+F61+F65+F63*'DHS12'!F25/100 -> 73.28242382 | G16: =G58+G59+G60+G61+G65+G63*'DHS12'!G25/100 -> 94.94113409 | H16: =H58+H59+H60+H61+H65+H63*'DHS12'!H25/100 -> 79.90842987 | I16: =I58+I59+I60+I61+I65+I63*'DHS12'!I25/100 -> 92.32845355 | J16: =J58+J59+J60+J61+J65+J63*'DHS12'!J25/100 -> 96.58530013 | K16: =K58+K59+K60+K61+K65+K63*'DHS12'!K25/100 -> 99.47426644 | L16: =L58+L59+L60+L61+L65+L63*'DHS12'!L25/100 -> 100 | M16: =M58+M59+M60+M61+M65+M63*'DHS12'!M25/100 -> 44.44365676 | N16: =N58+N59+N60+N61+N65+N63*'DHS12'!N25/100 -> 50.1505539 | O16: =O58+O59+O60+O61+O65+O63*'DHS12'!O25/100 -> 54.42186267 | P16: =P58+P59+P60+P61+P65+P63*'DHS12'!P25/100 -> 57.49932271 | Q16: =Q58+Q59+Q60+Q61+Q65+Q63*'DHS12'!Q25/100 -> 65.64972597 | R16: =R58+R59+R60+R61+R65+R63*'DHS12'!U25/100 -> 99.95013712 | S16: =S58+S59+S60+S61+S65+S63*'DHS12'!R25/100 -> 44.3504741 | T16: =T58+T59+T60+T61+T65+T63*'DHS12'!T25/100 -> 56.03387958 | U16: =U58+U59+U60+U61+U65+U63*'DHS12'!V25/100 -> 65.24311533 | V16: =V58+V59+V60+V61+V65+V63*'DHS12'!S25/100 -> 64.05204825 | BA16: Water | BB16: Improved | BC16: N/A | BD16: N/A | BE16: N/A | BF16: N/A | BG16: N/A | BH16: N/A | BI16: N/A | BJ16: N/A | BK16: N/A | BL16: N/A | BM16: N/A | BN16: N/A | BO16: N/A | BP16: N/A | BQ16: N/A | BR16: N/A | BS16: N/A | BT16: N/A | BU16: N/A | BV16: N/A
B17: Not Improved | C17: =C62+C64+C66+C63*(100-'DHS12'!C25)/100 -> 54.00174026 | D17: =D62+D64+D66+D63*(100-'DHS12'!D25)/100 -> 48.22867671 | E17: =E62+E64+E66+E63*(100-'DHS12'!E25)/100 -> 41.51127501 | F17: =F62+F64+F66+F63*(100-'DHS12'!F25)/100 -> 26.71757618 | G17: =G62+G64+G66+G63*(100-'DHS12'!G25)/100 -> 5.058865905 | H17: =H62+H64+H66+H63*(100-'DHS12'!H25)/100 -> 20.09157013 | I17: =I62+I64+I66+I63*(100-'DHS12'!I25)/100 -> 7.671546449 | J17: =J62+J64+J66+J63*(100-'DHS12'!J25)/100 -> 3.414699868 | K17: =K62+K64+K66+K63*(100-'DHS12'!K25)/100 -> 0.5257335574 | L17: =L62+L64+L66+L63*(100-'DHS12'!L25)/100 -> 0 | M17: =M62+M64+M66+M63*(100-'DHS12'!M25)/100 -> 55.55634324 | N17: =N62+N64+N66+N63*(100-'DHS12'!N25)/100 -> 49.8494461 | O17: =O62+O64+O66+O63*(100-'DHS12'!O25)/100 -> 45.57813733 | P17: =P62+P64+P66+P63*(100-'DHS12'!P25)/100 -> 42.50067729 | Q17: =Q62+Q64+Q66+Q63*(100-'DHS12'!Q25)/100 -> 34.35027403 | R17: =R62+R64+R66+R63*(100-'DHS12'!U25)/100 -> 0.04986287709 | S17: =S62+S64+S66+S63*(100-'DHS12'!R25)/100 -> 55.6495259 | T17: =T62+T64+T66+T63*(100-'DHS12'!T25)/100 -> 43.96612042 | U17: =U62+U64+U66+U63*(100-'DHS12'!V25)/100 -> 34.75688467 | V17: =V62+V64+V66+V63*(100-'DHS12'!S25)/100 -> 35.94795175 | BB17: Not Improved | BC17: N/A | BD17: N/A | BE17: N/A | BF17: N/A | BG17: N/A | BH17: N/A | BI17: N/A | BJ17: N/A | BK17: N/A | BL17: N/A | BM17: N/A | BN17: N/A | BO17: N/A | BP17: N/A | BQ17: N/A | BR17: N/A | BS17: N/A | BT17: N/A | BU17: N/A | BV17: N/A
A18: Water ladder | B18: Basic | C18: =C16*'DHS12'!C23/100 -> 40.55413587 | D18: =D16*'DHS12'!D23/100 -> 48.51762825 | E18: =E16*'DHS12'!E23/100 -> 55.60852345 | F18: =F16*'DHS12'!F23/100 -> 71.69479029 | G18: =G16*'DHS12'!G23/100 -> 93.87676479 | H18: =H16*'DHS12'!H23/100 -> 77.55150787 | I18: =I16*'DHS12'!I23/100 -> 90.15366053 | J18: =J16*'DHS12'!J23/100 -> 94.96173517 | K18: =K16*'DHS12'!K23/100 -> 99.05229694 | L18: =L16*'DHS12'!L23/100 -> 99.56263985 | M18: =M16*'DHS12'!M23/100 -> 39.21584999 | N18: =N16*'DHS12'!N23/100 -> 45.76457119 | O18: =O16*'DHS12'!O23/100 -> 52.12339589 | P18: =P16*'DHS12'!P23/100 -> 53.60714176 | Q18: =Q16*'DHS12'!Q23/100 -> 64.95725599 | R18: =R16*'DHS12'!U23/100 -> 88.1367363 | S18: =S16*'DHS12'!R23/100 -> 43.34840296 | T18: =T16*'DHS12'!T23/100 -> 55.56767617 | U18: =U16*'DHS12'!V23/100 -> 63.73055737 | V18: =V16*'DHS12'!S23/100 -> 63.97818095 | BA18: Water ladder | BB18: Basic | BC18: N/A | BD18: N/A | BE18: N/A | BF18: N/A | BG18: N/A | BH18: N/A | BI18: N/A | BJ18: N/A | BK18: N/A | BL18: N/A | BM18: N/A | BN18: N/A | BO18: N/A | BP18: N/A | BQ18: N/A | BR18: N/A | BS18: N/A | BT18: N/A | BU18: N/A | BV18: N/A
B19: Limited | C19: =C16*'DHS12'!C22/100 -> 5.444123875 | D19: =D16*'DHS12'!D22/100 -> 3.253695035 | E19: =E16*'DHS12'!E22/100 -> 2.880201536 | F19: =F16*'DHS12'!F22/100 -> 1.587633538 | G19: =G16*'DHS12'!G22/100 -> 1.064369302 | H19: =H16*'DHS12'!H22/100 -> 2.356922003 | I19: =I16*'DHS12'!I22/100 -> 2.174793022 | J19: =J16*'DHS12'!J22/100 -> 1.623564959 | K19: =K16*'DHS12'!K22/100 -> 0.4219695051 | L19: =L16*'DHS12'!L22/100 -> 0.4373601467 | M19: =M16*'DHS12'!M22/100 -> 5.227806769 | N19: =N16*'DHS12'!N22/100 -> 4.38598271 | O19: =O16*'DHS12'!O22/100 -> 2.298466777 | P19: =P16*'DHS12'!P22/100 -> 3.892180941 | Q19: =Q16*'DHS12'!Q22/100 -> 0.6924699835 | R19: =R16*'DHS12'!U22/100 -> 11.81340082 | S19: =S16*'DHS12'!R22/100 -> 1.002071146 | T19: =T16*'DHS12'!T22/100 -> 0.4662034077 | U19: =U16*'DHS12'!V22/100 -> 1.512557964 | V19: =V16*'DHS12'!S22/100 -> 0.07386730054 | BB19: Limited | BC19: N/A | BD19: N/A | BE19: N/A | BF19: N/A | BG19: N/A | BH19: N/A | BI19: N/A | BJ19: N/A | BK19: N/A | BL19: N/A | BM19: N/A | BN19: N/A | BO19: N/A | BP19: N/A | BQ19: N/A | BR19: N/A | BS19: N/A | BT19: N/A | BU19: N/A | BV19: N/A
B20: Unimproved | C20: =100-(C18+C19+C21) -> 15.59693915 | D20: =100-(D18+D19+D21) -> 5.947927322 | E20: 5.040650772 | F20: 3.565394354 | G20: 0.5284890923 | H20: 4.796733207 | I20: 0.2627322439 | J20: 0.1071628556 | K20: -1.563194019e-13 | L20: 0 | M20: 16.73598406 | N20: 7.92733563 | O20: 4.985597711 | P20: 4.765393255 | Q20: 5.04679677 | R20: =100-(R18+R19+R21) -> 0 | S20: 15.14239712 | T20: =100-(T18+T19+T21) -> 5.755293906 | U20: =100-(U18+U19+U21) -> 8.364228826 | V20: 7.410458718 | BB20: Unimproved | BC20: N/A | BD20: N/A | BE20: N/A | BF20: N/A | BG20: N/A | BH20: N/A | BI20: N/A | BJ20: N/A | BK20: N/A | BL20: N/A | BM20: N/A | BN20: N/A | BO20: N/A | BP20: N/A | BQ20: N/A | BR20: N/A | BS20: N/A | BT20: N/A | BU20: N/A | BV20: N/A
B21: Surface water | C21: =C64 -> 38.40480111 | D21: 42.28074939 | E21: 36.47062424 | F21: 23.15218182 | G21: 4.530376813 | H21: 15.29483692 | I21: 7.408814205 | J21: 3.307537013 | K21: 0.5257335574 | L21: 0 | M21: 38.82035918 | N21: 41.92211047 | O21: 40.59253962 | P21: 37.73528404 | Q21: 29.30347726 | R21: 0.04986287709 | S21: 40.50712878 | T21: 38.21082651 | U21: 26.39265584 | V21: 28.53749303 | BB21: Surface water | BC21: N/A | BD21: N/A | BE21: N/A | BF21: N/A | BG21: N/A | BH21: N/A | BI21: N/A | BJ21: N/A | BK21: N/A | BL21: N/A | BM21: N/A | BN21: N/A | BO21: N/A | BP21: N/A | BQ21: N/A | BR21: N/A | BS21: N/A | BT21: N/A | BU21: N/A | BV21: N/A
A22: Improved water point at more than 30 minutes | B22: Yes | C22: N/A | D22: N/A | E22: N/A | F22: N/A | G22: N/A | H22: N/A | I22: N/A | J22: N/A | K22: N/A | L22: N/A | M22: N/A | N22: N/A | O22: N/A | P22: N/A | Q22: N/A | R22: N/A | S22: N/A | T22: N/A | U22: N/A | V22: N/A | BA22: Improved water point at more than 30 minutes | BB22: Yes | BC22: N/A | BD22: N/A | BE22: N/A | BF22: N/A | BG22: N/A | BH22: N/A | BI22: N/A | BJ22: N/A | BK22: N/A | BL22: N/A | BM22: N/A | BN22: N/A | BO22: N/A | BP22: N/A | BQ22: N/A | BR22: N/A | BS22: N/A | BT22: N/A | BU22: N/A | BV22: N/A
B23: No | C23: N/A | D23: N/A | E23: N/A | F23: N/A | G23: N/A | H23: N/A | I23: N/A | J23: N/A | K23: N/A | L23: N/A | M23: N/A | N23: N/A | O23: N/A | P23: N/A | Q23: N/A | R23: N/A | S23: N/A | T23: N/A | U23: N/A | V23: N/A | BB23: No | BC23: N/A | BD23: N/A | BE23: N/A | BF23: N/A | BG23: N/A | BH23: N/A | BI23: N/A | BJ23: N/A | BK23: N/A | BL23: N/A | BM23: N/A | BN23: N/A | BO23: N/A | BP23: N/A | BQ23: N/A | BR23: N/A | BS23: N/A | BT23: N/A | BU23: N/A | BV23: N/A
A24: Manually calculated ratios | B24: Improved wells
B25: Improved springs
B26: Other
C27: NATIONAL wealth index quintile | H27: URBAN wealth index quintile | M27: RURAL wealth index quintile | R27: SUB-REGIONS: | BA27: Raw numbers of respondents: | BB27: Use of drinking water sources | BC27: NATIONAL wealth index quintile | BH27: URBAN wealth index quintile | BM27: RURAL wealth index quintile | BR27: SUB-REGIONS:
A28: Percentage based on weighted population | C28: Poorest | D28: Poor | E28: Middle | F28: Rich | G28: Richest | H28: Poorest | I28: Poor | J28: Middle | K28: Rich | L28: Richest | M28: Poorest | N28: Poor | O28: Middle | P28: Rich | Q28: Richest | R28: DUSHANBE | S28: GBAO | T28: KAHTLON | U28: RRS | V28: SOGDIAN | BA28: Water data, raw numbers (weighted) | BC28: Poorest | BD28: Poor | BE28: Middle | BF28: Rich | BG28: Richest | BH28: Poorest | BI28: Poor | BJ28: Middle | BK28: Rich | BL28: Richest | BM28: Poorest | BN28: Poor | BO28: Middle | BP28: Rich | BQ28: Richest | BR28: DUSHANBE | BS28: GBAO | BT28: KAHTLON | BU28: RRS | BV28: SOGDIAN
A29: Piped water | B29: Yes | C29: 21.57114782 | D29: 34.0293264 | E29: 42.65168388 | F29: 58.31269909 | G29: 93.40207824 | H29: 67.21431187 | I29: 84.99982496 | J29: 95.57823574 | K29: 99.47426644 | L29: 100 | M29: 19.81402673 | N29: 29.30989438 | O29: 37.30470294 | P29: 41.29260311 | Q29: 49.64901799 | R29: 99.07753677 | S29: 25.30173456 | T29: 35.04536134 | U29: 50.53377236 | V29: 53.09193596 | BA29: Piped water | BB29: Yes | BC29: N/A | BD29: N/A | BE29: N/A | BF29: N/A | BG29: N/A | BH29: N/A | BI29: N/A | BJ29: N/A | BK29: N/A | BL29: N/A | BM29: N/A | BN29: N/A | BO29: N/A | BP29: N/A | BQ29: N/A | BR29: N/A | BS29: N/A | BT29: N/A | BU29: N/A | BV29: N/A
B30: No | C30: 78.42885218 | D30: 65.9706736 | E30: 57.34831612 | F30: 41.68730091 | G30: 6.597921762 | H30: 32.78568813 | I30: 15.00017504 | J30: 4.421764258 | K30: 0.5257335574 | L30: 0 | M30: 80.18597327 | N30: 70.69010562 | O30: 62.69529706 | P30: 58.70739689 | Q30: 50.35098201 | R30: 0.9224632261 | S30: 74.69826544 | T30: 64.95463866 | U30: 49.46622764 | V30: 46.90806404 | BB30: No | BC30: N/A | BD30: N/A | BE30: N/A | BF30: N/A | BG30: N/A | BH30: N/A | BI30: N/A | BJ30: N/A | BK30: N/A | BL30: N/A | BM30: N/A | BN30: N/A | BO30: N/A | BP30: N/A | BQ30: N/A | BR30: N/A | BS30: N/A | BT30: N/A | BU30: N/A | BV30: N/A
A31: Piped water on premises | B31: Yes | C31: 8.863573318 | D31: 12.01423377 | E31: 17.50815155 | F31: 38.4736785 | G31: 81.99243483 | H31: 51.48806548 | I31: 65.88710768 | J31: 83.02732973 | K31: 82.06027698 | L31: 98.93975103 | M31: 7.212604171 | N31: 11.23305224 | O31: 12.06170531 | P31: 16.50897286 | Q31: 29.9398381 | R31: 95.88631264 | S31: 16.64092304 | T31: 17.62962858 | U31: 36.83320457 | V31: 25.51861689 | BA31: Piped water on premises | BB31: Yes | BC31: N/A | BD31: N/A | BE31: N/A | BF31: N/A | BG31: N/A | BH31: N/A | BI31: N/A | BJ31: N/A | BK31: N/A | BL31: N/A | BM31: N/A | BN31: N/A | BO31: N/A | BP31: N/A | BQ31: N/A | BR31: N/A | BS31: N/A | BT31: N/A | BU31: N/A | BV31: N/A
B32: No | C32: 91.13642668 | D32: 87.98576623 | E32: 82.49184845 | F32: 61.5263215 | G32: 18.00756517 | H32: 48.51193452 | I32: 34.11289232 | J32: 16.97267027 | K32: 17.93972302 | L32: 1.060248969 | M32: 92.78739583 | N32: 88.76694776 | O32: 87.93829469 | P32: 83.49102714 | Q32: 70.0601619 | R32: 4.11368736 | S32: 83.35907696 | T32: 82.37037142 | U32: 63.16679543 | V32: 74.48138311 | BB32: No | BC32: N/A | BD32: N/A | BE32: N/A | BF32: N/A | BG32: N/A | BH32: N/A | BI32: N/A | BJ32: N/A | BK32: N/A | BL32: N/A | BM32: N/A | BN32: N/A | BO32: N/A | BP32: N/A | BQ32: N/A | BR32: N/A | BS32: N/A | BT32: N/A | BU32: N/A | BV32: N/A
A33: Piped water into dwelling | B33: Yes | C33: N/A | D33: N/A | E33: N/A | F33: N/A | G33: N/A | H33: N/A | I33: N/A | J33: N/A | K33: N/A | L33: N/A | M33: N/A | N33: N/A | O33: N/A | P33: N/A | Q33: N/A | R33: N/A | S33: N/A | T33: N/A | U33: N/A | V33: N/A | BA33: Piped water into dwelling | BB33: Yes | BC33: N/A | BD33: N/A | BE33: N/A | BF33: N/A | BG33: N/A | BH33: N/A | BI33: N/A | BJ33: N/A | BK33: N/A | BL33: N/A | BM33: N/A | BN33: N/A | BO33: N/A | BP33: N/A | BQ33: N/A | BR33: N/A | BS33: N/A | BT33: N/A | BU33: N/A | BV33: N/A
B34: No | C34: N/A | D34: N/A | E34: N/A | F34: N/A | G34: N/A | H34: N/A | I34: N/A | J34: N/A | K34: N/A | L34: N/A | M34: N/A | N34: N/A | O34: N/A | P34: N/A | Q34: N/A | R34: N/A | S34: N/A | T34: N/A | U34: N/A | V34: N/A | BB34: No | BC34: N/A | BD34: N/A | BE34: N/A | BF34: N/A | BG34: N/A | BH34: N/A | BI34: N/A | BJ34: N/A | BK34: N/A | BL34: N/A | BM34: N/A | BN34: N/A | BO34: N/A | BP34: N/A | BQ34: N/A | BR34: N/A | BS34: N/A | BT34: N/A | BU34: N/A | BV34: N/A
A35: Water source on premises | B35: Yes | C35: N/A | D35: N/A | E35: N/A | F35: N/A | G35: N/A | H35: N/A | I35: N/A | J35: N/A | K35: N/A | L35: N/A | M35: N/A | N35: N/A | O35: N/A | P35: N/A | Q35: N/A | R35: N/A | S35: N/A | T35: N/A | U35: N/A | V35: N/A | BA35: Water source on premises | BB35: Yes | BC35: N/A | BD35: N/A | BE35: N/A | BF35: N/A | BG35: N/A | BH35: N/A | BI35: N/A | BJ35: N/A | BK35: N/A | BL35: N/A | BM35: N/A | BN35: N/A | BO35: N/A | BP35: N/A | BQ35: N/A | BR35: N/A | BS35: N/A | BT35: N/A | BU35: N/A | BV35: N/A
B36: No | C36: N/A | D36: N/A | E36: N/A | F36: N/A | G36: N/A | H36: N/A | I36: N/A | J36: N/A | K36: N/A | L36: N/A | M36: N/A | N36: N/A | O36: N/A | P36: N/A | Q36: N/A | R36: N/A | S36: N/A | T36: N/A | U36: N/A | V36: N/A | BB36: No | BC36: N/A | BD36: N/A | BE36: N/A | BF36: N/A | BG36: N/A | BH36: N/A | BI36: N/A | BJ36: N/A | BK36: N/A | BL36: N/A | BM36: N/A | BN36: N/A | BO36: N/A | BP36: N/A | BQ36: N/A | BR36: N/A | BS36: N/A | BT36: N/A | BU36: N/A | BV36: N/A
A37: Improved Water source on premises | B37: Yes | C37: N/A | D37: N/A | E37: N/A | F37: N/A | G37: N/A | H37: N/A | I37: N/A | J37: N/A | K37: N/A | L37: N/A | M37: N/A | N37: N/A | O37: N/A | P37: N/A | Q37: N/A | R37: N/A | S37: N/A | T37: N/A | U37: N/A | V37: N/A | BA37: Improved water source on premises | BB37: Yes | BC37: N/A | BD37: N/A | BE37: N/A | BF37: N/A | BG37: N/A | BH37: N/A | BI37: N/A | BJ37: N/A | BK37: N/A | BL37: N/A | BM37: N/A | BN37: N/A | BO37: N/A | BP37: N/A | BQ37: N/A | BR37: N/A | BS37: N/A | BT37: N/A | BU37: N/A | BV37: N/A
B38: No | C38: N/A | D38: N/A | E38: N/A | F38: N/A | G38: N/A | H38: N/A | I38: N/A | J38: N/A | K38: N/A | L38: N/A | M38: N/A | N38: N/A | O38: N/A | P38: N/A | Q38: N/A | R38: N/A | S38: N/A | T38: N/A | U38: N/A | V38: N/A | BB38: No | BC38: N/A | BD38: N/A | BE38: N/A | BF38: N/A | BG38: N/A | BH38: N/A | BI38: N/A | BJ38: N/A | BK38: N/A | BL38: N/A | BM38: N/A | BN38: N/A | BO38: N/A | BP38: N/A | BQ38: N/A | BR38: N/A | BS38: N/A | BT38: N/A | BU38: N/A | BV38: N/A
A39: Piped water on premises available when needed | B39: Yes | C39: N/A | D39: N/A | E39: N/A | F39: N/A | G39: N/A | H39: N/A | I39: N/A | J39: N/A | K39: N/A | L39: N/A | M39: N/A | N39: N/A | O39: N/A | P39: N/A | Q39: N/A | R39: N/A | S39: N/A | T39: N/A | U39: N/A | V39: N/A | BA39: Piped water on premises available when needed | BB39: Yes | BC39: N/A | BD39: N/A | BE39: N/A | BF39: N/A | BG39: N/A | BH39: N/A | BI39: N/A | BJ39: N/A | BK39: N/A | BL39: N/A | BM39: N/A | BN39: N/A | BO39: N/A | BP39: N/A | BQ39: N/A | BR39: N/A | BS39: N/A | BT39: N/A | BU39: N/A | BV39: N/A
B40: No | C40: N/A | D40: N/A | E40: N/A | F40: N/A | G40: N/A | H40: N/A | I40: N/A | J40: N/A | K40: N/A | L40: N/A | M40: N/A | N40: N/A | O40: N/A | P40: N/A | Q40: N/A | R40: N/A | S40: N/A | T40: N/A | U40: N/A | V40: N/A | BB40: No | BC40: N/A | BD40: N/A | BE40: N/A | BF40: N/A | BG40: N/A | BH40: N/A | BI40: N/A | BJ40: N/A | BK40: N/A | BL40: N/A | BM40: N/A | BN40: N/A | BO40: N/A | BP40: N/A | BQ40: N/A | BR40: N/A | BS40: N/A | BT40: N/A | BU40: N/A | BV40: N/A
A41: Water point at more than 30 minutes | B41: Yes | C41: N/A | D41: N/A | E41: N/A | F41: N/A | G41: N/A | H41: N/A | I41: N/A | J41: N/A | K41: N/A | L41: N/A | M41: N/A | N41: N/A | O41: N/A | P41: N/A | Q41: N/A | R41: N/A | S41: N/A | T41: N/A | U41: N/A | V41: N/A | BA41: Water point at more than 30 minutes | BB41: Yes | BC41: N/A | BD41: N/A | BE41: N/A | BF41: N/A | BG41: N/A | BH41: N/A | BI41: N/A | BJ41: N/A | BK41: N/A | BL41: N/A | BM41: N/A | BN41: N/A | BO41: N/A | BP41: N/A | BQ41: N/A | BR41: N/A | BS41: N/A | BT41: N/A | BU41: N/A | BV41: N/A
B42: No | C42: N/A | D42: N/A | E42: N/A | F42: N/A | G42: N/A | H42: N/A | I42: N/A | J42: N/A | K42: N/A | L42: N/A | M42: N/A | N42: N/A | O42: N/A | P42: N/A | Q42: N/A | R42: N/A | S42: N/A | T42: N/A | U42: N/A | V42: N/A | BB42: No | BC42: N/A | BD42: N/A | BE42: N/A | BF42: N/A | BG42: N/A | BH42: N/A | BI42: N/A | BJ42: N/A | BK42: N/A | BL42: N/A | BM42: N/A | BN42: N/A | BO42: N/A | BP42: N/A | BQ42: N/A | BR42: N/A | BS42: N/A | BT42: N/A | BU42: N/A | BV42: N/A
A43: Water source available when needed | B43: Yes | C43: N/A | D43: N/A | E43: N/A | F43: N/A | G43: N/A | H43: N/A | I43: N/A | J43: N/A | K43: N/A | L43: N/A | M43: N/A | N43: N/A | O43: N/A | P43: N/A | Q43: N/A | R43: N/A | S43: N/A | T43: N/A | U43: N/A | V43: N/A | BA43: Water source available when needed | BB43: Yes | BC43: N/A | BD43: N/A | BE43: N/A | BF43: N/A | BG43: N/A | BH43: N/A | BI43: N/A | BJ43: N/A | BK43: N/A | BL43: N/A | BM43: N/A | BN43: N/A | BO43: N/A | BP43: N/A | BQ43: N/A | BR43: N/A | BS43: N/A | BT43: N/A | BU43: N/A | BV43: N/A
B44: No | C44: N/A | D44: N/A | E44: N/A | F44: N/A | G44: N/A | H44: N/A | I44: N/A | J44: N/A | K44: N/A | L44: N/A | M44: N/A | N44: N/A | O44: N/A | P44: N/A | Q44: N/A | R44: N/A | S44: N/A | T44: N/A | U44: N/A | V44: N/A | BB44: No | BC44: N/A | BD44: N/A | BE44: N/A | BF44: N/A | BG44: N/A | BH44: N/A | BI44: N/A | BJ44: N/A | BK44: N/A | BL44: N/A | BM44: N/A | BN44: N/A | BO44: N/A | BP44: N/A | BQ44: N/A | BR44: N/A | BS44: N/A | BT44: N/A | BU44: N/A | BV44: N/A
A45: Improved water source available when needed | B45: Yes | C45: N/A | D45: N/A | E45: N/A | F45: N/A | G45: N/A | H45: N/A | I45: N/A | J45: N/A | K45: N/A | L45: N/A | M45: N/A | N45: N/A | O45: N/A | P45: N/A | Q45: N/A | R45: N/A | S45: N/A | T45: N/A | U45: N/A | V45: N/A | BA45: Improved water source available when needed | BB45: Yes | BC45: N/A | BD45: N/A | BE45: N/A | BF45: N/A | BG45: N/A | BH45: N/A | BI45: N/A | BJ45: N/A | BK45: N/A | BL45: N/A | BM45: N/A | BN45: N/A | BO45: N/A | BP45: N/A | BQ45: N/A | BR45: N/A | BS45: N/A | BT45: N/A | BU45: N/A | BV45: N/A
B46: No | C46: N/A | D46: N/A | E46: N/A | F46: N/A | G46: N/A | H46: N/A | I46: N/A | J46: N/A | K46: N/A | L46: N/A | M46: N/A | N46: N/A | O46: N/A | P46: N/A | Q46: N/A | R46: N/A | S46: N/A | T46: N/A | U46: N/A | V46: N/A | BB46: No | BC46: N/A | BD46: N/A | BE46: N/A | BF46: N/A | BG46: N/A | BH46: N/A | BI46: N/A | BJ46: N/A | BK46: N/A | BL46: N/A | BM46: N/A | BN46: N/A | BO46: N/A | BP46: N/A | BQ46: N/A | BR46: N/A | BS46: N/A | BT46: N/A | BU46: N/A | BV46: N/A
A47: Microbiological quality at point of collection | B47: Not contaminated (No E. coli in 100 mL) | C47: N/A | D47: N/A | E47: N/A | F47: N/A | G47: N/A | H47: N/A | I47: N/A | J47: N/A | K47: N/A | L47: N/A | M47: N/A | N47: N/A | O47: N/A | P47: N/A | Q47: N/A | R47: N/A | S47: N/A | T47: N/A | U47: N/A | V47: N/A | BA47: Microbiological quality at point of collection | BB47: Not contaminated (No E. coli in 100 mL) | BC47: N/A | BD47: N/A | BE47: N/A | BF47: N/A | BG47: N/A | BH47: N/A | BI47: N/A | BJ47: N/A | BK47: N/A | BL47: N/A | BM47: N/A | BN47: N/A | BO47: N/A | BP47: N/A | BQ47: N/A | BR47: N/A | BS47: N/A | BT47: N/A | BU47: N/A | BV47: N/A
B48: Contaminated (E. coli detected in 100 mL) | C48: N/A | D48: N/A | E48: N/A | F48: N/A | G48: N/A | H48: N/A | I48: N/A | J48: N/A | K48: N/A | L48: N/A | M48: N/A | N48: N/A | O48: N/A | P48: N/A | Q48: N/A | R48: N/A | S48: N/A | T48: N/A | U48: N/A | V48: N/A | BB48: Contaminated (E. coli detected in 100 mL) | BC48: N/A | BD48: N/A | BE48: N/A | BF48: N/A | BG48: N/A | BH48: N/A | BI48: N/A | BJ48: N/A | BK48: N/A | BL48: N/A | BM48: N/A | BN48: N/A | BO48: N/A | BP48: N/A | BQ48: N/A | BR48: N/A | BS48: N/A | BT48: N/A | BU48: N/A | BV48: N/A
B49: Highly contaminated (>100 CFU/100 mL) | C49: N/A | D49: N/A | E49: N/A | F49: N/A | G49: N/A | H49: N/A | I49: N/A | J49: N/A | K49: N/A | L49: N/A | M49: N/A | N49: N/A | O49: N/A | P49: N/A | Q49: N/A | R49: N/A | S49: N/A | T49: N/A | U49: N/A | V49: N/A | BB49: Highly contaminated (>100 CFU/100 mL) | BC49: N/A | BD49: N/A | BE49: N/A | BF49: N/A | BG49: N/A | BH49: N/A | BI49: N/A | BJ49: N/A | BK49: N/A | BL49: N/A | BM49: N/A | BN49: N/A | BO49: N/A | BP49: N/A | BQ49: N/A | BR49: N/A | BS49: N/A | BT49: N/A | BU49: N/A | BV49: N/A
A50: Microbiological quality of improved water sources at point of collection | B50: Not contaminated (No E. coli in 100 mL) | C50: N/A | D50: N/A | E50: N/A | F50: N/A | G50: N/A | H50: N/A | I50: N/A | J50: N/A | K50: N/A | L50: N/A | M50: N/A | N50: N/A | O50: N/A | P50: N/A | Q50: N/A | R50: N/A | S50: N/A | T50: N/A | U50: N/A | V50: N/A | BA50: Microbiological quality of improved water sources at point of collection | BB50: Not contaminated (No E. coli in 100 mL) | BC50: N/A | BD50: N/A | BE50: N/A | BF50: N/A | BG50: N/A | BH50: N/A | BI50: N/A | BJ50: N/A | BK50: N/A | BL50: N/A | BM50: N/A | BN50: N/A | BO50: N/A | BP50: N/A | BQ50: N/A | BR50: N/A | BS50: N/A | BT50: N/A | BU50: N/A | BV50: N/A
B51: Contaminated (E. coli detected in 100 mL) | C51: N/A | D51: N/A | E51: N/A | F51: N/A | G51: N/A | H51: N/A | I51: N/A | J51: N/A | K51: N/A | L51: N/A | M51: N/A | N51: N/A | O51: N/A | P51: N/A | Q51: N/A | R51: N/A | S51: N/A | T51: N/A | U51: N/A | V51: N/A | BB51: Contaminated (E. coli detected in 100 mL) | BC51: N/A | BD51: N/A | BE51: N/A | BF51: N/A | BG51: N/A | BH51: N/A | BI51: N/A | BJ51: N/A | BK51: N/A | BL51: N/A | BM51: N/A | BN51: N/A | BO51: N/A | BP51: N/A | BQ51: N/A | BR51: N/A | BS51: N/A | BT51: N/A | BU51: N/A | BV51: N/A
B52: Highly contaminated (>100 CFU/100 mL) | C52: N/A | D52: N/A | E52: N/A | F52: N/A | G52: N/A | H52: N/A | I52: N/A | J52: N/A | K52: N/A | L52: N/A | M52: N/A | N52: N/A | O52: N/A | P52: N/A | Q52: N/A | R52: N/A | S52: N/A | T52: N/A | U52: N/A | V52: N/A | BB52: Highly contaminated (>100 CFU/100 mL) | BC52: N/A | BD52: N/A | BE52: N/A | BF52: N/A | BG52: N/A | BH52: N/A | BI52: N/A | BJ52: N/A | BK52: N/A | BL52: N/A | BM52: N/A | BN52: N/A | BO52: N/A | BP52: N/A | BQ52: N/A | BR52: N/A | BS52: N/A | BT52: N/A | BU52: N/A | BV52: N/A
A53: Microbiological quality of piped on premises at point of collection | B53: Not contaminated (No E. coli in 100 mL) | C53: N/A | D53: N/A | E53: N/A | F53: N/A | G53: N/A | H53: N/A | I53: N/A | J53: N/A | K53: N/A | L53: N/A | M53: N/A | N53: N/A | O53: N/A | P53: N/A | Q53: N/A | R53: N/A | S53: N/A | T53: N/A | U53: N/A | V53: N/A | BA53: Microbiological quality of piped on premises at point of collection | BB53: Not contaminated (No E. coli in 100 mL) | BC53: N/A | BD53: N/A | BE53: N/A | BF53: N/A | BG53: N/A | BH53: N/A | BI53: N/A | BJ53: N/A | BK53: N/A | BL53: N/A | BM53: N/A | BN53: N/A | BO53: N/A | BP53: N/A | BQ53: N/A | BR53: N/A | BS53: N/A | BT53: N/A | BU53: N/A | BV53: N/A
B54: Contaminated (E. coli detected in 100 mL) | C54: N/A | D54: N/A | E54: N/A | F54: N/A | G54: N/A | H54: N/A | I54: N/A | J54: N/A | K54: N/A | L54: N/A | M54: N/A | N54: N/A | O54: N/A | P54: N/A | Q54: N/A | R54: N/A | S54: N/A | T54: N/A | U54: N/A | V54: N/A | BB54: Contaminated (E. coli detected in 100 mL) | BC54: N/A | BD54: N/A | BE54: N/A | BF54: N/A | BG54: N/A | BH54: N/A | BI54: N/A | BJ54: N/A | BK54: N/A | BL54: N/A | BM54: N/A | BN54: N/A | BO54: N/A | BP54: N/A | BQ54: N/A | BR54: N/A | BS54: N/A | BT54: N/A | BU54: N/A | BV54: N/A
B55: Highly contaminated (>100 CFU/100 mL) | C55: N/A | D55: N/A | E55: N/A | F55: N/A | G55: N/A | H55: N/A | I55: N/A | J55: N/A | K55: N/A | L55: N/A | M55: N/A | N55: N/A | O55: N/A | P55: N/A | Q55: N/A | R55: N/A | S55: N/A | T55: N/A | U55: N/A | V55: N/A | BB55: Highly contaminated (>100 CFU/100 mL) | BC55: N/A | BD55: N/A | BE55: N/A | BF55: N/A | BG55: N/A | BH55: N/A | BI55: N/A | BJ55: N/A | BK55: N/A | BL55: N/A | BM55: N/A | BN55: N/A | BO55: N/A | BP55: N/A | BQ55: N/A | BR55: N/A | BS55: N/A | BT55: N/A | BU55: N/A | BV55: N/A
C56: NATIONAL wealth index quintile | H56: URBAN wealth index quintile | M56: RURAL wealth index quintile | R56: SUB-REGIONS: | BA56: Raw numbers of respondents: | BB56: Use of drinking water sources | BC56: NATIONAL wealth index quintile | BH56: URBAN wealth index quintile | BM56: RURAL wealth index quintile | BR56: SUB-REGIONS:
A57: Percentage based on weighted population | C57: Poorest | D57: Poor | E57: Middle | F57: Rich | G57: Richest | H57: Poorest | I57: Poor | J57: Middle | K57: Rich | L57: Richest | M57: Poorest | N57: Poor | O57: Middle | P57: Rich | Q57: Richest | R57: DUSHANBE | S57: GBAO | T57: KAHTLON | U57: RRS | V57: SOGDIAN | BA57: Water data, raw numbers (weighted) | BC57: Poorest | BD57: Poor | BE57: Middle | BF57: Rich | BG57: Richest | BH57: Poorest | BI57: Poor | BJ57: Middle | BK57: Rich | BL57: Richest | BM57: Poorest | BN57: Poor | BO57: Middle | BP57: Rich | BQ57: Richest | BR57: DUSHANBE | BS57: GBAO | BT57: KAHTLON | BU57: RRS | BV57: SOGDIAN
A58: Source of drinking water | B58: Pipe in dwelling/compound | C58: 7.012789639 | D58: 9.094767849 | E58: 14.60446491 | F58: 34.11123234 | G58: 78.63663734 | H58: 46.88176225 | I58: 58.05952239 | J58: 75.50299011 | K58: 81.10069283 | L58: 98.71654072 | M58: 5.148764122 | N58: 8.449785161 | O58: 10.20444959 | P58: 13.59112306 | Q58: 26.28060603 | R58: 92.74495138 | S58: 11.16513522 | T58: 15.74078932 | U58: 31.39363597 | V58: 23.0736869
B59: Pipe from neighbour | C59: 1.850783679 | D59: 2.919465919 | E59: 2.903686639 | F59: 4.362446167 | G59: 3.355797488 | H59: 4.606303226 | I59: 7.827585286 | J59: 7.524339621 | K59: 0.959584155 | L59: 0.2232103093 | M59: 2.063840049 | N59: 2.783267083 | O59: 1.857255721 | P59: 2.9178498 | Q59: 3.659232071 | R59: 3.141361257 | S59: 5.47578782 | T59: 1.888839262 | U59: 5.4395686 | V59: 2.444929994
B60: Public outdoor tap | C60: 12.7075745 | D60: 22.01509263 | E60: 25.14353233 | F60: 19.83902058 | G60: 11.40964341 | H60: 15.7262464 | I60: 19.11271728 | J60: 12.55090601 | K60: 17.41398946 | L60: 1.060248969 | M60: 12.60142256 | N60: 18.07684214 | O60: 25.24299763 | P60: 24.78363025 | Q60: 19.70917989 | R60: 3.191224134 | S60: 8.660811524 | T60: 17.41573276 | U60: 13.70056779 | V60: 27.57331906
B61: Protected well | C61: 8.463898693 | D61: 7.185463279 | E61: 9.513421889 | F61: 9.624638146 | G61: 1.155707058 | H61: 11.68355042 | I61: 4.203766187 | J61: 0.4826473019 | K61: 0 | L61: 0 | M61: 7.4506558 | N61: 8.027613994 | O61: 7.577379243 | P61: 9.916293689 | Q61: 10.16782471 | R61: 0 | S61: 0 | T61: 13.3238493 | U61: 5.710382279 | V61: 4.483558643
B62: Unprotected well | C62: 0.798542871 | D62: 0.718412191 | E62: 1.586890702 | F62: 1.779377689 | G62: 0.1580985509 | H62: 3.712028826 | I62: 0.2627322439 | J62: 0.1071628556 | K62: 0 | L62: 0 | M62: 0.9794176047 | N62: 0.4975393021 | O62: 0.4528393583 | P62: 1.259628369 | Q62: 2.202205117 | R62: 0 | S62: 0 | T62: 0.7319948123 | U62: 0.5953092035 | V62: 1.98090394
B63: Spring | C63: 25.88948774 | D63: 10.79628002 | E63: 5.836151463 | F63: 5.441635366 | G63: 0.4424830484 | H63: 1.310419066 | I63: 2.47066054 | J63: 0 | K63: 0 | L63: 0 | M63: 27.4597068 | N63: 16.03577094 | O63: 9.15243039 | P63: 5.411952686 | Q63: 6.767002252 | R63: 0 | S63: 34.19113666 | T63: 7.252517195 | U63: 14.353125 | V63: 9.676832791
B64: River, lake, pond | C64: 38.40480111 | D64: 42.28074939 | E64: 36.47062424 | F64: 23.15218182 | G64: 4.530376813 | H64: 15.29483692 | I64: 7.408814205 | J64: 3.307537013 | K64: 0.5257335574 | L64: 0 | M64: 38.82035918 | N64: 41.92211047 | O64: 40.59253962 | P64: 37.73528404 | Q64: 29.30347726 | R64: 0.04986287709 | S64: 40.50712878 | T64: 38.21082651 | U64: 26.39265584 | V64: 28.53749303
B65: Truck, vendor | C65: 2.531160618 | D65: 3.537912329 | E65: 2.610368894 | F65: 1.049714028 | G65: 0.1407679089 | H65: 0.3480465444 | I65: 0.6542018599 | J65: 0.5244170879 | K65: 0 | L65: 0 | M65: 3.139040863 | N65: 2.649066132 | O65: 3.349985219 | P65: 2.735969237 | Q65: 1.066977148 | R65: 0.872600349 | S65: 0 | T65: 4.633371418 | U65: 0.5303434554 | V65: 0.6704539787
B66: Other | C66: 2.340961146 | D66: 1.451856391 | E66: 1.330858932 | F66: 0.6397538605 | G66: 0.1704883826 | H66: 0.4368063552 | I66: 0 | J66: 0 | K66: 0 | L66: 0 | M66: 2.336793023 | N66: 1.558004777 | O66: 1.570123233 | P66: 1.648268872 | Q66: 0.8434955255 | R66: 0 | S66: 0 | T66: 0.802079422 | U66: 1.884411852 | V66: 1.558821662
A108: =A1026 -> Tajikistan
A109: =A1034 -> 2002
A110: Use of sanitation facilities
A111: by wealth quintile and sub-national region
A112: Notes:
A113: WHO/UNICEF JMP customised wealth index excludes water,
A114: sanitation and hygiene assets.
A115: Survey used for analysis: | B115: =A1025 -> PMS02
A116: =B1030 -> Flush to sewer/septic based on: | B116: MICS05
A117: Improved latrines based on: | B117: MICS05
A120: Use of sanitation facilities | C120: NATIONAL wealth index quintile | H120: URBAN wealth index quintile | M120: RURAL wealth index quintile | R120: SUB-REGIONS: | BA120: Raw numbers of respondents: | BB120: Use of sanitation facilities | BC120: NATIONAL wealth index quintile | BH120: URBAN wealth index quintile | BM120: RURAL wealth index quintile | BR120: SUB-REGIONS:
A121: Weighted percentage (used in graphs) | C121: Poorest | D121: Poor | E121: Middle | F121: Rich | G121: Richest | H121: Poorest | I121: Poor | J121: Middle | K121: Rich | L121: Richest | M121: Poorest | N121: Poor | O121: Middle | P121: Rich | Q121: Richest | R121: DUSHANBE | S121: GBAO | T121: KAHTLON | U121: RRS | V121: SOGDIAN | BA121: Sanitation data, raw numbers (weighted) | BC121: Poorest | BD121: Poor | BE121: Middle | BF121: Rich | BG121: Richest | BH121: Poorest | BI121: Poor | BJ121: Middle | BK121: Rich | BL121: Richest | BM121: Poorest | BN121: Poor | BO121: Middle | BP121: Rich | BQ121: Richest | BR121: DUSHANBE | BS121: GBAO | BT121: KAHTLON | BU121: RRS | BV121: SOGDIAN
A122: Sanitation | B122: Improved | C122: =100-C123 -> 87.98863877 | D122: =100-D123 -> 90.827513 | E122: 92.42735339 | F122: 96.18927739 | G122: 93.77004432 | H122: 91.93234318 | I122: 98.84214204 | J122: 94.95108346 | K122: 90.49436196 | L122: 97.81818688 | M122: 88.14376161 | N122: 88.65272431 | O122: 92.18094848 | P122: 92.91738825 | Q122: 94.46431946 | R122: =100-R123 -> 92.18291443 | S122: 72.30038151 | T122: =100-T123 -> 92.2295894 | U122: =100-U123 -> 93.95674546 | V122: 97.27981815 | BA122: Sanitation | BB122: Improved | BC122: 178175.6415 | BD122: 120153.6897 | BE122: 126807.0273 | BF122: 211484.1781 | BG122: 828281.1486 | BH122: 99347.4672 | BI122: 91125.2625 | BJ122: 113006.258 | BK122: 299153.0773 | BL122: 362143.16 | BM122: 133431.2146 | BN122: 92515.693 | BO122: 78032.0363 | BP122: 82625.1852 | BQ122: 113522.3311 | BR122: 403131.4688 | BS122: 31172.5276 | BT122: 227520.4866 | BU122: 475720.6382 | BV122: 327356.564
B123: Not Improved | C123: =C138+C139 -> 12.01136123 | D123: =D138+D139 -> 9.172486997 | E123: 7.572646608 | F123: 3.810722611 | G123: 6.229955678 | H123: 8.067656821 | I123: 1.157857956 | J123: 5.048916541 | K123: 9.505638041 | L123: 2.181813116 | M123: 11.85623839 | N123: 11.34727569 | O123: 7.819051517 | P123: 7.082611745 | Q123: 5.535680537 | R123: =R138+R139 -> 7.817085567 | S123: =S138+S139 -> 27.69961849 | T123: =T138+T139 -> 7.770410605 | U123: =U138+U139 -> 6.043254542 | V123: =V138+V139 -> 2.720181854 | BB123: Not Improved | BC123: 1168933.774 | BD123: 1227566.397 | BE123: 1220124.369 | BF123: 1136151.113 | BG123: 518862.2552 | BH123: 263888.5483 | BI123: 271214.276 | BJ123: 248603.9267 | BK123: 63001.0164 | BL123: 775.0236 | BM123: 851501.0098 | BN123: 891923.6829 | BO123: 907524.9869 | BP123: 901546.9406 | BQ123: 871658.4966 | BR123: 230722.048 | BS123: 156692.5201 | BT123: 2041221.548 | BU123: 1033328.096 | BV123: 1809673.695
A124: Sanitation ladder | B124: Basic | C124: =C122*C129/100 -> 87.67648074 | D124: =D122*D129/100 -> 90.13101792 | E124: 92.42735339 | F124: 93.40824702 | G124: 92.84359464 | H124: 88.12556348 | I124: 95.98646102 | J124: 91.0775882 | K124: 90.08362357 | L124: 97.2197389 | M124: 88.14376161 | N124: 88.65272431 | O124: 91.09250477 | P124: 92.91738825 | Q124: 94.46431946 | R124: =R122*R129/100 -> 90.66520279 | S124: 66.23563373 | T124: =T122*T129/100 -> 91.16236411 | U124: =U122*U129/100 -> 93.95674546 | V124: 96.10107398 | BA124: Sanitation ladder | BB124: Basic | BC124: 177543.5263 | BD124: 119232.3119 | BE124: 126807.0273 | BF124: 205369.7344 | BG124: 820097.7163 | BH124: 95233.6384 | BI124: 88492.5324 | BJ124: 108396.2084 | BK124: 297795.2728 | BL124: 359927.5818 | BM124: 133431.2146 | BN124: 92515.693 | BO124: 77110.6585 | BP124: 82625.1852 | BQ124: 113522.3311 | BR124: 396494.2592 | BS124: 28557.6933 | BT124: 224887.7565 | BU124: 475720.6382 | BV124: 323389.969
B125: Limited | C125: =C122*C128/100 -> 0.312158023 | D125: =D122*D128/100 -> 0.6964950832 | E125: 0 | F125: 2.781030366 | G125: 0.9264496853 | H125: 3.806779696 | I125: 2.855681019 | J125: 3.873495257 | K125: 0.4107383852 | L125: 0.5984479796 | M125: 0 | N125: 0 | O125: 1.088443715 | P125: 0 | Q125: 0 | R125: =R122*R128/100 -> 1.517711645 | S125: 6.064747778 | T125: =T122*T128/100 -> 1.067225285 | U125: =U122*U128/100 -> 0 | V125: 1.178744167 | BB125: Limited | BC125: 632.1152 | BD125: 921.3778 | BE125: 0 | BF125: 6114.4437 | BG125: 8183.4323 | BH125: 4113.8288 | BI125: 2632.7301 | BJ125: 4610.0496 | BK125: 1357.8045 | BL125: 2215.5782 | BM125: 0 | BN125: 0 | BO125: 921.3778 | BP125: 0 | BQ125: 0 | BR125: 6637.2096 | BS125: 2614.8343 | BT125: 2632.7301 | BU125: 0 | BV125: 3966.595
B126: Unimproved | C126: =100-(C124+C125+C127) -> 10.70139128 | D126: =100-(D124+D125+D127) -> 8.921435675 | E126: 5.868408222 | F126: 2.952727798 | G126: 1.875523274 | H126: 7.10668284 | I126: 0.8269140287 | J126: 2.871217203 | K126: 0.8366690455 | L126: 2.181813116 | M126: 10.50123251 | N126: 10.68553116 | O126: 6.943436754 | P126: 5.739380917 | Q126: 2.638861395 | R126: =100-(R124+R125+R127) -> 6.146679184 | S126: 5.329046093 | T126: =100-(T124+T125+T127) -> 6.154323913 | U126: =100-(U124+U125+U127) -> 5.691130116 | V126: 1.802308754 | BB126: Unimproved | BC126: 1151287.045 | BD126: 1224182.928 | BE126: 1197169.447 | BF126: 1124588.472 | BG126: 460201.8063 | BH126: 260397.9447 | BI126: 270015.1353 | BJ126: 240729.1441 | BK126: 31605.9903 | BL126: 775.0236 | BM126: 838155.1202 | BN126: 885409.2092 | BO126: 898895.3041 | BP126: 888327.2372 | BQ126: 843119.5898 | BR126: 220134.1184 | BS126: 114666.0336 | BT126: 2004556.71 | BU126: 1028014.367 | BV126: 1790058.47
B127: Open defecation | C127: =C156 -> 1.309969947 | D127: =D156 -> 0.2510513225 | E127: 1.704238387 | F127: 0.8579948133 | G127: 4.354432404 | H127: 0.9609739814 | I127: 0.3309439276 | J127: 2.177699338 | K127: 8.668968996 | L127: 0 | M127: 1.355005885 | N127: 0.6617445278 | O127: 0.8756147637 | P127: 1.343230829 | Q127: 2.896819142 | R127: =R156 -> 1.670406382 | S127: =S156 -> 22.37057239 | T127: =T156 -> 1.616086692 | U127: =U156 -> 0.3521244264 | V127: =V156 -> 0.9178731005 | BB127: Open defecation | BC127: 17646.7285 | BD127: 3383.4691 | BE127: 22954.9219 | BF127: 11562.6409 | BG127: 58660.4489 | BH127: 3490.6036 | BI127: 1199.1407 | BJ127: 7874.7826 | BK127: 31395.0261 | BL127: 0 | BM127: 13345.8896 | BN127: 6514.4737 | BO127: 8629.6828 | BP127: 13219.7034 | BQ127: 28538.9068 | BR127: 10587.9296 | BS127: 42026.4865 | BT127: 36664.8381 | BU127: 5313.7292 | BV127: 19615.2259
A128: Shared among Improved Sanitation | B128: Yes | C128: 0.3547708288 | D128: 0.7668327143 | E128: 0 | F128: 2.891206215 | G128: 0.9880017569 | H128: 4.140849199 | I128: 2.889133077 | J128: 4.079463989 | K128: 0.4538828456 | L128: 0.61179623 | M128: 0 | N128: 0 | O128: 1.180768622 | P128: 0 | Q128: 0 | R128: 1.646413171 | S128: 8.388265249 | T128: 1.157139798 | U128: 0 | V128: 1.211704739 | BA128: Shared among improved sanitation facilities | BB128: Yes | BC128: N/A | BD128: N/A | BE128: N/A | BF128: N/A | BG128: N/A | BH128: N/A | BI128: N/A | BJ128: N/A | BK128: N/A | BL128: N/A | BM128: N/A | BN128: N/A | BO128: N/A | BP128: N/A | BQ128: N/A | BR128: N/A | BS128: N/A | BT128: N/A | BU128: N/A | BV128: N/A
B129: No | C129: 99.64522917 | D129: 99.23316729 | E129: 100 | F129: 97.10879379 | G129: 99.01199824 | H129: 95.8591508 | I129: 97.11086692 | J129: 95.92053601 | K129: 99.54611715 | L129: 99.38820377 | M129: 100 | N129: 100 | O129: 98.81923138 | P129: 100 | Q129: 100 | R129: 98.35358683 | S129: 91.61173475 | T129: 98.8428602 | U129: 100 | V129: 98.78829526 | BB129: No | BC129: N/A | BD129: N/A | BE129: N/A | BF129: N/A | BG129: N/A | BH129: N/A | BI129: N/A | BJ129: N/A | BK129: N/A | BL129: N/A | BM129: N/A | BN129: N/A | BO129: N/A | BP129: N/A | BQ129: N/A | BR129: N/A | BS129: N/A | BT129: N/A | BU129: N/A | BV129: N/A
A130: Manually calculated ratios | B130: Improved latrines
B131: Other
B132: Other
C133: NATIONAL wealth index quintile | H133: URBAN wealth index quintile | M133: RURAL wealth index quintile | R133: SUB-REGIONS: | BA133: Raw numbers of respondents: | BB133: Use of sanitation facilities | BC133: NATIONAL wealth index quintile | BH133: URBAN wealth index quintile | BM133: RURAL wealth index quintile | BR133: SUB-REGIONS:
A134: Percentage based on weighted population | C134: Poorest | D134: Poor | E134: Middle | F134: Rich | G134: Richest | H134: Poorest | I134: Poor | J134: Middle | K134: Rich | L134: Richest | M134: Poorest | N134: Poor | O134: Middle | P134: Rich | Q134: Richest | R134: DUSHANBE | S134: GBAO | T134: KAHTLON | U134: RRS | V134: SOGDIAN | BA134: Sanitation data, raw numbers (weighted) | BC134: Poorest | BD134: Poor | BE134: Middle | BF134: Rich | BG134: Richest | BH134: Poorest | BI134: Poor | BJ134: Middle | BK134: Rich | BL134: Richest | BM134: Poorest | BN134: Poor | BO134: Middle | BP134: Rich | BQ134: Richest | BR134: DUSHANBE | BS134: GBAO | BT134: KAHTLON | BU134: RRS | BV134: SOGDIAN
A135: Sanitation type | B135: Sewer connection | C135: =C153*MICS05!C130/100 -> 0 | D135: =D153*MICS05!D130/100 -> 0 | E135: =E153*MICS05!E130/100 -> 0 | F135: =F153*MICS05!F130/100 -> 0.2721983783 | G135: =G153*MICS05!G130/100 -> 46.22647831 | H135: =H153*MICS05!H130/100 -> 0.2767910055 | I135: =I153*MICS05!I130/100 -> 1.078788401 | J135: =J153*MICS05!J130/100 -> 4.323747216 | K135: =K153*MICS05!K130/100 -> 70.74346923 | L135: =L153*MICS05!L130/100 -> 96.37679423 | M135: =M153*MICS05!M130/100 -> 0 | N135: =N153*MICS05!N130/100 -> 0 | O135: =O153*MICS05!O130/100 -> 0 | P135: =P153*MICS05!P130/100 -> 0 | Q135: =Q153*MICS05!Q130/100 -> 0.3622730858 | R135: =R153*MICS05!U130/100 -> 41.93094823 | S135: =S153*MICS05!R130/100 -> 3.661440846 | T135: =T153*MICS05!T130/100 -> 1.241035687 | U135: =U153*MICS05!V130/100 -> 3.141456112 | V135: =V153*MICS05!S130/100 -> 8.873623384 | BA135: Sanitation type | BB135: Sewer connection | BC135: N/A | BD135: N/A | BE135: N/A | BF135: N/A | BG135: N/A | BH135: N/A | BI135: N/A | BJ135: N/A | BK135: N/A | BL135: N/A | BM135: N/A | BN135: N/A | BO135: N/A | BP135: N/A | BQ135: N/A | BR135: N/A | BS135: N/A | BT135: N/A | BU135: N/A | BV135: N/A
B136: Septic tank connection | C136: =C153*MICS05!C131/100 -> 0 | D136: =D153*MICS05!D131/100 -> 0 | E136: =E153*MICS05!E131/100 -> 0 | F136: =F153*MICS05!F131/100 -> 0.05972557338 | G136: =G153*MICS05!G131/100 -> 0.7988373936 | H136: =H153*MICS05!H131/100 -> 0 | I136: =I153*MICS05!I131/100 -> 0.03668157309 | J136: =J153*MICS05!J131/100 -> 0.1042729653 | K136: =K153*MICS05!K131/100 -> 1.135137313 | L136: =L153*MICS05!L131/100 -> 0.4181778358 | M136: =M153*MICS05!M131/100 -> 0 | N136: =N153*MICS05!N131/100 -> 0 | O136: =O153*MICS05!O131/100 -> 0 | P136: =P153*MICS05!P131/100 -> 0 | Q136: =Q153*MICS05!Q131/100 -> 0.2635751596 | R136: =R153*MICS05!U131/100 -> 0.5379436845 | S136: =S153*MICS05!R131/100 -> 0 | T136: =T153*MICS05!T131/100 -> 3.47119365 | U136: =U153*MICS05!V131/100 -> 0.1096631247 | V136: =V153*MICS05!S131/100 -> 0.02294629792 | BB136: Septic tank connection | BC136: N/A | BD136: N/A | BE136: N/A | BF136: N/A | BG136: N/A | BH136: N/A | BI136: N/A | BJ136: N/A | BK136: N/A | BL136: N/A | BM136: N/A | BN136: N/A | BO136: N/A | BP136: N/A | BQ136: N/A | BR136: N/A | BS136: N/A | BT136: N/A | BU136: N/A | BV136: N/A
B137: Improved latrines | C137: =(C154+C155)*MICS05!C132/100 -> 87.98863877 | D137: =(D154+D155)*MICS05!D132/100 -> 90.827513 | E137: =(E154+E155)*MICS05!E132/100 -> 92.42735339 | F137: =(F154+F155)*MICS05!F132/100 -> 95.85735344 | G137: =(G154+G155)*MICS05!G132/100 -> 46.74472862 | H137: =(H154+H155)*MICS05!H132/100 -> 91.65555217 | I137: =(I154+I155)*MICS05!I132/100 -> 97.72667207 | J137: =(J154+J155)*MICS05!J132/100 -> 90.52306328 | K137: =(K154+K155)*MICS05!K132/100 -> 18.61575542 | L137: =(L154+L155)*MICS05!L132/100 -> 1.023214814 | M137: =(M154+M155)*MICS05!M132/100 -> 88.14376161 | N137: =(N154+N155)*MICS05!N132/100 -> 88.65272431 | O137: =(O154+O155)*MICS05!O132/100 -> 92.18094848 | P137: =(P154+P155)*MICS05!P132/100 -> 92.91738825 | Q137: =(Q154+Q155)*MICS05!Q132/100 -> 93.83847122 | R137: =(R154+R155)*MICS05!U132/100 -> 49.71402252 | S137: =(S154+S155)*MICS05!R132/100 -> 68.63894067 | T137: =(T154+T155)*MICS05!T132/100 -> 87.51736006 | U137: =(U154+U155)*MICS05!V132/100 -> 90.70562622 | V137: =(V154+V155)*MICS05!S132/100 -> 88.38324846 | BB137: Improved latrines | BC137: N/A | BD137: N/A | BE137: N/A | BF137: N/A | BG137: N/A | BH137: N/A | BI137: N/A | BJ137: N/A | BK137: N/A | BL137: N/A | BM137: N/A | BN137: N/A | BO137: N/A | BP137: N/A | BQ137: N/A | BR137: N/A | BS137: N/A | BT137: N/A | BU137: N/A | BV137: N/A
B138: Unimproved facilities | C138: =100-(C135+C136+C137+C139) -> 10.70139128 | D138: =100-(D135+D136+D137+D139) -> 8.921435675 | E138: 5.868408222 | F138: 2.952727798 | G138: 1.875523274 | H138: 7.10668284 | I138: 0.8269140287 | J138: 2.871217203 | K138: 0.8366690455 | L138: 2.181813116 | M138: 10.50123251 | N138: 10.68553116 | O138: 6.943436754 | P138: 5.739380917 | Q138: 2.638861395 | R138: =100-(R135+R136+R137+R139) -> 6.146679184 | S138: 5.329046093 | T138: =100-(T135+T136+T137+T139) -> 6.154323913 | U138: =100-(U135+U136+U137+U139) -> 5.691130116 | V138: 1.802308754 | BB138: Unimproved facilities | BC138: N/A | BD138: N/A | BE138: N/A | BF138: N/A | BG138: N/A | BH138: N/A | BI138: N/A | BJ138: N/A | BK138: N/A | BL138: N/A | BM138: N/A | BN138: N/A | BO138: N/A | BP138: N/A | BQ138: N/A | BR138: N/A | BS138: N/A | BT138: N/A | BU138: N/A | BV138: N/A
B139: Open defecation | C139: =C156 -> 1.309969947 | D139: =D156 -> 0.2510513225 | E139: 1.704238387 | F139: 0.8579948133 | G139: 4.354432404 | H139: 0.9609739814 | I139: 0.3309439276 | J139: 2.177699338 | K139: 8.668968996 | L139: 0 | M139: 1.355005885 | N139: 0.6617445278 | O139: 0.8756147637 | P139: 1.343230829 | Q139: 2.896819142 | R139: =R156 -> 1.670406382 | S139: 22.37057239 | T139: =T156 -> 1.616086692 | U139: =U156 -> 0.3521244264 | V139: 0.9178731005 | BB139: Open defecation | BC139: N/A | BD139: N/A | BE139: N/A | BF139: N/A | BG139: N/A | BH139: N/A | BI139: N/A | BJ139: N/A | BK139: N/A | BL139: N/A | BM139: N/A | BN139: N/A | BO139: N/A | BP139: N/A | BQ139: N/A | BR139: N/A | BS139: N/A | BT139: N/A | BU139: N/A | BV139: N/A
A140: Septic tank emptying practices | B140: Not emptied/treated and disposed in situ | C140: N/A | D140: N/A | E140: N/A | F140: N/A | G140: N/A | H140: N/A | I140: N/A | J140: N/A | K140: N/A | L140: N/A | M140: N/A | N140: N/A | O140: N/A | P140: N/A | Q140: N/A | R140: N/A | S140: N/A | T140: N/A | U140: N/A | V140: N/A | BA140: Septic tank emptying practices | BB140: Not emptied/treated and disposed in situ | BC140: N/A | BD140: N/A | BE140: N/A | BF140: N/A | BG140: N/A | BH140: N/A | BI140: N/A | BJ140: N/A | BK140: N/A | BL140: N/A | BM140: N/A | BN140: N/A | BO140: N/A | BP140: N/A | BQ140: N/A | BR140: N/A | BS140: N/A | BT140: N/A | BU140: N/A | BV140: N/A
B141: Emptied and buried on site | C141: N/A | D141: N/A | E141: N/A | F141: N/A | G141: N/A | H141: N/A | I141: N/A | J141: N/A | K141: N/A | L141: N/A | M141: N/A | N141: N/A | O141: N/A | P141: N/A | Q141: N/A | R141: N/A | S141: N/A | T141: N/A | U141: N/A | V141: N/A | BB141: Emptied and buried on site | BC141: N/A | BD141: N/A | BE141: N/A | BF141: N/A | BG141: N/A | BH141: N/A | BI141: N/A | BJ141: N/A | BK141: N/A | BL141: N/A | BM141: N/A | BN141: N/A | BO141: N/A | BP141: N/A | BQ141: N/A | BR141: N/A | BS141: N/A | BT141: N/A | BU141: N/A | BV141: N/A
B142: Emptied and discharged locally | C142: N/A | D142: N/A | E142: N/A | F142: N/A | G142: N/A | H142: N/A | I142: N/A | J142: N/A | K142: N/A | L142: N/A | M142: N/A | N142: N/A | O142: N/A | P142: N/A | Q142: N/A | R142: N/A | S142: N/A | T142: N/A | U142: N/A | V142: N/A | BB142: Emptied and discharged locally | BC142: N/A | BD142: N/A | BE142: N/A | BF142: N/A | BG142: N/A | BH142: N/A | BI142: N/A | BJ142: N/A | BK142: N/A | BL142: N/A | BM142: N/A | BN142: N/A | BO142: N/A | BP142: N/A | BQ142: N/A | BR142: N/A | BS142: N/A | BT142: N/A | BU142: N/A | BV142: N/A
B143: Emptied and removed offsite | C143: N/A | D143: N/A | E143: N/A | F143: N/A | G143: N/A | H143: N/A | I143: N/A | J143: N/A | K143: N/A | L143: N/A | M143: N/A | N143: N/A | O143: N/A | P143: N/A | Q143: N/A | R143: N/A | S143: N/A | T143: N/A | U143: N/A | V143: N/A | BB143: Emptied and removed offsite | BC143: N/A | BD143: N/A | BE143: N/A | BF143: N/A | BG143: N/A | BH143: N/A | BI143: N/A | BJ143: N/A | BK143: N/A | BL143: N/A | BM143: N/A | BN143: N/A | BO143: N/A | BP143: N/A | BQ143: N/A | BR143: N/A | BS143: N/A | BT143: N/A | BU143: N/A | BV143: N/A
A144: Latrine emptying practices | B144: Not emptied/treated and disposed in situ | C144: N/A | D144: N/A | E144: N/A | F144: N/A | G144: N/A | H144: N/A | I144: N/A | J144: N/A | K144: N/A | L144: N/A | M144: N/A | N144: N/A | O144: N/A | P144: N/A | Q144: N/A | R144: N/A | S144: N/A | T144: N/A | U144: N/A | V144: N/A | BA144: Latrine emptying practices | BB144: Not emptied/treated and disposed in situ | BC144: N/A | BD144: N/A | BE144: N/A | BF144: N/A | BG144: N/A | BH144: N/A | BI144: N/A | BJ144: N/A | BK144: N/A | BL144: N/A | BM144: N/A | BN144: N/A | BO144: N/A | BP144: N/A | BQ144: N/A | BR144: N/A | BS144: N/A | BT144: N/A | BU144: N/A | BV144: N/A
B145: Emptied and buried on site | C145: N/A | D145: N/A | E145: N/A | F145: N/A | G145: N/A | H145: N/A | I145: N/A | J145: N/A | K145: N/A | L145: N/A | M145: N/A | N145: N/A | O145: N/A | P145: N/A | Q145: N/A | R145: N/A | S145: N/A | T145: N/A | U145: N/A | V145: N/A | BB145: Emptied and buried on site | BC145: N/A | BD145: N/A | BE145: N/A | BF145: N/A | BG145: N/A | BH145: N/A | BI145: N/A | BJ145: N/A | BK145: N/A | BL145: N/A | BM145: N/A | BN145: N/A | BO145: N/A | BP145: N/A | BQ145: N/A | BR145: N/A | BS145: N/A | BT145: N/A | BU145: N/A | BV145: N/A
B146: Emptied and discharged locally | C146: N/A | D146: N/A | E146: N/A | F146: N/A | G146: N/A | H146: N/A | I146: N/A | J146: N/A | K146: N/A | L146: N/A | M146: N/A | N146: N/A | O146: N/A | P146: N/A | Q146: N/A | R146: N/A | S146: N/A | T146: N/A | U146: N/A | V146: N/A | BB146: Emptied and discharged locally | BC146: N/A | BD146: N/A | BE146: N/A | BF146: N/A | BG146: N/A | BH146: N/A | BI146: N/A | BJ146: N/A | BK146: N/A | BL146: N/A | BM146: N/A | BN146: N/A | BO146: N/A | BP146: N/A | BQ146: N/A | BR146: N/A | BS146: N/A | BT146: N/A | BU146: N/A | BV146: N/A
B147: Emptied and removed offsite | C147: N/A | D147: N/A | E147: N/A | F147: N/A | G147: N/A | H147: N/A | I147: N/A | J147: N/A | K147: N/A | L147: N/A | M147: N/A | N147: N/A | O147: N/A | P147: N/A | Q147: N/A | R147: N/A | S147: N/A | T147: N/A | U147: N/A | V147: N/A | BB147: Emptied and removed offsite | BC147: N/A | BD147: N/A | BE147: N/A | BF147: N/A | BG147: N/A | BH147: N/A | BI147: N/A | BJ147: N/A | BK147: N/A | BL147: N/A | BM147: N/A | BN147: N/A | BO147: N/A | BP147: N/A | BQ147: N/A | BR147: N/A | BS147: N/A | BT147: N/A | BU147: N/A | BV147: N/A
A148: Shared among improved sanitation facilities | B148: Yes | C148: 0.0469238202 | D148: 0.06836566505 | E148: 0 | F148: 0.4537165018 | G148: 0.6074655658 | H148: 1.132549809 | I148: 0.7265920001 | J148: 1.27486719 | K148: 0.3749245207 | L148: 0.6104897192 | M148: 0 | N148: 0 | O148: 0.09348802538 | P148: 0 | Q148: 0 | R148: 1.047120419 | S148: 1.391868435 | T148: 0.1160436074 | U148: 0 | V148: 0.1856124864 | BA148: Shared among improved sanitation facilities | BB148: Yes | BC148: N/A | BD148: N/A | BE148: N/A | BF148: N/A | BG148: N/A | BH148: N/A | BI148: N/A | BJ148: N/A | BK148: N/A | BL148: N/A | BM148: N/A | BN148: N/A | BO148: N/A | BP148: N/A | BQ148: N/A | BR148: N/A | BS148: N/A | BT148: N/A | BU148: N/A | BV148: N/A
B149: No | C149: 13.17959212 | D149: 8.846964077 | E149: 9.414512694 | F149: 15.23926657 | G149: 60.87679411 | H149: 26.21811559 | I149: 24.42254377 | J149: 29.97598325 | K149: 82.22888488 | L149: 99.17595702 | M149: 13.54724836 | N149: 9.397805011 | O149: 7.824068693 | P149: 8.395399853 | Q149: 11.52299435 | R149: 62.55297931 | S149: 15.20117427 | T149: 9.9124428 | U149: 31.52453777 | V149: 15.13268086 | BB149: No | BC149: N/A | BD149: N/A | BE149: N/A | BF149: N/A | BG149: N/A | BH149: N/A | BI149: N/A | BJ149: N/A | BK149: N/A | BL149: N/A | BM149: N/A | BN149: N/A | BO149: N/A | BP149: N/A | BQ149: N/A | BR149: N/A | BS149: N/A | BT149: N/A | BU149: N/A | BV149: N/A
B150: DK/missing | C150: 86.77348406 | D150: 91.08467026 | E150: 90.58548731 | F150: 84.30701693 | G150: 38.51574032 | H150: 72.6493346 | I150: 74.85086423 | J150: 68.74914956 | K150: 17.3961906 | L150: 0.2135532566 | M150: 86.45275164 | N150: 90.60219499 | O150: 92.08244328 | P150: 91.60460015 | Q150: 88.47700565 | R150: 36.39990027 | S150: 83.40695729 | T150: 89.97151359 | U150: 68.47546223 | V150: 84.68170666 | BB150: DK/missing | BC150: N/A | BD150: N/A | BE150: N/A | BF150: N/A | BG150: N/A | BH150: N/A | BI150: N/A | BJ150: N/A | BK150: N/A | BL150: N/A | BM150: N/A | BN150: N/A | BO150: N/A | BP150: N/A | BQ150: N/A | BR150: N/A | BS150: N/A | BT150: N/A | BU150: N/A | BV150: N/A
A151: Shared among all sanitation facilities | B151: Yes | C151: 1.38880154 | D151: 0.8920922247 | E151: 2.234246731 | F151: 2.481691784 | G151: 1.439296911 | H151: 2.266148523 | I151: 2.025293715 | J151: 2.788078635 | K151: 0.5501690398 | L151: 0.6104897192 | M151: 1.645078321 | N151: 0.7600657779 | O151: 1.399023463 | P151: 2.194894596 | Q151: 2.509587104 | R151: 1.346297681 | S151: 2.793144528 | T151: 1.020870784 | U151: 0.5754790686 | V151: 3.183521562 | BA151: Shared among all sanitation facilities | BB151: Yes | BC151: N/A | BD151: N/A | BE151: N/A | BF151: N/A | BG151: N/A | BH151: N/A | BI151: N/A | BJ151: N/A | BK151: N/A | BL151: N/A | BM151: N/A | BN151: N/A | BO151: N/A | BP151: N/A | BQ151: N/A | BR151: N/A | BS151: N/A | BT151: N/A | BU151: N/A | BV151: N/A
B152: No | C152: 97.30122851 | D152: 98.85685645 | E152: 96.06151488 | F152: 96.6603134 | G152: 94.20627069 | H152: 96.7728775 | I152: 97.64376236 | J152: 95.03422203 | K152: 90.78086196 | L152: 99.38951028 | M152: 96.99991579 | N152: 98.57818969 | O152: 97.72536177 | P152: 96.46187458 | Q152: 94.59359375 | R152: 96.98329594 | S152: 74.83628308 | T152: 97.36304252 | U152: 99.0723965 | V152: 95.89860534 | BB152: No | BC152: N/A | BD152: N/A | BE152: N/A | BF152: N/A | BG152: N/A | BH152: N/A | BI152: N/A | BJ152: N/A | BK152: N/A | BL152: N/A | BM152: N/A | BN152: N/A | BO152: N/A | BP152: N/A | BQ152: N/A | BR152: N/A | BS152: N/A | BT152: N/A | BU152: N/A | BV152: N/A
A153: Type of toilet | B153: Flush toilet | C153: 0 | D153: 0 | E153: 0 | F153: 0.3880068543 | G153: 48.05731194 | H153: 0.669045 | I153: 1.210285501 | J153: 4.569003584 | K153: 72.48903665 | L153: 98.97312302 | M153: 0 | N153: 0 | O153: 0 | P153: 0 | Q153: 0.7692814646 | R153: 43.40563451 | S153: 6.059043095 | T153: 5.382638097 | U153: 3.286959193 | V153: 9.096683121 | BA153: Type of toilet | BB153: Flush toilet | BC153: 0 | BD153: 0 | BE153: 0 | BF153: 5228.9173 | BG153: 647400.9078 | BH153: 2430.2124 | BI153: 4385.3429 | BJ153: 16521.9823 | BK153: 262522.0137 | BL153: 359191.4603 | BM153: 0 | BN153: 0 | BO153: 0 | BP153: 0 | BQ153: 7578.8135 | BR153: 275128.1408 | BS153: 11382.8242 | BT153: 122118.1731 | BU153: 49601.8161 | BV153: 194398.8709
B154: Covered pin latrine | C154: 13.22651594 | D154: 8.915329743 | E154: 9.414512694 | F154: 15.30497622 | G154: 13.42694774 | H154: 26.6816204 | I154: 23.93885027 | J154: 26.68184686 | K154: 10.11477275 | L154: 0.8133237279 | M154: 13.54724836 | N154: 9.397805011 | O154: 7.917556718 | P154: 8.395399853 | Q154: 10.75371288 | R154: 20.19446522 | S154: 10.53399961 | T154: 4.645848311 | U154: 28.23757858 | V154: 6.221610224 | BB154: Covered pin latrine | BC154: 178175.6415 | BD154: 120153.6897 | BE154: 126807.0273 | BF154: 206255.2608 | BG154: 180880.2408 | BH154: 96917.2548 | BI154: 86739.9196 | BJ154: 96484.2757 | BK154: 36631.0636 | BL154: 2951.6997 | BM154: 133431.2146 | BN154: 92515.693 | BO154: 78032.0363 | BP154: 82625.1852 | BQ154: 105943.5176 | BR154: 128003.328 | BS154: 19789.7034 | BT154: 105402.3135 | BU154: 426118.8221 | BV154: 132957.6931
B155: Uncovered pin latrine | C155: 85.38754296 | D155: 90.83361893 | E155: 88.88124892 | F155: 83.44902212 | G155: 34.16130792 | H155: 71.68836062 | I155: 74.5199203 | J155: 66.57145022 | K155: 8.727221603 | L155: 0.2135532566 | M155: 84.99383865 | N155: 89.94045046 | O155: 91.20682852 | P155: 90.26136932 | Q155: 85.58018651 | R155: 34.72949389 | S155: 61.0363849 | T155: 88.3554269 | U155: 68.1233378 | V155: 83.71594398 | BB155: Uncovered pin latrine | BC155: 1150263.631 | BD155: 1224182.928 | BE155: 1197169.447 | BF155: 1124588.472 | BG155: 460201.8063 | BH155: 260397.9447 | BI155: 270015.1353 | BJ155: 240729.1441 | BK155: 31605.9903 | BL155: 775.0236 | BM155: 837131.7056 | BN155: 885409.2092 | BO155: 898895.3041 | BP155: 888327.2372 | BQ155: 843119.5898 | BR155: 220134.1184 | BS155: 114666.0336 | BT155: 2004556.71 | BU155: 1028014.367 | BV155: 1789035.055
B156: None (nature) | C156: 1.309969947 | D156: 0.2510513225 | E156: 1.704238387 | F156: 0.8579948133 | G156: 4.354432404 | H156: 0.9609739814 | I156: 0.3309439276 | J156: 2.177699338 | K156: 8.668968996 | L156: 0 | M156: 1.355005885 | N156: 0.6617445278 | O156: 0.8756147637 | P156: 1.343230829 | Q156: 2.896819142 | R156: 1.670406382 | S156: 22.37057239 | T156: 1.616086692 | U156: 0.3521244264 | V156: 0.9178731005 | BB156: None (nature) | BC156: 17646.7285 | BD156: 3383.4691 | BE156: 22954.9219 | BF156: 11562.6409 | BG156: 58660.4489 | BH156: 3490.6036 | BI156: 1199.1407 | BJ156: 7874.7826 | BK156: 31395.0261 | BL156: 0 | BM156: 13345.8896 | BN156: 6514.4737 | BO156: 8629.6828 | BP156: 13219.7034 | BQ156: 28538.9068 | BR156: 10587.9296 | BS156: 42026.4865 | BT156: 36664.8381 | BU156: 5313.7292 | BV156: 19615.2259
B157: Other | C157: 0.07597115634 | D157: 0 | E157: 0 | F157: 0 | G157: 0 | H157: 0 | I157: 0 | J157: 0 | K157: 0 | L157: 0 | M157: 0.103907109 | N157: 0 | O157: 0 | P157: 0 | Q157: 0 | R157: 0 | S157: 0 | T157: 0 | U157: 0 | V157: 0.04788956991 | BB157: Other | BC157: 1023.4146 | BD157: 0 | BE157: 0 | BF157: 0 | BG157: 0 | BH157: 0 | BI157: 0 | BJ157: 0 | BK157: 0 | BL157: 0 | BM157: 1023.4146 | BN157: 0 | BO157: 0 | BP157: 0 | BQ157: 0 | BR157: 0 | BS157: 0 | BT157: 0 | BU157: 0 | BV157: 1023.4146
BB158: Total | BC158: 1347109.415 | BD158: 1347720.086 | BE158: 1346931.397 | BF158: 1347635.291 | BG158: 1347143.404 | BH158: 363236.0155 | BI158: 362339.5385 | BJ158: 361610.1847 | BK158: 362154.0937 | BL158: 362918.1836 | BM158: 984932.2244 | BN158: 984439.3759 | BO158: 985557.0232 | BP158: 984172.1258 | BQ158: 985180.8277 | BR158: 633853.5168 | BS158: 187865.0477 | BT158: 2268742.035 | BU158: 1509048.734 | BV158: 2137030.259
A208: =A1026 -> Tajikistan
A209: =A1034 -> 2002
A210: Access to hygiene facilities
A211: by wealth quintile and sub-national region
A212: Notes:
A213: WHO/UNICEF JMP customised wealth index excludes water,
A214: sanitation and hygiene assets.
A215: Survey used for analysis: | B215: =A1025 -> PMS02
A220: Access to handwashing | C220: NATIONAL wealth index quintile | H220: URBAN wealth index quintile | M220: RURAL wealth index quintile | R220: SUB-REGIONS: | BA220: Raw numbers of respondents: | BB220: Access to handwashing | BC220: NATIONAL wealth index quintile | BH220: URBAN wealth index quintile | BM220: RURAL wealth index quintile | BR220: SUB-REGIONS:
A221: Weighted percentage (used in graphs) | C221: Poorest | D221: Poor | E221: Middle | F221: Rich | G221: Richest | H221: Poorest | I221: Poor | J221: Middle | K221: Rich | L221: Richest | M221: Poorest | N221: Poor | O221: Middle | P221: Rich | Q221: Richest | R221: DUSHANBE | S221: GBAO | T221: KAHTLON | U221: RRS | V221: SOGDIAN | BA221: Hygiene data, raw numbers (weighted) | BC221: Poorest | BD221: Poor | BE221: Middle | BF221: Rich | BG221: Richest | BH221: Poorest | BI221: Poor | BJ221: Middle | BK221: Rich | BL221: Richest | BM221: Poorest | BN221: Poor | BO221: Middle | BP221: Rich | BQ221: Richest | BR221: DUSHANBE | BS221: GBAO | BT221: KAHTLON | BU221: RRS | BV221: SOGDIAN
A222: Hygiene ladder | B222: Basic | C222: N/A | D222: N/A | E222: N/A | F222: N/A | G222: N/A | H222: N/A | I222: N/A | J222: N/A | K222: N/A | L222: N/A | M222: N/A | N222: N/A | O222: N/A | P222: N/A | Q222: N/A | R222: N/A | S222: N/A | T222: N/A | U222: N/A | V222: N/A | BA222: Hygiene ladder | BB222: Basic | BC222: N/A | BD222: N/A | BE222: N/A | BF222: N/A | BG222: N/A | BH222: N/A | BI222: N/A | BJ222: N/A | BK222: N/A | BL222: N/A | BM222: N/A | BN222: N/A | BO222: N/A | BP222: N/A | BQ222: N/A | BR222: N/A | BS222: N/A | BT222: N/A | BU222: N/A | BV222: N/A
B223: Limited | C223: N/A | D223: N/A | E223: N/A | F223: N/A | G223: N/A | H223: N/A | I223: N/A | J223: N/A | K223: N/A | L223: N/A | M223: N/A | N223: N/A | O223: N/A | P223: N/A | Q223: N/A | R223: N/A | S223: N/A | T223: N/A | U223: N/A | V223: N/A | BB223: Limited | BC223: N/A | BD223: N/A | BE223: N/A | BF223: N/A | BG223: N/A | BH223: N/A | BI223: N/A | BJ223: N/A | BK223: N/A | BL223: N/A | BM223: N/A | BN223: N/A | BO223: N/A | BP223: N/A | BQ223: N/A | BR223: N/A | BS223: N/A | BT223: N/A | BU223: N/A | BV223: N/A
B224: No facility | C224: N/A | D224: N/A | E224: N/A | F224: N/A | G224: N/A | H224: N/A | I224: N/A | J224: N/A | K224: N/A | L224: N/A | M224: N/A | N224: N/A | O224: N/A | P224: N/A | Q224: N/A | R224: N/A | S224: N/A | T224: N/A | U224: N/A | V224: N/A | BB224: No facility | BC224: N/A | BD224: N/A | BE224: N/A | BF224: N/A | BG224: N/A | BH224: N/A | BI224: N/A | BJ224: N/A | BK224: N/A | BL224: N/A | BM224: N/A | BN224: N/A | BO224: N/A | BP224: N/A | BQ224: N/A | BR224: N/A | BS224: N/A | BT224: N/A | BU224: N/A | BV224: N/A
BA225: Observed handwashing place | BB225: Fixed | BC225: N/A | BD225: N/A | BE225: N/A | BF225: N/A | BG225: N/A | BH225: N/A | BI225: N/A | BJ225: N/A | BK225: N/A | BL225: N/A | BM225: N/A | BN225: N/A | BO225: N/A | BP225: N/A | BQ225: N/A | BR225: N/A | BS225: N/A | BT225: N/A | BU225: N/A | BV225: N/A
BB226: Mobile | BC226: N/A | BD226: N/A | BE226: N/A | BF226: N/A | BG226: N/A | BH226: N/A | BI226: N/A | BJ226: N/A | BK226: N/A | BL226: N/A | BM226: N/A | BN226: N/A | BO226: N/A | BP226: N/A | BQ226: N/A | BR226: N/A | BS226: N/A | BT226: N/A | BU226: N/A | BV226: N/A
BA227: Water / Soap | BB227: Water and soap | BC227: N/A | BD227: N/A | BE227: N/A | BF227: N/A | BG227: N/A | BH227: N/A | BI227: N/A | BJ227: N/A | BK227: N/A | BL227: N/A | BM227: N/A | BN227: N/A | BO227: N/A | BP227: N/A | BQ227: N/A | BR227: N/A | BS227: N/A | BT227: N/A | BU227: N/A | BV227: N/A
BB228: Water only | BC228: N/A | BD228: N/A | BE228: N/A | BF228: N/A | BG228: N/A | BH228: N/A | BI228: N/A | BJ228: N/A | BK228: N/A | BL228: N/A | BM228: N/A | BN228: N/A | BO228: N/A | BP228: N/A | BQ228: N/A | BR228: N/A | BS228: N/A | BT228: N/A | BU228: N/A | BV228: N/A
BB229: Soap only | BC229: N/A | BD229: N/A | BE229: N/A | BF229: N/A | BG229: N/A | BH229: N/A | BI229: N/A | BJ229: N/A | BK229: N/A | BL229: N/A | BM229: N/A | BN229: N/A | BO229: N/A | BP229: N/A | BQ229: N/A | BR229: N/A | BS229: N/A | BT229: N/A | BU229: N/A | BV229: N/A
BB230: Neither | BC230: N/A | BD230: N/A | BE230: N/A | BF230: N/A | BG230: N/A | BH230: N/A | BI230: N/A | BJ230: N/A | BK230: N/A | BL230: N/A | BM230: N/A | BN230: N/A | BO230: N/A | BP230: N/A | BQ230: N/A | BR230: N/A | BS230: N/A | BT230: N/A | BU230: N/A | BV230: N/A
BA259: Raw numbers of respondents: | BB259: Menstrual health and hygiene | BC259: NATIONAL wealth index quintile | BH259: URBAN wealth index quintile | BM259: RURAL wealth index quintile | BR259: SUB-REGIONS:
BA260: MHH data, raw numbers (weighted) | BC260: Poorest | BD260: Poor | BE260: Middle | BF260: Rich | BG260: Richest | BH260: Poorest | BI260: Poor | BJ260: Middle | BK260: Rich | BL260: Richest | BM260: Poorest | BN260: Poor | BO260: Middle | BP260: Rich | BQ260: Richest | BR260: DUSHANBE | BS260: GBAO | BT260: KAHTLON | BU260: RRS | BV260: SOGDIAN
BA261: Private place to wash and change | BB261: Yes | BC261: N/A | BD261: N/A | BE261: N/A | BF261: N/A | BG261: N/A | BH261: N/A | BI261: N/A | BJ261: N/A | BK261: N/A | BL261: N/A | BM261: N/A | BN261: N/A | BO261: N/A | BP261: N/A | BQ261: N/A | BR261: N/A | BS261: N/A | BT261: N/A | BU261: N/A | BV261: N/A
BB262: No | BC262: N/A | BD262: N/A | BE262: N/A | BF262: N/A | BG262: N/A | BH262: N/A | BI262: N/A | BJ262: N/A | BK262: N/A | BL262: N/A | BM262: N/A | BN262: N/A | BO262: N/A | BP262: N/A | BQ262: N/A | BR262: N/A | BS262: N/A | BT262: N/A | BU262: N/A | BV262: N/A
BB263: DK/not sure/missing | BC263: N/A | BD263: N/A | BE263: N/A | BF263: N/A | BG263: N/A | BH263: N/A | BI263: N/A | BJ263: N/A | BK263: N/A | BL263: N/A | BM263: N/A | BN263: N/A | BO263: N/A | BP263: N/A | BQ263: N/A | BR263: N/A | BS263: N/A | BT263: N/A | BU263: N/A | BV263: N/A
BA264: Use of menstrual materials | BB264: Materials reusable | BC264: N/A | BD264: N/A | BE264: N/A | BF264: N/A | BG264: N/A | BH264: N/A | BI264: N/A | BJ264: N/A | BK264: N/A | BL264: N/A | BM264: N/A | BN264: N/A | BO264: N/A | BP264: N/A | BQ264: N/A | BR264: N/A | BS264: N/A | BT264: N/A | BU264: N/A | BV264: N/A
BB265: Materials not reusable | BC265: N/A | BD265: N/A | BE265: N/A | BF265: N/A | BG265: N/A | BH265: N/A | BI265: N/A | BJ265: N/A | BK265: N/A | BL265: N/A | BM265: N/A | BN265: N/A | BO265: N/A | BP265: N/A | BQ265: N/A | BR265: N/A | BS265: N/A | BT265: N/A | BU265: N/A | BV265: N/A
BB266: No materials used | BC266: N/A | BD266: N/A | BE266: N/A | BF266: N/A | BG266: N/A | BH266: N/A | BI266: N/A | BJ266: N/A | BK266: N/A | BL266: N/A | BM266: N/A | BN266: N/A | BO266: N/A | BP266: N/A | BQ266: N/A | BR266: N/A | BS266: N/A | BT266: N/A | BU266: N/A | BV266: N/A
BB267: DK/not sure/missing | BC267: N/A | BD267: N/A | BE267: N/A | BF267: N/A | BG267: N/A | BH267: N/A | BI267: N/A | BJ267: N/A | BK267: N/A | BL267: N/A | BM267: N/A | BN267: N/A | BO267: N/A | BP267: N/A | BQ267: N/A | BR267: N/A | BS267: N/A | BT267: N/A | BU267: N/A | BV267: N/A
BA268: Use of menstrual materials with private place to wash and change | BB268: Materials reusable | BC268: N/A | BD268: N/A | BE268: N/A | BF268: N/A | BG268: N/A | BH268: N/A | BI268: N/A | BJ268: N/A | BK268: N/A | BL268: N/A | BM268: N/A | BN268: N/A | BO268: N/A | BP268: N/A | BQ268: N/A | BR268: N/A | BS268: N/A | BT268: N/A | BU268: N/A | BV268: N/A
BB269: Materials not reusable | BC269: N/A | BD269: N/A | BE269: N/A | BF269: N/A | BG269: N/A | BH269: N/A | BI269: N/A | BJ269: N/A | BK269: N/A | BL269: N/A | BM269: N/A | BN269: N/A | BO269: N/A | BP269: N/A | BQ269: N/A | BR269: N/A | BS269: N/A | BT269: N/A | BU269: N/A | BV269: N/A
BB270: No materials used | BC270: N/A | BD270: N/A | BE270: N/A | BF270: N/A | BG270: N/A | BH270: N/A | BI270: N/A | BJ270: N/A | BK270: N/A | BL270: N/A | BM270: N/A | BN270: N/A | BO270: N/A | BP270: N/A | BQ270: N/A | BR270: N/A | BS270: N/A | BT270: N/A | BU270: N/A | BV270: N/A
BA271: Awareness of menstruation before menarche | BB271: Yes | BC271: N/A | BD271: N/A | BE271: N/A | BF271: N/A | BG271: N/A | BH271: N/A | BI271: N/A | BJ271: N/A | BK271: N/A | BL271: N/A | BM271: N/A | BN271: N/A | BO271: N/A | BP271: N/A | BQ271: N/A | BR271: N/A | BS271: N/A | BT271: N/A | BU271: N/A | BV271: N/A
BB272: No | BC272: N/A | BD272: N/A | BE272: N/A | BF272: N/A | BG272: N/A | BH272: N/A | BI272: N/A | BJ272: N/A | BK272: N/A | BL272: N/A | BM272: N/A | BN272: N/A | BO272: N/A | BP272: N/A | BQ272: N/A | BR272: N/A | BS272: N/A | BT272: N/A | BU272: N/A | BV272: N/A
BB273: DK/not sure/missing | BC273: N/A | BD273: N/A | BE273: N/A | BF273: N/A | BG273: N/A | BH273: N/A | BI273: N/A | BJ273: N/A | BK273: N/A | BL273: N/A | BM273: N/A | BN273: N/A | BO273: N/A | BP273: N/A | BQ273: N/A | BR273: N/A | BS273: N/A | BT273: N/A | BU273: N/A | BV273: N/A
BA274: Participation in (all) activities during menstruation | BB274: Yes | BC274: N/A | BD274: N/A | BE274: N/A | BF274: N/A | BG274: N/A | BH274: N/A | BI274: N/A | BJ274: N/A | BK274: N/A | BL274: N/A | BM274: N/A | BN274: N/A | BO274: N/A | BP274: N/A | BQ274: N/A | BR274: N/A | BS274: N/A | BT274: N/A | BU274: N/A | BV274: N/A
BB275: No | BC275: N/A | BD275: N/A | BE275: N/A | BF275: N/A | BG275: N/A | BH275: N/A | BI275: N/A | BJ275: N/A | BK275: N/A | BL275: N/A | BM275: N/A | BN275: N/A | BO275: N/A | BP275: N/A | BQ275: N/A | BR275: N/A | BS275: N/A | BT275: N/A | BU275: N/A | BV275: N/A
BB276: DK/not sure/missing/no such activity | BC276: N/A | BD276: N/A | BE276: N/A | BF276: N/A | BG276: N/A | BH276: N/A | BI276: N/A | BJ276: N/A | BK276: N/A | BL276: N/A | BM276: N/A | BN276: N/A | BO276: N/A | BP276: N/A | BQ276: N/A | BR276: N/A | BS276: N/A | BT276: N/A | BU276: N/A | BV276: N/A
BA277: Participation in specific activities during menstruation | BB277: Did not go to school (amongst those usually attending school) | BC277: N/A | BD277: N/A | BE277: N/A | BF277: N/A | BG277: N/A | BH277: N/A | BI277: N/A | BJ277: N/A | BK277: N/A | BL277: N/A | BM277: N/A | BN277: N/A | BO277: N/A | BP277: N/A | BQ277: N/A | BR277: N/A | BS277: N/A | BT277: N/A | BU277: N/A | BV277: N/A
BB278: Did not go to work (amongst those who usually work) | BC278: N/A | BD278: N/A | BE278: N/A | BF278: N/A | BG278: N/A | BH278: N/A | BI278: N/A | BJ278: N/A | BK278: N/A | BL278: N/A | BM278: N/A | BN278: N/A | BO278: N/A | BP278: N/A | BQ278: N/A | BR278: N/A | BS278: N/A | BT278: N/A | BU278: N/A | BV278: N/A
BB279: Did not participate in social activities | BC279: N/A | BD279: N/A | BE279: N/A | BF279: N/A | BG279: N/A | BH279: N/A | BI279: N/A | BJ279: N/A | BK279: N/A | BL279: N/A | BM279: N/A | BN279: N/A | BO279: N/A | BP279: N/A | BQ279: N/A | BR279: N/A | BS279: N/A | BT279: N/A | BU279: N/A | BV279: N/A
BB280: Did not cook food | BC280: N/A | BD280: N/A | BE280: N/A | BF280: N/A | BG280: N/A | BH280: N/A | BI280: N/A | BJ280: N/A | BK280: N/A | BL280: N/A | BM280: N/A | BN280: N/A | BO280: N/A | BP280: N/A | BQ280: N/A | BR280: N/A | BS280: N/A | BT280: N/A | BU280: N/A | BV280: N/A
BB281: Did not eat with others | BC281: N/A | BD281: N/A | BE281: N/A | BF281: N/A | BG281: N/A | BH281: N/A | BI281: N/A | BJ281: N/A | BK281: N/A | BL281: N/A | BM281: N/A | BN281: N/A | BO281: N/A | BP281: N/A | BQ281: N/A | BR281: N/A | BS281: N/A | BT281: N/A | BU281: N/A | BV281: N/A
BB282: Did not bathe in regular place | BC282: N/A | BD282: N/A | BE282: N/A | BF282: N/A | BG282: N/A | BH282: N/A | BI282: N/A | BJ282: N/A | BK282: N/A | BL282: N/A | BM282: N/A | BN282: N/A | BO282: N/A | BP282: N/A | BQ282: N/A | BR282: N/A | BS282: N/A | BT282: N/A | BU282: N/A | BV282: N/A
BB283: Did not participate in other activities | BC283: N/A | BD283: N/A | BE283: N/A | BF283: N/A | BG283: N/A | BH283: N/A | BI283: N/A | BJ283: N/A | BK283: N/A | BL283: N/A | BM283: N/A | BN283: N/A | BO283: N/A | BP283: N/A | BQ283: N/A | BR283: N/A | BS283: N/A | BT283: N/A | BU283: N/A | BV283: N/A
BB284: DK/not sure/missing/no such activity | BC284: N/A | BD284: N/A | BE284: N/A | BF284: N/A | BG284: N/A | BH284: N/A | BI284: N/A | BJ284: N/A | BK284: N/A | BL284: N/A | BM284: N/A | BN284: N/A | BO284: N/A | BP284: N/A | BQ284: N/A | BR284: N/A | BS284: N/A | BT284: N/A | BU284: N/A | BV284: N/A
BA339: Raw numbers of respondents: | BB339: Basic water, sanitation and hygiene | BC339: NATIONAL wealth index quintile | BH339: URBAN wealth index quintile | BM339: RURAL wealth index quintile | BR339: SUB-REGIONS:
BA340: WatSan data, raw numbers (weighted) | BC340: Poorest | BD340: Poor | BE340: Middle | BF340: Rich | BG340: Richest | BH340: Poorest | BI340: Poor | BJ340: Middle | BK340: Rich | BL340: Richest | BM340: Poorest | BN340: Poor | BO340: Middle | BP340: Rich | BQ340: Richest | BR340: DUSHANBE | BS340: GBAO | BT340: KAHTLON | BU340: RRS | BV340: SOGDIAN
BA341: Use of Basic Water Sanitation and Hygiene | BB341: Yes | BC341: N/A | BD341: N/A | BE341: N/A | BF341: N/A | BG341: N/A | BH341: N/A | BI341: N/A | BJ341: N/A | BK341: N/A | BL341: N/A | BM341: N/A | BN341: N/A | BO341: N/A | BP341: N/A | BQ341: N/A | BR341: N/A | BS341: N/A | BT341: N/A | BU341: N/A | BV341: N/A
BB342: No | BC342: N/A | BD342: N/A | BE342: N/A | BF342: N/A | BG342: N/A | BH342: N/A | BI342: N/A | BJ342: N/A | BK342: N/A | BL342: N/A | BM342: N/A | BN342: N/A | BO342: N/A | BP342: N/A | BQ342: N/A | BR342: N/A | BS342: N/A | BT342: N/A | BU342: N/A | BV342: N/A
BA343: Use of Basic Water and Sanitation | BB343: Yes | BC343: N/A | BD343: N/A | BE343: N/A | BF343: N/A | BG343: N/A | BH343: N/A | BI343: N/A | BJ343: N/A | BK343: N/A | BL343: N/A | BM343: N/A | BN343: N/A | BO343: N/A | BP343: N/A | BQ343: N/A | BR343: N/A | BS343: N/A | BT343: N/A | BU343: N/A | BV343: N/A
BB344: No | BC344: N/A | BD344: N/A | BE344: N/A | BF344: N/A | BG344: N/A | BH344: N/A | BI344: N/A | BJ344: N/A | BK344: N/A | BL344: N/A | BM344: N/A | BN344: N/A | BO344: N/A | BP344: N/A | BQ344: N/A | BR344: N/A | BS344: N/A | BT344: N/A | BU344: N/A | BV344: N/A
BA345: Use of Basic Water and Hygiene | BB345: Yes | BC345: N/A | BD345: N/A | BE345: N/A | BF345: N/A | BG345: N/A | BH345: N/A | BI345: N/A | BJ345: N/A | BK345: N/A | BL345: N/A | BM345: N/A | BN345: N/A | BO345: N/A | BP345: N/A | BQ345: N/A | BR345: N/A | BS345: N/A | BT345: N/A | BU345: N/A | BV345: N/A
BB346: No | BC346: N/A | BD346: N/A | BE346: N/A | BF346: N/A | BG346: N/A | BH346: N/A | BI346: N/A | BJ346: N/A | BK346: N/A | BL346: N/A | BM346: N/A | BN346: N/A | BO346: N/A | BP346: N/A | BQ346: N/A | BR346: N/A | BS346: N/A | BT346: N/A | BU346: N/A | BV346: N/A
BA347: Use of Basic Sanitation and Hygiene | BB347: Yes | BC347: N/A | BD347: N/A | BE347: N/A | BF347: N/A | BG347: N/A | BH347: N/A | BI347: N/A | BJ347: N/A | BK347: N/A | BL347: N/A | BM347: N/A | BN347: N/A | BO347: N/A | BP347: N/A | BQ347: N/A | BR347: N/A | BS347: N/A | BT347: N/A | BU347: N/A | BV347: N/A
BB348: No | BC348: N/A | BD348: N/A | BE348: N/A | BF348: N/A | BG348: N/A | BH348: N/A | BI348: N/A | BJ348: N/A | BK348: N/A | BL348: N/A | BM348: N/A | BN348: N/A | BO348: N/A | BP348: N/A | BQ348: N/A | BR348: N/A | BS348: N/A | BT348: N/A | BU348: N/A | BV348: N/A
BA349: Use of Basic Water | BB349: Yes | BC349: N/A | BD349: N/A | BE349: N/A | BF349: N/A | BG349: N/A | BH349: N/A | BI349: N/A | BJ349: N/A | BK349: N/A | BL349: N/A | BM349: N/A | BN349: N/A | BO349: N/A | BP349: N/A | BQ349: N/A | BR349: N/A | BS349: N/A | BT349: N/A | BU349: N/A | BV349: N/A
BB350: No | BC350: N/A | BD350: N/A | BE350: N/A | BF350: N/A | BG350: N/A | BH350: N/A | BI350: N/A | BJ350: N/A | BK350: N/A | BL350: N/A | BM350: N/A | BN350: N/A | BO350: N/A | BP350: N/A | BQ350: N/A | BR350: N/A | BS350: N/A | BT350: N/A | BU350: N/A | BV350: N/A
BA351: Use of Basic Sanitation | BB351: Yes | BC351: N/A | BD351: N/A | BE351: N/A | BF351: N/A | BG351: N/A | BH351: N/A | BI351: N/A | BJ351: N/A | BK351: N/A | BL351: N/A | BM351: N/A | BN351: N/A | BO351: N/A | BP351: N/A | BQ351: N/A | BR351: N/A | BS351: N/A | BT351: N/A | BU351: N/A | BV351: N/A
BB352: No | BC352: N/A | BD352: N/A | BE352: N/A | BF352: N/A | BG352: N/A | BH352: N/A | BI352: N/A | BJ352: N/A | BK352: N/A | BL352: N/A | BM352: N/A | BN352: N/A | BO352: N/A | BP352: N/A | BQ352: N/A | BR352: N/A | BS352: N/A | BT352: N/A | BU352: N/A | BV352: N/A
BA353: Access to Basic Hygiene | BB353: Yes | BC353: N/A | BD353: N/A | BE353: N/A | BF353: N/A | BG353: N/A | BH353: N/A | BI353: N/A | BJ353: N/A | BK353: N/A | BL353: N/A | BM353: N/A | BN353: N/A | BO353: N/A | BP353: N/A | BQ353: N/A | BR353: N/A | BS353: N/A | BT353: N/A | BU353: N/A | BV353: N/A
BB354: No | BC354: N/A | BD354: N/A | BE354: N/A | BF354: N/A | BG354: N/A | BH354: N/A | BI354: N/A | BJ354: N/A | BK354: N/A | BL354: N/A | BM354: N/A | BN354: N/A | BO354: N/A | BP354: N/A | BQ354: N/A | BR354: N/A | BS354: N/A | BT354: N/A | BU354: N/A | BV354: N/A
C399: INITIAL (national) Wealth Index | H399: URBAN Wealth Index | M399: RURAL Wealth Index
C400: Component Matrix | H400: Component Matrix | M400: Component Matrix
E401: Component | J401: Component | O401: Component
B402: Note: The INITIAL (national) Wealth Index is based on the first component of the Principal Component Analysis (PCA) which has been obtained at national level. The final national-level (NATIONAL) Wealth Index is based on the URBAN and RURAL specific wealth indexes. Regression procedures are used to establish the relationships between the two sets of scores (urban and rural) and the initial (national) wealth factors. This allows best use of the available information for each area and a better precision of the FINAL (NATIONAL) Wealth Index. For dependency reasons, all WASH variables (contained in the generic MICS and DHS scripts) have been excluded from the sets of asset variables used in the PCAs. The PCA can extracts as many components as there are asset variables in the input. Only the first of the components is used to represent the Wealth Index. The scores represent the weights of the asset variables on the Wealth Index (correlations between the variables and the component). The communalities are the proportion of each variable's variance that can be explained by the component. Proportion of explained variance is the part of the model's total variance that is explained by the component. For more information on the procedure used: The DHS Wealth Index, DHS Comparative Reports No. 6, Shea Oscar Rutstein, Kiersten Johnson, ORC Macro International Inc., 2004. The DHS Wealth Index: Approaches for Rural and Urban Areas, Shea O. Rutstein, ORC Macro International Inc., 2008. MICS Methodological Paper No. 4, Review of options for reporting water, sanitation and hygiene coverage by wealth quintile, UNICEF, 2016. | E402: 1 | J402: 1 | O402: 1
C403: Separate apartment | E403: 0.8383210028 | H403: Separate apartment | J403: -0.855036863 | M403: Clay/earthen floor | O403: 0.6591934914
C404: House | E404: -0.7969815021 | H404: House | J404: 0.821669328 | M404: Painted wood floor | O404: -0.63472854
C405: noland | E405: 0.7965986225 | H405: Concrete roof | J405: -0.7622407586 | M405: Mud walls | O405: 0.5476854012
C406: Mud walls | E406: -0.7405311743 | H406: Slate roof | J406: 0.7071915052 | M406: Owns modern stove? | O406: 0.4851963249
C407: Concrete roof | E407: 0.7181444233 | H407: Mud walls | J407: 0.7047306319 | M407: Owns refrigerator? | O407: 0.4601525814
C408: smalland | E408: 0.6667038395 | H408: Concrete plates walls | J408: -0.6769096213 | M408: No phone access | O408: 0.4555607056
C409: Clay/earthen floor | E409: -0.6089957178 | H409: noland | J409: -0.6469442845 | M409: Brick/stones,cement blocks walls | O409: -0.417579098
C410: Concrete plates walls | E410: 0.6036066249 | H410: Linoleum floor | J410: -0.6127393208 | M410: Manure for cooking | O410: 0.3368490221
C411: nocatt | E411: 0.5947870007 | H411: nocatt | J411: -0.5803451872 | M411: House | O411: 0.3345365392
C412: Gas for cooking | E412: 0.5776802494 | H412: Centralized water radiators for heating | J412: -0.5327097384 | M412: Shared apartment | O412: -0.3339263289
C413: Phone Inside the dwelling | E413: 0.5555702975 | H413: Gas for cooking | J413: -0.4737842133 | M413: noland | O413: -0.3323406548
C414: Centralized water radiators for heating | E414: 0.5523641257 | H414: Clay/earthen floor | J414: 0.4368953193 | M414: Owns radio/television? | O414: 0.3321711335
C415: Linoleum floor | E415: 0.5346362684 | H415: smalland | J415: -0.4273046278 | M415: Phone Inside the dwelling | O415: -0.3178167125
C416: No phone access | E416: -0.5181143649 | H416: Wood stove for heating | J416: 0.3940506688 | M416: Own dwelling? | O416: -0.309361111
C417: Owns refrigerator? | E417: -0.5172282315 | H417: Manure for cooking | J417: 0.3889187254 | M417: Phone In neighbours house | O417: -0.3000038819
C418: Owns modern stove? | E418: -0.4829270091 | H418: No phone access | J418: 0.3445156129 | M418: Gas for cooking | O418: -0.2956173797
C419: Electric heaters for heating | E419: 0.4801464148 | H419: bigland | J419: 0.3373704842 | M419: smalland | O419: -0.2951136302
C420: Slate roof | E420: -0.4616057833 | H420: smalcatt | J420: 0.3339069491 | M420: Owns passenger vehicle? | O420: 0.281698941
C421: bigland | E421: -0.3876567949 | H421: Phone Inside the dwelling | J421: -0.328206709 | M421: Concrete plates walls | O421: -0.2741003721
C422: Owns heater? | E422: -0.3871931367 | H422: medicatt | J422: 0.3240852527 | M422: Owns washing machine? | O422: 0.2715725524
C423: Manure for cooking | E423: -0.3821404356 | H423: Owns modern stove? | J423: 0.3225061623 | M423: Electricity from grid | O423: -0.2646053209
C424: Brick/stones,cement blocks walls | E424: 0.3660541448 | H424: Owns refrigerator? | J424: 0.2924180193 | M424: Owns bicycle? | O424: 0.2520800617
... 252 more rows

Sheet MICS05
A2: =A1026 -> Tajikistan
A3: =A1034 -> 2005
A4: Use of drinking water sources
A5: by wealth quintile and sub-national region
A6: Notes:
A7: WHO/UNICEF JMP customised wealth index excludes water,
A8: sanitation and hygiene assets.
A9: Survey used for analysis: | B9: =A1025 -> MICS05
A10: =B1028 -> 
A11: =B1027 -> 
A14: Use of drinking water sources | C14: NATIONAL wealth index quintile | H14: URBAN wealth index quintile | M14: RURAL wealth index quintile | R14: SUB-REGIONS: | BA14: Raw numbers of respondents: | BB14: Use of drinking water sources | BC14: NATIONAL wealth index quintile | BH14: URBAN wealth index quintile | BM14: RURAL wealth index quintile | BR14: SUB-REGIONS:
A15: Weighted percentage (used in graphs) | C15: Poorest | D15: Poor | E15: Middle | F15: Rich | G15: Richest | H15: Poorest | I15: Poor | J15: Middle | K15: Rich | L15: Richest | M15: Poorest | N15: Poor | O15: Middle | P15: Rich | Q15: Richest | R15: DRD | S15: Dushanbe | T15: GBAO | U15: Khatlon | V15: Sogd | BA15: Water data, raw numbers (weighted) | BC15: Poorest | BD15: Poor | BE15: Middle | BF15: Rich | BG15: Richest | BH15: Poorest | BI15: Poor | BJ15: Middle | BK15: Rich | BL15: Richest | BM15: Poorest | BN15: Poor | BO15: Middle | BP15: Rich | BQ15: Richest | BR15: DRD | BS15: Dushanbe | BT15: GBAO | BU15: Khatlon | BV15: Sogd
A16: Water | B16: Improved | C16: 59.90392357 | D16: 55.36705974 | E16: 68.60315467 | F16: 75.91524455 | G16: 94.2067631 | H16: 90.15666524 | I16: 89.37585144 | J16: 95.96190423 | K16: 98.19085624 | L16: 99.79438434 | M16: 53.93016169 | N16: 55.83307927 | O16: 58.8446318 | P16: 69.09413548 | Q16: 71.84433018 | R16: 75.07035795 | S16: 95.89565487 | T16: 51.43907113 | U16: 56.17962075 | V16: 79.38287493 | BA16: Water | BB16: Improved | BC16: N/A | BD16: N/A | BE16: N/A | BF16: N/A | BG16: N/A | BH16: N/A | BI16: N/A | BJ16: N/A | BK16: N/A | BL16: N/A | BM16: N/A | BN16: N/A | BO16: N/A | BP16: N/A | BQ16: N/A | BR16: N/A | BS16: N/A | BT16: N/A | BU16: N/A | BV16: N/A
B17: Not Improved | C17: 40.09607643 | D17: 44.63294026 | E17: 31.39684533 | F17: 24.08475545 | G17: 5.793236903 | H17: 9.843334761 | I17: 10.62414856 | J17: 4.038095765 | K17: 1.809143757 | L17: 0.2056156563 | M17: 46.06983831 | N17: 44.16692073 | O17: 41.1553682 | P17: 30.90586452 | Q17: 28.15566982 | R17: 24.92964205 | S17: 4.104345131 | T17: 48.56092887 | U17: 43.82037925 | V17: 20.61712507 | BB17: Not Improved | BC17: N/A | BD17: N/A | BE17: N/A | BF17: N/A | BG17: N/A | BH17: N/A | BI17: N/A | BJ17: N/A | BK17: N/A | BL17: N/A | BM17: N/A | BN17: N/A | BO17: N/A | BP17: N/A | BQ17: N/A | BR17: N/A | BS17: N/A | BT17: N/A | BU17: N/A | BV17: N/A
A18: Water ladder | B18: Basic | C18: 54.83360412 | D18: 48.5422514 | E18: 60.63200122 | F18: 70.40351186 | G18: 91.4463394 | H18: 85.6442091 | I18: 86.53961252 | J18: 91.5191427 | K18: 95.4904029 | L18: 99.32769916 | M18: 48.55051726 | N18: 48.26242692 | O18: 52.33157243 | P18: 61.23676069 | Q18: 66.22328259 | R18: 71.04833846 | S18: 95.79184642 | T18: 49.47252262 | U18: 49.26850071 | V18: 72.39885814 | BA18: Water ladder | BB18: Basic | BC18: N/A | BD18: N/A | BE18: N/A | BF18: N/A | BG18: N/A | BH18: N/A | BI18: N/A | BJ18: N/A | BK18: N/A | BL18: N/A | BM18: N/A | BN18: N/A | BO18: N/A | BP18: N/A | BQ18: N/A | BR18: N/A | BS18: N/A | BT18: N/A | BU18: N/A | BV18: N/A
B19: Limited | C19: 4.906849548 | D19: 6.565585532 | E19: 7.587262926 | F19: 5.395960938 | G19: 2.744384695 | H19: 4.386689742 | I19: 2.733664855 | J19: 4.418898484 | K19: 2.70045334 | L19: 0.4657958598 | M19: 5.266831934 | N19: 7.354850891 | O19: 5.950222953 | P19: 7.679648957 | Q19: 5.568864275 | R19: 3.690848716 | S19: 0.09304249696 | T19: 1.895089011 | U19: 6.874578395 | V19: 6.827471117 | BB19: Limited | BC19: N/A | BD19: N/A | BE19: N/A | BF19: N/A | BG19: N/A | BH19: N/A | BI19: N/A | BJ19: N/A | BK19: N/A | BL19: N/A | BM19: N/A | BN19: N/A | BO19: N/A | BP19: N/A | BQ19: N/A | BR19: N/A | BS19: N/A | BT19: N/A | BU19: N/A | BV19: N/A
B20: Unimproved | C20: 5.482205478 | D20: 5.749600069 | E20: 6.370621796 | F20: 4.717359545 | G20: 0.8376800415 | H20: 1.646980934 | I20: 1.606565243 | J20: 0.8108881521 | K20: 0.4171094273 | L20: 0 | M20: 5.961814438 | N20: 6.03042388 | O20: 6.939878814 | P20: 5.853978565 | Q20: 5.296943774 | R20: 4.499731833 | S20: 1.704691663 | T20: 5.504091947 | U20: 4.881827611 | V20: 5.133186459 | BB20: Unimproved | BC20: N/A | BD20: N/A | BE20: N/A | BF20: N/A | BG20: N/A | BH20: N/A | BI20: N/A | BJ20: N/A | BK20: N/A | BL20: N/A | BM20: N/A | BN20: N/A | BO20: N/A | BP20: N/A | BQ20: N/A | BR20: N/A | BS20: N/A | BT20: N/A | BU20: N/A | BV20: N/A
B21: Surface water | C21: 34.77734085 | D21: 39.142563 | E21: 25.41011406 | F21: 19.48316766 | G21: 4.971595862 | H21: 8.322120223 | I21: 9.120157386 | J21: 3.251070663 | K21: 1.39203433 | L21: 0.2065049785 | M21: 40.22083637 | N21: 38.35229831 | O21: 34.77832581 | P21: 25.22961179 | Q21: 22.91090937 | R21: 20.76108099 | S21: 2.410419424 | T21: 43.12829642 | U21: 38.97509329 | V21: 15.64048428 | BB21: Surface water | BC21: N/A | BD21: N/A | BE21: N/A | BF21: N/A | BG21: N/A | BH21: N/A | BI21: N/A | BJ21: N/A | BK21: N/A | BL21: N/A | BM21: N/A | BN21: N/A | BO21: N/A | BP21: N/A | BQ21: N/A | BR21: N/A | BS21: N/A | BT21: N/A | BU21: N/A | BV21: N/A
A22: Improved water point at more than 30 minutes | B22: Yes | C22: 8.213612798 | D22: 11.91406866 | E22: 11.12187741 | F22: 7.118731488 | G22: 2.913646457 | H22: 4.87242691 | I22: 3.062131172 | J22: 4.605991981 | K22: 2.750208567 | L22: 0.4667597419 | M22: 9.786494528 | N22: 13.22403969 | O22: 10.20940229 | P22: 11.14342578 | Q22: 7.756926793 | R22: 4.938304596 | S22: 0.09703562054 | T22: 3.689268298 | U22: 12.24474771 | V22: 8.617679477 | BA22: Improved water point at more than 30 minutes | BB22: Yes | BC22: N/A | BD22: N/A | BE22: N/A | BF22: N/A | BG22: N/A | BH22: N/A | BI22: N/A | BJ22: N/A | BK22: N/A | BL22: N/A | BM22: N/A | BN22: N/A | BO22: N/A | BP22: N/A | BQ22: N/A | BR22: N/A | BS22: N/A | BT22: N/A | BU22: N/A | BV22: N/A
B23: No | C23: 91.7863872 | D23: 88.08593134 | E23: 88.87812259 | F23: 92.88126851 | G23: 97.08635354 | H23: 95.12757309 | I23: 96.93786883 | J23: 95.39400802 | K23: 97.24979143 | L23: 99.53324026 | M23: 90.21350547 | N23: 86.77596031 | O23: 89.79059771 | P23: 88.85657422 | Q23: 92.24307321 | R23: 95.0616954 | S23: 99.90296438 | T23: 96.3107317 | U23: 87.75525229 | V23: 91.38232052 | BB23: No | BC23: N/A | BD23: N/A | BE23: N/A | BF23: N/A | BG23: N/A | BH23: N/A | BI23: N/A | BJ23: N/A | BK23: N/A | BL23: N/A | BM23: N/A | BN23: N/A | BO23: N/A | BP23: N/A | BQ23: N/A | BR23: N/A | BS23: N/A | BT23: N/A | BU23: N/A | BV23: N/A
A24: Manually calculated ratios | B24: Improved wells
B25: Improved springs
B26: Other
C27: NATIONAL wealth index quintile | H27: URBAN wealth index quintile | M27: RURAL wealth index quintile | R27: SUB-REGIONS: | BA27: Raw numbers of respondents: | BB27: Use of drinking water sources | BC27: NATIONAL wealth index quintile | BH27: URBAN wealth index quintile | BM27: RURAL wealth index quintile | BR27: SUB-REGIONS:
A28: Percentage based on weighted population | C28: Poorest | D28: Poor | E28: Middle | F28: Rich | G28: Richest | H28: Poorest | I28: Poor | J28: Middle | K28: Rich | L28: Richest | M28: Poorest | N28: Poor | O28: Middle | P28: Rich | Q28: Richest | R28: DRD | S28: Dushanbe | T28: GBAO | U28: Khatlon | V28: Sogd | BA28: Water data, raw numbers (weighted) | BC28: Poorest | BD28: Poor | BE28: Middle | BF28: Rich | BG28: Richest | BH28: Poorest | BI28: Poor | BJ28: Middle | BK28: Rich | BL28: Richest | BM28: Poorest | BN28: Poor | BO28: Middle | BP28: Rich | BQ28: Richest | BR28: DRD | BS28: Dushanbe | BT28: GBAO | BU28: Khatlon | BV28: Sogd
A29: Piped water | B29: Yes | C29: 49.81946071 | D29: 40.02214749 | E29: 50.38525644 | F29: 60.17926241 | G29: 88.48610668 | H29: 84.65991809 | I29: 81.12312454 | J29: 90.25108902 | K29: 94.23366093 | L29: 98.89994035 | M29: 44.76320173 | N29: 39.39450425 | O29: 41.34733845 | P29: 49.8677193 | Q29: 53.90292488 | R29: 50.8943597 | S29: 94.65968819 | T29: 39.69108504 | U29: 44.80586008 | V29: 69.59640417 | BA29: Piped water | BB29: Yes | BC29: N/A | BD29: N/A | BE29: N/A | BF29: N/A | BG29: N/A | BH29: N/A | BI29: N/A | BJ29: N/A | BK29: N/A | BL29: N/A | BM29: N/A | BN29: N/A | BO29: N/A | BP29: N/A | BQ29: N/A | BR29: N/A | BS29: N/A | BT29: N/A | BU29: N/A | BV29: N/A
B30: No | C30: 50.18053929 | D30: 59.97785251 | E30: 49.61474356 | F30: 39.82073759 | G30: 11.51389332 | H30: 15.34008191 | I30: 18.87687546 | J30: 9.74891098 | K30: 5.76633907 | L30: 1.100059647 | M30: 55.23679827 | N30: 60.60549575 | O30: 58.65266155 | P30: 50.1322807 | Q30: 46.09707512 | R30: 49.1056403 | S30: 5.340311808 | T30: 60.30891496 | U30: 55.19413992 | V30: 30.40359583 | BB30: No | BC30: N/A | BD30: N/A | BE30: N/A | BF30: N/A | BG30: N/A | BH30: N/A | BI30: N/A | BJ30: N/A | BK30: N/A | BL30: N/A | BM30: N/A | BN30: N/A | BO30: N/A | BP30: N/A | BQ30: N/A | BR30: N/A | BS30: N/A | BT30: N/A | BU30: N/A | BV30: N/A
A31: Piped water on premises | B31: Yes | C31: 17.88589255 | D31: 18.09179777 | E31: 23.69993481 | F31: 36.61280003 | G31: 80.22181955 | H31: 49.09282745 | I31: 64.86140641 | J31: 78.91898127 | K31: 88.90856342 | L31: 97.56007602 | M31: 13.83515053 | N31: 16.43478203 | O31: 17.31483066 | P31: 23.62087318 | Q31: 29.86180957 | R31: 39.44764444 | S31: 93.31462134 | T31: 15.08260619 | U31: 28.06731012 | V31: 26.82125665 | BA31: Piped water on premises | BB31: Yes | BC31: N/A | BD31: N/A | BE31: N/A | BF31: N/A | BG31: N/A | BH31: N/A | BI31: N/A | BJ31: N/A | BK31: N/A | BL31: N/A | BM31: N/A | BN31: N/A | BO31: N/A | BP31: N/A | BQ31: N/A | BR31: N/A | BS31: N/A | BT31: N/A | BU31: N/A | BV31: N/A
B32: No | C32: 82.11410745 | D32: 81.90820223 | E32: 76.30006519 | F32: 63.38719997 | G32: 19.77818045 | H32: 50.90717255 | I32: 35.13859359 | J32: 21.08101873 | K32: 11.09143658 | L32: 2.439923983 | M32: 86.16484947 | N32: 83.56521797 | O32: 82.68516934 | P32: 76.37912682 | Q32: 70.13819043 | R32: 60.55235556 | S32: 6.685378664 | T32: 84.91739381 | U32: 71.93268988 | V32: 73.17874335 | BB32: No | BC32: N/A | BD32: N/A | BE32: N/A | BF32: N/A | BG32: N/A | BH32: N/A | BI32: N/A | BJ32: N/A | BK32: N/A | BL32: N/A | BM32: N/A | BN32: N/A | BO32: N/A | BP32: N/A | BQ32: N/A | BR32: N/A | BS32: N/A | BT32: N/A | BU32: N/A | BV32: N/A
A33: Piped water into dwelling | B33: Yes | C33: N/A | D33: N/A | E33: N/A | F33: N/A | G33: N/A | H33: N/A | I33: N/A | J33: N/A | K33: N/A | L33: N/A | M33: N/A | N33: N/A | O33: N/A | P33: N/A | Q33: N/A | R33: N/A | S33: N/A | T33: N/A | U33: N/A | V33: N/A | BA33: Piped water into dwelling | BB33: Yes | BC33: N/A | BD33: N/A | BE33: N/A | BF33: N/A | BG33: N/A | BH33: N/A | BI33: N/A | BJ33: N/A | BK33: N/A | BL33: N/A | BM33: N/A | BN33: N/A | BO33: N/A | BP33: N/A | BQ33: N/A | BR33: N/A | BS33: N/A | BT33: N/A | BU33: N/A | BV33: N/A
B34: No | C34: N/A | D34: N/A | E34: N/A | F34: N/A | G34: N/A | H34: N/A | I34: N/A | J34: N/A | K34: N/A | L34: N/A | M34: N/A | N34: N/A | O34: N/A | P34: N/A | Q34: N/A | R34: N/A | S34: N/A | T34: N/A | U34: N/A | V34: N/A | BB34: No | BC34: N/A | BD34: N/A | BE34: N/A | BF34: N/A | BG34: N/A | BH34: N/A | BI34: N/A | BJ34: N/A | BK34: N/A | BL34: N/A | BM34: N/A | BN34: N/A | BO34: N/A | BP34: N/A | BQ34: N/A | BR34: N/A | BS34: N/A | BT34: N/A | BU34: N/A | BV34: N/A
A35: Water source on premises | B35: Yes | C35: 21.96532039 | D35: 26.76263788 | E35: 33.41650017 | F35: 45.44728538 | G35: 82.94154812 | H35: 51.74178939 | I35: 70.27194749 | J35: 81.68185078 | K35: 89.04017354 | L35: 97.98203969 | M35: 17.04654447 | N35: 25.05784219 | O35: 27.06107022 | P35: 34.0234944 | Q35: 40.43043785 | R35: 56.50951775 | S35: 93.83021812 | T35: 15.30121344 | U35: 34.71454261 | V35: 28.60548664 | BA35: Water source on premises | BB35: Yes | BC35: N/A | BD35: N/A | BE35: N/A | BF35: N/A | BG35: N/A | BH35: N/A | BI35: N/A | BJ35: N/A | BK35: N/A | BL35: N/A | BM35: N/A | BN35: N/A | BO35: N/A | BP35: N/A | BQ35: N/A | BR35: N/A | BS35: N/A | BT35: N/A | BU35: N/A | BV35: N/A
B36: No | C36: 78.03467961 | D36: 73.23736212 | E36: 66.58349983 | F36: 54.55271462 | G36: 17.05845188 | H36: 48.25821061 | I36: 29.72805251 | J36: 18.31814922 | K36: 10.95982646 | L36: 2.017960312 | M36: 82.95345553 | N36: 74.94215781 | O36: 72.93892978 | P36: 65.9765056 | Q36: 59.56956215 | R36: 43.49048225 | S36: 6.169781882 | T36: 84.69878656 | U36: 65.28545739 | V36: 71.39451336 | BB36: No | BC36: N/A | BD36: N/A | BE36: N/A | BF36: N/A | BG36: N/A | BH36: N/A | BI36: N/A | BJ36: N/A | BK36: N/A | BL36: N/A | BM36: N/A | BN36: N/A | BO36: N/A | BP36: N/A | BQ36: N/A | BR36: N/A | BS36: N/A | BT36: N/A | BU36: N/A | BV36: N/A
A37: Improved Water source on premises | B37: Yes | C37: 34.56112275 | D37: 43.2770687 | E37: 46.29284544 | F37: 57.21278368 | G37: 87.26286228 | H37: 55.96825232 | I37: 76.89198292 | J37: 84.44309094 | K37: 90.54668308 | L37: 98.18479618 | M37: 29.07035991 | N37: 40.96278047 | O37: 42.06295826 | P37: 46.54758293 | Q37: 52.66840087 | R37: 71.09176738 | S37: 97.57469871 | T37: 29.40530114 | U37: 58.26449773 | V37: 34.90669192 | BA37: Improved water source on premises | BB37: Yes | BC37: N/A | BD37: N/A | BE37: N/A | BF37: N/A | BG37: N/A | BH37: N/A | BI37: N/A | BJ37: N/A | BK37: N/A | BL37: N/A | BM37: N/A | BN37: N/A | BO37: N/A | BP37: N/A | BQ37: N/A | BR37: N/A | BS37: N/A | BT37: N/A | BU37: N/A | BV37: N/A
B38: No | C38: 65.43887725 | D38: 56.7229313 | E38: 53.70715456 | F38: 42.78721632 | G38: 12.73713772 | H38: 44.03174768 | I38: 23.10801708 | J38: 15.55690906 | K38: 9.45331692 | L38: 1.815203819 | M38: 70.92964009 | N38: 59.03721953 | O38: 57.93704174 | P38: 53.45241707 | Q38: 47.33159913 | R38: 28.90823262 | S38: 2.425301293 | T38: 70.59469886 | U38: 41.73550227 | V38: 65.09330808 | BB38: No | BC38: N/A | BD38: N/A | BE38: N/A | BF38: N/A | BG38: N/A | BH38: N/A | BI38: N/A | BJ38: N/A | BK38: N/A | BL38: N/A | BM38: N/A | BN38: N/A | BO38: N/A | BP38: N/A | BQ38: N/A | BR38: N/A | BS38: N/A | BT38: N/A | BU38: N/A | BV38: N/A
A39: Piped water on premises available when needed | B39: Yes | C39: N/A | D39: N/A | E39: N/A | F39: N/A | G39: N/A | H39: N/A | I39: N/A | J39: N/A | K39: N/A | L39: N/A | M39: N/A | N39: N/A | O39: N/A | P39: N/A | Q39: N/A | R39: N/A | S39: N/A | T39: N/A | U39: N/A | V39: N/A | BA39: Piped water on premises available when needed | BB39: Yes | BC39: N/A | BD39: N/A | BE39: N/A | BF39: N/A | BG39: N/A | BH39: N/A | BI39: N/A | BJ39: N/A | BK39: N/A | BL39: N/A | BM39: N/A | BN39: N/A | BO39: N/A | BP39: N/A | BQ39: N/A | BR39: N/A | BS39: N/A | BT39: N/A | BU39: N/A | BV39: N/A
B40: No | C40: N/A | D40: N/A | E40: N/A | F40: N/A | G40: N/A | H40: N/A | I40: N/A | J40: N/A | K40: N/A | L40: N/A | M40: N/A | N40: N/A | O40: N/A | P40: N/A | Q40: N/A | R40: N/A | S40: N/A | T40: N/A | U40: N/A | V40: N/A | BB40: No | BC40: N/A | BD40: N/A | BE40: N/A | BF40: N/A | BG40: N/A | BH40: N/A | BI40: N/A | BJ40: N/A | BK40: N/A | BL40: N/A | BM40: N/A | BN40: N/A | BO40: N/A | BP40: N/A | BQ40: N/A | BR40: N/A | BS40: N/A | BT40: N/A | BU40: N/A | BV40: N/A
A41: Water point at more than 30 minutes | B41: Yes | C41: 15.63668291 | D41: 16.66967104 | E41: 12.04124741 | F41: 7.2142805 | G41: 3.165185482 | H41: 5.544351085 | I41: 3.331734088 | J41: 4.864647436 | K41: 2.70045334 | L41: 0.4657958598 | M41: 18.211773 | N41: 17.63362155 | O41: 15.01736542 | P41: 9.651957073 | Q41: 8.249758823 | R41: 5.908853469 | S41: 0.6566004165 | T41: 5.908556191 | U41: 18.97928691 | V41: 8.592081621 | BA41: Water point at more than 30 minutes | BB41: Yes | BC41: N/A | BD41: N/A | BE41: N/A | BF41: N/A | BG41: N/A | BH41: N/A | BI41: N/A | BJ41: N/A | BK41: N/A | BL41: N/A | BM41: N/A | BN41: N/A | BO41: N/A | BP41: N/A | BQ41: N/A | BR41: N/A | BS41: N/A | BT41: N/A | BU41: N/A | BV41: N/A
B42: No | C42: 84.36331709 | D42: 83.33032896 | E42: 87.95875259 | F42: 92.7857195 | G42: 96.83481452 | H42: 94.45564891 | I42: 96.66826591 | J42: 95.13535256 | K42: 97.29954666 | L42: 99.53420414 | M42: 81.788227 | N42: 82.36637845 | O42: 84.98263458 | P42: 90.34804293 | Q42: 91.75024118 | R42: 94.09114653 | S42: 99.34339958 | T42: 94.09144381 | U42: 81.02071309 | V42: 91.40791838 | BB42: No | BC42: N/A | BD42: N/A | BE42: N/A | BF42: N/A | BG42: N/A | BH42: N/A | BI42: N/A | BJ42: N/A | BK42: N/A | BL42: N/A | BM42: N/A | BN42: N/A | BO42: N/A | BP42: N/A | BQ42: N/A | BR42: N/A | BS42: N/A | BT42: N/A | BU42: N/A | BV42: N/A
A43: Water source available when needed | B43: Yes | C43: N/A | D43: N/A | E43: N/A | F43: N/A | G43: N/A | H43: N/A | I43: N/A | J43: N/A | K43: N/A | L43: N/A | M43: N/A | N43: N/A | O43: N/A | P43: N/A | Q43: N/A | R43: N/A | S43: N/A | T43: N/A | U43: N/A | V43: N/A | BA43: Water source available when needed | BB43: Yes | BC43: N/A | BD43: N/A | BE43: N/A | BF43: N/A | BG43: N/A | BH43: N/A | BI43: N/A | BJ43: N/A | BK43: N/A | BL43: N/A | BM43: N/A | BN43: N/A | BO43: N/A | BP43: N/A | BQ43: N/A | BR43: N/A | BS43: N/A | BT43: N/A | BU43: N/A | BV43: N/A
B44: No | C44: N/A | D44: N/A | E44: N/A | F44: N/A | G44: N/A | H44: N/A | I44: N/A | J44: N/A | K44: N/A | L44: N/A | M44: N/A | N44: N/A | O44: N/A | P44: N/A | Q44: N/A | R44: N/A | S44: N/A | T44: N/A | U44: N/A | V44: N/A | BB44: No | BC44: N/A | BD44: N/A | BE44: N/A | BF44: N/A | BG44: N/A | BH44: N/A | BI44: N/A | BJ44: N/A | BK44: N/A | BL44: N/A | BM44: N/A | BN44: N/A | BO44: N/A | BP44: N/A | BQ44: N/A | BR44: N/A | BS44: N/A | BT44: N/A | BU44: N/A | BV44: N/A
A45: Improved water source available when needed | B45: Yes | C45: N/A | D45: N/A | E45: N/A | F45: N/A | G45: N/A | H45: N/A | I45: N/A | J45: N/A | K45: N/A | L45: N/A | M45: N/A | N45: N/A | O45: N/A | P45: N/A | Q45: N/A | R45: N/A | S45: N/A | T45: N/A | U45: N/A | V45: N/A | BA45: Improved water source available when needed | BB45: Yes | BC45: N/A | BD45: N/A | BE45: N/A | BF45: N/A | BG45: N/A | BH45: N/A | BI45: N/A | BJ45: N/A | BK45: N/A | BL45: N/A | BM45: N/A | BN45: N/A | BO45: N/A | BP45: N/A | BQ45: N/A | BR45: N/A | BS45: N/A | BT45: N/A | BU45: N/A | BV45: N/A
B46: No | C46: N/A | D46: N/A | E46: N/A | F46: N/A | G46: N/A | H46: N/A | I46: N/A | J46: N/A | K46: N/A | L46: N/A | M46: N/A | N46: N/A | O46: N/A | P46: N/A | Q46: N/A | R46: N/A | S46: N/A | T46: N/A | U46: N/A | V46: N/A | BB46: No | BC46: N/A | BD46: N/A | BE46: N/A | BF46: N/A | BG46: N/A | BH46: N/A | BI46: N/A | BJ46: N/A | BK46: N/A | BL46: N/A | BM46: N/A | BN46: N/A | BO46: N/A | BP46: N/A | BQ46: N/A | BR46: N/A | BS46: N/A | BT46: N/A | BU46: N/A | BV46: N/A
A47: Microbiological quality at point of collection | B47: Not contaminated (No E. coli in 100 mL) | C47: N/A | D47: N/A | E47: N/A | F47: N/A | G47: N/A | H47: N/A | I47: N/A | J47: N/A | K47: N/A | L47: N/A | M47: N/A | N47: N/A | O47: N/A | P47: N/A | Q47: N/A | R47: N/A | S47: N/A | T47: N/A | U47: N/A | V47: N/A | BA47: Microbiological quality at point of collection | BB47: Not contaminated (No E. coli in 100 mL) | BC47: N/A | BD47: N/A | BE47: N/A | BF47: N/A | BG47: N/A | BH47: N/A | BI47: N/A | BJ47: N/A | BK47: N/A | BL47: N/A | BM47: N/A | BN47: N/A | BO47: N/A | BP47: N/A | BQ47: N/A | BR47: N/A | BS47: N/A | BT47: N/A | BU47: N/A | BV47: N/A
B48: Contaminated (E. coli detected in 100 mL) | C48: N/A | D48: N/A | E48: N/A | F48: N/A | G48: N/A | H48: N/A | I48: N/A | J48: N/A | K48: N/A | L48: N/A | M48: N/A | N48: N/A | O48: N/A | P48: N/A | Q48: N/A | R48: N/A | S48: N/A | T48: N/A | U48: N/A | V48: N/A | BB48: Contaminated (E. coli detected in 100 mL) | BC48: N/A | BD48: N/A | BE48: N/A | BF48: N/A | BG48: N/A | BH48: N/A | BI48: N/A | BJ48: N/A | BK48: N/A | BL48: N/A | BM48: N/A | BN48: N/A | BO48: N/A | BP48: N/A | BQ48: N/A | BR48: N/A | BS48: N/A | BT48: N/A | BU48: N/A | BV48: N/A
B49: Highly contaminated (>100 CFU/100 mL) | C49: N/A | D49: N/A | E49: N/A | F49: N/A | G49: N/A | H49: N/A | I49: N/A | J49: N/A | K49: N/A | L49: N/A | M49: N/A | N49: N/A | O49: N/A | P49: N/A | Q49: N/A | R49: N/A | S49: N/A | T49: N/A | U49: N/A | V49: N/A | BB49: Highly contaminated (>100 CFU/100 mL) | BC49: N/A | BD49: N/A | BE49: N/A | BF49: N/A | BG49: N/A | BH49: N/A | BI49: N/A | BJ49: N/A | BK49: N/A | BL49: N/A | BM49: N/A | BN49: N/A | BO49: N/A | BP49: N/A | BQ49: N/A | BR49: N/A | BS49: N/A | BT49: N/A | BU49: N/A | BV49: N/A
A50: Microbiological quality of improved water sources at point of collection | B50: Not contaminated (No E. coli in 100 mL) | C50: N/A | D50: N/A | E50: N/A | F50: N/A | G50: N/A | H50: N/A | I50: N/A | J50: N/A | K50: N/A | L50: N/A | M50: N/A | N50: N/A | O50: N/A | P50: N/A | Q50: N/A | R50: N/A | S50: N/A | T50: N/A | U50: N/A | V50: N/A | BA50: Microbiological quality of improved water sources at point of collection | BB50: Not contaminated (No E. coli in 100 mL) | BC50: N/A | BD50: N/A | BE50: N/A | BF50: N/A | BG50: N/A | BH50: N/A | BI50: N/A | BJ50: N/A | BK50: N/A | BL50: N/A | BM50: N/A | BN50: N/A | BO50: N/A | BP50: N/A | BQ50: N/A | BR50: N/A | BS50: N/A | BT50: N/A | BU50: N/A | BV50: N/A
B51: Contaminated (E. coli detected in 100 mL) | C51: N/A | D51: N/A | E51: N/A | F51: N/A | G51: N/A | H51: N/A | I51: N/A | J51: N/A | K51: N/A | L51: N/A | M51: N/A | N51: N/A | O51: N/A | P51: N/A | Q51: N/A | R51: N/A | S51: N/A | T51: N/A | U51: N/A | V51: N/A | BB51: Contaminated (E. coli detected in 100 mL) | BC51: N/A | BD51: N/A | BE51: N/A | BF51: N/A | BG51: N/A | BH51: N/A | BI51: N/A | BJ51: N/A | BK51: N/A | BL51: N/A | BM51: N/A | BN51: N/A | BO51: N/A | BP51: N/A | BQ51: N/A | BR51: N/A | BS51: N/A | BT51: N/A | BU51: N/A | BV51: N/A
B52: Highly contaminated (>100 CFU/100 mL) | C52: N/A | D52: N/A | E52: N/A | F52: N/A | G52: N/A | H52: N/A | I52: N/A | J52: N/A | K52: N/A | L52: N/A | M52: N/A | N52: N/A | O52: N/A | P52: N/A | Q52: N/A | R52: N/A | S52: N/A | T52: N/A | U52: N/A | V52: N/A | BB52: Highly contaminated (>100 CFU/100 mL) | BC52: N/A | BD52: N/A | BE52: N/A | BF52: N/A | BG52: N/A | BH52: N/A | BI52: N/A | BJ52: N/A | BK52: N/A | BL52: N/A | BM52: N/A | BN52: N/A | BO52: N/A | BP52: N/A | BQ52: N/A | BR52: N/A | BS52: N/A | BT52: N/A | BU52: N/A | BV52: N/A
A53: Microbiological quality of piped on premises at point of collection | B53: Not contaminated (No E. coli in 100 mL) | C53: N/A | D53: N/A | E53: N/A | F53: N/A | G53: N/A | H53: N/A | I53: N/A | J53: N/A | K53: N/A | L53: N/A | M53: N/A | N53: N/A | O53: N/A | P53: N/A | Q53: N/A | R53: N/A | S53: N/A | T53: N/A | U53: N/A | V53: N/A | BA53: Microbiological quality of piped on premises at point of collection | BB53: Not contaminated (No E. coli in 100 mL) | BC53: N/A | BD53: N/A | BE53: N/A | BF53: N/A | BG53: N/A | BH53: N/A | BI53: N/A | BJ53: N/A | BK53: N/A | BL53: N/A | BM53: N/A | BN53: N/A | BO53: N/A | BP53: N/A | BQ53: N/A | BR53: N/A | BS53: N/A | BT53: N/A | BU53: N/A | BV53: N/A
B54: Contaminated (E. coli detected in 100 mL) | C54: N/A | D54: N/A | E54: N/A | F54: N/A | G54: N/A | H54: N/A | I54: N/A | J54: N/A | K54: N/A | L54: N/A | M54: N/A | N54: N/A | O54: N/A | P54: N/A | Q54: N/A | R54: N/A | S54: N/A | T54: N/A | U54: N/A | V54: N/A | BB54: Contaminated (E. coli detected in 100 mL) | BC54: N/A | BD54: N/A | BE54: N/A | BF54: N/A | BG54: N/A | BH54: N/A | BI54: N/A | BJ54: N/A | BK54: N/A | BL54: N/A | BM54: N/A | BN54: N/A | BO54: N/A | BP54: N/A | BQ54: N/A | BR54: N/A | BS54: N/A | BT54: N/A | BU54: N/A | BV54: N/A
B55: Highly contaminated (>100 CFU/100 mL) | C55: N/A | D55: N/A | E55: N/A | F55: N/A | G55: N/A | H55: N/A | I55: N/A | J55: N/A | K55: N/A | L55: N/A | M55: N/A | N55: N/A | O55: N/A | P55: N/A | Q55: N/A | R55: N/A | S55: N/A | T55: N/A | U55: N/A | V55: N/A | BB55: Highly contaminated (>100 CFU/100 mL) | BC55: N/A | BD55: N/A | BE55: N/A | BF55: N/A | BG55: N/A | BH55: N/A | BI55: N/A | BJ55: N/A | BK55: N/A | BL55: N/A | BM55: N/A | BN55: N/A | BO55: N/A | BP55: N/A | BQ55: N/A | BR55: N/A | BS55: N/A | BT55: N/A | BU55: N/A | BV55: N/A
C56: NATIONAL wealth index quintile | H56: URBAN wealth index quintile | M56: RURAL wealth index quintile | R56: SUB-REGIONS: | BA56: Raw numbers of respondents: | BB56: Use of drinking water sources | BC56: NATIONAL wealth index quintile | BH56: URBAN wealth index quintile | BM56: RURAL wealth index quintile | BR56: SUB-REGIONS:
A57: Percentage based on weighted population | C57: Poorest | D57: Poor | E57: Middle | F57: Rich | G57: Richest | H57: Poorest | I57: Poor | J57: Middle | K57: Rich | L57: Richest | M57: Poorest | N57: Poor | O57: Middle | P57: Rich | Q57: Richest | R57: DRD | S57: Dushanbe | T57: GBAO | U57: Khatlon | V57: Sogd | BA57: Water data, raw numbers (weighted) | BC57: Poorest | BD57: Poor | BE57: Middle | BF57: Rich | BG57: Richest | BH57: Poorest | BI57: Poor | BJ57: Middle | BK57: Rich | BL57: Richest | BM57: Poorest | BN57: Poor | BO57: Middle | BP57: Rich | BQ57: Richest | BR57: DRD | BS57: Dushanbe | BT57: GBAO | BU57: Khatlon | BV57: Sogd
A58: Main source of drinking water | B58: Piped into dwelling | C58: 7.317587862 | D58: 6.927405059 | E58: 12.24801541 | F58: 19.80839485 | G58: 64.36690198 | H58: 16.35936046 | I58: 38.73184739 | J58: 58.34585857 | K58: 70.9711629 | L58: 89.78895626 | M58: 6.469015237 | N58: 6.342772817 | O58: 7.925651078 | P58: 12.71302903 | Q58: 16.38905439 | R58: 24.8382565 | S58: 79.73719214 | T58: 2.928940539 | U58: 11.815252 | V58: 18.28590801
B59: Piped into yard or plot | C59: 10.56830469 | D59: 11.16439271 | E59: 11.4519194 | F59: 16.80440518 | G59: 15.85491757 | H59: 32.733467 | I59: 26.12955902 | J59: 20.5731227 | K59: 17.93740051 | L59: 7.771119754 | M59: 7.366135293 | N59: 10.09200922 | O59: 9.389179579 | P59: 10.90784414 | Q59: 13.47275519 | R59: 14.60938794 | S59: 13.5774292 | T59: 12.15366565 | U59: 16.25205812 | V59: 8.535348632
B60: Public tap/standpipe | C60: 31.93356815 | D60: 21.93034972 | E60: 26.68532163 | F60: 23.56646238 | G60: 8.264287126 | H60: 35.56709064 | I60: 16.26171814 | J60: 11.33210775 | K60: 5.325097514 | L60: 1.339864336 | M60: 30.9280512 | N60: 22.95972222 | O60: 24.03250779 | P60: 26.24684612 | Q60: 24.04111531 | R60: 11.44671526 | S60: 1.345066856 | T60: 24.60847886 | U60: 16.73854995 | V60: 42.77514753
B61: Tubewell/borehole | C61: 2.177770017 | D61: 4.326459072 | E61: 6.569484968 | F61: 5.011727796 | G61: 1.416401385 | H61: 1.126952018 | I61: 3.173993054 | J61: 0 | K61: 1.213372037 | L61: 0.1249485087 | M61: 2.570988051 | N61: 3.36803879 | O61: 5.752081736 | P61: 8.011195478 | Q61: 4.950422455 | R61: 3.27966352 | S61: 0.0655930807 | T61: 0 | U61: 5.813539128 | V61: 3.54487206
B62: Protected well | C62: 1.349625876 | D62: 3.162800628 | E62: 2.957057345 | F62: 3.502612838 | G62: 2.445198654 | H62: 1.530035658 | I62: 1.61368316 | J62: 3.398525439 | K62: 1.78712357 | L62: 0 | M62: 0.9440828399 | N62: 3.515911741 | O62: 2.772451569 | P62: 3.195632522 | Q62: 4.882692569 | R62: 3.098190948 | S62: 0.4691343514 | T62: 3.49779084 | U62: 2.936561299 | V62: 2.599519354
B63: Unprotected well | C63: 1.152939066 | D63: 1.357922575 | E63: 1.156204908 | F63: 0.8239038371 | G63: 0.02577460497 | H63: 0 | I63: 0 | J63: 0 | K63: 0 | L63: 0 | M63: 1.355650874 | N63: 1.452052507 | O63: 1.516196667 | P63: 1.024641651 | Q63: 0.8481975037 | R63: 0.4161205044 | S63: 0 | T63: 0.2999671659 | U63: 1.897906195 | V63: 0.4243408169
B64: Protected spring | C64: 5.574334157 | D64: 5.764556941 | E64: 7.756976944 | F64: 5.770502188 | G64: 0.7171196167 | H64: 0.4032073766 | I64: 0.6262885586 | J64: 0.3654371922 | K64: 0.3719578543 | L64: 0.4637898909 | M64: 4.862190204 | N64: 7.705807247 | O64: 7.484138364 | P64: 7.314763541 | Q64: 6.900852784 | R64: 16.28573493 | S64: 0.5534442419 | T64: 8.25019525 | U64: 1.036798301 | V64: 2.340868693
B65: Unprotected spring | C65: 2.315780995 | D65: 2.077148815 | E65: 2.195756463 | F65: 1.265582081 | G65: 0.3232200878 | H65: 0.3725584048 | I65: 0.6393207846 | J65: 0 | K65: 0 | L65: 0 | M65: 3.039745736 | N65: 2.639886106 | O65: 1.170261661 | P65: 2.075591303 | Q65: 1.918637616 | R65: 1.345639995 | S65: 0.6699526073 | T65: 5.196037174 | U65: 1.525782388 | V65: 1.918030439
B66: Rainwater collection | C66: 0.05415902509 | D66: 0 | E66: 0 | F66: 0 | G66: 0.1052867288 | H66: 0 | I66: 0 | J66: 0 | K66: 0 | L66: 0 | M66: 0.07433654015 | N66: 0 | O66: 0 | P66: 0 | Q66: 0.1444874783 | R66: 0.04691558052 | S66: 0 | T66: 0 | U66: 0.0597615483 | V66: 0
B67: Tanker-truck | C67: 0.9285737844 | D67: 1.939838385 | E67: 0.656294716 | F67: 1.230654837 | G67: 0.9160042786 | H67: 2.311788934 | I67: 2.464321064 | J67: 1.848242767 | K67: 0.584741852 | L67: 0.3057055913 | M67: 0.715362325 | N67: 1.641123652 | O67: 1.418643555 | P67: 0.2769471527 | Q67: 0.9340687518 | R67: 1.465493273 | S67: 0 | T67: 0 | U67: 1.177385522 | V67: 1.24012256
B68: Cart with small tank/drum | C68: 0 | D68: 0.1512572313 | E68: 0.2780842595 | F68: 0.2204844872 | G68: 0.1206457543 | H68: 0.1247631601 | I68: 0.3744410609 | J68: 0.09860981689 | K68: 0 | L68: 0 | M68: 0 | N68: 0.2076935868 | O68: 0.0699781317 | P68: 0.4278774888 | Q68: 0.1288812605 | R68: 0 | S68: 0.147795003 | T68: 0 | U68: 0.3497148804 | V68: 0.06108808828
B69: Surface water | C69: 34.63613091 | D69: 38.91654036 | E69: 25.10317648 | F69: 19.38996305 | G69: 4.957869637 | H69: 8.217131513 | I69: 9.032946063 | J69: 3.23197139 | K69: 1.39203433 | L69: 0.2056156563 | M69: 40.12258707 | N69: 38.16581849 | O69: 34.30911797 | P69: 25.0853571 | Q69: 22.86852517 | R69: 20.48890197 | S69: 2.404113283 | T69: 43.06492453 | U69: 38.94261918 | V69: 15.52262114
B70: Other | C70: 1.991225466 | D70: 2.281328508 | E70: 2.941707475 | F70: 2.605306474 | G70: 0.4863725733 | H70: 1.253644843 | I70: 0.9518817102 | J70: 0.8061243755 | K70: 0.4171094273 | L70: 0 | M70: 1.551854628 | N70: 1.909163626 | O70: 4.159791899 | P70: 2.72027447 | Q70: 2.520309536 | R70: 2.678979578 | S70: 1.03027924 | T70: 0 | U70: 1.454071482 | V70: 2.752132674
A108: =A1026 -> Tajikistan
A109: =A1034 -> 2005
A110: Use of sanitation facilities
A111: by wealth quintile and sub-national region
A112: Notes:
A113: WHO/UNICEF JMP customised wealth index excludes water,
A114: sanitation and hygiene assets.
A115: Survey used for analysis: | B115: =A1025 -> MICS05
A116: =B1030 -> 
A117: =B1029 -> 
A120: Use of sanitation facilities | C120: NATIONAL wealth index quintile | H120: URBAN wealth index quintile | M120: RURAL wealth index quintile | R120: SUB-REGIONS: | BA120: Raw numbers of respondents: | BB120: Use of sanitation facilities | BC120: NATIONAL wealth index quintile | BH120: URBAN wealth index quintile | BM120: RURAL wealth index quintile | BR120: SUB-REGIONS:
A121: Weighted percentage (used in graphs) | C121: Poorest | D121: Poor | E121: Middle | F121: Rich | G121: Richest | H121: Poorest | I121: Poor | J121: Middle | K121: Rich | L121: Richest | M121: Poorest | N121: Poor | O121: Middle | P121: Rich | Q121: Richest | R121: DRD | S121: Dushanbe | T121: GBAO | U121: Khatlon | V121: Sogd | BA121: Sanitation data, raw numbers (weighted) | BC121: Poorest | BD121: Poor | BE121: Middle | BF121: Rich | BG121: Richest | BH121: Poorest | BI121: Poor | BJ121: Middle | BK121: Rich | BL121: Richest | BM121: Poorest | BN121: Poor | BO121: Middle | BP121: Rich | BQ121: Richest | BR121: DRD | BS121: Dushanbe | BT121: GBAO | BU121: Khatlon | BV121: Sogd
A122: Sanitation | B122: Improved | C122: 88.67420256 | D122: 90.96903438 | E122: 93.70407546 | F122: 96.93695936 | G122: 98.8136435 | H122: 93.35112251 | I122: 99.30828862 | J122: 97.52228981 | K122: 99.54174954 | L122: 99.78046082 | M122: 88.82475855 | N122: 88.9656032 | O122: 92.95417654 | P122: 93.72755838 | Q122: 97.03180936 | R122: 96.01989157 | S122: 99.30729116 | T122: 86.45655698 | U122: 90.82211551 | V122: 94.79722337 | BA122: Sanitation | BB122: Improved | BC122: 7394.07823 | BD122: 7588.479135 | BE122: 7812.165814 | BF122: 8084.530879 | BG122: 8238.711397 | BH122: 2110.150322 | BI122: 2246.955851 | BJ122: 2204.162122 | BK122: 2247.576608 | BL122: 2257.098495 | BM122: 5396.21543 | BN122: 5404.759173 | BO122: 5655.545255 | BP122: 5700.28341 | BQ122: 5895.218789 | BR122: 9242.760598 | BS122: 3392.516267 | BT122: 990.694805 | BU122: 13340.92008 | BV122: 12151.07371
B123: Not Improved | C123: 11.32579744 | D123: 9.03096562 | E123: 6.295924545 | F123: 3.06304064 | G123: 1.186356496 | H123: 6.648877487 | I123: 0.691711378 | J123: 2.47771019 | K123: 0.458250457 | L123: 0.2195391755 | M123: 11.17524145 | N123: 11.0343968 | O123: 7.045823457 | P123: 6.272441624 | Q123: 2.968190642 | R123: 3.980108427 | S123: 0.6927088407 | T123: 13.54344302 | U123: 9.177884488 | V123: 5.202776634 | BB123: Not Improved | BC123: 944.399046 | BD123: 753.347495 | BE123: 524.895062 | BF123: 255.457225 | BG123: 98.91396 | BH123: 150.294186 | BI123: 15.650707 | BJ123: 56.000274 | BK123: 10.346945 | BL123: 4.966118 | BM123: 678.909927 | BN123: 670.351857 | BO123: 428.684056 | BP123: 381.474729 | BQ123: 180.333989 | BR123: 383.120505 | BS123: 23.664184 | BT123: 155.192609 | BU123: 1348.145468 | BV123: 666.890022
A124: Sanitation ladder | B124: Basic | C124: 86.69146235 | D124: 89.66909512 | E124: 90.0987622 | F124: 93.40464346 | G124: 95.40453547 | H124: 89.35779068 | I124: 95.08777164 | J124: 91.24827683 | K124: 95.98768719 | L124: 98.8770445 | M124: 87.23848396 | N124: 87.2903978 | O124: 90.83609592 | P124: 90.57833352 | Q124: 93.63465037 | R124: 93.91294092 | S124: 97.48885964 | T124: 75.30817186 | U124: 88.03923007 | V124: 92.05327513 | BA124: Sanitation ladder | BB124: Basic | BC124: 7228.747888 | BD124: 7480.040456 | BE124: 7511.588653 | BF124: 7789.936153 | BG124: 7954.472741 | BH124: 2019.883272 | BI124: 2151.462157 | BJ124: 2062.35924 | BK124: 2167.328597 | BL124: 2236.662634 | BM124: 5299.84726 | BN124: 5302.988585 | BO124: 5526.676373 | BP124: 5508.755171 | BQ124: 5688.822602 | BR124: 9039.948033 | BS124: 3330.395365 | BT124: 862.946863 | BU124: 12932.14021 | BV124: 11799.35542
B125: Limited | C125: 1.982740212 | D125: 1.299939256 | E125: 3.605313257 | F125: 3.532315902 | G125: 3.409108035 | H125: 3.993331828 | I125: 4.220516981 | J125: 6.274012976 | K125: 3.554062355 | L125: 0.9034163252 | M125: 1.586274592 | N125: 1.675205399 | O125: 2.118080621 | P125: 3.149224856 | Q125: 3.397158984 | R125: 2.106950656 | S125: 1.818431517 | T125: 11.14838512 | U125: 2.782885438 | V125: 2.743948231 | BB125: Limited | BC125: 165.330342 | BD125: 108.438679 | BE125: 300.577161 | BF125: 294.594726 | BG125: 284.238656 | BH125: 90.26705 | BI125: 95.493694 | BJ125: 141.802882 | BK125: 80.248011 | BL125: 20.435861 | BM125: 96.36817 | BN125: 101.770588 | BO125: 128.868882 | BP125: 191.528239 | BQ125: 206.396187 | BR125: 202.812565 | BS125: 62.120902 | BT125: 127.747942 | BU125: 408.779866 | BV125: 351.718289
B126: Unimproved | C126: 10.67735828 | D126: 8.736373858 | E126: 5.778309505 | F126: 2.752205412 | G126: 0.9518136592 | H126: 6.648877487 | I126: 0.6633057324 | J126: 2.00789218 | K126: 0.458250457 | L126: 0.2195391755 | M126: 10.33808694 | N126: 10.67631059 | O126: 6.829070647 | P126: 5.602391269 | Q126: 2.48321696 | R126: 3.717240159 | S126: 0.6927088407 | T126: 5.712378214 | U126: 8.822255889 | V126: 5.202776634 | BB126: Unimproved | BC126: 890.329094 | BD126: 728.773161 | BE126: 481.741181 | BF126: 229.533604 | BG126: 79.358657 | BH126: 150.294186 | BI126: 15.007999 | BJ126: 45.381624 | BK126: 10.346945 | BL126: 4.966118 | BM126: 628.051741 | BN126: 648.597722 | BO126: 415.496318 | BP126: 340.723887 | BQ126: 150.869157 | BR126: 357.817118 | BS126: 23.664184 | BT126: 65.457423 | BU126: 1295.90695 | BV126: 666.890022
B127: Open defecation | C127: 0.6484391599 | D127: 0.2945917614 | E127: 0.5176150401 | F127: 0.3108352275 | G127: 0.2345428364 | H127: 0 | I127: 0.02840564559 | J127: 0.4698180104 | K127: 0 | L127: 0 | M127: 0.8371545114 | N127: 0.3580862126 | O127: 0.21675281 | P127: 0.670050355 | Q127: 0.4849736818 | R127: 0.2628682687 | S127: 0 | T127: 7.831064807 | U127: 0.355628599 | V127: 0 | BB127: Open defecation | BC127: 54.069952 | BD127: 24.574334 | BE127: 43.153881 | BF127: 25.923621 | BG127: 19.555303 | BH127: 0 | BI127: 0.642708 | BJ127: 10.61865 | BK127: 0 | BL127: 0 | BM127: 50.858186 | BN127: 21.754135 | BO127: 13.187738 | BP127: 40.750842 | BQ127: 29.464832 | BR127: 25.303387 | BS127: 0 | BT127: 89.735186 | BU127: 52.238518 | BV127: 0
A128: Shared among Improved Sanitation | B128: Yes | C128: 2.235983132 | D128: 1.428990936 | E128: 3.847552243 | F128: 3.643930989 | G128: 3.450037783 | H128: 4.277754483 | I128: 4.249914121 | J128: 6.433414338 | K128: 3.570423838 | L128: 0.9054040417 | M128: 1.785847345 | N128: 1.882980994 | O128: 2.278628783 | P128: 3.359977482 | Q128: 3.501077643 | R128: 2.194285602 | S128: 1.831115818 | T128: 12.89478267 | U128: 3.064105502 | V128: 2.894544938 | BA128: Shared among improved sanitation facilities | BB128: Yes | BC128: N/A | BD128: N/A | BE128: N/A | BF128: N/A | BG128: N/A | BH128: N/A | BI128: N/A | BJ128: N/A | BK128: N/A | BL128: N/A | BM128: N/A | BN128: N/A | BO128: N/A | BP128: N/A | BQ128: N/A | BR128: N/A | BS128: N/A | BT128: N/A | BU128: N/A | BV128: N/A
